Workbook

Sheet calculation (hidden)
A1: Himachal Pradesh
A2: 2016-17 | I2: 2017-18
A3: Outlay Approved | I3: Outlay Proposed | M3: Outlay Approved
A4: Category - I | B4: Category - II | C4: Category - III | D4: Total | E4: GoI Release | F4: State Release | G4: Total | H4: Expenditure | I4: Category - I | J4: Category - II | K4: Category - III | L4: Total | M4: Category - I | N4: Category - II | O4: Category - III | P4: Total

Sheet Sheet1 (hidden)
A1: 2016-17 (Himachal Pradesh)
A2: S. No. | B2: Particulars | C2: (Amount Rs. in lakh)
A3: 1 | B3: Last year's outlay | C3: =Annex_IV_HP!D520 -> 42682.22391
A4: 2 | B4: Current proposal | C4: =Annex_IV_HP!S520 -> 71186.01256 | E4: =+C4-C3 -> 28503.78865
A5: 3 | B5: %age increase | C5: =+E4/C4*100 -> 40.04127725
A6: 4 | B6: GoI Releases (Adhoc + 1st instalment) | C6: 12825.46
A7: 4 | B7: State Releases | C7: 1425.04
A8: 5 | B8: Achievement during the year | C8: =Annex_IV_HP!F520 -> 42525.81391
A9: 6 | B9: % Achievement | C9: 1

Sheet % (hidden)
A1: SSA, Himachal Pradesh - 2015-16 (Proposed Outlay-2015-16)
A2: S. No. | B2: Name of the district | C2: Approval 2014-15 | D2: Expenditure 2014-15 | E2: 2015-16 (Proposal) | H2: 2015-16 (Recommendation) | K2: CW Fresh | L2: % on total outlay | M2: Mgt.cost | N2: % on total outlay | O2: LEP | P2: % on total outlay | Q2: CM | R2: % on total outlay | S2: Total Mgt. | T2: %
E3: Spill over | F3: Fresh | G3: Total Outlay Proposed | H3: Spill over | I3: Fresh | J3: Total Outlay Proposed | V3: IE Proposal | W3: IE Recomm | Y3: IE Proposal | AA3: Project Mgt
A4: 1 | B4: Bilaspur | C4: =bls!$D$520 -> 2522.781966 | D4: =bls!$F$520 -> 2522.781966 | E4: =bls!$L$520 -> 68.13 | F4: =bls!$Q$520 -> 3795.6751 | G4: =SUM(E4:F4) -> 3863.8051 | H4: =bls!$U$520 -> 48.58 | I4: =bls!$Z$520 -> 2618.02361 | J4: =SUM(H4:I4) -> 2666.60361 | K4: =bls!$AB$388 -> 66.43 | L4: =K4/J4*100 -> 2.491183907 | M4: =bls!$AB$395 -> 78.98 | N4: =M4/J4*100 -> 2.961820036 | O4: =bls!$AB$396 -> 0 | P4: =O4/F4*100 -> 0 | Q4: =bls!$AB$400 -> 3.4 | R4: =Q4/J4*100 -> 0.127503015 | S4: =M4+O4+Q4 -> 82.38 | T4: =S4/J4*100 -> 3.089323051 | V4: =bls!$P$337 -> 933 | W4: =bls!$Y$337 -> 933 | Y4: =bls!$P$347 -> 5100 | AA4: =bls!$Z$392 -> 78.98 | AB4: 99.04
A5: 2 | B5: Chamba | C5: =cmb!$D$520 -> 4522.474843 | D5: =cmb!$F$520 -> 4491.474843 | E5: =cmb!$L$520 -> 40.34 | F5: =cmb!$Q$520 -> 7474.9354 | G5: =SUM(E5:F5) -> 7515.2754 | H5: =cmb!$U$520 -> 36.04 | I5: =cmb!$Z$520 -> 4890.055599 | J5: =SUM(H5:I5) -> 4926.095599 | K5: =cmb!$AB$388 -> 123.82 | L5: =K5/J5*100 -> 2.513552519 | M5: =cmb!$AB$395 -> 146.87 | N5: =M5/J5*100 -> 2.981468732 | O5: =cmb!$AB$396 -> 0 | P5: 0 | Q5: =cmb!$AB$400 -> 6.7 | R5: =Q5/J5*100 -> 0.1360103527 | S5: 153.57 | T5: =S5/J5*100 -> 3.117479085 | V5: =cmb!$P$337 -> 495 | W5: =cmb!$Y$337 -> 495 | Y5: =cmb!$P$347 -> 9840 | AA5: =cmb!$Z$392 -> 146.87
A6: 3 | B6: Hamirpur | C6: =hmr!$D$520 -> 1952.281619 | D6: =hmr!$F$520 -> 1842.281619 | E6: =hmr!$L$520 -> 110 | F6: =hmr!$Q$520 -> 2586.09247 | G6: 2696.09247 | H6: =hmr!$U$520 -> 110 | I6: =hmr!$Z$520 -> 1996.881437 | J6: 2106.881437 | K6: =hmr!$AB$388 -> 152.05 | L6: 7.216827552 | M6: =hmr!$AB$395 -> 73.5 | N6: 3.488568399 | O6: =hmr!$AB$396 -> 0 | P6: 0 | Q6: =hmr!$AB$400 -> 3.56 | R6: 0.1689701156 | S6: 77.06 | T6: 3.657538515 | V6: =hmr!$P$337 -> 452 | W6: =hmr!$Y$337 -> 452 | Y6: =hmr!$P$347 -> 4590 | AA6: =hmr!$Z$392 -> 73.5
A7: 4 | B7: Kangra | C7: =kgr!$D$520 -> 6847.456997 | D7: =kgr!$F$520 -> 6846.956997 | E7: =kgr!$L$520 -> 211.52 | F7: =kgr!$Q$520 -> 10796.2376 | G7: 11007.7576 | H7: =kgr!$U$520 -> 85.78 | I7: =kgr!$Z$520 -> 7455.048424 | J7: 7540.828424 | K7: =kgr!$AB$388 -> 212 | L7: 2.811362201 | M7: =kgr!$AB$395 -> 211.77 | N7: 2.808312139 | O7: =kgr!$AB$396 -> 0 | P7: 0 | Q7: =kgr!$AB$400 -> 9.99 | R7: 0.1324788132 | S7: 221.76 | T7: 2.940790952 | V7: =kgr!$P$337 -> 2346 | W7: =kgr!$Y$337 -> 2346 | Y7: =kgr!$P$347 -> 15228 | AA7: =kgr!$Z$392 -> 211.77
A8: 5 | B8: Kinnaur | C8: =knr!$D$520 -> 623.4885882 | D8: =knr!$F$520 -> 623.4885882 | E8: =knr!$L$520 -> 42.17 | F8: =knr!$Q$520 -> 1033.86508 | G8: 1076.03508 | H8: =knr!$U$520 -> 25.23 | I8: =knr!$Z$520 -> 654.9771738 | J8: 680.2071738 | K8: =knr!$AB$388 -> 32.13 | L8: 4.723560885 | M8: =knr!$AB$395 -> 23.65 | N8: 3.476881884 | O8: =knr!$AB$396 -> 0 | P8: 0 | Q8: =knr!$AB$400 -> 1.58 | R8: 0.2322821724 | S8: 25.23 | T8: 3.709164056 | V8: =knr!$P$337 -> 121 | W8: =knr!$Y$337 -> 121 | Y8: =knr!$P$347 -> 1620 | AA8: =knr!$Z$392 -> 23.65
A9: 6 | B9: Kullu | C9: =kul!$D$520 -> 3110.463435 | D9: =kul!$F$520 -> 3105.953435 | E9: =kul!$L$520 -> 123.74 | F9: =kul!$Q$520 -> 4923.61498 | G9: 5047.35498 | H9: =kul!$U$520 -> 109.32 | I9: =kul!$Z$520 -> 3271.969374 | J9: 3381.289374 | K9: =kul!$AB$388 -> 138.6 | L9: 4.099028053 | M9: =kul!$AB$395 -> 116.91 | N9: 3.45755678 | O9: =kul!$AB$396 -> 0 | P9: 0 | Q9: =kul!$AB$400 -> 6.16 | R9: 0.1821790246 | S9: 123.07 | T9: 3.639735805 | V9: =kul!$P$337 -> 742 | W9: =kul!$Y$337 -> 742 | Y9: =kul!$P$347 -> 6156 | AA9: =kul!$Z$392 -> 116.91
A10: 7 | B10: L & Spiti | C10: =lspiti!$D$520 -> 592.1212717 | D10: =lspiti!$F$520 -> 592.1212717 | E10: =lspiti!$L$520 -> 47.64 | F10: =lspiti!$Q$520 -> 732.14192 | G10: 779.78192 | H10: =lspiti!$U$520 -> 47.64 | I10: =lspiti!$Z$520 -> 565.3460038 | J10: 612.9860038 | K10: =lspiti!$AB$388 -> 56.29 | L10: 9.182917661 | M10: =lspiti!$AB$395 -> 21.4 | N10: 3.491107442 | O10: =lspiti!$AB$396 -> 0 | P10: 0 | Q10: =lspiti!$AB$400 -> 1.57 | R10: 0.256123303 | S10: 22.97 | T10: 3.747230745 | V10: =lspiti!$P$337 -> 78 | W10: =lspiti!$Y$337 -> 78 | Y10: =lspiti!$P$347 -> 1608 | AA10: =lspiti!$Z$392 -> 21.4
A11: 8 | B11: Mandi | C11: =mnd!$D$520 -> 6863.477779 | D11: =mnd!$F$520 -> 6863.477779 | E11: =mnd!$L$520 -> 1027.55 | F11: =mnd!$Q$520 -> 11140.50901 | G11: 12168.05901 | H11: =mnd!$U$520 -> 841.21 | I11: =mnd!$Z$520 -> 7320.909705 | J11: 8162.119705 | K11: =mnd!$AB$388 -> 875.64 | L11: 10.72809554 | M11: =mnd!$AB$395 -> 175.71 | N11: 2.152749609 | O11: =mnd!$AB$396 -> 0 | P11: 0 | Q11: =mnd!$AB$400 -> 7.35 | R11: 0.09005013729 | S11: 183.06 | T11: 2.242799746 | V11: =mnd!$P$337 -> 1218 | W11: =mnd!$Y$337 -> 1218 | Y11: =mnd!$P$347 -> 14766 | AA11: =mnd!$Z$392 -> 175.71
A12: 9 | B12: Shimla | C12: =sml!$D$520 -> 5037.74643 | D12: =sml!$F$520 -> 5037.74643 | E12: =sml!$L$520 -> 219.22 | F12: =sml!$Q$520 -> 7456.49919 | G12: 7675.71919 | H12: =sml!$U$520 -> 182.15 | I12: =sml!$Z$520 -> 5355.243778 | J12: 5537.393778 | K12: =sml!$AB$388 -> 204.81 | L12: 3.698671401 | M12: =sml!$AB$395 -> 138.49 | N12: 2.500996056 | O12: =sml!$AB$396 -> 0 | P12: 0 | Q12: =sml!$AB$400 -> 6.44 | R12: 0.1163001993 | S12: 144.93 | T12: 2.617296255 | V12: =sml!$P$337 -> 1401 | W12: =sml!$Y$337 -> 1401 | Y12: =sml!$P$347 -> 13938 | AA12: =sml!$Z$392 -> 138.49
A13: 10 | B13: Sirmour | C13: =smr!$D$520 -> 4298.052754 | D13: =smr!$F$520 -> 4287.652754 | E13: =smr!$L$520 -> 16.23 | F13: =smr!$Q$520 -> 9679.78761 | G13: 9696.01761 | H13: =smr!$U$520 -> 15.73 | I13: =smr!$Z$520 -> 4653.432882 | J13: 4669.162882 | K13: =smr!$AB$388 -> 27.67 | L13: 0.5926115815 | M13: =smr!$AB$395 -> 123.16 | N13: 2.637731926 | O13: =smr!$AB$396 -> 0 | P13: 0 | Q13: =smr!$AB$400 -> 5.67 | R13: 0.121435044 | S13: 128.83 | T13: 2.75916697 | V13: =smr!$P$337 -> 496 | W13: =smr!$Y$337 -> 496 | Y13: =smr!$P$347 -> 8706 | AA13: =smr!$Z$392 -> 123.16
A14: 11 | B14: Solan | C14: =sln!$D$520 -> 3350.835938 | D14: =sln!$F$520 -> 3350.835938 | E14: =sln!$L$520 -> 108.99 | F14: =sln!$Q$520 -> 5029.59748 | G14: 5138.58748 | H14: =sln!$U$520 -> 90.51 | I14: =sln!$Z$520 -> 3690.583965 | J14: 3781.093965 | K14: =sln!$AB$388 -> 196.77 | L14: 5.204049458 | M14: =sln!$AB$395 -> 97.11 | N14: 2.568304329 | O14: =sln!$AB$396 -> 0 | P14: 0 | Q14: =sln!$AB$400 -> 4.31 | R14: 0.1139881748 | S14: 101.42 | T14: 2.682292504 | V14: =sln!$P$337 -> 532 | W14: =sln!$Y$337 -> 532 | Y14: =sln!$P$347 -> 6504 | AA14: =sln!$Z$392 -> 97.11
A15: 12 | B15: Una | C15: =una!$D$520 -> 2420.682289 | D15: =una!$F$520 -> 2420.682289 | E15: =una!$L$520 -> 96.97 | F15: =una!$Q$520 -> 3789.94716 | G15: 3886.91716 | H15: =una!$U$520 -> 91.2 | I15: =una!$Z$520 -> 2622.219004 | J15: 2713.419004 | K15: =una!$AB$388 -> 123.18 | L15: 4.539660105 | M15: =una!$AB$395 -> 68.27 | N15: 2.516013926 | O15: =una!$AB$396 -> 0 | P15: 0 | Q15: =una!$AB$400 -> 2.77 | R15: 0.1020852289 | S15: 71.04 | T15: 2.618099154 | V15: =una!$P$337 -> 523 | W15: =una!$Y$337 -> 523 | Y15: =una!$P$347 -> 4572 | AA15: =una!$Z$392 -> 68.27
B16: State Intervention | C16: =Annex_IV_HP!D406 -> 540.36 | D16: =Annex_IV_HP!F406 -> 540.36 | E16: =Annex_IV_HP!L406 -> 0 | F16: =Annex_IV_HP!S406 -> 634.6095582 | G16: 634.6095582 | H16: =Annex_IV_HP!O406 -> 0 | I16: =Annex_IV_HP!AB406 -> 596.2095582 | J16: 596.2095582 | M16: =Annex_IV_HP!AB404 -> 375 | S16: =M16 -> 375
B17: TOTAL | C17: =SUM(C4:C16) -> 42682.22391 | D17: 42525.81391 | E17: 2112.5 | F17: 69073.51256 | G17: 71186.01256 | H17: =SUM(H4:H16) -> 1683.39 | I17: =SUM(I4:I16) -> 45690.90051 | J17: =SUM(J4:J16) -> 47374.29051 | K17: 2209.39 | L17: 4.663689896 | M17: =SUM(M4:M16) -> 1650.82 | N17: 3.484632661 | O17: =SUM(O4:O16) -> 0 | Q17: =SUM(Q4:Q16) -> 59.5 | R17: =Q17/J17*100 -> 0.1255955485 | S17: =SUM(S4:S16) -> 1710.32 | T17: =S17/J17*100 -> 3.610228209 | V17: =SUM(V4:V16) -> 9337 | W17: =SUM(W4:W16) -> 9337 | Y17: =SUM(Y4:Y16) -> 92628 | AA17: =SUM(AA4:AA16) -> 1275.82
C19: =Annex_IV_HP!D520 -> 42682.22391 | D19: =Annex_IV_HP!F520 -> 42525.81391 | E19: =Annex_IV_HP!L520 -> 2112.5 | F19: =Annex_IV_HP!Q520 -> 69073.51256 | G19: =SUM(E19:F19) -> 71186.01256 | H19: =Annex_IV_HP!U520 -> 1683.39 | I19: =Annex_IV_HP!Z520 -> 45690.90051 | J19: =SUM(H19:I19) -> 47374.29051 | K19: =Annex_IV_HP!AB388 -> 2209.39 | L19: 4.663689896 | M19: =Annex_IV_HP!AB395+Annex_IV_HP!AB404 -> 1650.82 | N19: 3.484632661 | Q19: =Annex_IV_HP!AB400 -> 59.5 | R19: =Q19/J19*100 -> 0.1255955485 | S19: =Annex_IV_HP!AB395+Annex_IV_HP!AB401+Annex_IV_HP!AB404 -> 2636.22 | T19: =S19/J19*100 -> 5.564663811
C21: =C19-C17 -> 0 | D21: =D19-D17 -> 0 | E21: =E19-E17 -> 0 | F21: =F19-F17 -> 0 | G21: 0 | H21: =H19-H17 -> 0 | I21: =I19-I17 -> 0 | J21: 0 | K21: 0 | M21: =M19-M17 -> 0 | Q21: =Q19-Q17 -> 0 | S21: =S19-S17 -> 925.9
C23: ='[23]Final Statewise Outlay 2013-14'!$S$17 -> 25065.24287 | N23: =M17/G17*100 -> 2.319022994
C24: ='[23]Final Statewise Outlay 2013-14'!$T$17 -> 52.5
C26: 18 additional boys toilets @ Rs. 1.5 Lakh (Rs. 27 lakh) and 17 Girls toilets @ Rs. 1.5 lakh (Rs. 25.5 lakh) and total additional outlay (Rs. 52.5 lakh) approved under Swacch Vidhalaya

Sheet ppt (2) (hidden)
A1: Himachal Pradesh
A2: Financial Statement Showing Central Share Release, State Shrae Release, Unspent Balance, Outstanding Advances
D3: Amount Rs. in crore
A4: 2016-17 | D4: Unspent Balance as on 01/04/2016 | E4: Outstanding Advances as on 01/04/2016
A5: Allocation | B5: Central Share Released | C5: State Share Released
A6: 426.8222391 | B6: 128.25 | C6: =+G6/100 -> 14.2504 | D6: -10.98 | E6: 52.32 | G6: 1425.04

Sheet ppt (hidden)
A1: Name of the State / UT: Himachal Pradesh
A2: S. No. | B2: Particulars | C2: (Amount Rs. in crore)
A3: 1 | B3: Approved outlay for the year 2016-17 | C3: =+D3/100 -> 426.8222391 | D3: =+Annex_IV_HP!D520 -> 42682.22391
A4: 2 | B4: Opening balance with State as on 01/04/2016 | C4: -10.98
A5: 3 | B5: Actual outlay size (after deducting opening balance) | C5: =C3-C4 -> 437.8022391
A6: 4 | B6: GOI Share of outlay as per sharing pattern (90:10) | C6: =+C5*90/100 -> 394.0220152
A7: 5 | B7: Status of GOI releases during 2016-17
B8: Adhoc Installment (Released) | C8: 35
B9: 1st installment (Released) | C9: 93.25
B10: 2nd installment (To be released)
B11: Total Releases | C11: =+C8+C9 -> 128.25
A12: 6 | B12: Current year’s proposal (2017-18) | C12: =D12/100 -> 711.8601256 | D12: =Annex_IV_HP!S520 -> 71186.01256
A13: 7 (a) | B13: Current year’s Recommended Estimate (2017-18) | C13: =+D13/100 -> 473.7429051 | D13: =Annex_IV_HP!AB520 -> 47374.29051 | G13: GOI
A14: (b) | B14: Category-I (54.18) - GOI - 48.76 (90%) | C14: =+F14-G14 -> 6.769107 | D14: =+'Category wise'!L22 -> 6769.107 | E14: =+D14*90/100 -> 6092.1963 | F14: =+D14/100 -> 67.69107 | G14: =+E14/100 -> 60.921963
A15: (c) | B15: Category-II (97.99) - GOI - 88.19 (90%) | C15: =+F15-G15 -> 11.02603234 | D15: =+'Category wise'!L68 -> 11026.03234 | E15: =+D15*90/100 -> 9923.429106 | F15: =+D15/100 -> 110.2603234 | G15: =+E15/100 -> 99.23429106
B16: Total Category I & II (152.16) - GOI - 136.95 | C16: =+F16-G16 -> 17.79513934 | F16: =SUM(F14:F15) -> 177.9513934 | G16: =SUM(G14:G15) -> 160.1562541
A17: 8 | B17: Additional fund allocated as per 14th Finance Commission in 2015-16 (1099.54) and 2016-17 (1430.50) | C17: =1099.54+1430.5 -> 2530.04

Sheet Category wise (hidden)
A1: AWP&B 2017-18 Intervention wise Tentetive Recommendation
A2: (Rs. in lakh)
A3: State : Himachal Pradesh | C3: Proposed by State for FY 2017-18 | H3: Recommendation for FY 2017-18
A4: S.No. | B4: Intervention | C4: Spill over | D4: Fresh Proposal | F4: Total | H4: Spill over | I4: Fresh Proposal | K4: Total | M4: %age | N4: Remarks
C5: Fin. | D5: Phy. | E5: Fin | F5: Phy. | G5: Fin | H5: Fin. | I5: Phy. | J5: Fin | K5: Phy. | L5: Fin
A6: Category-1
A7: 1 | B7: Reimbursement under Section 12(1)(c) | D7: =Annex_IV_HP!P150 -> 0 | E7: =Annex_IV_HP!Q150 -> 0 | F7: =D7 -> 0 | G7: =C7+E7 -> 0 | I7: =Annex_IV_HP!Y150 -> 0 | J7: =Annex_IV_HP!Z150 -> 0 | K7: =I7 -> 0 | L7: =H7+J7 -> 0
A8: 2 | B8: Free Text Books | F8: =D8 -> 0 | G8: =C8+E8 -> 0 | K8: =I8 -> 0 | L8: =H8+J8 -> 0
B9: a. Primary | D9: =Annex_IV_HP!P198+Annex_IV_HP!P201 -> 178755 | E9: =Annex_IV_HP!Q198+Annex_IV_HP!Q201 -> 268.1325 | F9: 178755 | G9: 268.1325 | I9: =Annex_IV_HP!Y198+Annex_IV_HP!Y201 -> 178755 | J9: =Annex_IV_HP!Z198+Annex_IV_HP!Z201 -> 268.1325 | K9: 178755 | L9: 268.1325 | N9: Recommended as proposed
B10: b. Upper Primary | D10: =+Annex_IV_HP!P204 -> 133670 | E10: =+Annex_IV_HP!Q204 -> 334.175 | F10: 133670 | G10: 334.175 | I10: =+Annex_IV_HP!Y204 -> 133670 | J10: =+Annex_IV_HP!Z204 -> 334.175 | K10: 133670 | L10: 334.175
B11: c. Large Print Book | D11: =+Annex_IV_HP!P200+Annex_IV_HP!P203+Annex_IV_HP!P206 -> 317 | E11: =+Annex_IV_HP!Q200+Annex_IV_HP!Q203+Annex_IV_HP!Q206 -> 0.5615 | F11: 317 | G11: 0.5615 | I11: =+Annex_IV_HP!Y200+Annex_IV_HP!Y203+Annex_IV_HP!Y206 -> 317 | J11: =+Annex_IV_HP!Z200+Annex_IV_HP!Z203+Annex_IV_HP!Z206 -> 0.5615 | K11: 317 | L11: 0.5615
B12: d. Braille Book | D12: =+Annex_IV_HP!P199+Annex_IV_HP!P202+Annex_IV_HP!P205 -> 26 | E12: =+Annex_IV_HP!Q199+Annex_IV_HP!Q202+Annex_IV_HP!Q205 -> 0.044 | F12: 26 | G12: 0.044 | I12: =+Annex_IV_HP!Y199+Annex_IV_HP!Y202+Annex_IV_HP!Y205 -> 26 | J12: =+Annex_IV_HP!Z199+Annex_IV_HP!Z202+Annex_IV_HP!Z205 -> 0.044 | K12: 26 | L12: 0.044
A13: 3 | B13: Free Uniform | D13: =Annex_IV_HP!P213 -> 481851 | E13: =Annex_IV_HP!Q213 -> 1927.404 | F13: 481851 | G13: 1927.404 | I13: =Annex_IV_HP!Y213 -> 481851 | J13: =Annex_IV_HP!Z213 -> 1927.404 | K13: 481851 | L13: 1927.404 | N13: Recommended as proposed
A14: 4 | B14: Residential School/ Hostel | D14: =Annex_IV_HP!P144+Annex_IV_HP!P79 -> 0 | E14: =Annex_IV_HP!Q144+Annex_IV_HP!Q79 -> 0 | F14: 0 | G14: 0 | I14: =Annex_IV_HP!Y144+Annex_IV_HP!Y79 -> 0 | J14: =Annex_IV_HP!Z144+Annex_IV_HP!Z79 -> 0 | K14: 0 | L14: 0
A15: 5 | B15: KGBV | D15: =+Annex_IV_HP!P516 -> 1 | E15: =+Annex_IV_HP!Q516 -> 276.95 | F15: 1 | G15: 276.95 | I15: =+Annex_IV_HP!Y516 -> 11 | J15: =+Annex_IV_HP!Z516 -> 238.8 | K15: 11 | L15: 238.8 | N15: Recommended as appraised
A16: 6 | B16: IE | D16: =Annex_IV_HP!P338 -> 9337 | E16: =Annex_IV_HP!Q338 -> 280.11 | F16: 9337 | G16: 280.11 | I16: =Annex_IV_HP!Y338 -> 9337 | J16: =Annex_IV_HP!Z338 -> 280.11 | K16: 9337 | L16: 280.11 | N16: Recommended as proposed
A17: 7 | B17: School Grant | D17: =Annex_IV_HP!P327 -> 15438 | E17: =Annex_IV_HP!Q327 -> 866.16 | F17: 15438 | G17: 866.16 | I17: =Annex_IV_HP!Y327 -> 15428 | J17: =Annex_IV_HP!Z327 -> 865.46 | K17: 15428 | L17: 865.46 | N17: Recommended as appraised
A18: =A17+1 -> 8 | B18: Maintenance Grant | C18: =Annex_IV_HP!O334 -> 0 | D18: =Annex_IV_HP!P334 -> 14725 | E18: =Annex_IV_HP!Q334 -> 973.6 | F18: 14725 | G18: 973.6 | I18: =Annex_IV_HP!Y334 -> 14725 | J18: =Annex_IV_HP!Z334 -> 973.6 | K18: 14725 | L18: 973.6 | N18: Recommended as proposed
A19: 9 | B19: Repairs to School Buildings | C19: =+Annex_IV_HP!L372+Annex_IV_HP!L373+Annex_IV_HP!N372+Annex_IV_HP!N373 -> 182.59 | D19: =Annex_IV_HP!P310+Annex_IV_HP!P311 -> 24 | E19: =Annex_IV_HP!Q372+Annex_IV_HP!Q373 -> 845.04088 | F19: 24 | G19: 1027.63088 | H19: =+Annex_IV_HP!U310+Annex_IV_HP!U311+Annex_IV_HP!W310+Annex_IV_HP!W311 -> 0 | I19: =Annex_IV_HP!Y372+Annex_IV_HP!Y373 -> 118 | J19: =Annex_IV_HP!Z372+Annex_IV_HP!Z373 -> 230 | K19: 118 | L19: 230 | N19: Recommended as appraised
A20: 10 | B20: a. Project Management | D20: =Annex_IV_HP!P395+Annex_IV_HP!P404 -> 0 | E20: =Annex_IV_HP!Q395+Annex_IV_HP!Q404 -> 2533.6 | F20: 0 | G20: 2533.6 | I20: =Annex_IV_HP!Y395+Annex_IV_HP!Y404 -> 0 | J20: =Annex_IV_HP!Z395+Annex_IV_HP!Z404 -> 1650.82 | K20: 0 | L20: 1650.82 | N20: Recommended as appraised
B21: b. Finance (Covered Under Project Management and Overall allocation)
A22: Sub Total | C22: =SUM(C7:C20) -> 182.59 | E22: =SUM(E7:E20) -> 8305.77788 | G22: =SUM(G7:G20) -> 8488.36788 | H22: 0 | I22: 834238 | J22: =SUM(J7:J20) -> 6769.107 | K22: 834238 | L22: =SUM(L7:L20) -> 6769.107 | M22: =+L22/L88*100 -> 14.28856649 | O22: =+L22+L68 -> 17795.13934
A23: Category-2
A24: 11 | B24: Transport / Escort facility | D24: =Annex_IV_HP!P148 -> 0 | E24: =Annex_IV_HP!Q148 -> 0 | F24: =D24 -> 0 | G24: =C24+E24 -> 0 | I24: =Annex_IV_HP!Y148 -> 0 | J24: =Annex_IV_HP!Z148 -> 0 | K24: =I24 -> 0 | L24: =H24+J24 -> 0
A25: 12 | B25: Special Training for Age appropriate addmission of OoSC | F25: =D25 -> 0 | G25: =C25+E25 -> 0 | K25: 0 | L25: 0
B26: Residential (Fresh) | F26: =D26 -> 0 | G26: =C26+E26 -> 0 | K26: 0 | L26: 0
B27: (a) 12 months | D27: =Annex_IV_HP!P153 -> 0 | E27: =Annex_IV_HP!Q153 -> 0 | F27: 0 | G27: 0 | I27: =Annex_IV_HP!Y153 -> 0 | J27: =Annex_IV_HP!Z153 -> 0 | K27: 0 | L27: 0
B28: (b) 9 months | D28: =Annex_IV_HP!P154 -> 0 | E28: =Annex_IV_HP!Q154 -> 0 | F28: 0 | G28: 0 | I28: =Annex_IV_HP!Y154 -> 0 | J28: =Annex_IV_HP!Z154 -> 0 | K28: 0 | L28: 0
B29: (c) 6 months | D29: =Annex_IV_HP!P155 -> 0 | E29: =Annex_IV_HP!Q155 -> 0 | F29: 0 | G29: 0 | I29: =Annex_IV_HP!Y155 -> 0 | J29: =Annex_IV_HP!Z155 -> 0 | K29: 0 | L29: 0
B30: (d) 3 months | D30: =Annex_IV_HP!P156 -> 0 | E30: =Annex_IV_HP!Q156 -> 0 | F30: 0 | G30: 0 | I30: =Annex_IV_HP!Y156 -> 0 | J30: =Annex_IV_HP!Z156 -> 0 | K30: 0 | L30: 0
B31: Residential continuing from previous year | F31: 0 | G31: 0 | K31: 0 | L31: 0
B32: (a) 9 months | D32: =Annex_IV_HP!P159 -> 0 | E32: =Annex_IV_HP!Q159 -> 0 | F32: 0 | G32: 0 | I32: =Annex_IV_HP!Y159 -> 0 | J32: =Annex_IV_HP!Z159 -> 0 | K32: 0 | L32: 0
B33: (b) 6 months | D33: =Annex_IV_HP!P160 -> 0 | E33: =Annex_IV_HP!Q160 -> 0 | F33: 0 | G33: 0 | I33: =Annex_IV_HP!Y160 -> 0 | J33: =Annex_IV_HP!Z160 -> 0 | K33: 0 | L33: 0
B34: Non Residential (Fresh) | F34: 0 | G34: 0 | K34: 0 | L34: 0
B35: (a) 12 months | D35: =Annex_IV_HP!P165 -> 3078 | E35: =Annex_IV_HP!Q165 -> 184.68 | F35: 3078 | G35: 184.68 | I35: =Annex_IV_HP!Y165 -> 3078 | J35: =Annex_IV_HP!Z165 -> 184.68 | K35: 3078 | L35: 184.68 | N35: Recommended as proposed
B36: (b) 9 months | D36: =Annex_IV_HP!P166 -> 712 | E36: =Annex_IV_HP!Q166 -> 32.04 | F36: 712 | G36: 32.04 | I36: =Annex_IV_HP!Y166 -> 712 | J36: =Annex_IV_HP!Z166 -> 32.04 | K36: 712 | L36: 32.04
B37: (c) 6 months | D37: =Annex_IV_HP!P167 -> 488 | E37: =Annex_IV_HP!Q167 -> 14.64 | F37: 488 | G37: 14.64 | I37: =Annex_IV_HP!Y167 -> 488 | J37: =Annex_IV_HP!Z167 -> 14.64 | K37: 488 | L37: 14.64
B38: (d) 3 months | D38: =Annex_IV_HP!P168 -> 41 | E38: =Annex_IV_HP!Q168 -> 0.615 | F38: 41 | G38: 0.615 | I38: =Annex_IV_HP!Y168 -> 41 | J38: =Annex_IV_HP!Z168 -> 0.615 | K38: 41 | L38: 0.615
B39: NonResidential continuing from previous year | F39: 0 | G39: 0 | K39: 0 | L39: 0
B40: (a) 12 months | D40: =Annex_IV_HP!P171 -> 1051 | E40: =Annex_IV_HP!Q171 -> 63.06 | F40: 1051 | G40: 63.06 | I40: =Annex_IV_HP!Y171 -> 1051 | J40: =Annex_IV_HP!Z171 -> 63.06 | K40: 1051 | L40: 63.06 | N40: Recommended as proposed
B41: (b) 9 months | D41: =Annex_IV_HP!P172 -> 432 | E41: =Annex_IV_HP!Q172 -> 19.44 | F41: 432 | G41: 19.44 | I41: =Annex_IV_HP!Y172 -> 432 | J41: =Annex_IV_HP!Z172 -> 19.44 | K41: 432 | L41: 19.44
B42: (c) 6 months | D42: =Annex_IV_HP!P173 -> 548 | E42: =Annex_IV_HP!Q173 -> 16.44 | F42: 548 | G42: 16.44 | I42: =Annex_IV_HP!Y173 -> 548 | J42: =Annex_IV_HP!Z173 -> 16.44 | K42: 548 | L42: 16.44
B43: (d) 3 months | D43: =Annex_IV_HP!P174 -> 0 | E43: =Annex_IV_HP!Q174 -> 0 | F43: 0 | G43: 0 | I43: =Annex_IV_HP!Y174 -> 0 | J43: =Annex_IV_HP!Z174 -> 0 | K43: 0 | L43: 0
B44: Madarasa/Maktab | F44: 0 | G44: 0 | K44: 0 | L44: 0
B45: 12 months | D45: =Annex_IV_HP!P177 -> 0 | E45: =Annex_IV_HP!Q177 -> 0 | F45: 0 | G45: 0 | I45: =Annex_IV_HP!Y177 -> 0 | J45: =Annex_IV_HP!Z177 -> 0 | K45: 0 | L45: 0
B46: 3 months | D46: =Annex_IV_HP!P178 -> 0 | E46: =Annex_IV_HP!Q178 -> 0 | F46: 0 | G46: 0 | I46: =Annex_IV_HP!Y178 -> 0 | J46: =Annex_IV_HP!Z178 -> 0 | K46: 0 | L46: 0
B47: Seasonal Hostel (Residential) | F47: 0 | G47: 0 | K47: 0 | L47: 0
B48: (c) 6 months(seasonal hostel) | D48: =Annex_IV_HP!P183 -> 0 | E48: =Annex_IV_HP!Q183 -> 0 | F48: 0 | G48: 0 | I48: =Annex_IV_HP!Y183 -> 0 | J48: =Annex_IV_HP!Z183 -> 0 | K48: 0 | L48: 0
B49: (d) 3 months | D49: =Annex_IV_HP!P184 -> 0 | E49: =Annex_IV_HP!Q184 -> 0 | F49: 0 | G49: 0 | I49: =Annex_IV_HP!Y184 -> 0 | J49: =Annex_IV_HP!Z184 -> 0 | K49: 0 | L49: 0
B50: Seasonal Hostel (Non Residential) | F50: 0 | G50: 0 | K50: 0 | L50: 0
B51: (e) 6 months | D51: =Annex_IV_HP!P189 -> 0 | E51: =Annex_IV_HP!Q189 -> 0 | F51: 0 | G51: 0 | I51: =Annex_IV_HP!Y189 -> 0 | J51: =Annex_IV_HP!Z189 -> 0 | K51: 0 | L51: 0
B52: (f) 3 months | D52: =Annex_IV_HP!P190 -> 0 | E52: =Annex_IV_HP!Q190 -> 0 | F52: 0 | G52: 0 | I52: =Annex_IV_HP!Y190 -> 0 | J52: =Annex_IV_HP!Z190 -> 0 | K52: 0 | L52: 0
A53: 13 | B53: Teacher Training | D53: =Annex_IV_HP!P284 -> 38365 | E53: =Annex_IV_HP!Q284 -> 578.126 | F53: 38365 | G53: 578.126 | I53: =Annex_IV_HP!Y284 -> 36612 | J53: =Annex_IV_HP!Z284 -> 345.658 | K53: 36612 | L53: 345.658 | N53: Recommended as appraised
A54: 14 | B54: Academic Support through BRC/CRC | F54: 0 | G54: 0 | K54: 0 | L54: 0
B55: a) BRC | D55: =Annex_IV_HP!P298 -> 1166 | E55: =Annex_IV_HP!Q298 -> 4469.18298 | F55: 1166 | G55: 4469.18298 | I55: =Annex_IV_HP!Y298 -> 1166 | J55: =Annex_IV_HP!Z298 -> 3917.956086 | K55: 1166 | L55: 3917.956086 | N55: Recommended as appraised
B56: b) CRC | D56: =Annex_IV_HP!P307 -> 5527 | E56: =Annex_IV_HP!Q307 -> 4069.4975 | F56: 5527 | G56: 4069.4975 | I56: =Annex_IV_HP!Y307 -> 5527 | J56: =Annex_IV_HP!Z307 -> 3527.739695 | K56: 5527 | L56: 3527.739695 | N56: Recommended as appraised
A57: 15 | B57: Learning Enhancement Programme (LEP) | D57: =Annex_IV_HP!P397+Annex_IV_HP!P398+Annex_IV_HP!P399 -> 240719 | E57: =Annex_IV_HP!Q397+Annex_IV_HP!Q398+Annex_IV_HP!Q399 -> 1041.2216 | F57: 240719 | G57: 1041.2216 | I57: =Annex_IV_HP!Y397+Annex_IV_HP!Y398+Annex_IV_HP!Y399 -> 382481 | J57: =Annex_IV_HP!Z397+Annex_IV_HP!Z398+Annex_IV_HP!Z399 -> 925.9 | L57: 925.9 | N57: Recommended as appraised.
A58: 16 | B58: a. Innovation fund for CAL | D58: =Annex_IV_HP!P310 -> 12 | E58: =Annex_IV_HP!Q310 -> 300 | F58: =D58 -> 12 | G58: =C58+E58 -> 300 | H58: =[24]StateTotal!U330 -> 0 | I58: =Annex_IV_HP!Y310 -> 12 | J58: =Annex_IV_HP!Z310 -> 300 | K58: 12 | L58: 300 | N58: CAL for 170 schools and RAA @ Rs. 25.00 lakh per district
B59: b. Rashtriya Avishkar Abhiyan (RAA) This acitvity is support under CAL | D59: =Annex_IV_HP!P311 -> 12 | E59: =Annex_IV_HP!Q311 -> 300 | F59: =D59 -> 12 | G59: =C59+E59 -> 300 | I59: =Annex_IV_HP!Y311 -> 12 | J59: =Annex_IV_HP!Z311 -> 300 | K59: =I59 -> 12 | L59: =H59+J59 -> 300
A60: 17 | B60: Library | D60: =Annex_IV_HP!P316 -> 131 | E60: =Annex_IV_HP!Q316 -> 9.25 | F60: =D60 -> 131 | G60: =C60+E60 -> 9.25 | I60: =Annex_IV_HP!Y316 -> 101 | J60: =Annex_IV_HP!Z316 -> 7.09 | K60: =Annex_IV_HP!AA316 -> 101 | L60: =Annex_IV_HP!AB316 -> 7.09 | N60: Recommended as appraised
A61: 18 | B61: Teacher Grant | D61: =Annex_IV_HP!P323 -> 42436 | E61: =Annex_IV_HP!Q323 -> 212.18 | F61: 42436 | G61: 212.18 | I61: =Annex_IV_HP!Y323 -> 42436 | J61: =Annex_IV_HP!Z323 -> 212.18 | K61: =I61 -> 42436 | L61: =H61+J61 -> 212.18 | N61: Recommended as proposed
A62: =A61+1 -> 19 | B62: TLE for New Schools | C62: =Annex_IV_HP!L217 -> 3.5 | D62: =Annex_IV_HP!P217 -> 59 | E62: =Annex_IV_HP!Q217 -> 20.5 | F62: 59 | G62: 24 | H62: =Annex_IV_HP!U217 -> 0 | I62: =Annex_IV_HP!Y217 -> 0 | J62: =Annex_IV_HP!Z217 -> 0 | K62: 0 | L62: 0 | N62: Not recommended
A63: 20 | B63: REMS | D63: =Annex_IV_HP!P331+Annex_IV_HP!P405 -> 30026 | E63: =Annex_IV_HP!Q331+Annex_IV_HP!Q405 -> 357.5270982 | F63: 30026 | G63: 357.5270982 | I63: =Annex_IV_HP!Y331+Annex_IV_HP!Y405 -> 15438 | J63: =Annex_IV_HP!Z331+Annex_IV_HP!Z405 -> 221.2095582 | K63: 15438 | L63: 221.2095582 | N63: Recommended @ Rs. 1432.89 per school for 15438 schools. Includes Rs. 12.00 lakh for internet connection
A64: =A63+1 -> 21 | B64: a. Innovation | D64: =Annex_IV_HP!P344 -> 12 | E64: =Annex_IV_HP!Q344 -> 600 | F64: 12 | G64: 600 | I64: =Annex_IV_HP!Y344 -> 12 | J64: =Annex_IV_HP!Z344 -> 600 | K64: 12 | L64: 600 | N64: Includes a sum of Rs. 95.07 lakh on account of Shala Siddhi.
B65: b. Pade Bharat Bade Bharat (PBBB) | F65: 0 | G65: 0 | K65: 0 | L65: 0
A66: =A64+1 -> 22 | B66: Community Mobilization (0.5%) | D66: =Annex_IV_HP!P400 -> 0 | E66: =Annex_IV_HP!Q400 -> 201.1235 | F66: 0 | G66: 201.1235 | I66: =Annex_IV_HP!Y400 -> 0 | J66: =Annex_IV_HP!Z400 -> 59.5 | K66: 0 | L66: 59.5 | N66: Recommended as appraised
A67: 23 | B67: SMC Training | D67: =Annex_IV_HP!P348 -> 92628 | E67: =Annex_IV_HP!Q348 -> 277.884 | F67: 92628 | G67: 277.884 | I67: =Annex_IV_HP!Y348 -> 92628 | J67: =Annex_IV_HP!Z348 -> 277.884 | K67: 92628 | L67: 277.884 | N67: Recommended as proposed
A68: Total | C68: =SUM(C24:C67) -> 3.5 | E68: =SUM(E24:E67) -> 12767.40768 | G68: =SUM(G24:G67) -> 12770.90768 | I68: =SUM(I24:I67) -> 582775 | J68: =SUM(J24:J67) -> 11026.03234 | K68: =SUM(K24:K67) -> 200294 | L68: =SUM(L24:L67) -> 11026.03234 | M68: =+L68/L88*100 -> 23.27429545 | O68: =+L68+L22 -> 17795.13934
A69: Category-3
A70: 24 | B70: Teacher Salary | D70: =Annex_IV_HP!P261 -> 5556 | E70: =Annex_IV_HP!Q261 -> 32595.54 | F70: =D70 -> 5556 | G70: =C70+E70 -> 32595.54 | H70: =[24]StateTotal!U242+[24]StateTotal!U250+[24]StateTotal!U251+[24]StateTotal!U252+[24]StateTotal!U263 -> 0 | I70: =Annex_IV_HP!Y261 -> 5556 | J70: =Annex_IV_HP!Z261 -> 27599.76117 | K70: =I70 -> 5556 | L70: =H70+J70 -> 27599.76117 | N70: Recommended as appraised
A71: =A70+1 -> 25 | B71: New Schools (Building) | C71: =+Annex_IV_HP!L351+Annex_IV_HP!L352+Annex_IV_HP!L353+Annex_IV_HP!L354+Annex_IV_HP!N351+Annex_IV_HP!N352+Annex_IV_HP!N353+Annex_IV_HP!L380+Annex_IV_HP!L381+Annex_IV_HP!L382+Annex_IV_HP!L383+Annex_IV_HP!N380+Annex_IV_HP!N381+Annex_IV_HP!N382+Annex_IV_HP!N383 -> 227 | D71: =+Annex_IV_HP!P351+Annex_IV_HP!P352+Annex_IV_HP!P353+Annex_IV_HP!P382+Annex_IV_HP!P381+Annex_IV_HP!P380 -> 375 | E71: =+Annex_IV_HP!Q351+Annex_IV_HP!Q352+Annex_IV_HP!Q353+Annex_IV_HP!Q382+Annex_IV_HP!Q381+Annex_IV_HP!Q380 -> 10590 | F71: =D71 -> 375 | G71: =C71+E71 -> 10817 | H71: =+Annex_IV_HP!U351+Annex_IV_HP!U352+Annex_IV_HP!U353+Annex_IV_HP!U354+Annex_IV_HP!W351+Annex_IV_HP!W352+Annex_IV_HP!W353+Annex_IV_HP!U380+Annex_IV_HP!U381+Annex_IV_HP!U382+Annex_IV_HP!U383+Annex_IV_HP!W380+Annex_IV_HP!W381+Annex_IV_HP!W382+Annex_IV_HP!W383 -> 227 | I71: =+Annex_IV_HP!Y351+Annex_IV_HP!Y352+Annex_IV_HP!Y353+Annex_IV_HP!Y382+Annex_IV_HP!Y381+Annex_IV_HP!Y380 -> 3 | J71: =+Annex_IV_HP!Z351+Annex_IV_HP!Z352+Annex_IV_HP!Z353+Annex_IV_HP!Z382+Annex_IV_HP!Z381+Annex_IV_HP!Z380 -> 75 | K71: 3 | L71: 302 | N71: Recommended as appraised
A72: =A71+1 -> 26 | B72: Additional Classrooms (ACR) | C72: =+Annex_IV_HP!L355+Annex_IV_HP!L356+Annex_IV_HP!L357+Annex_IV_HP!L358+Annex_IV_HP!L359+Annex_IV_HP!N355+Annex_IV_HP!N356+Annex_IV_HP!N357+Annex_IV_HP!N358+Annex_IV_HP!N359+Annex_IV_HP!L367+Annex_IV_HP!N367 -> 257.34 | D72: =Annex_IV_HP!P355+Annex_IV_HP!P356+Annex_IV_HP!P357+Annex_IV_HP!P358+Annex_IV_HP!P359+Annex_IV_HP!P367 -> 358 | E72: =Annex_IV_HP!Q355+Annex_IV_HP!Q356+Annex_IV_HP!Q357+Annex_IV_HP!Q358+Annex_IV_HP!Q359+Annex_IV_HP!Q367 -> 2327 | F72: =D72 -> 358 | G72: =C72+E72 -> 2584.34 | H72: =+Annex_IV_HP!U355+Annex_IV_HP!U356+Annex_IV_HP!U357+Annex_IV_HP!U358+Annex_IV_HP!U359+Annex_IV_HP!W355+Annex_IV_HP!W356+Annex_IV_HP!W357+Annex_IV_HP!W358+Annex_IV_HP!W359+Annex_IV_HP!U367+Annex_IV_HP!W367 -> 90.32 | I72: =Annex_IV_HP!Y355+Annex_IV_HP!Y356+Annex_IV_HP!Y357+Annex_IV_HP!Y358+Annex_IV_HP!Y359+Annex_IV_HP!Y367 -> 34 | J72: =Annex_IV_HP!Z355+Annex_IV_HP!Z356+Annex_IV_HP!Z357+Annex_IV_HP!Z358+Annex_IV_HP!Z359+Annex_IV_HP!Z367 -> 221 | K72: 34 | L72: 311.32 | N72: Recommended as appraised
A73: 27 | B73: Block Resource Centers | C73: =+Annex_IV_HP!L368+Annex_IV_HP!N368 -> 65.46 | D73: =+Annex_IV_HP!P384 -> 0 | E73: =+Annex_IV_HP!Q384 -> 0 | F73: =D73 -> 0 | G73: =C73+E73 -> 65.46 | H73: =+Annex_IV_HP!U368+Annex_IV_HP!W368 -> 0 | I73: =+Annex_IV_HP!Y384 -> 0 | J73: =+Annex_IV_HP!Z384 -> 0 | K73: 0 | L73: 0 | N73: Not recommended
A74: 28 | B74: Cluster Resource Centers | C74: =+Annex_IV_HP!L386+Annex_IV_HP!N386 -> 2 | D74: =+Annex_IV_HP!P386 -> 0 | E74: =+Annex_IV_HP!Q386 -> 0 | F74: 0 | G74: 2 | H74: =+Annex_IV_HP!U386+Annex_IV_HP!W386 -> 0 | I74: =+Annex_IV_HP!Y386 -> 0 | J74: =+Annex_IV_HP!Z386 -> 0 | K74: 0 | L74: 0 | N74: Not recommended
A75: 29 | B75: Residential Schools (Building) | C75: =+Annex_IV_HP!L375+Annex_IV_HP!L376+Annex_IV_HP!L377+Annex_IV_HP!L378+Annex_IV_HP!N375+Annex_IV_HP!N376+Annex_IV_HP!N377+Annex_IV_HP!N378 -> 0 | D75: =Annex_IV_HP!P376+Annex_IV_HP!P377+Annex_IV_HP!P378 -> 0 | E75: =Annex_IV_HP!Q376+Annex_IV_HP!Q377+Annex_IV_HP!Q378 -> 0 | F75: 0 | G75: 0 | H75: =+Annex_IV_HP!U375+Annex_IV_HP!U376+Annex_IV_HP!U377+Annex_IV_HP!U378+Annex_IV_HP!W375+Annex_IV_HP!W376+Annex_IV_HP!W377+Annex_IV_HP!W378 -> 0 | I75: =Annex_IV_HP!Y376+Annex_IV_HP!Y377+Annex_IV_HP!Y378 -> 0 | J75: =Annex_IV_HP!Z376+Annex_IV_HP!Z377+Annex_IV_HP!Z378 -> 0 | K75: 0 | L75: 0
A76: 30 | B76: Toilets & Drinking Water | C76: =+Annex_IV_HP!L360+Annex_IV_HP!L361+Annex_IV_HP!L362+Annex_IV_HP!L363+Annex_IV_HP!N360+Annex_IV_HP!N361+Annex_IV_HP!N362+Annex_IV_HP!N363 -> 38.4 | D76: =Annex_IV_HP!P360+Annex_IV_HP!P361+Annex_IV_HP!P362+Annex_IV_HP!P363 -> 293 | E76: =Annex_IV_HP!Q360+Annex_IV_HP!Q361+Annex_IV_HP!Q362+Annex_IV_HP!Q363 -> 188.5 | F76: 293 | G76: 226.9 | H76: =+Annex_IV_HP!U360+Annex_IV_HP!U361+Annex_IV_HP!U362+Annex_IV_HP!U363+Annex_IV_HP!W360+Annex_IV_HP!W361+Annex_IV_HP!W362+Annex_IV_HP!W363 -> 38.4 | I76: =Annex_IV_HP!Y360+Annex_IV_HP!Y361+Annex_IV_HP!Y362+Annex_IV_HP!Y363 -> 0 | J76: =Annex_IV_HP!Z360+Annex_IV_HP!Z361+Annex_IV_HP!Z362+Annex_IV_HP!Z363 -> 0 | K76: 0 | L76: 38.4 | N76: Spillover recommended as proposed
A77: 31 | B77: Furniture | C77: =+Annex_IV_HP!L371+Annex_IV_HP!N371 -> 0 | D77: =Annex_IV_HP!P371 -> 0 | E77: =Annex_IV_HP!Q371 -> 0 | F77: 0 | G77: 0 | H77: =+Annex_IV_HP!U371+Annex_IV_HP!W371 -> 0 | I77: =Annex_IV_HP!Y371 -> 0 | J77: =Annex_IV_HP!Z371 -> 0 | K77: 0 | L77: 0
A78: 32 | B78: Civil Works | F78: 0 | G78: 0 | K78: 0 | L78: 0
B79: a. Boundary Walls | C79: =+Annex_IV_HP!L364+Annex_IV_HP!L365+Annex_IV_HP!N364+Annex_IV_HP!N365 -> 1336.21 | D79: =Annex_IV_HP!P364+Annex_IV_HP!P365 -> 105212 | E79: =Annex_IV_HP!Q364+Annex_IV_HP!Q365 -> 2224.287 | F79: 105212 | G79: 3560.497 | H79: =+Annex_IV_HP!U364+Annex_IV_HP!U365+Annex_IV_HP!W364+Annex_IV_HP!W365 -> 1327.67 | I79: =Annex_IV_HP!Y364+Annex_IV_HP!Y365 -> 0 | J79: =Annex_IV_HP!Z364+Annex_IV_HP!Z365 -> 0 | K79: 0 | L79: 1327.67 | N79: Spillover recommended as proposed. Fresh not recommended
B80: b. Ramps | C80: =+Annex_IV_HP!L369+Annex_IV_HP!L370+Annex_IV_HP!N369+Annex_IV_HP!N370 -> 0 | D80: =Annex_IV_HP!P369+Annex_IV_HP!P370 -> 500 | E80: =Annex_IV_HP!Q369+Annex_IV_HP!Q370 -> 75 | F80: 500 | G80: 75 | H80: =+Annex_IV_HP!U369+Annex_IV_HP!U370+Annex_IV_HP!W369+Annex_IV_HP!W370 -> 0 | I80: =Annex_IV_HP!Y369+Annex_IV_HP!Y370 -> 0 | J80: =Annex_IV_HP!Z369+Annex_IV_HP!Z370 -> 0 | K80: 0 | L80: 0
A81: 33 | B81: School and Social Mapping: | F81: =D81 -> 0 | G81: =C81+E81 -> 0 | K81: =I81 -> 0 | L81: =H81+J81 -> 0
A82: 34 | B82: Opening new Primary Schools: | D82: =Annex_IV_HP!P8 -> 35 | F82: 35 | G82: 0 | I82: =Annex_IV_HP!Y8 -> 0 | J82: =Annex_IV_HP!Z8 -> 0 | K82: 0 | L82: 0
A83: 35 | B83: Opening Upper Primary Schools/Sections: | D83: =Annex_IV_HP!P9 -> 106 | F83: 106 | G83: 0 | I83: =Annex_IV_HP!Y9 -> 0 | J83: =Annex_IV_HP!Z9 -> 0 | K83: 0 | L83: 0
A84: 36 | B84: Conversion of EGS Centres into schools: | C84: All EGS already converted in Schools
A85: 37 | B85: SIEMAT | C85: One time grant
A86: 38 | B86: NPGEL | C86: Activity Closed
B87: Total | C87: =SUM(C70:C86) -> 1926.41 | E87: =SUM(E70:E86) -> 48000.327 | G87: =SUM(G70:G86) -> 49926.737 | H87: =SUM(H70:H86) -> 1683.39 | J87: =SUM(J70:J86) -> 27895.76117 | L87: =SUM(L70:L86) -> 29579.15117 | M87: =+L87/L88*100 -> 62.43713806
B88: Grand Total | C88: =C22+C68+C87 -> 2112.5 | E88: =E22+E68+E87 -> 69073.51256 | G88: =G22+G68+G87 -> 71186.01256 | H88: =H22+H68+H87 -> 1683.39 | I88: =Z22+Z68+Z87 -> 0 | J88: =J22+J68+J87 -> 45690.90051 | L88: =L22+L68+L87 -> 47374.29051
E90: =+Annex_IV_HP!Q520 -> 69073.51256 | G90: =+Annex_IV_HP!S520 -> 71186.01256 | L90: =+Annex_IV_HP!AB520 -> 47374.29051
E91: =+E90-E88 -> 0 | G91: =+G90-G88 -> 0
C92: =+Annex_IV_HP!N522 -> 0 | E92: =+E90=E88 -> TRUE
C93: =+C92-C88 -> -2112.5

Sheet Exe.sum (hidden)
A1: (V) | B1: Provision for 2017-18:
H2: (Rs. in lakh)
B4: Outlay approved | C4: Capital Head (all civil works under SSA & KGBV) | D4: General Head | E4: FC Award | F4: Net General Head | G4: GOI Share (90%)
G5: Capital Head | H5: General Head | I5: Total
B6: =Annex_IV_HP!AB520 -> 47374.29051 | C6: =Annex_IV_HP!AB388+Annex_IV_HP!AB484+Annex_IV_HP!AB486 -> 2209.39 | D6: =B6-C6 -> 45164.90051 | E6: 0 | F6: =+D6-E6 -> 45164.90051 | G6: =+C6*90/100 -> 1988.451 | H6: =+F6*90% -> 40648.41046 | I6: =+H6+G6 -> 42636.86146 | K6: =+B6*10/100 -> 4737.429051
A8: (VI) | B8: Total Recommended Budget for 2017-18:
H9: (Rs. in lakh)
B10: S. No. | C10: Head | D10: Outlay Proposed | G10: Approved Outlay
D11: Spill Over | E11: Fresh | F11: Total | G11: Spill Over | H11: Fresh | I11: Total
B12: 1 | C12: SSA | D12: =+Annex_IV_HP!L407 -> 2112.5 | E12: =Annex_IV_HP!Q407 -> 68796.56256 | F12: =+D12+E12 -> 70909.06256 | G12: =+Annex_IV_HP!U407 -> 1683.39 | H12: =+Annex_IV_HP!Z407 -> 45452.10051 | I12: =+G12+H12 -> 47135.49051
B13: 2 | C13: KGBV | D13: =+Annex_IV_HP!L519 -> 0 | E13: =+Annex_IV_HP!Q519 -> 276.95 | F13: =+D13+E13 -> 276.95 | G13: =+Annex_IV_HP!U519 -> 0 | H13: =+Annex_IV_HP!Z519 -> 238.8 | I13: =+G13+H13 -> 238.8
C14: Total | D14: =SUM(D12:D13) -> 2112.5 | E14: =SUM(E12:E13) -> 69073.51256 | F14: 71186.01256 | G14: =SUM(G12:G13) -> 1683.39 | H14: =SUM(H12:H13) -> 45690.90051 | I14: 47374.29051
A16: (VII) | B16: Break up of Interventions:
H17: (Rs. in lakh)
C18: SNo. | D18: Category | H18: Financial Recommendation for 2017-18 | I18: %
D19: Access & Retention
C20: 1 | D20: Transport/Escort Facility | I20: =H20/$H$59*100 -> 0
C21: 2 | D21: Uniforms | H21: =Annex_IV_HP!AB213 -> 1927.404 | I21: =H21/$H$59*100 -> 4.068459874
C22: 3 | D22: Residential Schools | I22: =H22/$H$59*100 -> 0
C23: 4 | D23: Residential Hostels | I23: =H23/$H$59*100 -> 0
D24: Sub Total | H24: =SUM(H20:H23) -> 1927.404 | I24: =H24/$H$59*100 -> 4.068459874
D25: Quality
C26: 5 | D26: Teacher's Salary | H26: =Annex_IV_HP!AB261 -> 27599.76117 | I26: =H26/$H$59*100 -> 58.25894356
C27: 6 | D27: Salary of Resource Teachers under CWSN | I27: 0
C28: 7 | D28: Textbooks | H28: =Annex_IV_HP!AB207 -> 602.913 | I28: 1.272658637
C29: 8 | D29: Special training | H29: =Annex_IV_HP!AB194 -> 330.915 | I29: 0.6985117802
C30: 9 | D30: LEP | H30: =Annex_IV_HP!AB397+Annex_IV_HP!AB398+Annex_IV_HP!AB399 -> 925.9 | I30: 1.954435602
C31: 10 | D31: Teachers’ Training | H31: =Annex_IV_HP!AB284 -> 345.658 | I31: 0.7296320351
C32: 11 | D32: Teachers' Training under CWSN | I32: 0
C33: 12 | D33: BRC/URC | H33: =Annex_IV_HP!AB298 -> 3917.956086 | I33: 8.270215857
C34: 13 | D34: CRC | H34: =Annex_IV_HP!AB307 -> 3527.739695 | I34: 7.446527762
C35: 14 | D35: TLE for new schools | H35: =Annex_IV_HP!AB217 -> 0 | I35: 0
C36: 15 | D36: Teachers Grant | H36: =Annex_IV_HP!AB323 -> 212.18 | I36: 0.4478800584
C37: 16 | D37: School Grant | H37: =Annex_IV_HP!AB327 -> 865.46 | I37: 1.826855855
C38: 17 | D38: REMS | H38: =Annex_IV_HP!AB331+Annex_IV_HP!AB405 -> 221.2095582 | I38: 0.4669400973
C39: 18 | D39: Innovative Activities | H39: =Annex_IV_HP!AB344 -> 600 | I39: 1.266509732
C40: 19 | D40: Libraries in schools | H40: =+Annex_IV_HP!AB316 -> 7.09 | I40: 0.01496592334
C41: 20 | D41: Innovation for CAL | H41: =Annex_IV_HP!AB312 -> 600 | I41: 1.266509732
D42: Sub Total | H42: =SUM(H26:H41) -> 39756.78251 | I42: 83.92058664
D43: Equity
C44: 21 | D44: IE | H44: =Annex_IV_HP!AB338 -> 280.11 | I44: =H44/$H$59*100 -> 0.5912700686
C45: 22 | D45: Community Mobilization | H45: =Annex_IV_HP!AB400 -> 59.5 | I45: =H45/$H$59*100 -> 0.1255955485
C46: 23 | D46: SMC/PRI Training | H46: =Annex_IV_HP!AB348 -> 277.884 | I46: =H46/$H$59*100 -> 0.5865713175
D47: Sub Total | H47: =SUM(H44:H46) -> 617.494 | I47: =H47/$H$59*100 -> 1.303436934
D48: Infrastructure Development
C49: 24 | D49: Civil Works | H49: =Annex_IV_HP!AB388 -> 2209.39 | I49: =H49/$H$59*100 -> 4.663689896
C50: 25 | D50: Maintenance Grant | H50: =Annex_IV_HP!AB334 -> 973.6 | I50: 2.055123126
D51: Sub Total | H51: =SUM(H49:H50) -> 3182.99 | I51: 6.718813022
C52: 26 | D52: Programme Management | H52: =Annex_IV_HP!AB395+Annex_IV_HP!AB404 -> 1650.82 | I52: 3.484632661 | K52: =+H52*100000 -> 165082000
D53: Sub Total | H53: =SUM(H52) -> 1650.82 | I53: 3.484632661
C54: 27 | D54: Reimbursement of Fee against 25% admission under Section 12(1)(c) of RTE Act 2009 (Entry Level) subject to upper limit of 20% of AWP&B guidelines issued by MHRD | I54: 0
D55: Sub Total | H55: =H24+H42+H47+H51+H53+H54 -> 47135.49051 | I55: 99.49592913
D56: Gender
C57: 28 | D57: KGBV | H57: =Annex_IV_HP!AB519 -> 238.8 | I57: =H57/$H$59*100 -> 0.5040708735
D58: Sub Total | H58: =SUM(H57:H57) -> 238.8 | I58: =H58/$H$59*100 -> 0.5040708735
D59: TOTAL | H59: =H55+H58 -> 47374.29051 | I59: =H59/$H$59*100 -> 100
A61: Category | B61: Amount Approved | C61: cat. I & II | D61: %age to outlay | H61: =Annex_IV_HP!AB520 -> 47374.29051 | K61: 17795.13934
A62: I | B62: ='Category wise'!L22 -> 6769.107 | C62: =+B62+B63 -> 17795.13934 | D62: =+B62/H59*100 -> 14.28856649 | H62: =H61-H59 -> 0
A63: II | B63: =+'Category wise'!L68 -> 11026.03234 | D63: =+B63/H59*100 -> 23.27429545
A64: III | B64: =+'Category wise'!L87 -> 29579.15117 | D64: =+B64/H59*100 -> 62.43713806
A65: Total | B65: =SUM(B62:B64) -> 47374.29051

Sheet Entry (hidden)
A2: Cell : | B2: z400 | I2: Display Values
A4: District Name | B4: Values | I4: =B2 -> z400
F5: =IFERROR(INDIRECT(CONCATENATE($A5,"!",B$2)),"") -> 
A6: bls | B6: 78.98 | F6: =IF(LEN(B6)>0,IF(INDIRECT(CONCATENATE($A6,"!",B$2))=B6,"ü","û"),"") -> û | H6: bls | I6: =IFERROR(INDIRECT(CONCATENATE($H6,"!",I$4)),"") -> 3.4
A7: cmb | B7: 146.87 | F7: =IF(LEN(B7)>0,IF(INDIRECT(CONCATENATE($A7,"!",B$2))=B7,"ü","û"),"") -> û | H7: cmb | I7: 6.7
A8: hmr | B8: 75.05 | F8: û | H8: hmr | I8: 3.56
A9: kgr | B9: 211.77 | F9: û | H9: kgr | I9: 9.99
A10: knr | B10: 25.63 | F10: û | H10: knr | I10: 1.58 | J10: =IFERROR(INDIRECT(CONCATENATE($H11,"!",J$4)),"") ->  | R10: =IFERROR(INDIRECT(CONCATENATE($H11,"!",R$4)),"") -> 
A11: kul | B11: 116.91 | F11: û | H11: kul | I11: 6.16
A12: lspiti | B12: 23.5 | F12: û | H12: lspiti | I12: 1.57
A13: mnd | B13: 175.71 | F13: û | H13: mnd | I13: 7.35
A14: sml | B14: 138.49 | F14: û | H14: sml | I14: 6.44
A15: smr | B15: 123.16 | F15: û | H15: smr | I15: 5.67
A16: sln | B16: 97.11 | F16: û | H16: sln | I16: 4.31 | J16: =IFERROR(INDIRECT(CONCATENATE($H18,"!",J$4)),"") ->  | R16: =IFERROR(INDIRECT(CONCATENATE($H18,"!",R$4)),"") ->  | S16: =IFERROR(INDIRECT(CONCATENATE($H18,"!",S$4)),"") -> 
A17: una | B17: 68.27 | H17: una | I17: 2.77
A18: State | B18: =SUM(B6:B17) -> 1281.45 | H18: HP | I18: =SUM(I6:I17) -> 59.5
D266: Academic Support through Block Resource Centre/ BRC
U378: =SUM(U373:U377) -> 0
U379: =SUM(U372,U378) -> 0
U380: =SUM(U171,U195,U298,U317,U332,U365,U379) -> 0

Sheet Annex_III_SFD-2017-18
A1: State/UT Name: SSA, Himachal Pradesh | AA1: (Rs. in lakh)
A2: Sl.No | B2: Name of the districts | C2: SOCIAL CATEGORY GROUP | H2: Physical items Approved | AA2: Total financial outlay of SSA | AB2: KGBV Outlay | AC2: Total Outlay
C3: 109 SCHEDULED TRIBES (25% and above) | D3: 61 SCHEDULED CASTES (25% and above) | E3: 121 PMO's Minority Districts | F3: 88 Muslim Concentration (20% and above) | G3: 88 LWE Affected Districts | H3: Civil Works (Fresh) | O3: PS | P3: Upgradation of PS to UPS | Q3: Residential schools | R3: Residential hostel | S3: Integration of Class VIII with UPS | T3: Teachers | W3: Teachers Training | X3: Uniforms | Y3: Text books | Z3: No. of KGBV
H4: New PS Buildings | I4: New UPS Buildings | J4: ACR | K4: ACR in lieu of upgraded Primary School | L4: ACR in lieu of upgraded Upper Primary School | M4: All Toilets (including girls toilets) | N4: Girls Toilets | T4: New teachers for new schools | U4: Additional teach. Against excess enrolment | V4: Part Time Instructors
A5: =A4+1 -> 1 | B5: Bilaspur | D5: 1 | H5: =bls!$Y$351 -> 0 | I5: =bls!$Y$353 -> 0 | J5: =bls!$Y$356 -> 1 | K5: 0 | L5: =bls!$Y$355 -> 0 | M5: =bls!$Y$360+bls!$Y$361+bls!$Y$362 -> 0 | N5: =bls!$Y$361 -> 0 | O5: =bls!$Y$8 -> 1 | P5: =bls!$Y$9 -> 5 | Q5: 0 | R5: 0 | S5: 0 | T5: 0 | U5: 0 | V5: 0 | W5: =bls!$Y$284 -> 3967 | X5: =bls!$Y$213 -> 25054 | Y5: =bls!$AA$207 -> 17662 | Z5: =bls!$Y$519 -> 0 | AA5: =bls!$AB$407 -> 2666.60361 | AB5: =bls!$AB$519 -> 0 | AC5: =SUM(AA5:AB5) -> 2666.60361 | AD5: =bls!$AB$520 -> 2666.60361
A6: 2 | B6: Kinnaur | C6: 1 | E6: 1 | H6: =knr!$Y$351 -> 0 | I6: =knr!$Y$353 -> 0 | J6: =knr!$Y$356 -> 1 | K6: 0 | L6: =knr!$Y$355 -> 0 | M6: =knr!$Y$360+knr!$Y$361+knr!$Y$362 -> 0 | N6: =knr!$Y$361 -> 0 | O6: =knr!$Y$8 -> 0 | P6: =knr!$Y$9 -> 0 | Q6: 0 | R6: 0 | S6: 0 | T6: 0 | U6: 0 | V6: 0 | W6: =knr!$Y$284 -> 774 | X6: =knr!$Y$213 -> 5415 | Y6: =knr!$AA$207 -> 1953 | Z6: =knr!$Y$519 -> 0 | AA6: =knr!$AB$407 -> 680.2071738 | AB6: =knr!$AB$519 -> 0 | AC6: 680.2071738 | AD6: =knr!$AB$520 -> 680.2071738
A7: 3 | B7: Kullu | D7: 1 | H7: =kul!$Y$351 -> 0 | I7: =kul!$Y$353 -> 0 | J7: =kul!$Y$356 -> 0 | K7: 0 | L7: =kul!$Y$355 -> 0 | M7: =kul!$Y$360+kul!$Y$361+kul!$Y$362 -> 0 | N7: =kul!$Y$361 -> 0 | O7: =kul!$Y$8 -> 2 | P7: =kul!$Y$9 -> 15 | Q7: 0 | R7: 0 | S7: 0 | T7: 0 | U7: 0 | V7: 0 | W7: =kul!$Y$284 -> 2880 | X7: =kul!$Y$213 -> 36854 | Y7: =kul!$AA$207 -> 24533 | Z7: =kul!$Y$519 -> 0 | AA7: =kul!$AB$407 -> 3381.289374 | AB7: =kul!$AB$519 -> 0 | AC7: 3381.289374 | AD7: =kul!$AB$520 -> 3381.289374
A8: 4 | B8: Lahaul & Spiti | C8: 1 | E8: 1 | H8: =lspiti!$Y$351 -> 0 | I8: =lspiti!$Y$353 -> 0 | J8: =lspiti!$Y$356 -> 0 | K8: 0 | L8: =lspiti!$Y$355 -> 0 | M8: =lspiti!$Y$360+lspiti!$Y$361+lspiti!$Y$362 -> 0 | N8: =lspiti!$Y$361 -> 0 | O8: =lspiti!$Y$8 -> 0 | P8: =lspiti!$Y$9 -> 0 | Q8: 0 | R8: 0 | S8: 0 | T8: 0 | U8: 0 | V8: 0 | W8: =lspiti!$Y$284 -> 673 | X8: =lspiti!$Y$213 -> 2017 | Y8: =lspiti!$AA$207 -> 279 | Z8: =lspiti!$Y$519 -> 0 | AA8: =lspiti!$AB$407 -> 612.9860038 | AB8: =lspiti!$AB$519 -> 0 | AC8: 612.9860038 | AD8: =lspiti!$AB$520 -> 612.9860038
A9: 5 | B9: Mandi | D9: 1 | H9: =mnd!$Y$351 -> 0 | I9: =mnd!$Y$353 -> 0 | J9: =mnd!$Y$356 -> 3 | K9: 0 | L9: =mnd!$Y$355 -> 0 | M9: =mnd!$Y$360+mnd!$Y$361+mnd!$Y$362 -> 0 | N9: =mnd!$Y$361 -> 0 | O9: =mnd!$Y$8 -> 1 | P9: =mnd!$Y$9 -> 17 | Q9: 0 | R9: 0 | S9: 0 | T9: 0 | U9: 0 | V9: 0 | W9: =mnd!$Y$284 -> 6058 | X9: =mnd!$Y$213 -> 70714 | Y9: =mnd!$AA$207 -> 45263 | Z9: =mnd!$Y$519 -> 0 | AA9: =mnd!$AB$407 -> 8162.119705 | AB9: =mnd!$AB$519 -> 0 | AC9: 8162.119705 | AD9: =mnd!$AB$520 -> 8162.119705
A10: 6 | B10: Shimla | D10: 1 | H10: =sml!$Y$351 -> 0 | I10: =sml!$Y$353 -> 0 | J10: =sml!$Y$356 -> 1 | K10: 0 | L10: =sml!$Y$355 -> 0 | M10: =sml!$Y$360+sml!$Y$361+sml!$Y$362 -> 0 | N10: =sml!$Y$361 -> 0 | O10: =sml!$Y$8 -> 6 | P10: =sml!$Y$9 -> 16 | Q10: 0 | R10: 0 | S10: 0 | T10: 0 | U10: 0 | V10: 0 | W10: =sml!$Y$284 -> 5467 | X10: =sml!$Y$213 -> 55046 | Y10: =sml!$AA$207 -> 36944 | Z10: =sml!$Y$519 -> 0 | AA10: =sml!$AB$407 -> 5515.433778 | AB10: =sml!$AB$519 -> 21.96 | AC10: 5537.393778 | AD10: =sml!$AB$520 -> 5537.393778
A11: 7 | B11: Sirmour | D11: 1 | H11: =smr!$Y$351 -> 0 | I11: =smr!$Y$353 -> 0 | J11: =smr!$Y$356 -> 0 | K11: 0 | L11: =smr!$Y$355 -> 0 | M11: =smr!$Y$360+smr!$Y$361+smr!$Y$362 -> 0 | N11: =smr!$Y$361 -> 0 | O11: =smr!$Y$8 -> 9 | P11: =smr!$Y$9 -> 14 | Q11: 0 | R11: 0 | S11: 0 | T11: 0 | U11: 0 | V11: 0 | W11: =smr!$Y$284 -> 3450 | X11: =smr!$Y$213 -> 54517 | Y11: =smr!$AA$207 -> 32466 | Z11: =smr!$Y$519 -> 1 | AA11: =smr!$AB$407 -> 4628.002882 | AB11: =smr!$AB$519 -> 41.16 | AC11: 4669.162882 | AD11: =smr!$AB$520 -> 4669.162882
A12: 8 | B12: Una | D12: 1 | H12: =una!$Y$351 -> 0 | I12: =una!$Y$353 -> 0 | J12: =una!$Y$356 -> 3 | K12: 0 | L12: =una!$Y$355 -> 0 | M12: =una!$Y$360+una!$Y$361+una!$Y$362 -> 0 | N12: =una!$Y$361 -> 0 | O12: =una!$Y$8 -> 2 | P12: =una!$Y$9 -> 3 | Q12: 0 | R12: 0 | S12: 0 | T12: 0 | U12: 0 | V12: 0 | W12: =una!$Y$284 -> 2273 | X12: =una!$Y$213 -> 34645 | Y12: =una!$AA$207 -> 26274 | Z12: =una!$Y$519 -> 0 | AA12: =una!$AB$407 -> 2713.419004 | AB12: =una!$AB$519 -> 0 | AC12: 2713.419004 | AD12: =una!$AB$520 -> 2713.419004
B13: Total No.of Categorywise SFDs | C13: =SUM(C5:C12) -> 2 | D13: 6 | E13: 2 | F13: 0 | G13: 0 | H13: 0 | I13: 0 | J13: 9 | K13: 0 | L13: 0 | M13: 0 | N13: 0 | O13: 21 | P13: 70 | Q13: 0 | R13: 0 | S13: 0 | T13: 0 | U13: 0 | V13: 0 | W13: 25542 | X13: 284262 | Y13: 185374 | Z13: 1 | AA13: 28360.06153 | AB13: 63.12 | AC13: 28423.18153 | AD13: =SUM(AD5:AD12) -> 28423.18153
A14: State total | H14: =Annex_IV_HP!$Y$351 -> 0 | I14: =Annex_IV_HP!$Y$353 -> 0 | J14: =Annex_IV_HP!$Y$356 -> 34 | K14: 0 | L14: =Annex_IV_HP!$Y$355 -> 0 | M14: =Annex_IV_HP!$Y$360+Annex_IV_HP!$Y$361+Annex_IV_HP!$Y$362 -> 0 | N14: =Annex_IV_HP!$Y$361 -> 0 | O14: =Annex_IV_HP!$Y$8 -> 0 | P14: =Annex_IV_HP!$Y$9 -> 0 | Q14: 0 | R14: 0 | S14: 0 | T14: 0 | U14: 0 | V14: 0 | W14: =Annex_IV_HP!$Y$284 -> 36612 | X14: =Annex_IV_HP!$Y$213 -> 481851 | Y14: =Annex_IV_HP!$AA$207 -> 312768 | Z14: =Annex_IV_HP!$Y$519 -> 11 | AA14: =Annex_IV_HP!$AB$407 -> 47135.49051 | AB14: =Annex_IV_HP!$AB$519 -> 238.8 | AC14: =SUM(AA14:AB14) -> 47374.29051 | AD14: =Annex_IV_HP!$AB$520 -> 47374.29051
A15: % w.r.t Approvals for the whole state | H15: =IF(H14>0, H13/H$14," ") ->  | I15: =IF(I14>0, I13/I$14," ") ->  | J15: 0.2647058824 | W15: 0.697640118 | X15: 0.5899375533 | Y15: 0.5926885103 | Z15: 0.09090909091 | AA15: 0.601671081 | AB15: 0.264321608 | AC15: 0.5999706006
F16: Categorywise Total and % against State Allocation | G16: ST (25% and above) | H16: =SUMIF($C$5:$C$12, "1", H5:H12) -> 0 | I16: =SUMIF($C$5:$C$12, "1", I5:I12) -> 0 | J16: =SUMIF($C$5:$C$12, "1", J5:J12) -> 1 | K16: 0 | L16: 0 | M16: 0 | N16: 0 | O16: 0 | P16: 0 | Q16: 0 | R16: 0 | S16: 0 | T16: 0 | U16: 0 | V16: 0 | W16: 1447 | X16: 7432 | Y16: 2232 | Z16: 0 | AA16: 1293.193178 | AB16: 0 | AC16: 1293.193178
G17: % ST Allocation | H17: =IF(H16>0, H16/H$13," ") ->  | J17: 0.1111111111 | W17: =IF(W16>0, W16/W$13," ") -> 0.05665178921 | X17: =IF(X16>0, X16/X$13," ") -> 0.0261448945 | Y17: 0.01204052348 | AA17: 0.04559909633 | AC17: 0.04549783339
G18: SC (25% and above) | H18: =SUMIF($D$5:$D$12, "1", H5:H12) -> 0 | I18: =SUMIF($D$5:$D$12, "1", I5:I12) -> 0 | J18: 8 | K18: 0 | L18: 0 | M18: 0 | N18: 0 | O18: 21 | P18: 70 | Q18: 0 | R18: 0 | S18: 0 | T18: 0 | U18: 0 | V18: 0 | W18: 24095 | X18: 276830 | Y18: 183142 | Z18: 1 | AA18: 27066.86835 | AB18: 63.12 | AC18: 27129.98835
G19: % SC Allocation | H19: =IF(H18>0, H18/H$13," ") ->  | J19: 0.8888888889 | O19: 1 | P19: 1 | W19: 0.9433482108 | X19: 0.9738551055 | Y19: 0.9879594765 | Z19: 1 | AA19: 0.9544009037 | AB19: 1 | AC19: 0.9545021666
G20: PMO's 121 Minority Districts | H20: =SUMIF($E$5:$E$12, "1", H5:H12) -> 0 | I20: =SUMIF($E$5:$E$12, "1", I5:I12) -> 0 | J20: 1 | K20: 0 | L20: 0 | M20: 0 | N20: 0 | O20: 0 | P20: 0 | Q20: 0 | R20: 0 | S20: 0 | T20: 0 | U20: 0 | V20: 0 | W20: 1447 | X20: 7432 | Y20: 2232 | Z20: 0 | AA20: 1293.193178 | AB20: 0 | AC20: 1293.193178
G21: % PMO's 121 Minority Allocation | H21: =IF(H20>0, H20/H$13," ") ->  | J21: 0.1111111111 | W21: 0.05665178921 | X21: 0.0261448945 | Y21: 0.01204052348 | AA21: 0.04559909633 | AC21: 0.04549783339
G22: Muslim Concentration (20% and above) | H22: =SUMIF($F$5:$F$12, "1", H5:H12) -> 0 | I22: =SUMIF($F$5:$F$12, "1", I5:I12) -> 0 | J22: 0 | K22: 0 | L22: 0 | M22: 0 | N22: 0 | O22: 0 | P22: 0 | Q22: 0 | R22: 0 | S22: 0 | T22: 0 | U22: 0 | V22: 0 | W22: 0 | X22: 0 | Y22: 0 | Z22: 0 | AA22: 0 | AB22: 0 | AC22: 0
G23: % Muslim Allocation | H23: =IF(H22>0, H22/H$13," ") -> 
G24: LWE Affected Districts (20% and above) | H24: =SUMIF($G$5:$G$12, "1", H5:H12) -> 0 | I24: 0 | J24: 0 | K24: 0 | L24: 0 | M24: 0 | N24: 0 | O24: 0 | P24: 0 | Q24: 0 | R24: 0 | S24: 0 | T24: 0 | U24: 0 | V24: 0 | W24: 0 | X24: 0 | Y24: 0 | Z24: 0 | AA24: 0 | AB24: 0 | AC24: 0
G25: % LWE Affected Districts Allocation | H25: =IF(H24>0, H24/H$13," ") -> 

Sheet Annex_IV_HP
A2: S.No. | B2: Activity | C2: Year 2016-17 | K2: Outlay Proposed for the year 2017-18 | T2: Outlay Recommended for 2017-18
C3: Outlay approved by PAB (including spillover) | E3: Achievement during the year | I3: Savings | K3: Spill Over | M3: Deferred laibility of 2014-15 | O3: Fresh | R3: Total | T3: Spill Over | V3: Deferred laibility of 2014-15 | X3: Fresh | AA3: Total | AC3: Remarks
C4: Phy. | D4: Fin | E4: Phy. | F4: Fin. | G4: Phy. (%) | H4: Fin. (%) | I4: Phy | J4: Fin. | K4: Phy | L4: Fin. | M4: Phy | N4: Fin. | O4: Unit Cost | P4: Phy. | Q4: Fin. | R4: Phy. | S4: Fin. | T4: Phy. | U4: Fin. | V4: Phy. | W4: Fin. | X4: Unit Cost | Y4: Phy. | Z4: Fin. | AA4: Phy. | AB4: Fin.
A5: I | B5: ACCESS
B6: SSA
A7: 1 | B7: Opening of New Schools
A8: 1.01 | B8: New Primary School | C8: =SUM(bls:una!C8) -> 0 | D8: =SUM(bls:una!D8) -> 0 | E8: =SUM(bls:una!E8) -> 0 | F8: =SUM(bls:una!F8) -> 0 | I8: =SUM(bls:una!I8) -> 0 | J8: =SUM(bls:una!J8) -> 0 | K8: =SUM(bls:una!K8) -> 0 | L8: =SUM(bls:una!L8) -> 0 | M8: =SUM(bls:una!M8) -> 0 | N8: =SUM(bls:una!N8) -> 0 | P8: =SUM(bls:una!P8) -> 35 | Q8: =SUM(bls:una!Q8) -> 0 | R8: =SUM(bls:una!R8) -> 35 | S8: =SUM(bls:una!S8) -> 0 | T8: =SUM(bls:una!T8) -> 0 | U8: =SUM(bls:una!U8) -> 0 | V8: =SUM(bls:una!V8) -> 0 | W8: =SUM(bls:una!W8) -> 0 | Z8: =SUM(bls:una!Z8) -> 0 | AB8: =SUM(bls:una!AB8) -> 0 | AD8: =+AB8 -> 0 | AF8: =+X8*Y8=Z8 -> TRUE | AG8: =+U8+W8+Z8=AB8 -> TRUE
A9: 1.02 | B9: Upgradation of PS to UPS | C9: =SUM(bls:una!C9) -> 0 | D9: =SUM(bls:una!D9) -> 0 | E9: =SUM(bls:una!E9) -> 0 | F9: =SUM(bls:una!F9) -> 0 | I9: =SUM(bls:una!I9) -> 0 | J9: =SUM(bls:una!J9) -> 0 | K9: =SUM(bls:una!K9) -> 0 | L9: =SUM(bls:una!L9) -> 0 | M9: =SUM(bls:una!M9) -> 0 | N9: =SUM(bls:una!N9) -> 0 | P9: =SUM(bls:una!P9) -> 106 | Q9: =SUM(bls:una!Q9) -> 0 | R9: =SUM(bls:una!R9) -> 106 | S9: =SUM(bls:una!S9) -> 0 | T9: =SUM(bls:una!T9) -> 0 | U9: =SUM(bls:una!U9) -> 0 | V9: =SUM(bls:una!V9) -> 0 | W9: =SUM(bls:una!W9) -> 0 | Z9: =SUM(bls:una!Z9) -> 0 | AB9: =SUM(bls:una!AB9) -> 0 | AD9: =+AB9 -> 0 | AF9: =+X9*Y9=Z9 -> TRUE | AG9: =+U9+W9+Z9=AB9 -> TRUE
A10: 1.03 | B10: Composite Schools | C10: =SUM(bls:una!C10) -> 0 | D10: =SUM(bls:una!D10) -> 0 | E10: =SUM(bls:una!E10) -> 0 | F10: =SUM(bls:una!F10) -> 0 | I10: =SUM(bls:una!I10) -> 0 | J10: =SUM(bls:una!J10) -> 0 | K10: =SUM(bls:una!K10) -> 0 | L10: =SUM(bls:una!L10) -> 0 | M10: =SUM(bls:una!M10) -> 0 | N10: =SUM(bls:una!N10) -> 0 | P10: =SUM(bls:una!P10) -> 0 | Q10: =SUM(bls:una!Q10) -> 0 | R10: =SUM(bls:una!R10) -> 0 | S10: =SUM(bls:una!S10) -> 0 | T10: =SUM(bls:una!T10) -> 0 | U10: =SUM(bls:una!U10) -> 0 | V10: =SUM(bls:una!V10) -> 0 | W10: =SUM(bls:una!W10) -> 0 | Y10: =SUM(bls:una!Y10) -> 0 | Z10: =SUM(bls:una!Z10) -> 0 | AA10: =SUM(bls:una!AA10) -> 0 | AB10: =SUM(bls:una!AB10) -> 0 | AD10: 0 | AF10: TRUE | AG10: TRUE
A11: 1.04 | B11: Residential schools for specific category of children | C11: =SUM(bls:una!C11) -> 0 | D11: =SUM(bls:una!D11) -> 0 | E11: =SUM(bls:una!E11) -> 0 | F11: =SUM(bls:una!F11) -> 0 | I11: =SUM(bls:una!I11) -> 0 | J11: =SUM(bls:una!J11) -> 0 | K11: =SUM(bls:una!K11) -> 0 | L11: =SUM(bls:una!L11) -> 0 | M11: =SUM(bls:una!M11) -> 0 | N11: =SUM(bls:una!N11) -> 0 | P11: =SUM(bls:una!P11) -> 0 | Q11: =SUM(bls:una!Q11) -> 0 | R11: =SUM(bls:una!R11) -> 0 | S11: =SUM(bls:una!S11) -> 0 | T11: =SUM(bls:una!T11) -> 0 | U11: =SUM(bls:una!U11) -> 0 | V11: =SUM(bls:una!V11) -> 0 | W11: =SUM(bls:una!W11) -> 0 | Y11: =SUM(bls:una!Y11) -> 0 | Z11: =SUM(bls:una!Z11) -> 0 | AA11: =SUM(bls:una!AA11) -> 0 | AB11: =SUM(bls:una!AB11) -> 0 | AD11: 0 | AF11: TRUE | AG11: TRUE
A12: 1.05 | B12: Residential Hostel | C12: =SUM(bls:una!C12) -> 0 | D12: =SUM(bls:una!D12) -> 0 | E12: =SUM(bls:una!E12) -> 0 | F12: =SUM(bls:una!F12) -> 0 | I12: =SUM(bls:una!I12) -> 0 | J12: =SUM(bls:una!J12) -> 0 | K12: =SUM(bls:una!K12) -> 0 | L12: =SUM(bls:una!L12) -> 0 | M12: =SUM(bls:una!M12) -> 0 | N12: =SUM(bls:una!N12) -> 0 | P12: =SUM(bls:una!P12) -> 0 | Q12: =SUM(bls:una!Q12) -> 0 | R12: =SUM(bls:una!R12) -> 0 | S12: =SUM(bls:una!S12) -> 0 | T12: =SUM(bls:una!T12) -> 0 | U12: =SUM(bls:una!U12) -> 0 | V12: =SUM(bls:una!V12) -> 0 | W12: =SUM(bls:una!W12) -> 0 | Y12: =SUM(bls:una!Y12) -> 0 | Z12: =SUM(bls:una!Z12) -> 0 | AA12: =SUM(bls:una!AA12) -> 0 | AB12: =SUM(bls:una!AB12) -> 0 | AD12: 0 | AF12: TRUE | AG12: TRUE
A13: 1.06 | B13: Integration of Class V with primary schools | C13: =SUM(bls:una!C13) -> 0 | D13: =SUM(bls:una!D13) -> 0 | E13: =SUM(bls:una!E13) -> 0 | F13: =SUM(bls:una!F13) -> 0 | I13: =SUM(bls:una!I13) -> 0 | J13: =SUM(bls:una!J13) -> 0 | K13: =SUM(bls:una!K13) -> 0 | L13: =SUM(bls:una!L13) -> 0 | M13: =SUM(bls:una!M13) -> 0 | N13: =SUM(bls:una!N13) -> 0 | P13: =SUM(bls:una!P13) -> 0 | Q13: =SUM(bls:una!Q13) -> 0 | R13: =SUM(bls:una!R13) -> 0 | S13: =SUM(bls:una!S13) -> 0 | T13: =SUM(bls:una!T13) -> 0 | U13: =SUM(bls:una!U13) -> 0 | V13: =SUM(bls:una!V13) -> 0 | W13: =SUM(bls:una!W13) -> 0 | Y13: =SUM(bls:una!Y13) -> 0 | Z13: =SUM(bls:una!Z13) -> 0 | AA13: =SUM(bls:una!AA13) -> 0 | AB13: =SUM(bls:una!AB13) -> 0 | AD13: 0 | AF13: TRUE | AG13: TRUE
A14: 1.07 | B14: Integration of Class VIII with upper primary schools | C14: =SUM(bls:una!C14) -> 0 | D14: =SUM(bls:una!D14) -> 0 | E14: =SUM(bls:una!E14) -> 0 | F14: =SUM(bls:una!F14) -> 0 | I14: =SUM(bls:una!I14) -> 0 | J14: =SUM(bls:una!J14) -> 0 | K14: =SUM(bls:una!K14) -> 0 | L14: =SUM(bls:una!L14) -> 0 | M14: =SUM(bls:una!M14) -> 0 | N14: =SUM(bls:una!N14) -> 0 | P14: =SUM(bls:una!P14) -> 0 | Q14: =SUM(bls:una!Q14) -> 0 | R14: =SUM(bls:una!R14) -> 0 | S14: =SUM(bls:una!S14) -> 0 | T14: =SUM(bls:una!T14) -> 0 | U14: =SUM(bls:una!U14) -> 0 | V14: =SUM(bls:una!V14) -> 0 | W14: =SUM(bls:una!W14) -> 0 | Y14: =SUM(bls:una!Y14) -> 0 | Z14: =SUM(bls:una!Z14) -> 0 | AA14: =SUM(bls:una!AA14) -> 0 | AB14: =SUM(bls:una!AB14) -> 0 | AD14: 0 | AF14: TRUE | AG14: TRUE
A15: 2 | B15: Residential Schools for specific category of children | C15: =SUM(bls:una!C15) -> 0 | D15: =SUM(bls:una!D15) -> 0 | E15: =SUM(bls:una!E15) -> 0 | F15: =SUM(bls:una!F15) -> 0 | I15: =SUM(bls:una!I15) -> 0 | J15: =SUM(bls:una!J15) -> 0 | K15: =SUM(bls:una!K15) -> 0 | L15: =SUM(bls:una!L15) -> 0 | M15: =SUM(bls:una!M15) -> 0 | N15: =SUM(bls:una!N15) -> 0 | P15: =SUM(bls:una!P15) -> 0 | Q15: =SUM(bls:una!Q15) -> 0 | R15: =SUM(bls:una!R15) -> 0 | S15: =SUM(bls:una!S15) -> 0 | T15: =SUM(bls:una!T15) -> 0 | U15: =SUM(bls:una!U15) -> 0 | V15: =SUM(bls:una!V15) -> 0 | W15: =SUM(bls:una!W15) -> 0 | Y15: =SUM(bls:una!Y15) -> 0 | Z15: =SUM(bls:una!Z15) -> 0 | AA15: =SUM(bls:una!AA15) -> 0 | AB15: =SUM(bls:una!AB15) -> 0 | AD15: 0 | AF15: TRUE | AG15: TRUE
B16: 50 children | C16: =SUM(bls:una!C16) -> 0 | D16: =SUM(bls:una!D16) -> 0 | E16: =SUM(bls:una!E16) -> 0 | F16: =SUM(bls:una!F16) -> 0 | I16: =SUM(bls:una!I16) -> 0 | J16: =SUM(bls:una!J16) -> 0 | K16: =SUM(bls:una!K16) -> 0 | L16: =SUM(bls:una!L16) -> 0 | M16: =SUM(bls:una!M16) -> 0 | N16: =SUM(bls:una!N16) -> 0 | P16: =SUM(bls:una!P16) -> 0 | Q16: =SUM(bls:una!Q16) -> 0 | R16: =SUM(bls:una!R16) -> 0 | S16: =SUM(bls:una!S16) -> 0 | T16: =SUM(bls:una!T16) -> 0 | U16: =SUM(bls:una!U16) -> 0 | V16: =SUM(bls:una!V16) -> 0 | W16: =SUM(bls:una!W16) -> 0 | Y16: =SUM(bls:una!Y16) -> 0 | Z16: =SUM(bls:una!Z16) -> 0 | AA16: =SUM(bls:una!AA16) -> 0 | AB16: =SUM(bls:una!AB16) -> 0 | AD16: 0 | AF16: TRUE | AG16: TRUE
B17: Non-recurring (one time grant) | C17: =SUM(bls:una!C17) -> 0 | D17: =SUM(bls:una!D17) -> 0 | E17: =SUM(bls:una!E17) -> 0 | F17: =SUM(bls:una!F17) -> 0 | I17: =SUM(bls:una!I17) -> 0 | J17: =SUM(bls:una!J17) -> 0 | K17: =SUM(bls:una!K17) -> 0 | L17: =SUM(bls:una!L17) -> 0 | M17: =SUM(bls:una!M17) -> 0 | N17: =SUM(bls:una!N17) -> 0 | P17: =SUM(bls:una!P17) -> 0 | Q17: =SUM(bls:una!Q17) -> 0 | R17: =SUM(bls:una!R17) -> 0 | S17: =SUM(bls:una!S17) -> 0 | T17: =SUM(bls:una!T17) -> 0 | U17: =SUM(bls:una!U17) -> 0 | V17: =SUM(bls:una!V17) -> 0 | W17: =SUM(bls:una!W17) -> 0 | Y17: =SUM(bls:una!Y17) -> 0 | Z17: =SUM(bls:una!Z17) -> 0 | AA17: =SUM(bls:una!AA17) -> 0 | AB17: =SUM(bls:una!AB17) -> 0 | AD17: 0 | AF17: TRUE | AG17: TRUE
A18: 2.01 | B18: Furniture/ Equipment (including kitchen) | C18: =SUM(bls:una!C18) -> 0 | D18: =SUM(bls:una!D18) -> 0 | E18: =SUM(bls:una!E18) -> 0 | F18: =SUM(bls:una!F18) -> 0 | I18: =SUM(bls:una!I18) -> 0 | J18: =SUM(bls:una!J18) -> 0 | K18: =SUM(bls:una!K18) -> 0 | L18: =SUM(bls:una!L18) -> 0 | M18: =SUM(bls:una!M18) -> 0 | N18: =SUM(bls:una!N18) -> 0 | P18: =SUM(bls:una!P18) -> 0 | Q18: =SUM(bls:una!Q18) -> 0 | R18: =SUM(bls:una!R18) -> 0 | S18: =SUM(bls:una!S18) -> 0 | T18: =SUM(bls:una!T18) -> 0 | U18: =SUM(bls:una!U18) -> 0 | V18: =SUM(bls:una!V18) -> 0 | W18: =SUM(bls:una!W18) -> 0 | Y18: =SUM(bls:una!Y18) -> 0 | Z18: =SUM(bls:una!Z18) -> 0 | AA18: =SUM(bls:una!AA18) -> 0 | AB18: =SUM(bls:una!AB18) -> 0 | AD18: 0 | AF18: TRUE | AG18: TRUE
A19: 2.02 | B19: TLM and equipment including library books | C19: =SUM(bls:una!C19) -> 0 | D19: =SUM(bls:una!D19) -> 0 | E19: =SUM(bls:una!E19) -> 0 | F19: =SUM(bls:una!F19) -> 0 | I19: =SUM(bls:una!I19) -> 0 | J19: =SUM(bls:una!J19) -> 0 | K19: =SUM(bls:una!K19) -> 0 | L19: =SUM(bls:una!L19) -> 0 | M19: =SUM(bls:una!M19) -> 0 | N19: =SUM(bls:una!N19) -> 0 | P19: =SUM(bls:una!P19) -> 0 | Q19: =SUM(bls:una!Q19) -> 0 | R19: =SUM(bls:una!R19) -> 0 | S19: =SUM(bls:una!S19) -> 0 | T19: =SUM(bls:una!T19) -> 0 | U19: =SUM(bls:una!U19) -> 0 | V19: =SUM(bls:una!V19) -> 0 | W19: =SUM(bls:una!W19) -> 0 | Y19: =SUM(bls:una!Y19) -> 0 | Z19: =SUM(bls:una!Z19) -> 0 | AA19: =SUM(bls:una!AA19) -> 0 | AB19: =SUM(bls:una!AB19) -> 0 | AD19: 0 | AF19: TRUE | AG19: TRUE
A20: 2.03 | B20: Bedding (new) | C20: =SUM(bls:una!C20) -> 0 | D20: =SUM(bls:una!D20) -> 0 | E20: =SUM(bls:una!E20) -> 0 | F20: =SUM(bls:una!F20) -> 0 | I20: =SUM(bls:una!I20) -> 0 | J20: =SUM(bls:una!J20) -> 0 | K20: =SUM(bls:una!K20) -> 0 | L20: =SUM(bls:una!L20) -> 0 | M20: =SUM(bls:una!M20) -> 0 | N20: =SUM(bls:una!N20) -> 0 | P20: =SUM(bls:una!P20) -> 0 | Q20: =SUM(bls:una!Q20) -> 0 | R20: =SUM(bls:una!R20) -> 0 | S20: =SUM(bls:una!S20) -> 0 | T20: =SUM(bls:una!T20) -> 0 | U20: =SUM(bls:una!U20) -> 0 | V20: =SUM(bls:una!V20) -> 0 | W20: =SUM(bls:una!W20) -> 0 | Y20: =SUM(bls:una!Y20) -> 0 | Z20: =SUM(bls:una!Z20) -> 0 | AA20: =SUM(bls:una!AA20) -> 0 | AB20: =SUM(bls:una!AB20) -> 0 | AD20: 0 | AF20: TRUE | AG20: TRUE
A21: 2.04 | B21: Replacement of bedding (once in 3 years) | C21: =SUM(bls:una!C21) -> 0 | D21: =SUM(bls:una!D21) -> 0 | E21: =SUM(bls:una!E21) -> 0 | F21: =SUM(bls:una!F21) -> 0 | I21: =SUM(bls:una!I21) -> 0 | J21: =SUM(bls:una!J21) -> 0 | K21: =SUM(bls:una!K21) -> 0 | L21: =SUM(bls:una!L21) -> 0 | M21: =SUM(bls:una!M21) -> 0 | N21: =SUM(bls:una!N21) -> 0 | P21: =SUM(bls:una!P21) -> 0 | Q21: =SUM(bls:una!Q21) -> 0 | R21: =SUM(bls:una!R21) -> 0 | S21: =SUM(bls:una!S21) -> 0 | T21: =SUM(bls:una!T21) -> 0 | U21: =SUM(bls:una!U21) -> 0 | V21: =SUM(bls:una!V21) -> 0 | W21: =SUM(bls:una!W21) -> 0 | Y21: =SUM(bls:una!Y21) -> 0 | Z21: =SUM(bls:una!Z21) -> 0 | AA21: =SUM(bls:una!AA21) -> 0 | AB21: =SUM(bls:una!AB21) -> 0 | AD21: 0 | AF21: TRUE | AG21: TRUE
B22: Sub Total (Non Recurring) | C22: =SUM(bls:una!C22) -> 0 | D22: =SUM(bls:una!D22) -> 0 | E22: =SUM(bls:una!E22) -> 0 | F22: =SUM(bls:una!F22) -> 0 | I22: =SUM(bls:una!I22) -> 0 | J22: =SUM(bls:una!J22) -> 0 | K22: =SUM(bls:una!K22) -> 0 | L22: =SUM(bls:una!L22) -> 0 | M22: =SUM(bls:una!M22) -> 0 | N22: =SUM(bls:una!N22) -> 0 | P22: =SUM(bls:una!P22) -> 0 | Q22: =SUM(bls:una!Q22) -> 0 | R22: =SUM(bls:una!R22) -> 0 | S22: =SUM(bls:una!S22) -> 0 | T22: =SUM(bls:una!T22) -> 0 | U22: =SUM(bls:una!U22) -> 0 | V22: =SUM(bls:una!V22) -> 0 | W22: =SUM(bls:una!W22) -> 0 | Y22: =SUM(bls:una!Y22) -> 0 | Z22: =SUM(bls:una!Z22) -> 0 | AA22: =SUM(bls:una!AA22) -> 0 | AB22: =SUM(bls:una!AB22) -> 0 | AD22: 0 | AF22: TRUE | AG22: TRUE
B23: Recurring (50 children) | C23: =SUM(bls:una!C23) -> 0 | D23: =SUM(bls:una!D23) -> 0 | E23: =SUM(bls:una!E23) -> 0 | F23: =SUM(bls:una!F23) -> 0 | I23: =SUM(bls:una!I23) -> 0 | J23: =SUM(bls:una!J23) -> 0 | K23: =SUM(bls:una!K23) -> 0 | L23: =SUM(bls:una!L23) -> 0 | M23: =SUM(bls:una!M23) -> 0 | N23: =SUM(bls:una!N23) -> 0 | P23: =SUM(bls:una!P23) -> 0 | Q23: =SUM(bls:una!Q23) -> 0 | R23: =SUM(bls:una!R23) -> 0 | S23: =SUM(bls:una!S23) -> 0 | T23: =SUM(bls:una!T23) -> 0 | U23: =SUM(bls:una!U23) -> 0 | V23: =SUM(bls:una!V23) -> 0 | W23: =SUM(bls:una!W23) -> 0 | Y23: =SUM(bls:una!Y23) -> 0 | Z23: =SUM(bls:una!Z23) -> 0 | AA23: =SUM(bls:una!AA23) -> 0 | AB23: =SUM(bls:una!AB23) -> 0 | AD23: 0 | AF23: TRUE | AG23: TRUE
A24: 2.05 | B24: Maintenance per child Per month @ Rs.1500/- | C24: =SUM(bls:una!C24) -> 0 | D24: =SUM(bls:una!D24) -> 0 | E24: =SUM(bls:una!E24) -> 0 | F24: =SUM(bls:una!F24) -> 0 | I24: =SUM(bls:una!I24) -> 0 | J24: =SUM(bls:una!J24) -> 0 | K24: =SUM(bls:una!K24) -> 0 | L24: =SUM(bls:una!L24) -> 0 | M24: =SUM(bls:una!M24) -> 0 | N24: =SUM(bls:una!N24) -> 0 | P24: =SUM(bls:una!P24) -> 0 | Q24: =SUM(bls:una!Q24) -> 0 | R24: =SUM(bls:una!R24) -> 0 | S24: =SUM(bls:una!S24) -> 0 | T24: =SUM(bls:una!T24) -> 0 | U24: =SUM(bls:una!U24) -> 0 | V24: =SUM(bls:una!V24) -> 0 | W24: =SUM(bls:una!W24) -> 0 | Y24: =SUM(bls:una!Y24) -> 0 | Z24: =SUM(bls:una!Z24) -> 0 | AA24: =SUM(bls:una!AA24) -> 0 | AB24: =SUM(bls:una!AB24) -> 0 | AD24: 0 | AF24: TRUE | AG24: TRUE
A25: 2.06 | B25: Stipend per child per month @ Rs.100/- | C25: =SUM(bls:una!C25) -> 0 | D25: =SUM(bls:una!D25) -> 0 | E25: =SUM(bls:una!E25) -> 0 | F25: =SUM(bls:una!F25) -> 0 | I25: =SUM(bls:una!I25) -> 0 | J25: =SUM(bls:una!J25) -> 0 | K25: =SUM(bls:una!K25) -> 0 | L25: =SUM(bls:una!L25) -> 0 | M25: =SUM(bls:una!M25) -> 0 | N25: =SUM(bls:una!N25) -> 0 | P25: =SUM(bls:una!P25) -> 0 | Q25: =SUM(bls:una!Q25) -> 0 | R25: =SUM(bls:una!R25) -> 0 | S25: =SUM(bls:una!S25) -> 0 | T25: =SUM(bls:una!T25) -> 0 | U25: =SUM(bls:una!U25) -> 0 | V25: =SUM(bls:una!V25) -> 0 | W25: =SUM(bls:una!W25) -> 0 | Y25: =SUM(bls:una!Y25) -> 0 | Z25: =SUM(bls:una!Z25) -> 0 | AA25: =SUM(bls:una!AA25) -> 0 | AB25: =SUM(bls:una!AB25) -> 0 | AD25: 0 | AF25: TRUE | AG25: TRUE
A26: 2.07 | B26: Supplementary TLM, Stationery and other educational material @Rs.1000/- per child per annum | C26: =SUM(bls:una!C26) -> 0 | D26: =SUM(bls:una!D26) -> 0 | E26: =SUM(bls:una!E26) -> 0 | F26: =SUM(bls:una!F26) -> 0 | I26: =SUM(bls:una!I26) -> 0 | J26: =SUM(bls:una!J26) -> 0 | K26: =SUM(bls:una!K26) -> 0 | L26: =SUM(bls:una!L26) -> 0 | M26: =SUM(bls:una!M26) -> 0 | N26: =SUM(bls:una!N26) -> 0 | P26: =SUM(bls:una!P26) -> 0 | Q26: =SUM(bls:una!Q26) -> 0 | R26: =SUM(bls:una!R26) -> 0 | S26: =SUM(bls:una!S26) -> 0 | T26: =SUM(bls:una!T26) -> 0 | U26: =SUM(bls:una!U26) -> 0 | V26: =SUM(bls:una!V26) -> 0 | W26: =SUM(bls:una!W26) -> 0 | Y26: =SUM(bls:una!Y26) -> 0 | Z26: =SUM(bls:una!Z26) -> 0 | AA26: =SUM(bls:una!AA26) -> 0 | AB26: =SUM(bls:una!AB26) -> 0 | AD26: 0 | AF26: TRUE | AG26: TRUE
A27: 2.08 | B27: Salaries | C27: =SUM(bls:una!C27) -> 0 | D27: =SUM(bls:una!D27) -> 0 | E27: =SUM(bls:una!E27) -> 0 | F27: =SUM(bls:una!F27) -> 0 | I27: =SUM(bls:una!I27) -> 0 | J27: =SUM(bls:una!J27) -> 0 | K27: =SUM(bls:una!K27) -> 0 | L27: =SUM(bls:una!L27) -> 0 | M27: =SUM(bls:una!M27) -> 0 | N27: =SUM(bls:una!N27) -> 0 | P27: =SUM(bls:una!P27) -> 0 | Q27: =SUM(bls:una!Q27) -> 0 | R27: =SUM(bls:una!R27) -> 0 | S27: =SUM(bls:una!S27) -> 0 | T27: =SUM(bls:una!T27) -> 0 | U27: =SUM(bls:una!U27) -> 0 | V27: =SUM(bls:una!V27) -> 0 | W27: =SUM(bls:una!W27) -> 0 | Y27: =SUM(bls:una!Y27) -> 0 | Z27: =SUM(bls:una!Z27) -> 0 | AA27: =SUM(bls:una!AA27) -> 0 | AB27: =SUM(bls:una!AB27) -> 0 | AD27: 0 | AF27: TRUE | AG27: TRUE
A28: (a) | B28: 1 Warden @ Rs.25000/- per month | C28: =SUM(bls:una!C28) -> 0 | D28: =SUM(bls:una!D28) -> 0 | E28: =SUM(bls:una!E28) -> 0 | F28: =SUM(bls:una!F28) -> 0 | I28: =SUM(bls:una!I28) -> 0 | J28: =SUM(bls:una!J28) -> 0 | K28: =SUM(bls:una!K28) -> 0 | L28: =SUM(bls:una!L28) -> 0 | M28: =SUM(bls:una!M28) -> 0 | N28: =SUM(bls:una!N28) -> 0 | P28: =SUM(bls:una!P28) -> 0 | Q28: =SUM(bls:una!Q28) -> 0 | R28: =SUM(bls:una!R28) -> 0 | S28: =SUM(bls:una!S28) -> 0 | T28: =SUM(bls:una!T28) -> 0 | U28: =SUM(bls:una!U28) -> 0 | V28: =SUM(bls:una!V28) -> 0 | W28: =SUM(bls:una!W28) -> 0 | Y28: =SUM(bls:una!Y28) -> 0 | Z28: =SUM(bls:una!Z28) -> 0 | AA28: =SUM(bls:una!AA28) -> 0 | AB28: =SUM(bls:una!AB28) -> 0 | AD28: 0 | AF28: TRUE | AG28: TRUE
A29: (b) | B29: 4 Fulltime teachers as per RTE Norms @ Rs. 20,000/- per month per teacher | C29: =SUM(bls:una!C29) -> 0 | D29: =SUM(bls:una!D29) -> 0 | E29: =SUM(bls:una!E29) -> 0 | F29: =SUM(bls:una!F29) -> 0 | I29: =SUM(bls:una!I29) -> 0 | J29: =SUM(bls:una!J29) -> 0 | K29: =SUM(bls:una!K29) -> 0 | L29: =SUM(bls:una!L29) -> 0 | M29: =SUM(bls:una!M29) -> 0 | N29: =SUM(bls:una!N29) -> 0 | P29: =SUM(bls:una!P29) -> 0 | Q29: =SUM(bls:una!Q29) -> 0 | R29: =SUM(bls:una!R29) -> 0 | S29: =SUM(bls:una!S29) -> 0 | T29: =SUM(bls:una!T29) -> 0 | U29: =SUM(bls:una!U29) -> 0 | V29: =SUM(bls:una!V29) -> 0 | W29: =SUM(bls:una!W29) -> 0 | Y29: =SUM(bls:una!Y29) -> 0 | Z29: =SUM(bls:una!Z29) -> 0 | AA29: =SUM(bls:una!AA29) -> 0 | AB29: =SUM(bls:una!AB29) -> 0 | AD29: 0 | AF29: TRUE | AG29: TRUE
A30: (c) | B30: 2 Urdu Teachers (only for Blocks with muslim population above 20% and select urban areas) @ Rs.12,000/- per month per teacher. | C30: =SUM(bls:una!C30) -> 0 | D30: =SUM(bls:una!D30) -> 0 | E30: =SUM(bls:una!E30) -> 0 | F30: =SUM(bls:una!F30) -> 0 | I30: =SUM(bls:una!I30) -> 0 | J30: =SUM(bls:una!J30) -> 0 | K30: =SUM(bls:una!K30) -> 0 | L30: =SUM(bls:una!L30) -> 0 | M30: =SUM(bls:una!M30) -> 0 | N30: =SUM(bls:una!N30) -> 0 | P30: =SUM(bls:una!P30) -> 0 | Q30: =SUM(bls:una!Q30) -> 0 | R30: =SUM(bls:una!R30) -> 0 | S30: =SUM(bls:una!S30) -> 0 | T30: =SUM(bls:una!T30) -> 0 | U30: =SUM(bls:una!U30) -> 0 | V30: =SUM(bls:una!V30) -> 0 | W30: =SUM(bls:una!W30) -> 0 | Y30: =SUM(bls:una!Y30) -> 0 | Z30: =SUM(bls:una!Z30) -> 0 | AA30: =SUM(bls:una!AA30) -> 0 | AB30: =SUM(bls:una!AB30) -> 0 | AD30: 0 | AF30: TRUE | AG30: TRUE
A31: (d) | B31: 3 Part time teachers @ Rs.5,000/- per month per teacher | C31: =SUM(bls:una!C31) -> 0 | D31: =SUM(bls:una!D31) -> 0 | E31: =SUM(bls:una!E31) -> 0 | F31: =SUM(bls:una!F31) -> 0 | I31: =SUM(bls:una!I31) -> 0 | J31: =SUM(bls:una!J31) -> 0 | K31: =SUM(bls:una!K31) -> 0 | L31: =SUM(bls:una!L31) -> 0 | M31: =SUM(bls:una!M31) -> 0 | N31: =SUM(bls:una!N31) -> 0 | P31: =SUM(bls:una!P31) -> 0 | Q31: =SUM(bls:una!Q31) -> 0 | R31: =SUM(bls:una!R31) -> 0 | S31: =SUM(bls:una!S31) -> 0 | T31: =SUM(bls:una!T31) -> 0 | U31: =SUM(bls:una!U31) -> 0 | V31: =SUM(bls:una!V31) -> 0 | W31: =SUM(bls:una!W31) -> 0 | Y31: =SUM(bls:una!Y31) -> 0 | Z31: =SUM(bls:una!Z31) -> 0 | AA31: =SUM(bls:una!AA31) -> 0 | AB31: =SUM(bls:una!AB31) -> 0 | AD31: 0 | AF31: TRUE | AG31: TRUE
A32: (e) | B32: 1 Full time Accountant @ Rs. 10,000/- per month | C32: =SUM(bls:una!C32) -> 0 | D32: =SUM(bls:una!D32) -> 0 | E32: =SUM(bls:una!E32) -> 0 | F32: =SUM(bls:una!F32) -> 0 | I32: =SUM(bls:una!I32) -> 0 | J32: =SUM(bls:una!J32) -> 0 | K32: =SUM(bls:una!K32) -> 0 | L32: =SUM(bls:una!L32) -> 0 | M32: =SUM(bls:una!M32) -> 0 | N32: =SUM(bls:una!N32) -> 0 | P32: =SUM(bls:una!P32) -> 0 | Q32: =SUM(bls:una!Q32) -> 0 | R32: =SUM(bls:una!R32) -> 0 | S32: =SUM(bls:una!S32) -> 0 | T32: =SUM(bls:una!T32) -> 0 | U32: =SUM(bls:una!U32) -> 0 | V32: =SUM(bls:una!V32) -> 0 | W32: =SUM(bls:una!W32) -> 0 | Y32: =SUM(bls:una!Y32) -> 0 | Z32: =SUM(bls:una!Z32) -> 0 | AA32: =SUM(bls:una!AA32) -> 0 | AB32: =SUM(bls:una!AB32) -> 0 | AD32: 0 | AF32: TRUE | AG32: TRUE
A33: (f) | B33: 2 Support staff - (Accountant/Assistant, Peon, Chowkidar) @ Rs. 5,000/- per month per staff | C33: =SUM(bls:una!C33) -> 0 | D33: =SUM(bls:una!D33) -> 0 | E33: =SUM(bls:una!E33) -> 0 | F33: =SUM(bls:una!F33) -> 0 | I33: =SUM(bls:una!I33) -> 0 | J33: =SUM(bls:una!J33) -> 0 | K33: =SUM(bls:una!K33) -> 0 | L33: =SUM(bls:una!L33) -> 0 | M33: =SUM(bls:una!M33) -> 0 | N33: =SUM(bls:una!N33) -> 0 | P33: =SUM(bls:una!P33) -> 0 | Q33: =SUM(bls:una!Q33) -> 0 | R33: =SUM(bls:una!R33) -> 0 | S33: =SUM(bls:una!S33) -> 0 | T33: =SUM(bls:una!T33) -> 0 | U33: =SUM(bls:una!U33) -> 0 | V33: =SUM(bls:una!V33) -> 0 | W33: =SUM(bls:una!W33) -> 0 | Y33: =SUM(bls:una!Y33) -> 0 | Z33: =SUM(bls:una!Z33) -> 0 | AA33: =SUM(bls:una!AA33) -> 0 | AB33: =SUM(bls:una!AB33) -> 0 | AD33: 0 | AF33: TRUE | AG33: TRUE
A34: (g) | B34: 1 Head Cook @ Rs. 6,000/- per month and upto 2 Asstt. Cooks @ Rs. 4,500/- per month per cook | C34: =SUM(bls:una!C34) -> 0 | D34: =SUM(bls:una!D34) -> 0 | E34: =SUM(bls:una!E34) -> 0 | F34: =SUM(bls:una!F34) -> 0 | I34: =SUM(bls:una!I34) -> 0 | J34: =SUM(bls:una!J34) -> 0 | K34: =SUM(bls:una!K34) -> 0 | L34: =SUM(bls:una!L34) -> 0 | M34: =SUM(bls:una!M34) -> 0 | N34: =SUM(bls:una!N34) -> 0 | P34: =SUM(bls:una!P34) -> 0 | Q34: =SUM(bls:una!Q34) -> 0 | R34: =SUM(bls:una!R34) -> 0 | S34: =SUM(bls:una!S34) -> 0 | T34: =SUM(bls:una!T34) -> 0 | U34: =SUM(bls:una!U34) -> 0 | V34: =SUM(bls:una!V34) -> 0 | W34: =SUM(bls:una!W34) -> 0 | Y34: =SUM(bls:una!Y34) -> 0 | Z34: =SUM(bls:una!Z34) -> 0 | AA34: =SUM(bls:una!AA34) -> 0 | AB34: =SUM(bls:una!AB34) -> 0 | AD34: 0 | AF34: TRUE | AG34: TRUE
A35: 2.09 | B35: Specific Skill training @ Rs.1000/- per annum per child | C35: =SUM(bls:una!C35) -> 0 | D35: =SUM(bls:una!D35) -> 0 | E35: =SUM(bls:una!E35) -> 0 | F35: =SUM(bls:una!F35) -> 0 | I35: =SUM(bls:una!I35) -> 0 | J35: =SUM(bls:una!J35) -> 0 | K35: =SUM(bls:una!K35) -> 0 | L35: =SUM(bls:una!L35) -> 0 | M35: =SUM(bls:una!M35) -> 0 | N35: =SUM(bls:una!N35) -> 0 | P35: =SUM(bls:una!P35) -> 0 | Q35: =SUM(bls:una!Q35) -> 0 | R35: =SUM(bls:una!R35) -> 0 | S35: =SUM(bls:una!S35) -> 0 | T35: =SUM(bls:una!T35) -> 0 | U35: =SUM(bls:una!U35) -> 0 | V35: =SUM(bls:una!V35) -> 0 | W35: =SUM(bls:una!W35) -> 0 | Y35: =SUM(bls:una!Y35) -> 0 | Z35: =SUM(bls:una!Z35) -> 0 | AA35: =SUM(bls:una!AA35) -> 0 | AB35: =SUM(bls:una!AB35) -> 0 | AD35: 0 | AF35: TRUE | AG35: TRUE
A36: 2.1 | B36: Electricity / water charges @ Rs. 1000/- per annum per child | C36: =SUM(bls:una!C36) -> 0 | D36: =SUM(bls:una!D36) -> 0 | E36: =SUM(bls:una!E36) -> 0 | F36: =SUM(bls:una!F36) -> 0 | I36: =SUM(bls:una!I36) -> 0 | J36: =SUM(bls:una!J36) -> 0 | K36: =SUM(bls:una!K36) -> 0 | L36: =SUM(bls:una!L36) -> 0 | M36: =SUM(bls:una!M36) -> 0 | N36: =SUM(bls:una!N36) -> 0 | P36: =SUM(bls:una!P36) -> 0 | Q36: =SUM(bls:una!Q36) -> 0 | R36: =SUM(bls:una!R36) -> 0 | S36: =SUM(bls:una!S36) -> 0 | T36: =SUM(bls:una!T36) -> 0 | U36: =SUM(bls:una!U36) -> 0 | V36: =SUM(bls:una!V36) -> 0 | W36: =SUM(bls:una!W36) -> 0 | Y36: =SUM(bls:una!Y36) -> 0 | Z36: =SUM(bls:una!Z36) -> 0 | AA36: =SUM(bls:una!AA36) -> 0 | AB36: =SUM(bls:una!AB36) -> 0 | AD36: 0 | AF36: TRUE | AG36: TRUE
A37: =+A36+0.01 -> 2.11 | B37: Medical care/contingencies @ Rs.1250/- per annum per child | C37: =SUM(bls:una!C37) -> 0 | D37: =SUM(bls:una!D37) -> 0 | E37: =SUM(bls:una!E37) -> 0 | F37: =SUM(bls:una!F37) -> 0 | I37: =SUM(bls:una!I37) -> 0 | J37: =SUM(bls:una!J37) -> 0 | K37: =SUM(bls:una!K37) -> 0 | L37: =SUM(bls:una!L37) -> 0 | M37: =SUM(bls:una!M37) -> 0 | N37: =SUM(bls:una!N37) -> 0 | P37: =SUM(bls:una!P37) -> 0 | Q37: =SUM(bls:una!Q37) -> 0 | R37: =SUM(bls:una!R37) -> 0 | S37: =SUM(bls:una!S37) -> 0 | T37: =SUM(bls:una!T37) -> 0 | U37: =SUM(bls:una!U37) -> 0 | V37: =SUM(bls:una!V37) -> 0 | W37: =SUM(bls:una!W37) -> 0 | Y37: =SUM(bls:una!Y37) -> 0 | Z37: =SUM(bls:una!Z37) -> 0 | AA37: =SUM(bls:una!AA37) -> 0 | AB37: =SUM(bls:una!AB37) -> 0 | AD37: 0 | AF37: TRUE | AG37: TRUE
A38: =+A37+0.01 -> 2.12 | B38: Maintenance @ Rs. 750/- per child per annum | C38: =SUM(bls:una!C38) -> 0 | D38: =SUM(bls:una!D38) -> 0 | E38: =SUM(bls:una!E38) -> 0 | F38: =SUM(bls:una!F38) -> 0 | I38: =SUM(bls:una!I38) -> 0 | J38: =SUM(bls:una!J38) -> 0 | K38: =SUM(bls:una!K38) -> 0 | L38: =SUM(bls:una!L38) -> 0 | M38: =SUM(bls:una!M38) -> 0 | N38: =SUM(bls:una!N38) -> 0 | P38: =SUM(bls:una!P38) -> 0 | Q38: =SUM(bls:una!Q38) -> 0 | R38: =SUM(bls:una!R38) -> 0 | S38: =SUM(bls:una!S38) -> 0 | T38: =SUM(bls:una!T38) -> 0 | U38: =SUM(bls:una!U38) -> 0 | V38: =SUM(bls:una!V38) -> 0 | W38: =SUM(bls:una!W38) -> 0 | Y38: =SUM(bls:una!Y38) -> 0 | Z38: =SUM(bls:una!Z38) -> 0 | AA38: =SUM(bls:una!AA38) -> 0 | AB38: =SUM(bls:una!AB38) -> 0 | AD38: 0 | AF38: TRUE | AG38: TRUE
A39: 2.13 | B39: Miscellaneous @ Rs. 750/- per child per annum | C39: =SUM(bls:una!C39) -> 0 | D39: =SUM(bls:una!D39) -> 0 | E39: =SUM(bls:una!E39) -> 0 | F39: =SUM(bls:una!F39) -> 0 | I39: =SUM(bls:una!I39) -> 0 | J39: =SUM(bls:una!J39) -> 0 | K39: =SUM(bls:una!K39) -> 0 | L39: =SUM(bls:una!L39) -> 0 | M39: =SUM(bls:una!M39) -> 0 | N39: =SUM(bls:una!N39) -> 0 | P39: =SUM(bls:una!P39) -> 0 | Q39: =SUM(bls:una!Q39) -> 0 | R39: =SUM(bls:una!R39) -> 0 | S39: =SUM(bls:una!S39) -> 0 | T39: =SUM(bls:una!T39) -> 0 | U39: =SUM(bls:una!U39) -> 0 | V39: =SUM(bls:una!V39) -> 0 | W39: =SUM(bls:una!W39) -> 0 | Y39: =SUM(bls:una!Y39) -> 0 | Z39: =SUM(bls:una!Z39) -> 0 | AA39: =SUM(bls:una!AA39) -> 0 | AB39: =SUM(bls:una!AB39) -> 0 | AD39: 0 | AF39: TRUE | AG39: TRUE
A40: 2.14 | B40: Preparatory camps @ Rs. 300/- per child per annum | C40: =SUM(bls:una!C40) -> 0 | D40: =SUM(bls:una!D40) -> 0 | E40: =SUM(bls:una!E40) -> 0 | F40: =SUM(bls:una!F40) -> 0 | I40: =SUM(bls:una!I40) -> 0 | J40: =SUM(bls:una!J40) -> 0 | K40: =SUM(bls:una!K40) -> 0 | L40: =SUM(bls:una!L40) -> 0 | M40: =SUM(bls:una!M40) -> 0 | N40: =SUM(bls:una!N40) -> 0 | P40: =SUM(bls:una!P40) -> 0 | Q40: =SUM(bls:una!Q40) -> 0 | R40: =SUM(bls:una!R40) -> 0 | S40: =SUM(bls:una!S40) -> 0 | T40: =SUM(bls:una!T40) -> 0 | U40: =SUM(bls:una!U40) -> 0 | V40: =SUM(bls:una!V40) -> 0 | W40: =SUM(bls:una!W40) -> 0 | Y40: =SUM(bls:una!Y40) -> 0 | Z40: =SUM(bls:una!Z40) -> 0 | AA40: =SUM(bls:una!AA40) -> 0 | AB40: =SUM(bls:una!AB40) -> 0 | AD40: 0 | AF40: TRUE | AG40: TRUE
A41: 2.15 | B41: P.T.A / school functions @ Rs. 300/- per child per annum | C41: =SUM(bls:una!C41) -> 0 | D41: =SUM(bls:una!D41) -> 0 | E41: =SUM(bls:una!E41) -> 0 | F41: =SUM(bls:una!F41) -> 0 | I41: =SUM(bls:una!I41) -> 0 | J41: =SUM(bls:una!J41) -> 0 | K41: =SUM(bls:una!K41) -> 0 | L41: =SUM(bls:una!L41) -> 0 | M41: =SUM(bls:una!M41) -> 0 | N41: =SUM(bls:una!N41) -> 0 | P41: =SUM(bls:una!P41) -> 0 | Q41: =SUM(bls:una!Q41) -> 0 | R41: =SUM(bls:una!R41) -> 0 | S41: =SUM(bls:una!S41) -> 0 | T41: =SUM(bls:una!T41) -> 0 | U41: =SUM(bls:una!U41) -> 0 | V41: =SUM(bls:una!V41) -> 0 | W41: =SUM(bls:una!W41) -> 0 | Y41: =SUM(bls:una!Y41) -> 0 | Z41: =SUM(bls:una!Z41) -> 0 | AA41: =SUM(bls:una!AA41) -> 0 | AB41: =SUM(bls:una!AB41) -> 0 | AD41: 0 | AF41: TRUE | AG41: TRUE
A42: 2.16 | B42: Provision of Rent @ Rs. 10,000/- per child per annum | C42: =SUM(bls:una!C42) -> 0 | D42: =SUM(bls:una!D42) -> 0 | E42: =SUM(bls:una!E42) -> 0 | F42: =SUM(bls:una!F42) -> 0 | I42: =SUM(bls:una!I42) -> 0 | J42: =SUM(bls:una!J42) -> 0 | K42: =SUM(bls:una!K42) -> 0 | L42: =SUM(bls:una!L42) -> 0 | M42: =SUM(bls:una!M42) -> 0 | N42: =SUM(bls:una!N42) -> 0 | P42: =SUM(bls:una!P42) -> 0 | Q42: =SUM(bls:una!Q42) -> 0 | R42: =SUM(bls:una!R42) -> 0 | S42: =SUM(bls:una!S42) -> 0 | T42: =SUM(bls:una!T42) -> 0 | U42: =SUM(bls:una!U42) -> 0 | V42: =SUM(bls:una!V42) -> 0 | W42: =SUM(bls:una!W42) -> 0 | Y42: =SUM(bls:una!Y42) -> 0 | Z42: =SUM(bls:una!Z42) -> 0 | AA42: =SUM(bls:una!AA42) -> 0 | AB42: =SUM(bls:una!AB42) -> 0 | AD42: 0 | AF42: TRUE | AG42: TRUE
A43: 2.17 | B43: Capacity Building @ Rs. 500/- per child per annum | C43: =SUM(bls:una!C43) -> 0 | D43: =SUM(bls:una!D43) -> 0 | E43: =SUM(bls:una!E43) -> 0 | F43: =SUM(bls:una!F43) -> 0 | I43: =SUM(bls:una!I43) -> 0 | J43: =SUM(bls:una!J43) -> 0 | K43: =SUM(bls:una!K43) -> 0 | L43: =SUM(bls:una!L43) -> 0 | M43: =SUM(bls:una!M43) -> 0 | N43: =SUM(bls:una!N43) -> 0 | P43: =SUM(bls:una!P43) -> 0 | Q43: =SUM(bls:una!Q43) -> 0 | R43: =SUM(bls:una!R43) -> 0 | S43: =SUM(bls:una!S43) -> 0 | T43: =SUM(bls:una!T43) -> 0 | U43: =SUM(bls:una!U43) -> 0 | V43: =SUM(bls:una!V43) -> 0 | W43: =SUM(bls:una!W43) -> 0 | Y43: =SUM(bls:una!Y43) -> 0 | Z43: =SUM(bls:una!Z43) -> 0 | AA43: =SUM(bls:una!AA43) -> 0 | AB43: =SUM(bls:una!AB43) -> 0 | AD43: 0 | AF43: TRUE | AG43: TRUE
A44: 2.18 | B44: Physical / Self Defence Training @ Rs.200/- per child per annum | C44: =SUM(bls:una!C44) -> 0 | D44: =SUM(bls:una!D44) -> 0 | E44: =SUM(bls:una!E44) -> 0 | F44: =SUM(bls:una!F44) -> 0 | I44: =SUM(bls:una!I44) -> 0 | J44: =SUM(bls:una!J44) -> 0 | K44: =SUM(bls:una!K44) -> 0 | L44: =SUM(bls:una!L44) -> 0 | M44: =SUM(bls:una!M44) -> 0 | N44: =SUM(bls:una!N44) -> 0 | P44: =SUM(bls:una!P44) -> 0 | Q44: =SUM(bls:una!Q44) -> 0 | R44: =SUM(bls:una!R44) -> 0 | S44: =SUM(bls:una!S44) -> 0 | T44: =SUM(bls:una!T44) -> 0 | U44: =SUM(bls:una!U44) -> 0 | V44: =SUM(bls:una!V44) -> 0 | W44: =SUM(bls:una!W44) -> 0 | Y44: =SUM(bls:una!Y44) -> 0 | Z44: =SUM(bls:una!Z44) -> 0 | AA44: =SUM(bls:una!AA44) -> 0 | AB44: =SUM(bls:una!AB44) -> 0 | AD44: 0 | AF44: TRUE | AG44: TRUE
B45: Sub Total (Recurring) | C45: =SUM(bls:una!C45) -> 0 | D45: =SUM(bls:una!D45) -> 0 | E45: =SUM(bls:una!E45) -> 0 | F45: =SUM(bls:una!F45) -> 0 | I45: =SUM(bls:una!I45) -> 0 | J45: =SUM(bls:una!J45) -> 0 | K45: =SUM(bls:una!K45) -> 0 | L45: =SUM(bls:una!L45) -> 0 | M45: =SUM(bls:una!M45) -> 0 | N45: =SUM(bls:una!N45) -> 0 | P45: =SUM(bls:una!P45) -> 0 | Q45: =SUM(bls:una!Q45) -> 0 | R45: =SUM(bls:una!R45) -> 0 | S45: =SUM(bls:una!S45) -> 0 | T45: =SUM(bls:una!T45) -> 0 | U45: =SUM(bls:una!U45) -> 0 | V45: =SUM(bls:una!V45) -> 0 | W45: =SUM(bls:una!W45) -> 0 | Y45: =SUM(bls:una!Y45) -> 0 | Z45: =SUM(bls:una!Z45) -> 0 | AA45: =SUM(bls:una!AA45) -> 0 | AB45: =SUM(bls:una!AB45) -> 0 | AD45: 0 | AF45: TRUE | AG45: TRUE
B46: Total (Non Recurring + Recurring) | C46: =SUM(bls:una!C46) -> 0 | D46: =SUM(bls:una!D46) -> 0 | E46: =SUM(bls:una!E46) -> 0 | F46: =SUM(bls:una!F46) -> 0 | I46: =SUM(bls:una!I46) -> 0 | J46: =SUM(bls:una!J46) -> 0 | K46: =SUM(bls:una!K46) -> 0 | L46: =SUM(bls:una!L46) -> 0 | M46: =SUM(bls:una!M46) -> 0 | N46: =SUM(bls:una!N46) -> 0 | Q46: =SUM(bls:una!Q46) -> 0 | R46: =SUM(bls:una!R46) -> 0 | S46: =SUM(bls:una!S46) -> 0 | T46: =SUM(bls:una!T46) -> 0 | U46: =SUM(bls:una!U46) -> 0 | V46: =SUM(bls:una!V46) -> 0 | W46: =SUM(bls:una!W46) -> 0 | Z46: =SUM(bls:una!Z46) -> 0 | AA46: =SUM(bls:una!AA46) -> 0 | AB46: =SUM(bls:una!AB46) -> 0 | AD46: 0 | AF46: TRUE | AG46: TRUE
B47: 100 children | C47: =SUM(bls:una!C47) -> 0 | D47: =SUM(bls:una!D47) -> 0 | E47: =SUM(bls:una!E47) -> 0 | F47: =SUM(bls:una!F47) -> 0 | I47: =SUM(bls:una!I47) -> 0 | J47: =SUM(bls:una!J47) -> 0 | K47: =SUM(bls:una!K47) -> 0 | L47: =SUM(bls:una!L47) -> 0 | M47: =SUM(bls:una!M47) -> 0 | N47: =SUM(bls:una!N47) -> 0 | P47: =SUM(bls:una!P47) -> 0 | Q47: =SUM(bls:una!Q47) -> 0 | R47: =SUM(bls:una!R47) -> 0 | S47: =SUM(bls:una!S47) -> 0 | T47: =SUM(bls:una!T47) -> 0 | U47: =SUM(bls:una!U47) -> 0 | V47: =SUM(bls:una!V47) -> 0 | W47: =SUM(bls:una!W47) -> 0 | Y47: =SUM(bls:una!Y47) -> 0 | Z47: =SUM(bls:una!Z47) -> 0 | AA47: =SUM(bls:una!AA47) -> 0 | AB47: =SUM(bls:una!AB47) -> 0 | AD47: 0 | AF47: TRUE | AG47: TRUE
B48: Non-recurring (one time grant) | C48: =SUM(bls:una!C48) -> 0 | D48: =SUM(bls:una!D48) -> 0 | E48: =SUM(bls:una!E48) -> 0 | F48: =SUM(bls:una!F48) -> 0 | I48: =SUM(bls:una!I48) -> 0 | J48: =SUM(bls:una!J48) -> 0 | K48: =SUM(bls:una!K48) -> 0 | L48: =SUM(bls:una!L48) -> 0 | M48: =SUM(bls:una!M48) -> 0 | N48: =SUM(bls:una!N48) -> 0 | P48: =SUM(bls:una!P48) -> 0 | Q48: =SUM(bls:una!Q48) -> 0 | R48: =SUM(bls:una!R48) -> 0 | S48: =SUM(bls:una!S48) -> 0 | T48: =SUM(bls:una!T48) -> 0 | U48: =SUM(bls:una!U48) -> 0 | V48: =SUM(bls:una!V48) -> 0 | W48: =SUM(bls:una!W48) -> 0 | Y48: =SUM(bls:una!Y48) -> 0 | Z48: =SUM(bls:una!Z48) -> 0 | AA48: =SUM(bls:una!AA48) -> 0 | AB48: =SUM(bls:una!AB48) -> 0 | AD48: 0 | AF48: TRUE | AG48: TRUE
A49: 2.19 | B49: Furniture / Equipment (including kitchen equipment) | C49: =SUM(bls:una!C49) -> 0 | D49: =SUM(bls:una!D49) -> 0 | E49: =SUM(bls:una!E49) -> 0 | F49: =SUM(bls:una!F49) -> 0 | I49: =SUM(bls:una!I49) -> 0 | J49: =SUM(bls:una!J49) -> 0 | K49: =SUM(bls:una!K49) -> 0 | L49: =SUM(bls:una!L49) -> 0 | M49: =SUM(bls:una!M49) -> 0 | N49: =SUM(bls:una!N49) -> 0 | P49: =SUM(bls:una!P49) -> 0 | Q49: =SUM(bls:una!Q49) -> 0 | R49: =SUM(bls:una!R49) -> 0 | S49: =SUM(bls:una!S49) -> 0 | T49: =SUM(bls:una!T49) -> 0 | U49: =SUM(bls:una!U49) -> 0 | V49: =SUM(bls:una!V49) -> 0 | W49: =SUM(bls:una!W49) -> 0 | Y49: =SUM(bls:una!Y49) -> 0 | Z49: =SUM(bls:una!Z49) -> 0 | AA49: =SUM(bls:una!AA49) -> 0 | AB49: =SUM(bls:una!AB49) -> 0 | AD49: 0 | AF49: TRUE | AG49: TRUE
A50: =+A49+0.01 -> 2.2 | B50: TLM and equipment including library books (New) | C50: =SUM(bls:una!C50) -> 0 | D50: =SUM(bls:una!D50) -> 0 | E50: =SUM(bls:una!E50) -> 0 | F50: =SUM(bls:una!F50) -> 0 | I50: =SUM(bls:una!I50) -> 0 | J50: =SUM(bls:una!J50) -> 0 | K50: =SUM(bls:una!K50) -> 0 | L50: =SUM(bls:una!L50) -> 0 | M50: =SUM(bls:una!M50) -> 0 | N50: =SUM(bls:una!N50) -> 0 | P50: =SUM(bls:una!P50) -> 0 | Q50: =SUM(bls:una!Q50) -> 0 | R50: =SUM(bls:una!R50) -> 0 | S50: =SUM(bls:una!S50) -> 0 | T50: =SUM(bls:una!T50) -> 0 | U50: =SUM(bls:una!U50) -> 0 | V50: =SUM(bls:una!V50) -> 0 | W50: =SUM(bls:una!W50) -> 0 | Y50: =SUM(bls:una!Y50) -> 0 | Z50: =SUM(bls:una!Z50) -> 0 | AA50: =SUM(bls:una!AA50) -> 0 | AB50: =SUM(bls:una!AB50) -> 0 | AD50: 0 | AF50: TRUE | AG50: TRUE
A51: 2.21 | B51: Bedding (New) | C51: =SUM(bls:una!C51) -> 0 | D51: =SUM(bls:una!D51) -> 0 | E51: =SUM(bls:una!E51) -> 0 | F51: =SUM(bls:una!F51) -> 0 | I51: =SUM(bls:una!I51) -> 0 | J51: =SUM(bls:una!J51) -> 0 | K51: =SUM(bls:una!K51) -> 0 | L51: =SUM(bls:una!L51) -> 0 | M51: =SUM(bls:una!M51) -> 0 | N51: =SUM(bls:una!N51) -> 0 | P51: =SUM(bls:una!P51) -> 0 | Q51: =SUM(bls:una!Q51) -> 0 | R51: =SUM(bls:una!R51) -> 0 | S51: =SUM(bls:una!S51) -> 0 | T51: =SUM(bls:una!T51) -> 0 | U51: =SUM(bls:una!U51) -> 0 | V51: =SUM(bls:una!V51) -> 0 | W51: =SUM(bls:una!W51) -> 0 | Y51: =SUM(bls:una!Y51) -> 0 | Z51: =SUM(bls:una!Z51) -> 0 | AA51: =SUM(bls:una!AA51) -> 0 | AB51: =SUM(bls:una!AB51) -> 0 | AD51: 0 | AF51: TRUE | AG51: TRUE
A52: 2.22 | B52: Replacement of bedding (once in 3 years) | C52: =SUM(bls:una!C52) -> 0 | D52: =SUM(bls:una!D52) -> 0 | E52: =SUM(bls:una!E52) -> 0 | F52: =SUM(bls:una!F52) -> 0 | I52: =SUM(bls:una!I52) -> 0 | J52: =SUM(bls:una!J52) -> 0 | K52: =SUM(bls:una!K52) -> 0 | L52: =SUM(bls:una!L52) -> 0 | M52: =SUM(bls:una!M52) -> 0 | N52: =SUM(bls:una!N52) -> 0 | P52: =SUM(bls:una!P52) -> 0 | Q52: =SUM(bls:una!Q52) -> 0 | R52: =SUM(bls:una!R52) -> 0 | S52: =SUM(bls:una!S52) -> 0 | T52: =SUM(bls:una!T52) -> 0 | U52: =SUM(bls:una!U52) -> 0 | V52: =SUM(bls:una!V52) -> 0 | W52: =SUM(bls:una!W52) -> 0 | Y52: =SUM(bls:una!Y52) -> 0 | Z52: =SUM(bls:una!Z52) -> 0 | AA52: =SUM(bls:una!AA52) -> 0 | AB52: =SUM(bls:una!AB52) -> 0 | AD52: 0 | AF52: TRUE | AG52: TRUE
B53: Sub Total Non-recurring | C53: =SUM(bls:una!C53) -> 0 | D53: =SUM(bls:una!D53) -> 0 | E53: =SUM(bls:una!E53) -> 0 | F53: =SUM(bls:una!F53) -> 0 | I53: =SUM(bls:una!I53) -> 0 | J53: =SUM(bls:una!J53) -> 0 | K53: =SUM(bls:una!K53) -> 0 | L53: =SUM(bls:una!L53) -> 0 | M53: =SUM(bls:una!M53) -> 0 | N53: =SUM(bls:una!N53) -> 0 | P53: =SUM(bls:una!P53) -> 0 | Q53: =SUM(bls:una!Q53) -> 0 | R53: =SUM(bls:una!R53) -> 0 | S53: =SUM(bls:una!S53) -> 0 | T53: =SUM(bls:una!T53) -> 0 | U53: =SUM(bls:una!U53) -> 0 | V53: =SUM(bls:una!V53) -> 0 | W53: =SUM(bls:una!W53) -> 0 | Y53: =SUM(bls:una!Y53) -> 0 | Z53: =SUM(bls:una!Z53) -> 0 | AA53: =SUM(bls:una!AA53) -> 0 | AB53: =SUM(bls:una!AB53) -> 0 | AD53: 0 | AF53: TRUE | AG53: TRUE
B54: Recurring | C54: =SUM(bls:una!C54) -> 0 | D54: =SUM(bls:una!D54) -> 0 | E54: =SUM(bls:una!E54) -> 0 | F54: =SUM(bls:una!F54) -> 0 | I54: =SUM(bls:una!I54) -> 0 | J54: =SUM(bls:una!J54) -> 0 | K54: =SUM(bls:una!K54) -> 0 | L54: =SUM(bls:una!L54) -> 0 | M54: =SUM(bls:una!M54) -> 0 | N54: =SUM(bls:una!N54) -> 0 | P54: =SUM(bls:una!P54) -> 0 | Q54: =SUM(bls:una!Q54) -> 0 | R54: =SUM(bls:una!R54) -> 0 | S54: =SUM(bls:una!S54) -> 0 | T54: =SUM(bls:una!T54) -> 0 | U54: =SUM(bls:una!U54) -> 0 | V54: =SUM(bls:una!V54) -> 0 | W54: =SUM(bls:una!W54) -> 0 | Y54: =SUM(bls:una!Y54) -> 0 | Z54: =SUM(bls:una!Z54) -> 0 | AA54: =SUM(bls:una!AA54) -> 0 | AB54: =SUM(bls:una!AB54) -> 0 | AD54: 0 | AF54: TRUE | AG54: TRUE
A55: 2.23 | B55: Maintenance per child per month @ Rs. 1500/- | C55: =SUM(bls:una!C55) -> 0 | D55: =SUM(bls:una!D55) -> 0 | E55: =SUM(bls:una!E55) -> 0 | F55: =SUM(bls:una!F55) -> 0 | I55: =SUM(bls:una!I55) -> 0 | J55: =SUM(bls:una!J55) -> 0 | K55: =SUM(bls:una!K55) -> 0 | L55: =SUM(bls:una!L55) -> 0 | M55: =SUM(bls:una!M55) -> 0 | N55: =SUM(bls:una!N55) -> 0 | P55: =SUM(bls:una!P55) -> 0 | Q55: =SUM(bls:una!Q55) -> 0 | R55: =SUM(bls:una!R55) -> 0 | S55: =SUM(bls:una!S55) -> 0 | T55: =SUM(bls:una!T55) -> 0 | U55: =SUM(bls:una!U55) -> 0 | V55: =SUM(bls:una!V55) -> 0 | W55: =SUM(bls:una!W55) -> 0 | Y55: =SUM(bls:una!Y55) -> 0 | Z55: =SUM(bls:una!Z55) -> 0 | AA55: =SUM(bls:una!AA55) -> 0 | AB55: =SUM(bls:una!AB55) -> 0 | AD55: 0 | AF55: TRUE | AG55: TRUE
A56: =+A55+0.01 -> 2.24 | B56: Stipend per child per month @ Rs.100/- | C56: =SUM(bls:una!C56) -> 0 | D56: =SUM(bls:una!D56) -> 0 | E56: =SUM(bls:una!E56) -> 0 | F56: =SUM(bls:una!F56) -> 0 | I56: =SUM(bls:una!I56) -> 0 | J56: =SUM(bls:una!J56) -> 0 | K56: =SUM(bls:una!K56) -> 0 | L56: =SUM(bls:una!L56) -> 0 | M56: =SUM(bls:una!M56) -> 0 | N56: =SUM(bls:una!N56) -> 0 | P56: =SUM(bls:una!P56) -> 0 | Q56: =SUM(bls:una!Q56) -> 0 | R56: =SUM(bls:una!R56) -> 0 | S56: =SUM(bls:una!S56) -> 0 | T56: =SUM(bls:una!T56) -> 0 | U56: =SUM(bls:una!U56) -> 0 | V56: =SUM(bls:una!V56) -> 0 | W56: =SUM(bls:una!W56) -> 0 | Y56: =SUM(bls:una!Y56) -> 0 | Z56: =SUM(bls:una!Z56) -> 0 | AA56: =SUM(bls:una!AA56) -> 0 | AB56: =SUM(bls:una!AB56) -> 0 | AD56: 0 | AF56: TRUE | AG56: TRUE
A57: 2.25 | B57: Supplementary TLM, Stationery and other educational material per child @1000/- per annum | C57: =SUM(bls:una!C57) -> 0 | D57: =SUM(bls:una!D57) -> 0 | E57: =SUM(bls:una!E57) -> 0 | F57: =SUM(bls:una!F57) -> 0 | I57: =SUM(bls:una!I57) -> 0 | J57: =SUM(bls:una!J57) -> 0 | K57: =SUM(bls:una!K57) -> 0 | L57: =SUM(bls:una!L57) -> 0 | M57: =SUM(bls:una!M57) -> 0 | N57: =SUM(bls:una!N57) -> 0 | P57: =SUM(bls:una!P57) -> 0 | Q57: =SUM(bls:una!Q57) -> 0 | R57: =SUM(bls:una!R57) -> 0 | S57: =SUM(bls:una!S57) -> 0 | T57: =SUM(bls:una!T57) -> 0 | U57: =SUM(bls:una!U57) -> 0 | V57: =SUM(bls:una!V57) -> 0 | W57: =SUM(bls:una!W57) -> 0 | Y57: =SUM(bls:una!Y57) -> 0 | Z57: =SUM(bls:una!Z57) -> 0 | AA57: =SUM(bls:una!AA57) -> 0 | AB57: =SUM(bls:una!AB57) -> 0 | AD57: 0 | AF57: TRUE | AG57: TRUE
A58: 2.26 | B58: Salaries | C58: =SUM(bls:una!C58) -> 0 | D58: =SUM(bls:una!D58) -> 0 | E58: =SUM(bls:una!E58) -> 0 | F58: =SUM(bls:una!F58) -> 0 | I58: =SUM(bls:una!I58) -> 0 | J58: =SUM(bls:una!J58) -> 0 | K58: =SUM(bls:una!K58) -> 0 | L58: =SUM(bls:una!L58) -> 0 | M58: =SUM(bls:una!M58) -> 0 | N58: =SUM(bls:una!N58) -> 0 | P58: =SUM(bls:una!P58) -> 0 | Q58: =SUM(bls:una!Q58) -> 0 | R58: =SUM(bls:una!R58) -> 0 | S58: =SUM(bls:una!S58) -> 0 | T58: =SUM(bls:una!T58) -> 0 | U58: =SUM(bls:una!U58) -> 0 | V58: =SUM(bls:una!V58) -> 0 | W58: =SUM(bls:una!W58) -> 0 | Y58: =SUM(bls:una!Y58) -> 0 | Z58: =SUM(bls:una!Z58) -> 0 | AA58: =SUM(bls:una!AA58) -> 0 | AB58: =SUM(bls:una!AB58) -> 0 | AD58: 0 | AF58: TRUE | AG58: TRUE
A59: (a) | B59: 1 Warden @ Rs. 25,000/- per month | C59: =SUM(bls:una!C59) -> 0 | D59: =SUM(bls:una!D59) -> 0 | E59: =SUM(bls:una!E59) -> 0 | F59: =SUM(bls:una!F59) -> 0 | I59: =SUM(bls:una!I59) -> 0 | J59: =SUM(bls:una!J59) -> 0 | K59: =SUM(bls:una!K59) -> 0 | L59: =SUM(bls:una!L59) -> 0 | M59: =SUM(bls:una!M59) -> 0 | N59: =SUM(bls:una!N59) -> 0 | P59: =SUM(bls:una!P59) -> 0 | Q59: =SUM(bls:una!Q59) -> 0 | R59: =SUM(bls:una!R59) -> 0 | S59: =SUM(bls:una!S59) -> 0 | T59: =SUM(bls:una!T59) -> 0 | U59: =SUM(bls:una!U59) -> 0 | V59: =SUM(bls:una!V59) -> 0 | W59: =SUM(bls:una!W59) -> 0 | Y59: =SUM(bls:una!Y59) -> 0 | Z59: =SUM(bls:una!Z59) -> 0 | AA59: =SUM(bls:una!AA59) -> 0 | AB59: =SUM(bls:una!AB59) -> 0 | AD59: 0 | AF59: TRUE | AG59: TRUE
A60: (b) | B60: 1 head teacher @ Rs. 25,000/- per month in case the enrollment exceeds 100 | C60: =SUM(bls:una!C60) -> 0 | D60: =SUM(bls:una!D60) -> 0 | E60: =SUM(bls:una!E60) -> 0 | F60: =SUM(bls:una!F60) -> 0 | I60: =SUM(bls:una!I60) -> 0 | J60: =SUM(bls:una!J60) -> 0 | K60: =SUM(bls:una!K60) -> 0 | L60: =SUM(bls:una!L60) -> 0 | M60: =SUM(bls:una!M60) -> 0 | N60: =SUM(bls:una!N60) -> 0 | P60: =SUM(bls:una!P60) -> 0 | Q60: =SUM(bls:una!Q60) -> 0 | R60: =SUM(bls:una!R60) -> 0 | S60: =SUM(bls:una!S60) -> 0 | T60: =SUM(bls:una!T60) -> 0 | U60: =SUM(bls:una!U60) -> 0 | V60: =SUM(bls:una!V60) -> 0 | W60: =SUM(bls:una!W60) -> 0 | Y60: =SUM(bls:una!Y60) -> 0 | Z60: =SUM(bls:una!Z60) -> 0 | AA60: =SUM(bls:una!AA60) -> 0 | AB60: =SUM(bls:una!AB60) -> 0 | AD60: 0 | AF60: TRUE | AG60: TRUE
A61: (c) | B61: 4 - 5 Full time teachers as per RTE norms @ Rs. 20,000/- per month per teacher | C61: =SUM(bls:una!C61) -> 0 | D61: =SUM(bls:una!D61) -> 0 | E61: =SUM(bls:una!E61) -> 0 | F61: =SUM(bls:una!F61) -> 0 | I61: =SUM(bls:una!I61) -> 0 | J61: =SUM(bls:una!J61) -> 0 | K61: =SUM(bls:una!K61) -> 0 | L61: =SUM(bls:una!L61) -> 0 | M61: =SUM(bls:una!M61) -> 0 | N61: =SUM(bls:una!N61) -> 0 | P61: =SUM(bls:una!P61) -> 0 | Q61: =SUM(bls:una!Q61) -> 0 | R61: =SUM(bls:una!R61) -> 0 | S61: =SUM(bls:una!S61) -> 0 | T61: =SUM(bls:una!T61) -> 0 | U61: =SUM(bls:una!U61) -> 0 | V61: =SUM(bls:una!V61) -> 0 | W61: =SUM(bls:una!W61) -> 0 | Y61: =SUM(bls:una!Y61) -> 0 | Z61: =SUM(bls:una!Z61) -> 0 | AA61: =SUM(bls:una!AA61) -> 0 | AB61: =SUM(bls:una!AB61) -> 0 | AD61: 0 | AF61: TRUE | AG61: TRUE
A62: (d) | B62: 2 Urdu Teachers (only for blocks with muslim population above 20% and select urban areas), if required @ Rs. 12,000/- per month per teacher | C62: =SUM(bls:una!C62) -> 0 | D62: =SUM(bls:una!D62) -> 0 | E62: =SUM(bls:una!E62) -> 0 | F62: =SUM(bls:una!F62) -> 0 | I62: =SUM(bls:una!I62) -> 0 | J62: =SUM(bls:una!J62) -> 0 | K62: =SUM(bls:una!K62) -> 0 | L62: =SUM(bls:una!L62) -> 0 | M62: =SUM(bls:una!M62) -> 0 | N62: =SUM(bls:una!N62) -> 0 | P62: =SUM(bls:una!P62) -> 0 | Q62: =SUM(bls:una!Q62) -> 0 | R62: =SUM(bls:una!R62) -> 0 | S62: =SUM(bls:una!S62) -> 0 | T62: =SUM(bls:una!T62) -> 0 | U62: =SUM(bls:una!U62) -> 0 | V62: =SUM(bls:una!V62) -> 0 | W62: =SUM(bls:una!W62) -> 0 | Y62: =SUM(bls:una!Y62) -> 0 | Z62: =SUM(bls:una!Z62) -> 0 | AA62: =SUM(bls:una!AA62) -> 0 | AB62: =SUM(bls:una!AB62) -> 0 | AD62: 0 | AF62: TRUE | AG62: TRUE
A63: (e) | B63: 3 part time teachers @ Rs. 5,000/- per month per teacher | C63: =SUM(bls:una!C63) -> 0 | D63: =SUM(bls:una!D63) -> 0 | E63: =SUM(bls:una!E63) -> 0 | F63: =SUM(bls:una!F63) -> 0 | I63: =SUM(bls:una!I63) -> 0 | J63: =SUM(bls:una!J63) -> 0 | K63: =SUM(bls:una!K63) -> 0 | L63: =SUM(bls:una!L63) -> 0 | M63: =SUM(bls:una!M63) -> 0 | N63: =SUM(bls:una!N63) -> 0 | P63: =SUM(bls:una!P63) -> 0 | Q63: =SUM(bls:una!Q63) -> 0 | R63: =SUM(bls:una!R63) -> 0 | S63: =SUM(bls:una!S63) -> 0 | T63: =SUM(bls:una!T63) -> 0 | U63: =SUM(bls:una!U63) -> 0 | V63: =SUM(bls:una!V63) -> 0 | W63: =SUM(bls:una!W63) -> 0 | Y63: =SUM(bls:una!Y63) -> 0 | Z63: =SUM(bls:una!Z63) -> 0 | AA63: =SUM(bls:una!AA63) -> 0 | AB63: =SUM(bls:una!AB63) -> 0 | AD63: 0 | AF63: TRUE | AG63: TRUE
A64: (f) | B64: 1 Full time Accountant @ Rs. 10,000/- per month | C64: =SUM(bls:una!C64) -> 0 | D64: =SUM(bls:una!D64) -> 0 | E64: =SUM(bls:una!E64) -> 0 | F64: =SUM(bls:una!F64) -> 0 | I64: =SUM(bls:una!I64) -> 0 | J64: =SUM(bls:una!J64) -> 0 | K64: =SUM(bls:una!K64) -> 0 | L64: =SUM(bls:una!L64) -> 0 | M64: =SUM(bls:una!M64) -> 0 | N64: =SUM(bls:una!N64) -> 0 | P64: =SUM(bls:una!P64) -> 0 | Q64: =SUM(bls:una!Q64) -> 0 | R64: =SUM(bls:una!R64) -> 0 | S64: =SUM(bls:una!S64) -> 0 | T64: =SUM(bls:una!T64) -> 0 | U64: =SUM(bls:una!U64) -> 0 | V64: =SUM(bls:una!V64) -> 0 | W64: =SUM(bls:una!W64) -> 0 | Y64: =SUM(bls:una!Y64) -> 0 | Z64: =SUM(bls:una!Z64) -> 0 | AA64: =SUM(bls:una!AA64) -> 0 | AB64: =SUM(bls:una!AB64) -> 0 | AD64: 0 | AF64: TRUE | AG64: TRUE
A65: (g) | B65: 2 Support Staff – (Accountant/ Assistant, Peon, Chowkidar) @ Rs. 5,000/- per month per staff | C65: =SUM(bls:una!C65) -> 0 | D65: =SUM(bls:una!D65) -> 0 | E65: =SUM(bls:una!E65) -> 0 | F65: =SUM(bls:una!F65) -> 0 | I65: =SUM(bls:una!I65) -> 0 | J65: =SUM(bls:una!J65) -> 0 | K65: =SUM(bls:una!K65) -> 0 | L65: =SUM(bls:una!L65) -> 0 | M65: =SUM(bls:una!M65) -> 0 | N65: =SUM(bls:una!N65) -> 0 | P65: =SUM(bls:una!P65) -> 0 | Q65: =SUM(bls:una!Q65) -> 0 | R65: =SUM(bls:una!R65) -> 0 | S65: =SUM(bls:una!S65) -> 0 | T65: =SUM(bls:una!T65) -> 0 | U65: =SUM(bls:una!U65) -> 0 | V65: =SUM(bls:una!V65) -> 0 | W65: =SUM(bls:una!W65) -> 0 | Y65: =SUM(bls:una!Y65) -> 0 | Z65: =SUM(bls:una!Z65) -> 0 | AA65: =SUM(bls:una!AA65) -> 0 | AB65: =SUM(bls:una!AB65) -> 0 | AD65: 0 | AF65: TRUE | AG65: TRUE
A66: (h) | B66: 1 Head cook @ Rs. 6,000/- per month and upto 2 Asstt. Cooks @ Rs. 4,500/- per month per cook | C66: =SUM(bls:una!C66) -> 0 | D66: =SUM(bls:una!D66) -> 0 | E66: =SUM(bls:una!E66) -> 0 | F66: =SUM(bls:una!F66) -> 0 | I66: =SUM(bls:una!I66) -> 0 | J66: =SUM(bls:una!J66) -> 0 | K66: =SUM(bls:una!K66) -> 0 | L66: =SUM(bls:una!L66) -> 0 | M66: =SUM(bls:una!M66) -> 0 | N66: =SUM(bls:una!N66) -> 0 | P66: =SUM(bls:una!P66) -> 0 | Q66: =SUM(bls:una!Q66) -> 0 | R66: =SUM(bls:una!R66) -> 0 | S66: =SUM(bls:una!S66) -> 0 | T66: =SUM(bls:una!T66) -> 0 | U66: =SUM(bls:una!U66) -> 0 | V66: =SUM(bls:una!V66) -> 0 | W66: =SUM(bls:una!W66) -> 0 | Y66: =SUM(bls:una!Y66) -> 0 | Z66: =SUM(bls:una!Z66) -> 0 | AA66: =SUM(bls:una!AA66) -> 0 | AB66: =SUM(bls:una!AB66) -> 0 | AD66: 0 | AF66: TRUE | AG66: TRUE
A67: 2.27 | B67: Specific skill training per child @ Rs.1000/- per annum | C67: =SUM(bls:una!C67) -> 0 | D67: =SUM(bls:una!D67) -> 0 | E67: =SUM(bls:una!E67) -> 0 | F67: =SUM(bls:una!F67) -> 0 | I67: =SUM(bls:una!I67) -> 0 | J67: =SUM(bls:una!J67) -> 0 | K67: =SUM(bls:una!K67) -> 0 | L67: =SUM(bls:una!L67) -> 0 | M67: =SUM(bls:una!M67) -> 0 | N67: =SUM(bls:una!N67) -> 0 | P67: =SUM(bls:una!P67) -> 0 | Q67: =SUM(bls:una!Q67) -> 0 | R67: =SUM(bls:una!R67) -> 0 | S67: =SUM(bls:una!S67) -> 0 | T67: =SUM(bls:una!T67) -> 0 | U67: =SUM(bls:una!U67) -> 0 | V67: =SUM(bls:una!V67) -> 0 | W67: =SUM(bls:una!W67) -> 0 | Y67: =SUM(bls:una!Y67) -> 0 | Z67: =SUM(bls:una!Z67) -> 0 | AA67: =SUM(bls:una!AA67) -> 0 | AB67: =SUM(bls:una!AB67) -> 0 | AD67: 0 | AF67: TRUE | AG67: TRUE
A68: 2.28 | B68: Electricity / water charges per child @Rs.1000/- per annum | C68: =SUM(bls:una!C68) -> 0 | D68: =SUM(bls:una!D68) -> 0 | E68: =SUM(bls:una!E68) -> 0 | F68: =SUM(bls:una!F68) -> 0 | I68: =SUM(bls:una!I68) -> 0 | J68: =SUM(bls:una!J68) -> 0 | K68: =SUM(bls:una!K68) -> 0 | L68: =SUM(bls:una!L68) -> 0 | M68: =SUM(bls:una!M68) -> 0 | N68: =SUM(bls:una!N68) -> 0 | P68: =SUM(bls:una!P68) -> 0 | Q68: =SUM(bls:una!Q68) -> 0 | R68: =SUM(bls:una!R68) -> 0 | S68: =SUM(bls:una!S68) -> 0 | T68: =SUM(bls:una!T68) -> 0 | U68: =SUM(bls:una!U68) -> 0 | V68: =SUM(bls:una!V68) -> 0 | W68: =SUM(bls:una!W68) -> 0 | Y68: =SUM(bls:una!Y68) -> 0 | Z68: =SUM(bls:una!Z68) -> 0 | AA68: =SUM(bls:una!AA68) -> 0 | AB68: =SUM(bls:una!AB68) -> 0 | AD68: 0 | AF68: TRUE | AG68: TRUE
A69: 2.29 | B69: Medical care/contingencies @ Rs.1250/- per child per annum | C69: =SUM(bls:una!C69) -> 0 | D69: =SUM(bls:una!D69) -> 0 | E69: =SUM(bls:una!E69) -> 0 | F69: =SUM(bls:una!F69) -> 0 | I69: =SUM(bls:una!I69) -> 0 | J69: =SUM(bls:una!J69) -> 0 | K69: =SUM(bls:una!K69) -> 0 | L69: =SUM(bls:una!L69) -> 0 | M69: =SUM(bls:una!M69) -> 0 | N69: =SUM(bls:una!N69) -> 0 | P69: =SUM(bls:una!P69) -> 0 | Q69: =SUM(bls:una!Q69) -> 0 | R69: =SUM(bls:una!R69) -> 0 | S69: =SUM(bls:una!S69) -> 0 | T69: =SUM(bls:una!T69) -> 0 | U69: =SUM(bls:una!U69) -> 0 | V69: =SUM(bls:una!V69) -> 0 | W69: =SUM(bls:una!W69) -> 0 | Y69: =SUM(bls:una!Y69) -> 0 | Z69: =SUM(bls:una!Z69) -> 0 | AA69: =SUM(bls:una!AA69) -> 0 | AB69: =SUM(bls:una!AB69) -> 0 | AD69: 0 | AF69: TRUE | AG69: TRUE
A70: 2.3 | B70: Maintenance @ Rs.750/- per child per annum | C70: =SUM(bls:una!C70) -> 0 | D70: =SUM(bls:una!D70) -> 0 | E70: =SUM(bls:una!E70) -> 0 | F70: =SUM(bls:una!F70) -> 0 | I70: =SUM(bls:una!I70) -> 0 | J70: =SUM(bls:una!J70) -> 0 | K70: =SUM(bls:una!K70) -> 0 | L70: =SUM(bls:una!L70) -> 0 | M70: =SUM(bls:una!M70) -> 0 | N70: =SUM(bls:una!N70) -> 0 | P70: =SUM(bls:una!P70) -> 0 | Q70: =SUM(bls:una!Q70) -> 0 | R70: =SUM(bls:una!R70) -> 0 | S70: =SUM(bls:una!S70) -> 0 | T70: =SUM(bls:una!T70) -> 0 | U70: =SUM(bls:una!U70) -> 0 | V70: =SUM(bls:una!V70) -> 0 | W70: =SUM(bls:una!W70) -> 0 | Y70: =SUM(bls:una!Y70) -> 0 | Z70: =SUM(bls:una!Z70) -> 0 | AA70: =SUM(bls:una!AA70) -> 0 | AB70: =SUM(bls:una!AB70) -> 0 | AD70: 0 | AF70: TRUE | AG70: TRUE
A71: 2.31 | B71: Miscellaneous @ Rs.750/- per child per annum | C71: =SUM(bls:una!C71) -> 0 | D71: =SUM(bls:una!D71) -> 0 | E71: =SUM(bls:una!E71) -> 0 | F71: =SUM(bls:una!F71) -> 0 | I71: =SUM(bls:una!I71) -> 0 | J71: =SUM(bls:una!J71) -> 0 | K71: =SUM(bls:una!K71) -> 0 | L71: =SUM(bls:una!L71) -> 0 | M71: =SUM(bls:una!M71) -> 0 | N71: =SUM(bls:una!N71) -> 0 | P71: =SUM(bls:una!P71) -> 0 | Q71: =SUM(bls:una!Q71) -> 0 | R71: =SUM(bls:una!R71) -> 0 | S71: =SUM(bls:una!S71) -> 0 | T71: =SUM(bls:una!T71) -> 0 | U71: =SUM(bls:una!U71) -> 0 | V71: =SUM(bls:una!V71) -> 0 | W71: =SUM(bls:una!W71) -> 0 | Y71: =SUM(bls:una!Y71) -> 0 | Z71: =SUM(bls:una!Z71) -> 0 | AA71: =SUM(bls:una!AA71) -> 0 | AB71: =SUM(bls:una!AB71) -> 0 | AD71: 0 | AF71: TRUE | AG71: TRUE
A72: 2.32 | B72: Preparatory camps @ Rs.200/- per child per annum | C72: =SUM(bls:una!C72) -> 0 | D72: =SUM(bls:una!D72) -> 0 | E72: =SUM(bls:una!E72) -> 0 | F72: =SUM(bls:una!F72) -> 0 | I72: =SUM(bls:una!I72) -> 0 | J72: =SUM(bls:una!J72) -> 0 | K72: =SUM(bls:una!K72) -> 0 | L72: =SUM(bls:una!L72) -> 0 | M72: =SUM(bls:una!M72) -> 0 | N72: =SUM(bls:una!N72) -> 0 | P72: =SUM(bls:una!P72) -> 0 | Q72: =SUM(bls:una!Q72) -> 0 | R72: =SUM(bls:una!R72) -> 0 | S72: =SUM(bls:una!S72) -> 0 | T72: =SUM(bls:una!T72) -> 0 | U72: =SUM(bls:una!U72) -> 0 | V72: =SUM(bls:una!V72) -> 0 | W72: =SUM(bls:una!W72) -> 0 | Y72: =SUM(bls:una!Y72) -> 0 | Z72: =SUM(bls:una!Z72) -> 0 | AA72: =SUM(bls:una!AA72) -> 0 | AB72: =SUM(bls:una!AB72) -> 0 | AD72: 0 | AF72: TRUE | AG72: TRUE
A73: 2.33 | B73: P.T.A / school functions @ Rs.200/- per child per annum | C73: =SUM(bls:una!C73) -> 0 | D73: =SUM(bls:una!D73) -> 0 | E73: =SUM(bls:una!E73) -> 0 | F73: =SUM(bls:una!F73) -> 0 | I73: =SUM(bls:una!I73) -> 0 | J73: =SUM(bls:una!J73) -> 0 | K73: =SUM(bls:una!K73) -> 0 | L73: =SUM(bls:una!L73) -> 0 | M73: =SUM(bls:una!M73) -> 0 | N73: =SUM(bls:una!N73) -> 0 | P73: =SUM(bls:una!P73) -> 0 | Q73: =SUM(bls:una!Q73) -> 0 | R73: =SUM(bls:una!R73) -> 0 | S73: =SUM(bls:una!S73) -> 0 | T73: =SUM(bls:una!T73) -> 0 | U73: =SUM(bls:una!U73) -> 0 | V73: =SUM(bls:una!V73) -> 0 | W73: =SUM(bls:una!W73) -> 0 | Y73: =SUM(bls:una!Y73) -> 0 | Z73: =SUM(bls:una!Z73) -> 0 | AA73: =SUM(bls:una!AA73) -> 0 | AB73: =SUM(bls:una!AB73) -> 0 | AD73: =+AB73 -> 0 | AF73: =+X73*Y73=Z73 -> TRUE | AG73: =+U73+W73+Z73=AB73 -> TRUE
A74: 2.34 | B74: Provision of Rent @ Rs. 6000/- per child per annum | C74: =SUM(bls:una!C74) -> 0 | D74: =SUM(bls:una!D74) -> 0 | E74: =SUM(bls:una!E74) -> 0 | F74: =SUM(bls:una!F74) -> 0 | I74: =SUM(bls:una!I74) -> 0 | J74: =SUM(bls:una!J74) -> 0 | K74: =SUM(bls:una!K74) -> 0 | L74: =SUM(bls:una!L74) -> 0 | M74: =SUM(bls:una!M74) -> 0 | N74: =SUM(bls:una!N74) -> 0 | P74: =SUM(bls:una!P74) -> 0 | Q74: =SUM(bls:una!Q74) -> 0 | R74: =SUM(bls:una!R74) -> 0 | S74: =SUM(bls:una!S74) -> 0 | T74: =SUM(bls:una!T74) -> 0 | U74: =SUM(bls:una!U74) -> 0 | V74: =SUM(bls:una!V74) -> 0 | W74: =SUM(bls:una!W74) -> 0 | Y74: =SUM(bls:una!Y74) -> 0 | Z74: =SUM(bls:una!Z74) -> 0 | AA74: =SUM(bls:una!AA74) -> 0 | AB74: =SUM(bls:una!AB74) -> 0 | AD74: 0 | AF74: TRUE | AG74: TRUE
A75: 2.35 | B75: Capacity Building @ Rs.500/- per child per annum | C75: =SUM(bls:una!C75) -> 0 | D75: =SUM(bls:una!D75) -> 0 | E75: =SUM(bls:una!E75) -> 0 | F75: =SUM(bls:una!F75) -> 0 | I75: =SUM(bls:una!I75) -> 0 | J75: =SUM(bls:una!J75) -> 0 | K75: =SUM(bls:una!K75) -> 0 | L75: =SUM(bls:una!L75) -> 0 | M75: =SUM(bls:una!M75) -> 0 | N75: =SUM(bls:una!N75) -> 0 | P75: =SUM(bls:una!P75) -> 0 | Q75: =SUM(bls:una!Q75) -> 0 | R75: =SUM(bls:una!R75) -> 0 | S75: =SUM(bls:una!S75) -> 0 | T75: =SUM(bls:una!T75) -> 0 | U75: =SUM(bls:una!U75) -> 0 | V75: =SUM(bls:una!V75) -> 0 | W75: =SUM(bls:una!W75) -> 0 | Y75: =SUM(bls:una!Y75) -> 0 | Z75: =SUM(bls:una!Z75) -> 0 | AA75: =SUM(bls:una!AA75) -> 0 | AB75: =SUM(bls:una!AB75) -> 0 | AD75: 0 | AF75: TRUE | AG75: TRUE
A76: 2.36 | B76: Physical / Self Defence training @ Rs. 200/- per child per annum. | C76: =SUM(bls:una!C76) -> 0 | D76: =SUM(bls:una!D76) -> 0 | E76: =SUM(bls:una!E76) -> 0 | F76: =SUM(bls:una!F76) -> 0 | I76: =SUM(bls:una!I76) -> 0 | J76: =SUM(bls:una!J76) -> 0 | K76: =SUM(bls:una!K76) -> 0 | L76: =SUM(bls:una!L76) -> 0 | M76: =SUM(bls:una!M76) -> 0 | N76: =SUM(bls:una!N76) -> 0 | P76: =SUM(bls:una!P76) -> 0 | Q76: =SUM(bls:una!Q76) -> 0 | R76: =SUM(bls:una!R76) -> 0 | S76: =SUM(bls:una!S76) -> 0 | T76: =SUM(bls:una!T76) -> 0 | U76: =SUM(bls:una!U76) -> 0 | V76: =SUM(bls:una!V76) -> 0 | W76: =SUM(bls:una!W76) -> 0 | Y76: =SUM(bls:una!Y76) -> 0 | Z76: =SUM(bls:una!Z76) -> 0 | AA76: =SUM(bls:una!AA76) -> 0 | AB76: =SUM(bls:una!AB76) -> 0 | AD76: 0 | AF76: TRUE | AG76: TRUE
B77: Sub Total (Recurring) | C77: =SUM(bls:una!C77) -> 0 | D77: =SUM(bls:una!D77) -> 0 | E77: =SUM(bls:una!E77) -> 0 | F77: =SUM(bls:una!F77) -> 0 | I77: =SUM(bls:una!I77) -> 0 | J77: =SUM(bls:una!J77) -> 0 | K77: =SUM(bls:una!K77) -> 0 | L77: =SUM(bls:una!L77) -> 0 | M77: =SUM(bls:una!M77) -> 0 | N77: =SUM(bls:una!N77) -> 0 | O77: 0 | P77: =SUM(bls:una!P77) -> 0 | Q77: =SUM(bls:una!Q77) -> 0 | R77: =SUM(bls:una!R77) -> 0 | S77: =SUM(bls:una!S77) -> 0 | T77: =SUM(bls:una!T77) -> 0 | U77: =SUM(bls:una!U77) -> 0 | V77: =SUM(bls:una!V77) -> 0 | W77: =SUM(bls:una!W77) -> 0 | X77: 0 | Y77: =SUM(bls:una!Y77) -> 0 | Z77: =SUM(bls:una!Z77) -> 0 | AA77: =SUM(bls:una!AA77) -> 0 | AB77: =SUM(bls:una!AB77) -> 0 | AD77: 0 | AF77: TRUE | AG77: TRUE
B78: Total (Recurring + Non Recurring) | C78: =SUM(bls:una!C78) -> 0 | D78: =SUM(bls:una!D78) -> 0 | E78: =SUM(bls:una!E78) -> 0 | F78: =SUM(bls:una!F78) -> 0 | I78: =SUM(bls:una!I78) -> 0 | J78: =SUM(bls:una!J78) -> 0 | K78: =SUM(bls:una!K78) -> 0 | L78: =SUM(bls:una!L78) -> 0 | M78: =SUM(bls:una!M78) -> 0 | N78: =SUM(bls:una!N78) -> 0 | O78: 0 | P78: =SUM(bls:una!P78) -> 0 | Q78: =SUM(bls:una!Q78) -> 0 | R78: =SUM(bls:una!R78) -> 0 | S78: =SUM(bls:una!S78) -> 0 | T78: =SUM(bls:una!T78) -> 0 | U78: =SUM(bls:una!U78) -> 0 | V78: =SUM(bls:una!V78) -> 0 | W78: =SUM(bls:una!W78) -> 0 | X78: 0 | Y78: =SUM(bls:una!Y78) -> 0 | Z78: =SUM(bls:una!Z78) -> 0 | AA78: =SUM(bls:una!AA78) -> 0 | AB78: =SUM(bls:una!AB78) -> 0 | AD78: 0 | AF78: TRUE | AG78: TRUE
B79: Total (50 + 100 children) | C79: =SUM(bls:una!C79) -> 0 | D79: =SUM(bls:una!D79) -> 0 | E79: =SUM(bls:una!E79) -> 0 | F79: =SUM(bls:una!F79) -> 0 | I79: =SUM(bls:una!I79) -> 0 | J79: =SUM(bls:una!J79) -> 0 | K79: =SUM(bls:una!K79) -> 0 | L79: =SUM(bls:una!L79) -> 0 | M79: =SUM(bls:una!M79) -> 0 | N79: =SUM(bls:una!N79) -> 0 | P79: =SUM(bls:una!P79) -> 0 | Q79: =SUM(bls:una!Q79) -> 0 | R79: =SUM(bls:una!R79) -> 0 | S79: =SUM(bls:una!S79) -> 0 | T79: =SUM(bls:una!T79) -> 0 | U79: =SUM(bls:una!U79) -> 0 | V79: =SUM(bls:una!V79) -> 0 | W79: =SUM(bls:una!W79) -> 0 | Y79: =SUM(bls:una!Y79) -> 0 | Z79: =SUM(bls:una!Z79) -> 0 | AA79: =SUM(bls:una!AA79) -> 0 | AB79: =SUM(bls:una!AB79) -> 0 | AD79: 0 | AF79: TRUE | AG79: TRUE
A80: 3 | B80: Residential Hostel for specific category of children | C80: =SUM(bls:una!C80) -> 0 | D80: =SUM(bls:una!D80) -> 0 | E80: =SUM(bls:una!E80) -> 0 | F80: =SUM(bls:una!F80) -> 0 | I80: =SUM(bls:una!I80) -> 0 | J80: =SUM(bls:una!J80) -> 0 | K80: =SUM(bls:una!K80) -> 0 | L80: =SUM(bls:una!L80) -> 0 | M80: =SUM(bls:una!M80) -> 0 | N80: =SUM(bls:una!N80) -> 0 | P80: =SUM(bls:una!P80) -> 0 | Q80: =SUM(bls:una!Q80) -> 0 | R80: =SUM(bls:una!R80) -> 0 | S80: =SUM(bls:una!S80) -> 0 | T80: =SUM(bls:una!T80) -> 0 | U80: =SUM(bls:una!U80) -> 0 | V80: =SUM(bls:una!V80) -> 0 | W80: =SUM(bls:una!W80) -> 0 | Y80: =SUM(bls:una!Y80) -> 0 | Z80: =SUM(bls:una!Z80) -> 0 | AA80: =SUM(bls:una!AA80) -> 0 | AB80: =SUM(bls:una!AB80) -> 0 | AD80: 0 | AF80: TRUE | AG80: TRUE
A81: (A) | B81: 50 children | C81: =SUM(bls:una!C81) -> 0 | D81: =SUM(bls:una!D81) -> 0 | E81: =SUM(bls:una!E81) -> 0 | F81: =SUM(bls:una!F81) -> 0 | I81: =SUM(bls:una!I81) -> 0 | J81: =SUM(bls:una!J81) -> 0 | K81: =SUM(bls:una!K81) -> 0 | L81: =SUM(bls:una!L81) -> 0 | M81: =SUM(bls:una!M81) -> 0 | N81: =SUM(bls:una!N81) -> 0 | P81: =SUM(bls:una!P81) -> 0 | Q81: =SUM(bls:una!Q81) -> 0 | R81: =SUM(bls:una!R81) -> 0 | S81: =SUM(bls:una!S81) -> 0 | T81: =SUM(bls:una!T81) -> 0 | U81: =SUM(bls:una!U81) -> 0 | V81: =SUM(bls:una!V81) -> 0 | W81: =SUM(bls:una!W81) -> 0 | Y81: =SUM(bls:una!Y81) -> 0 | Z81: =SUM(bls:una!Z81) -> 0 | AA81: =SUM(bls:una!AA81) -> 0 | AB81: =SUM(bls:una!AB81) -> 0 | AD81: 0 | AF81: TRUE | AG81: TRUE
B82: Non-recurring (one time grant) | C82: =SUM(bls:una!C82) -> 0 | D82: =SUM(bls:una!D82) -> 0 | E82: =SUM(bls:una!E82) -> 0 | F82: =SUM(bls:una!F82) -> 0 | I82: =SUM(bls:una!I82) -> 0 | J82: =SUM(bls:una!J82) -> 0 | K82: =SUM(bls:una!K82) -> 0 | L82: =SUM(bls:una!L82) -> 0 | M82: =SUM(bls:una!M82) -> 0 | N82: =SUM(bls:una!N82) -> 0 | P82: =SUM(bls:una!P82) -> 0 | Q82: =SUM(bls:una!Q82) -> 0 | R82: =SUM(bls:una!R82) -> 0 | S82: =SUM(bls:una!S82) -> 0 | T82: =SUM(bls:una!T82) -> 0 | U82: =SUM(bls:una!U82) -> 0 | V82: =SUM(bls:una!V82) -> 0 | W82: =SUM(bls:una!W82) -> 0 | Y82: =SUM(bls:una!Y82) -> 0 | Z82: =SUM(bls:una!Z82) -> 0 | AA82: =SUM(bls:una!AA82) -> 0 | AB82: =SUM(bls:una!AB82) -> 0 | AD82: 0 | AF82: TRUE | AG82: TRUE
A83: 3.01 | B83: Furniture/ Equipment (including kitchen) | C83: =SUM(bls:una!C83) -> 0 | D83: =SUM(bls:una!D83) -> 0 | E83: =SUM(bls:una!E83) -> 0 | F83: =SUM(bls:una!F83) -> 0 | I83: =SUM(bls:una!I83) -> 0 | J83: =SUM(bls:una!J83) -> 0 | K83: =SUM(bls:una!K83) -> 0 | L83: =SUM(bls:una!L83) -> 0 | M83: =SUM(bls:una!M83) -> 0 | N83: =SUM(bls:una!N83) -> 0 | P83: =SUM(bls:una!P83) -> 0 | Q83: =SUM(bls:una!Q83) -> 0 | R83: =SUM(bls:una!R83) -> 0 | S83: =SUM(bls:una!S83) -> 0 | T83: =SUM(bls:una!T83) -> 0 | U83: =SUM(bls:una!U83) -> 0 | V83: =SUM(bls:una!V83) -> 0 | W83: =SUM(bls:una!W83) -> 0 | Y83: =SUM(bls:una!Y83) -> 0 | Z83: =SUM(bls:una!Z83) -> 0 | AA83: =SUM(bls:una!AA83) -> 0 | AB83: =SUM(bls:una!AB83) -> 0 | AD83: 0 | AF83: TRUE | AG83: TRUE
A84: =+A83+0.01 -> 3.02 | B84: TLM and equipment including library books | C84: =SUM(bls:una!C84) -> 0 | D84: =SUM(bls:una!D84) -> 0 | E84: =SUM(bls:una!E84) -> 0 | F84: =SUM(bls:una!F84) -> 0 | I84: =SUM(bls:una!I84) -> 0 | J84: =SUM(bls:una!J84) -> 0 | K84: =SUM(bls:una!K84) -> 0 | L84: =SUM(bls:una!L84) -> 0 | M84: =SUM(bls:una!M84) -> 0 | N84: =SUM(bls:una!N84) -> 0 | P84: =SUM(bls:una!P84) -> 0 | Q84: =SUM(bls:una!Q84) -> 0 | R84: =SUM(bls:una!R84) -> 0 | S84: =SUM(bls:una!S84) -> 0 | T84: =SUM(bls:una!T84) -> 0 | U84: =SUM(bls:una!U84) -> 0 | V84: =SUM(bls:una!V84) -> 0 | W84: =SUM(bls:una!W84) -> 0 | Y84: =SUM(bls:una!Y84) -> 0 | Z84: =SUM(bls:una!Z84) -> 0 | AA84: =SUM(bls:una!AA84) -> 0 | AB84: =SUM(bls:una!AB84) -> 0 | AD84: 0 | AF84: TRUE | AG84: TRUE
A85: 3.03 | B85: Bedding (new) | C85: =SUM(bls:una!C85) -> 0 | D85: =SUM(bls:una!D85) -> 0 | E85: =SUM(bls:una!E85) -> 0 | F85: =SUM(bls:una!F85) -> 0 | I85: =SUM(bls:una!I85) -> 0 | J85: =SUM(bls:una!J85) -> 0 | K85: =SUM(bls:una!K85) -> 0 | L85: =SUM(bls:una!L85) -> 0 | M85: =SUM(bls:una!M85) -> 0 | N85: =SUM(bls:una!N85) -> 0 | P85: =SUM(bls:una!P85) -> 0 | Q85: =SUM(bls:una!Q85) -> 0 | R85: =SUM(bls:una!R85) -> 0 | S85: =SUM(bls:una!S85) -> 0 | T85: =SUM(bls:una!T85) -> 0 | U85: =SUM(bls:una!U85) -> 0 | V85: =SUM(bls:una!V85) -> 0 | W85: =SUM(bls:una!W85) -> 0 | Y85: =SUM(bls:una!Y85) -> 0 | Z85: =SUM(bls:una!Z85) -> 0 | AA85: =SUM(bls:una!AA85) -> 0 | AB85: =SUM(bls:una!AB85) -> 0 | AD85: 0 | AF85: TRUE | AG85: TRUE
A86: 3.04 | B86: Replacement of bedding (once in 3 years) | C86: =SUM(bls:una!C86) -> 0 | D86: =SUM(bls:una!D86) -> 0 | E86: =SUM(bls:una!E86) -> 0 | F86: =SUM(bls:una!F86) -> 0 | I86: =SUM(bls:una!I86) -> 0 | J86: =SUM(bls:una!J86) -> 0 | K86: =SUM(bls:una!K86) -> 0 | L86: =SUM(bls:una!L86) -> 0 | M86: =SUM(bls:una!M86) -> 0 | N86: =SUM(bls:una!N86) -> 0 | P86: =SUM(bls:una!P86) -> 0 | Q86: =SUM(bls:una!Q86) -> 0 | R86: =SUM(bls:una!R86) -> 0 | S86: =SUM(bls:una!S86) -> 0 | T86: =SUM(bls:una!T86) -> 0 | U86: =SUM(bls:una!U86) -> 0 | V86: =SUM(bls:una!V86) -> 0 | W86: =SUM(bls:una!W86) -> 0 | Y86: =SUM(bls:una!Y86) -> 0 | Z86: =SUM(bls:una!Z86) -> 0 | AA86: =SUM(bls:una!AA86) -> 0 | AB86: =SUM(bls:una!AB86) -> 0 | AD86: 0 | AF86: TRUE | AG86: TRUE
B87: Sub Total (Non Recurring) | C87: =SUM(bls:una!C87) -> 0 | D87: =SUM(bls:una!D87) -> 0 | E87: =SUM(bls:una!E87) -> 0 | F87: =SUM(bls:una!F87) -> 0 | I87: =SUM(bls:una!I87) -> 0 | J87: =SUM(bls:una!J87) -> 0 | K87: =SUM(bls:una!K87) -> 0 | L87: =SUM(bls:una!L87) -> 0 | M87: =SUM(bls:una!M87) -> 0 | N87: =SUM(bls:una!N87) -> 0 | O87: 0 | P87: =SUM(bls:una!P87) -> 0 | Q87: =SUM(bls:una!Q87) -> 0 | R87: =SUM(bls:una!R87) -> 0 | S87: =SUM(bls:una!S87) -> 0 | T87: =SUM(bls:una!T87) -> 0 | U87: =SUM(bls:una!U87) -> 0 | V87: =SUM(bls:una!V87) -> 0 | W87: =SUM(bls:una!W87) -> 0 | X87: 0 | Y87: =SUM(bls:una!Y87) -> 0 | Z87: =SUM(bls:una!Z87) -> 0 | AA87: =SUM(bls:una!AA87) -> 0 | AB87: =SUM(bls:una!AB87) -> 0 | AD87: 0 | AF87: TRUE | AG87: TRUE
B88: Recurring (50 children) | C88: =SUM(bls:una!C88) -> 0 | D88: =SUM(bls:una!D88) -> 0 | E88: =SUM(bls:una!E88) -> 0 | F88: =SUM(bls:una!F88) -> 0 | I88: =SUM(bls:una!I88) -> 0 | J88: =SUM(bls:una!J88) -> 0 | K88: =SUM(bls:una!K88) -> 0 | L88: =SUM(bls:una!L88) -> 0 | M88: =SUM(bls:una!M88) -> 0 | N88: =SUM(bls:una!N88) -> 0 | P88: =SUM(bls:una!P88) -> 0 | Q88: =SUM(bls:una!Q88) -> 0 | R88: =SUM(bls:una!R88) -> 0 | S88: =SUM(bls:una!S88) -> 0 | T88: =SUM(bls:una!T88) -> 0 | U88: =SUM(bls:una!U88) -> 0 | V88: =SUM(bls:una!V88) -> 0 | W88: =SUM(bls:una!W88) -> 0 | Y88: =SUM(bls:una!Y88) -> 0 | Z88: =SUM(bls:una!Z88) -> 0 | AA88: =SUM(bls:una!AA88) -> 0 | AB88: =SUM(bls:una!AB88) -> 0 | AD88: 0 | AF88: TRUE | AG88: TRUE
A89: 3.05 | B89: Maintenance per child Per month @ Rs.1500/- | C89: =SUM(bls:una!C89) -> 0 | D89: =SUM(bls:una!D89) -> 0 | E89: =SUM(bls:una!E89) -> 0 | F89: =SUM(bls:una!F89) -> 0 | I89: =SUM(bls:una!I89) -> 0 | J89: =SUM(bls:una!J89) -> 0 | K89: =SUM(bls:una!K89) -> 0 | L89: =SUM(bls:una!L89) -> 0 | M89: =SUM(bls:una!M89) -> 0 | N89: =SUM(bls:una!N89) -> 0 | P89: =SUM(bls:una!P89) -> 0 | Q89: =SUM(bls:una!Q89) -> 0 | R89: =SUM(bls:una!R89) -> 0 | S89: =SUM(bls:una!S89) -> 0 | T89: =SUM(bls:una!T89) -> 0 | U89: =SUM(bls:una!U89) -> 0 | V89: =SUM(bls:una!V89) -> 0 | W89: =SUM(bls:una!W89) -> 0 | Y89: =SUM(bls:una!Y89) -> 0 | Z89: =SUM(bls:una!Z89) -> 0 | AA89: =SUM(bls:una!AA89) -> 0 | AB89: =SUM(bls:una!AB89) -> 0 | AD89: 0 | AF89: TRUE | AG89: TRUE
A90: =+A89+0.01 -> 3.06 | B90: Stipend per child per month @ Rs.100/- | C90: =SUM(bls:una!C90) -> 0 | D90: =SUM(bls:una!D90) -> 0 | E90: =SUM(bls:una!E90) -> 0 | F90: =SUM(bls:una!F90) -> 0 | I90: =SUM(bls:una!I90) -> 0 | J90: =SUM(bls:una!J90) -> 0 | K90: =SUM(bls:una!K90) -> 0 | L90: =SUM(bls:una!L90) -> 0 | M90: =SUM(bls:una!M90) -> 0 | N90: =SUM(bls:una!N90) -> 0 | P90: =SUM(bls:una!P90) -> 0 | Q90: =SUM(bls:una!Q90) -> 0 | R90: =SUM(bls:una!R90) -> 0 | S90: =SUM(bls:una!S90) -> 0 | T90: =SUM(bls:una!T90) -> 0 | U90: =SUM(bls:una!U90) -> 0 | V90: =SUM(bls:una!V90) -> 0 | W90: =SUM(bls:una!W90) -> 0 | Y90: =SUM(bls:una!Y90) -> 0 | Z90: =SUM(bls:una!Z90) -> 0 | AA90: =SUM(bls:una!AA90) -> 0 | AB90: =SUM(bls:una!AB90) -> 0 | AD90: 0 | AF90: TRUE | AG90: TRUE
A91: 3.07 | B91: Supplementary TLM, Stationery and other educational material @Rs.1000/- per child per annum | C91: =SUM(bls:una!C91) -> 0 | D91: =SUM(bls:una!D91) -> 0 | E91: =SUM(bls:una!E91) -> 0 | F91: =SUM(bls:una!F91) -> 0 | I91: =SUM(bls:una!I91) -> 0 | J91: =SUM(bls:una!J91) -> 0 | K91: =SUM(bls:una!K91) -> 0 | L91: =SUM(bls:una!L91) -> 0 | M91: =SUM(bls:una!M91) -> 0 | N91: =SUM(bls:una!N91) -> 0 | P91: =SUM(bls:una!P91) -> 0 | Q91: =SUM(bls:una!Q91) -> 0 | R91: =SUM(bls:una!R91) -> 0 | S91: =SUM(bls:una!S91) -> 0 | T91: =SUM(bls:una!T91) -> 0 | U91: =SUM(bls:una!U91) -> 0 | V91: =SUM(bls:una!V91) -> 0 | W91: =SUM(bls:una!W91) -> 0 | Y91: =SUM(bls:una!Y91) -> 0 | Z91: =SUM(bls:una!Z91) -> 0 | AA91: =SUM(bls:una!AA91) -> 0 | AB91: =SUM(bls:una!AB91) -> 0 | AD91: 0 | AF91: TRUE | AG91: TRUE
B92: Salaries | C92: =SUM(bls:una!C92) -> 0 | D92: =SUM(bls:una!D92) -> 0 | E92: =SUM(bls:una!E92) -> 0 | F92: =SUM(bls:una!F92) -> 0 | I92: =SUM(bls:una!I92) -> 0 | J92: =SUM(bls:una!J92) -> 0 | K92: =SUM(bls:una!K92) -> 0 | L92: =SUM(bls:una!L92) -> 0 | M92: =SUM(bls:una!M92) -> 0 | N92: =SUM(bls:una!N92) -> 0 | P92: =SUM(bls:una!P92) -> 0 | Q92: =SUM(bls:una!Q92) -> 0 | R92: =SUM(bls:una!R92) -> 0 | S92: =SUM(bls:una!S92) -> 0 | T92: =SUM(bls:una!T92) -> 0 | U92: =SUM(bls:una!U92) -> 0 | V92: =SUM(bls:una!V92) -> 0 | W92: =SUM(bls:una!W92) -> 0 | Y92: =SUM(bls:una!Y92) -> 0 | Z92: =SUM(bls:una!Z92) -> 0 | AA92: =SUM(bls:una!AA92) -> 0 | AB92: =SUM(bls:una!AB92) -> 0 | AD92: 0 | AF92: TRUE | AG92: TRUE
A93: (a) | B93: 1 Warden @ Rs.25000/- per month | C93: =SUM(bls:una!C93) -> 0 | D93: =SUM(bls:una!D93) -> 0 | E93: =SUM(bls:una!E93) -> 0 | F93: =SUM(bls:una!F93) -> 0 | I93: =SUM(bls:una!I93) -> 0 | J93: =SUM(bls:una!J93) -> 0 | K93: =SUM(bls:una!K93) -> 0 | L93: =SUM(bls:una!L93) -> 0 | M93: =SUM(bls:una!M93) -> 0 | N93: =SUM(bls:una!N93) -> 0 | P93: =SUM(bls:una!P93) -> 0 | Q93: =SUM(bls:una!Q93) -> 0 | R93: =SUM(bls:una!R93) -> 0 | S93: =SUM(bls:una!S93) -> 0 | T93: =SUM(bls:una!T93) -> 0 | U93: =SUM(bls:una!U93) -> 0 | V93: =SUM(bls:una!V93) -> 0 | W93: =SUM(bls:una!W93) -> 0 | Y93: =SUM(bls:una!Y93) -> 0 | Z93: =SUM(bls:una!Z93) -> 0 | AA93: =SUM(bls:una!AA93) -> 0 | AB93: =SUM(bls:una!AB93) -> 0 | AD93: 0 | AF93: TRUE | AG93: TRUE
A94: (b) | B94: 4 Fulltime teachers as per RTE Norms @ Rs. 20,000/- per month per teacher | C94: =SUM(bls:una!C94) -> 0 | D94: =SUM(bls:una!D94) -> 0 | E94: =SUM(bls:una!E94) -> 0 | F94: =SUM(bls:una!F94) -> 0 | I94: =SUM(bls:una!I94) -> 0 | J94: =SUM(bls:una!J94) -> 0 | K94: =SUM(bls:una!K94) -> 0 | L94: =SUM(bls:una!L94) -> 0 | M94: =SUM(bls:una!M94) -> 0 | N94: =SUM(bls:una!N94) -> 0 | P94: =SUM(bls:una!P94) -> 0 | Q94: =SUM(bls:una!Q94) -> 0 | R94: =SUM(bls:una!R94) -> 0 | S94: =SUM(bls:una!S94) -> 0 | T94: =SUM(bls:una!T94) -> 0 | U94: =SUM(bls:una!U94) -> 0 | V94: =SUM(bls:una!V94) -> 0 | W94: =SUM(bls:una!W94) -> 0 | Y94: =SUM(bls:una!Y94) -> 0 | Z94: =SUM(bls:una!Z94) -> 0 | AA94: =SUM(bls:una!AA94) -> 0 | AB94: =SUM(bls:una!AB94) -> 0 | AD94: 0 | AF94: TRUE | AG94: TRUE
A95: (c) | B95: 2 Urdu Teachers (only for Blocks with muslim population above 20% and select urban areas) @ Rs.12,000/- per month per teacher. | C95: =SUM(bls:una!C95) -> 0 | D95: =SUM(bls:una!D95) -> 0 | E95: =SUM(bls:una!E95) -> 0 | F95: =SUM(bls:una!F95) -> 0 | I95: =SUM(bls:una!I95) -> 0 | J95: =SUM(bls:una!J95) -> 0 | K95: =SUM(bls:una!K95) -> 0 | L95: =SUM(bls:una!L95) -> 0 | M95: =SUM(bls:una!M95) -> 0 | N95: =SUM(bls:una!N95) -> 0 | P95: =SUM(bls:una!P95) -> 0 | Q95: =SUM(bls:una!Q95) -> 0 | R95: =SUM(bls:una!R95) -> 0 | S95: =SUM(bls:una!S95) -> 0 | T95: =SUM(bls:una!T95) -> 0 | U95: =SUM(bls:una!U95) -> 0 | V95: =SUM(bls:una!V95) -> 0 | W95: =SUM(bls:una!W95) -> 0 | Y95: =SUM(bls:una!Y95) -> 0 | Z95: =SUM(bls:una!Z95) -> 0 | AA95: =SUM(bls:una!AA95) -> 0 | AB95: =SUM(bls:una!AB95) -> 0 | AD95: 0 | AF95: TRUE | AG95: TRUE
A96: (d) | B96: 3 Part time teachers @ Rs.5,000/- per month per teacher | C96: =SUM(bls:una!C96) -> 0 | D96: =SUM(bls:una!D96) -> 0 | E96: =SUM(bls:una!E96) -> 0 | F96: =SUM(bls:una!F96) -> 0 | I96: =SUM(bls:una!I96) -> 0 | J96: =SUM(bls:una!J96) -> 0 | K96: =SUM(bls:una!K96) -> 0 | L96: =SUM(bls:una!L96) -> 0 | M96: =SUM(bls:una!M96) -> 0 | N96: =SUM(bls:una!N96) -> 0 | P96: =SUM(bls:una!P96) -> 0 | Q96: =SUM(bls:una!Q96) -> 0 | R96: =SUM(bls:una!R96) -> 0 | S96: =SUM(bls:una!S96) -> 0 | T96: =SUM(bls:una!T96) -> 0 | U96: =SUM(bls:una!U96) -> 0 | V96: =SUM(bls:una!V96) -> 0 | W96: =SUM(bls:una!W96) -> 0 | Y96: =SUM(bls:una!Y96) -> 0 | Z96: =SUM(bls:una!Z96) -> 0 | AA96: =SUM(bls:una!AA96) -> 0 | AB96: =SUM(bls:una!AB96) -> 0 | AD96: 0 | AF96: TRUE | AG96: TRUE
A97: (e) | B97: 1 Full time Accountant @ Rs. 10,000/- per month | C97: =SUM(bls:una!C97) -> 0 | D97: =SUM(bls:una!D97) -> 0 | E97: =SUM(bls:una!E97) -> 0 | F97: =SUM(bls:una!F97) -> 0 | I97: =SUM(bls:una!I97) -> 0 | J97: =SUM(bls:una!J97) -> 0 | K97: =SUM(bls:una!K97) -> 0 | L97: =SUM(bls:una!L97) -> 0 | M97: =SUM(bls:una!M97) -> 0 | N97: =SUM(bls:una!N97) -> 0 | P97: =SUM(bls:una!P97) -> 0 | Q97: =SUM(bls:una!Q97) -> 0 | R97: =SUM(bls:una!R97) -> 0 | S97: =SUM(bls:una!S97) -> 0 | T97: =SUM(bls:una!T97) -> 0 | U97: =SUM(bls:una!U97) -> 0 | V97: =SUM(bls:una!V97) -> 0 | W97: =SUM(bls:una!W97) -> 0 | Y97: =SUM(bls:una!Y97) -> 0 | Z97: =SUM(bls:una!Z97) -> 0 | AA97: =SUM(bls:una!AA97) -> 0 | AB97: =SUM(bls:una!AB97) -> 0 | AD97: 0 | AF97: TRUE | AG97: TRUE
A98: (f) | B98: 2 Support staff - (Accountant/Assistant, Peon, Chowkidar) @ Rs. 5,000/- per month per staff | C98: =SUM(bls:una!C98) -> 0 | D98: =SUM(bls:una!D98) -> 0 | E98: =SUM(bls:una!E98) -> 0 | F98: =SUM(bls:una!F98) -> 0 | I98: =SUM(bls:una!I98) -> 0 | J98: =SUM(bls:una!J98) -> 0 | K98: =SUM(bls:una!K98) -> 0 | L98: =SUM(bls:una!L98) -> 0 | M98: =SUM(bls:una!M98) -> 0 | N98: =SUM(bls:una!N98) -> 0 | P98: =SUM(bls:una!P98) -> 0 | Q98: =SUM(bls:una!Q98) -> 0 | R98: =SUM(bls:una!R98) -> 0 | S98: =SUM(bls:una!S98) -> 0 | T98: =SUM(bls:una!T98) -> 0 | U98: =SUM(bls:una!U98) -> 0 | V98: =SUM(bls:una!V98) -> 0 | W98: =SUM(bls:una!W98) -> 0 | Y98: =SUM(bls:una!Y98) -> 0 | Z98: =SUM(bls:una!Z98) -> 0 | AA98: =SUM(bls:una!AA98) -> 0 | AB98: =SUM(bls:una!AB98) -> 0 | AD98: 0 | AF98: TRUE | AG98: TRUE
A99: (g) | B99: 1 Head Cook @ Rs. 6,000/- per month and upto 2 Asstt. Cooks @ Rs. 4,500/- per month per cook | C99: =SUM(bls:una!C99) -> 0 | D99: =SUM(bls:una!D99) -> 0 | E99: =SUM(bls:una!E99) -> 0 | F99: =SUM(bls:una!F99) -> 0 | I99: =SUM(bls:una!I99) -> 0 | J99: =SUM(bls:una!J99) -> 0 | K99: =SUM(bls:una!K99) -> 0 | L99: =SUM(bls:una!L99) -> 0 | M99: =SUM(bls:una!M99) -> 0 | N99: =SUM(bls:una!N99) -> 0 | P99: =SUM(bls:una!P99) -> 0 | Q99: =SUM(bls:una!Q99) -> 0 | R99: =SUM(bls:una!R99) -> 0 | S99: =SUM(bls:una!S99) -> 0 | T99: =SUM(bls:una!T99) -> 0 | U99: =SUM(bls:una!U99) -> 0 | V99: =SUM(bls:una!V99) -> 0 | W99: =SUM(bls:una!W99) -> 0 | Y99: =SUM(bls:una!Y99) -> 0 | Z99: =SUM(bls:una!Z99) -> 0 | AA99: =SUM(bls:una!AA99) -> 0 | AB99: =SUM(bls:una!AB99) -> 0 | AD99: 0 | AF99: TRUE | AG99: TRUE
A100: 3.08 | B100: Specific Skill training @ Rs.1000/- per annum per child | C100: =SUM(bls:una!C100) -> 0 | D100: =SUM(bls:una!D100) -> 0 | E100: =SUM(bls:una!E100) -> 0 | F100: =SUM(bls:una!F100) -> 0 | I100: =SUM(bls:una!I100) -> 0 | J100: =SUM(bls:una!J100) -> 0 | K100: =SUM(bls:una!K100) -> 0 | L100: =SUM(bls:una!L100) -> 0 | M100: =SUM(bls:una!M100) -> 0 | N100: =SUM(bls:una!N100) -> 0 | P100: =SUM(bls:una!P100) -> 0 | Q100: =SUM(bls:una!Q100) -> 0 | R100: =SUM(bls:una!R100) -> 0 | S100: =SUM(bls:una!S100) -> 0 | T100: =SUM(bls:una!T100) -> 0 | U100: =SUM(bls:una!U100) -> 0 | V100: =SUM(bls:una!V100) -> 0 | W100: =SUM(bls:una!W100) -> 0 | Y100: =SUM(bls:una!Y100) -> 0 | Z100: =SUM(bls:una!Z100) -> 0 | AA100: =SUM(bls:una!AA100) -> 0 | AB100: =SUM(bls:una!AB100) -> 0 | AD100: 0 | AF100: TRUE | AG100: TRUE
A101: =+A100+0.01 -> 3.09 | B101: Electricity / water charges @ Rs. 1000/- per annum per child | C101: =SUM(bls:una!C101) -> 0 | D101: =SUM(bls:una!D101) -> 0 | E101: =SUM(bls:una!E101) -> 0 | F101: =SUM(bls:una!F101) -> 0 | I101: =SUM(bls:una!I101) -> 0 | J101: =SUM(bls:una!J101) -> 0 | K101: =SUM(bls:una!K101) -> 0 | L101: =SUM(bls:una!L101) -> 0 | M101: =SUM(bls:una!M101) -> 0 | N101: =SUM(bls:una!N101) -> 0 | P101: =SUM(bls:una!P101) -> 0 | Q101: =SUM(bls:una!Q101) -> 0 | R101: =SUM(bls:una!R101) -> 0 | S101: =SUM(bls:una!S101) -> 0 | T101: =SUM(bls:una!T101) -> 0 | U101: =SUM(bls:una!U101) -> 0 | V101: =SUM(bls:una!V101) -> 0 | W101: =SUM(bls:una!W101) -> 0 | Y101: =SUM(bls:una!Y101) -> 0 | Z101: =SUM(bls:una!Z101) -> 0 | AA101: =SUM(bls:una!AA101) -> 0 | AB101: =SUM(bls:una!AB101) -> 0 | AD101: 0 | AF101: TRUE | AG101: TRUE
A102: 3.1 | B102: Medical care/contingencies @ Rs.1250/- per annum per child | C102: =SUM(bls:una!C102) -> 0 | D102: =SUM(bls:una!D102) -> 0 | E102: =SUM(bls:una!E102) -> 0 | F102: =SUM(bls:una!F102) -> 0 | I102: =SUM(bls:una!I102) -> 0 | J102: =SUM(bls:una!J102) -> 0 | K102: =SUM(bls:una!K102) -> 0 | L102: =SUM(bls:una!L102) -> 0 | M102: =SUM(bls:una!M102) -> 0 | N102: =SUM(bls:una!N102) -> 0 | P102: =SUM(bls:una!P102) -> 0 | Q102: =SUM(bls:una!Q102) -> 0 | R102: =SUM(bls:una!R102) -> 0 | S102: =SUM(bls:una!S102) -> 0 | T102: =SUM(bls:una!T102) -> 0 | U102: =SUM(bls:una!U102) -> 0 | V102: =SUM(bls:una!V102) -> 0 | W102: =SUM(bls:una!W102) -> 0 | Y102: =SUM(bls:una!Y102) -> 0 | Z102: =SUM(bls:una!Z102) -> 0 | AA102: =SUM(bls:una!AA102) -> 0 | AB102: =SUM(bls:una!AB102) -> 0 | AD102: 0 | AF102: TRUE | AG102: TRUE
A103: 3.11 | B103: Maintenance @ Rs. 750/- per child per annum | C103: =SUM(bls:una!C103) -> 0 | D103: =SUM(bls:una!D103) -> 0 | E103: =SUM(bls:una!E103) -> 0 | F103: =SUM(bls:una!F103) -> 0 | I103: =SUM(bls:una!I103) -> 0 | J103: =SUM(bls:una!J103) -> 0 | K103: =SUM(bls:una!K103) -> 0 | L103: =SUM(bls:una!L103) -> 0 | M103: =SUM(bls:una!M103) -> 0 | N103: =SUM(bls:una!N103) -> 0 | P103: =SUM(bls:una!P103) -> 0 | Q103: =SUM(bls:una!Q103) -> 0 | R103: =SUM(bls:una!R103) -> 0 | S103: =SUM(bls:una!S103) -> 0 | T103: =SUM(bls:una!T103) -> 0 | U103: =SUM(bls:una!U103) -> 0 | V103: =SUM(bls:una!V103) -> 0 | W103: =SUM(bls:una!W103) -> 0 | Y103: =SUM(bls:una!Y103) -> 0 | Z103: =SUM(bls:una!Z103) -> 0 | AA103: =SUM(bls:una!AA103) -> 0 | AB103: =SUM(bls:una!AB103) -> 0 | AD103: 0 | AF103: TRUE | AG103: TRUE
A104: 3.12 | B104: Miscellaneous @ Rs. 750/- per child per annum | C104: =SUM(bls:una!C104) -> 0 | D104: =SUM(bls:una!D104) -> 0 | E104: =SUM(bls:una!E104) -> 0 | F104: =SUM(bls:una!F104) -> 0 | I104: =SUM(bls:una!I104) -> 0 | J104: =SUM(bls:una!J104) -> 0 | K104: =SUM(bls:una!K104) -> 0 | L104: =SUM(bls:una!L104) -> 0 | M104: =SUM(bls:una!M104) -> 0 | N104: =SUM(bls:una!N104) -> 0 | P104: =SUM(bls:una!P104) -> 0 | Q104: =SUM(bls:una!Q104) -> 0 | R104: =SUM(bls:una!R104) -> 0 | S104: =SUM(bls:una!S104) -> 0 | T104: =SUM(bls:una!T104) -> 0 | U104: =SUM(bls:una!U104) -> 0 | V104: =SUM(bls:una!V104) -> 0 | W104: =SUM(bls:una!W104) -> 0 | Y104: =SUM(bls:una!Y104) -> 0 | Z104: =SUM(bls:una!Z104) -> 0 | AA104: =SUM(bls:una!AA104) -> 0 | AB104: =SUM(bls:una!AB104) -> 0 | AD104: 0 | AF104: TRUE | AG104: TRUE
A105: 3.13 | B105: Preparatory camps @ Rs. 300/- per child per annum | C105: =SUM(bls:una!C105) -> 0 | D105: =SUM(bls:una!D105) -> 0 | E105: =SUM(bls:una!E105) -> 0 | F105: =SUM(bls:una!F105) -> 0 | I105: =SUM(bls:una!I105) -> 0 | J105: =SUM(bls:una!J105) -> 0 | K105: =SUM(bls:una!K105) -> 0 | L105: =SUM(bls:una!L105) -> 0 | M105: =SUM(bls:una!M105) -> 0 | N105: =SUM(bls:una!N105) -> 0 | P105: =SUM(bls:una!P105) -> 0 | Q105: =SUM(bls:una!Q105) -> 0 | R105: =SUM(bls:una!R105) -> 0 | S105: =SUM(bls:una!S105) -> 0 | T105: =SUM(bls:una!T105) -> 0 | U105: =SUM(bls:una!U105) -> 0 | V105: =SUM(bls:una!V105) -> 0 | W105: =SUM(bls:una!W105) -> 0 | Y105: =SUM(bls:una!Y105) -> 0 | Z105: =SUM(bls:una!Z105) -> 0 | AA105: =SUM(bls:una!AA105) -> 0 | AB105: =SUM(bls:una!AB105) -> 0 | AD105: 0 | AF105: TRUE | AG105: TRUE
A106: 3.14 | B106: P.T.A / school functions @ Rs. 300/- per child per annum | C106: =SUM(bls:una!C106) -> 0 | D106: =SUM(bls:una!D106) -> 0 | E106: =SUM(bls:una!E106) -> 0 | F106: =SUM(bls:una!F106) -> 0 | I106: =SUM(bls:una!I106) -> 0 | J106: =SUM(bls:una!J106) -> 0 | K106: =SUM(bls:una!K106) -> 0 | L106: =SUM(bls:una!L106) -> 0 | M106: =SUM(bls:una!M106) -> 0 | N106: =SUM(bls:una!N106) -> 0 | P106: =SUM(bls:una!P106) -> 0 | Q106: =SUM(bls:una!Q106) -> 0 | R106: =SUM(bls:una!R106) -> 0 | S106: =SUM(bls:una!S106) -> 0 | T106: =SUM(bls:una!T106) -> 0 | U106: =SUM(bls:una!U106) -> 0 | V106: =SUM(bls:una!V106) -> 0 | W106: =SUM(bls:una!W106) -> 0 | Y106: =SUM(bls:una!Y106) -> 0 | Z106: =SUM(bls:una!Z106) -> 0 | AA106: =SUM(bls:una!AA106) -> 0 | AB106: =SUM(bls:una!AB106) -> 0 | AD106: 0 | AF106: TRUE | AG106: TRUE
A107: 3.15 | B107: Provision of Rent @ Rs. 10,000/- per child per annum | C107: =SUM(bls:una!C107) -> 0 | D107: =SUM(bls:una!D107) -> 0 | E107: =SUM(bls:una!E107) -> 0 | F107: =SUM(bls:una!F107) -> 0 | I107: =SUM(bls:una!I107) -> 0 | J107: =SUM(bls:una!J107) -> 0 | K107: =SUM(bls:una!K107) -> 0 | L107: =SUM(bls:una!L107) -> 0 | M107: =SUM(bls:una!M107) -> 0 | N107: =SUM(bls:una!N107) -> 0 | P107: =SUM(bls:una!P107) -> 0 | Q107: =SUM(bls:una!Q107) -> 0 | R107: =SUM(bls:una!R107) -> 0 | S107: =SUM(bls:una!S107) -> 0 | T107: =SUM(bls:una!T107) -> 0 | U107: =SUM(bls:una!U107) -> 0 | V107: =SUM(bls:una!V107) -> 0 | W107: =SUM(bls:una!W107) -> 0 | Y107: =SUM(bls:una!Y107) -> 0 | Z107: =SUM(bls:una!Z107) -> 0 | AA107: =SUM(bls:una!AA107) -> 0 | AB107: =SUM(bls:una!AB107) -> 0 | AD107: 0 | AF107: TRUE | AG107: TRUE
A108: 3.16 | B108: Capacity Building @ Rs. 500/- per child per annum | C108: =SUM(bls:una!C108) -> 0 | D108: =SUM(bls:una!D108) -> 0 | E108: =SUM(bls:una!E108) -> 0 | F108: =SUM(bls:una!F108) -> 0 | I108: =SUM(bls:una!I108) -> 0 | J108: =SUM(bls:una!J108) -> 0 | K108: =SUM(bls:una!K108) -> 0 | L108: =SUM(bls:una!L108) -> 0 | M108: =SUM(bls:una!M108) -> 0 | N108: =SUM(bls:una!N108) -> 0 | P108: =SUM(bls:una!P108) -> 0 | Q108: =SUM(bls:una!Q108) -> 0 | R108: =SUM(bls:una!R108) -> 0 | S108: =SUM(bls:una!S108) -> 0 | T108: =SUM(bls:una!T108) -> 0 | U108: =SUM(bls:una!U108) -> 0 | V108: =SUM(bls:una!V108) -> 0 | W108: =SUM(bls:una!W108) -> 0 | Y108: =SUM(bls:una!Y108) -> 0 | Z108: =SUM(bls:una!Z108) -> 0 | AA108: =SUM(bls:una!AA108) -> 0 | AB108: =SUM(bls:una!AB108) -> 0 | AD108: 0 | AF108: TRUE | AG108: TRUE
A109: 3.17 | B109: Physical / Self Defence Training @ Rs.200/- per child per annum | C109: =SUM(bls:una!C109) -> 0 | D109: =SUM(bls:una!D109) -> 0 | E109: =SUM(bls:una!E109) -> 0 | F109: =SUM(bls:una!F109) -> 0 | I109: =SUM(bls:una!I109) -> 0 | J109: =SUM(bls:una!J109) -> 0 | K109: =SUM(bls:una!K109) -> 0 | L109: =SUM(bls:una!L109) -> 0 | M109: =SUM(bls:una!M109) -> 0 | N109: =SUM(bls:una!N109) -> 0 | P109: =SUM(bls:una!P109) -> 0 | Q109: =SUM(bls:una!Q109) -> 0 | R109: =SUM(bls:una!R109) -> 0 | S109: =SUM(bls:una!S109) -> 0 | T109: =SUM(bls:una!T109) -> 0 | U109: =SUM(bls:una!U109) -> 0 | V109: =SUM(bls:una!V109) -> 0 | W109: =SUM(bls:una!W109) -> 0 | Y109: =SUM(bls:una!Y109) -> 0 | Z109: =SUM(bls:una!Z109) -> 0 | AA109: =SUM(bls:una!AA109) -> 0 | AB109: =SUM(bls:una!AB109) -> 0 | AD109: 0 | AF109: TRUE | AG109: TRUE
B110: Sub Total (Recurring) | C110: =SUM(bls:una!C110) -> 0 | D110: =SUM(bls:una!D110) -> 0 | E110: =SUM(bls:una!E110) -> 0 | F110: =SUM(bls:una!F110) -> 0 | I110: =SUM(bls:una!I110) -> 0 | J110: =SUM(bls:una!J110) -> 0 | K110: =SUM(bls:una!K110) -> 0 | L110: =SUM(bls:una!L110) -> 0 | M110: =SUM(bls:una!M110) -> 0 | N110: =SUM(bls:una!N110) -> 0 | P110: =SUM(bls:una!P110) -> 0 | Q110: =SUM(bls:una!Q110) -> 0 | R110: =SUM(bls:una!R110) -> 0 | S110: =SUM(bls:una!S110) -> 0 | T110: =SUM(bls:una!T110) -> 0 | U110: =SUM(bls:una!U110) -> 0 | V110: =SUM(bls:una!V110) -> 0 | W110: =SUM(bls:una!W110) -> 0 | Y110: =SUM(bls:una!Y110) -> 0 | Z110: =SUM(bls:una!Z110) -> 0 | AA110: =SUM(bls:una!AA110) -> 0 | AB110: =SUM(bls:una!AB110) -> 0 | AD110: 0 | AF110: TRUE | AG110: TRUE
B111: Total (Non Recurring + Recurring) | C111: =SUM(bls:una!C111) -> 0 | D111: =SUM(bls:una!D111) -> 0 | E111: =SUM(bls:una!E111) -> 0 | F111: =SUM(bls:una!F111) -> 0 | I111: =SUM(bls:una!I111) -> 0 | J111: =SUM(bls:una!J111) -> 0 | K111: =SUM(bls:una!K111) -> 0 | L111: =SUM(bls:una!L111) -> 0 | M111: =SUM(bls:una!M111) -> 0 | N111: =SUM(bls:una!N111) -> 0 | P111: =SUM(bls:una!P111) -> 0 | Q111: =SUM(bls:una!Q111) -> 0 | R111: =SUM(bls:una!R111) -> 0 | S111: =SUM(bls:una!S111) -> 0 | T111: =SUM(bls:una!T111) -> 0 | U111: =SUM(bls:una!U111) -> 0 | V111: =SUM(bls:una!V111) -> 0 | W111: =SUM(bls:una!W111) -> 0 | Y111: =SUM(bls:una!Y111) -> 0 | Z111: =SUM(bls:una!Z111) -> 0 | AA111: =SUM(bls:una!AA111) -> 0 | AB111: =SUM(bls:una!AB111) -> 0 | AD111: 0 | AF111: TRUE | AG111: TRUE
A112: (B) | B112: 100 Children | C112: =SUM(bls:una!C112) -> 0 | D112: =SUM(bls:una!D112) -> 0 | E112: =SUM(bls:una!E112) -> 0 | F112: =SUM(bls:una!F112) -> 0 | I112: =SUM(bls:una!I112) -> 0 | J112: =SUM(bls:una!J112) -> 0 | K112: =SUM(bls:una!K112) -> 0 | L112: =SUM(bls:una!L112) -> 0 | M112: =SUM(bls:una!M112) -> 0 | N112: =SUM(bls:una!N112) -> 0 | P112: =SUM(bls:una!P112) -> 0 | Q112: =SUM(bls:una!Q112) -> 0 | R112: =SUM(bls:una!R112) -> 0 | S112: =SUM(bls:una!S112) -> 0 | T112: =SUM(bls:una!T112) -> 0 | U112: =SUM(bls:una!U112) -> 0 | V112: =SUM(bls:una!V112) -> 0 | W112: =SUM(bls:una!W112) -> 0 | Y112: =SUM(bls:una!Y112) -> 0 | Z112: =SUM(bls:una!Z112) -> 0 | AA112: =SUM(bls:una!AA112) -> 0 | AB112: =SUM(bls:una!AB112) -> 0 | AD112: 0 | AF112: TRUE | AG112: TRUE
B113: Non-recurring (one time grant) | C113: =SUM(bls:una!C113) -> 0 | D113: =SUM(bls:una!D113) -> 0 | E113: =SUM(bls:una!E113) -> 0 | F113: =SUM(bls:una!F113) -> 0 | I113: =SUM(bls:una!I113) -> 0 | J113: =SUM(bls:una!J113) -> 0 | K113: =SUM(bls:una!K113) -> 0 | L113: =SUM(bls:una!L113) -> 0 | M113: =SUM(bls:una!M113) -> 0 | N113: =SUM(bls:una!N113) -> 0 | P113: =SUM(bls:una!P113) -> 0 | Q113: =SUM(bls:una!Q113) -> 0 | R113: =SUM(bls:una!R113) -> 0 | S113: =SUM(bls:una!S113) -> 0 | T113: =SUM(bls:una!T113) -> 0 | U113: =SUM(bls:una!U113) -> 0 | V113: =SUM(bls:una!V113) -> 0 | W113: =SUM(bls:una!W113) -> 0 | Y113: =SUM(bls:una!Y113) -> 0 | Z113: =SUM(bls:una!Z113) -> 0 | AA113: =SUM(bls:una!AA113) -> 0 | AB113: =SUM(bls:una!AB113) -> 0 | AD113: 0 | AF113: TRUE | AG113: TRUE
A114: 3.18 | B114: Furniture / Equipment (including kitchen equipment) | C114: =SUM(bls:una!C114) -> 0 | D114: =SUM(bls:una!D114) -> 0 | E114: =SUM(bls:una!E114) -> 0 | F114: =SUM(bls:una!F114) -> 0 | I114: =SUM(bls:una!I114) -> 0 | J114: =SUM(bls:una!J114) -> 0 | K114: =SUM(bls:una!K114) -> 0 | L114: =SUM(bls:una!L114) -> 0 | M114: =SUM(bls:una!M114) -> 0 | N114: =SUM(bls:una!N114) -> 0 | P114: =SUM(bls:una!P114) -> 0 | Q114: =SUM(bls:una!Q114) -> 0 | R114: =SUM(bls:una!R114) -> 0 | S114: =SUM(bls:una!S114) -> 0 | T114: =SUM(bls:una!T114) -> 0 | U114: =SUM(bls:una!U114) -> 0 | V114: =SUM(bls:una!V114) -> 0 | W114: =SUM(bls:una!W114) -> 0 | Y114: =SUM(bls:una!Y114) -> 0 | Z114: =SUM(bls:una!Z114) -> 0 | AA114: =SUM(bls:una!AA114) -> 0 | AB114: =SUM(bls:una!AB114) -> 0 | AD114: 0 | AF114: TRUE | AG114: TRUE
A115: =+A114+0.01 -> 3.19 | B115: TLM and equipment including library books (New) | C115: =SUM(bls:una!C115) -> 0 | D115: =SUM(bls:una!D115) -> 0 | E115: =SUM(bls:una!E115) -> 0 | F115: =SUM(bls:una!F115) -> 0 | I115: =SUM(bls:una!I115) -> 0 | J115: =SUM(bls:una!J115) -> 0 | K115: =SUM(bls:una!K115) -> 0 | L115: =SUM(bls:una!L115) -> 0 | M115: =SUM(bls:una!M115) -> 0 | N115: =SUM(bls:una!N115) -> 0 | P115: =SUM(bls:una!P115) -> 0 | Q115: =SUM(bls:una!Q115) -> 0 | R115: =SUM(bls:una!R115) -> 0 | S115: =SUM(bls:una!S115) -> 0 | T115: =SUM(bls:una!T115) -> 0 | U115: =SUM(bls:una!U115) -> 0 | V115: =SUM(bls:una!V115) -> 0 | W115: =SUM(bls:una!W115) -> 0 | Y115: =SUM(bls:una!Y115) -> 0 | Z115: =SUM(bls:una!Z115) -> 0 | AA115: =SUM(bls:una!AA115) -> 0 | AB115: =SUM(bls:una!AB115) -> 0 | AD115: 0 | AF115: TRUE | AG115: TRUE
A116: 3.2 | B116: Bedding (New) | C116: =SUM(bls:una!C116) -> 0 | D116: =SUM(bls:una!D116) -> 0 | E116: =SUM(bls:una!E116) -> 0 | F116: =SUM(bls:una!F116) -> 0 | I116: =SUM(bls:una!I116) -> 0 | J116: =SUM(bls:una!J116) -> 0 | K116: =SUM(bls:una!K116) -> 0 | L116: =SUM(bls:una!L116) -> 0 | M116: =SUM(bls:una!M116) -> 0 | N116: =SUM(bls:una!N116) -> 0 | P116: =SUM(bls:una!P116) -> 0 | Q116: =SUM(bls:una!Q116) -> 0 | R116: =SUM(bls:una!R116) -> 0 | S116: =SUM(bls:una!S116) -> 0 | T116: =SUM(bls:una!T116) -> 0 | U116: =SUM(bls:una!U116) -> 0 | V116: =SUM(bls:una!V116) -> 0 | W116: =SUM(bls:una!W116) -> 0 | Y116: =SUM(bls:una!Y116) -> 0 | Z116: =SUM(bls:una!Z116) -> 0 | AA116: =SUM(bls:una!AA116) -> 0 | AB116: =SUM(bls:una!AB116) -> 0 | AD116: 0 | AF116: TRUE | AG116: TRUE
A117: 3.21 | B117: Replacement of bedding (once in 3 years) | C117: =SUM(bls:una!C117) -> 0 | D117: =SUM(bls:una!D117) -> 0 | E117: =SUM(bls:una!E117) -> 0 | F117: =SUM(bls:una!F117) -> 0 | I117: =SUM(bls:una!I117) -> 0 | J117: =SUM(bls:una!J117) -> 0 | K117: =SUM(bls:una!K117) -> 0 | L117: =SUM(bls:una!L117) -> 0 | M117: =SUM(bls:una!M117) -> 0 | N117: =SUM(bls:una!N117) -> 0 | P117: =SUM(bls:una!P117) -> 0 | Q117: =SUM(bls:una!Q117) -> 0 | R117: =SUM(bls:una!R117) -> 0 | S117: =SUM(bls:una!S117) -> 0 | T117: =SUM(bls:una!T117) -> 0 | U117: =SUM(bls:una!U117) -> 0 | V117: =SUM(bls:una!V117) -> 0 | W117: =SUM(bls:una!W117) -> 0 | Y117: =SUM(bls:una!Y117) -> 0 | Z117: =SUM(bls:una!Z117) -> 0 | AA117: =SUM(bls:una!AA117) -> 0 | AB117: =SUM(bls:una!AB117) -> 0 | AD117: 0 | AF117: TRUE | AG117: TRUE
B118: Sub Total Non-recurring | C118: =SUM(bls:una!C118) -> 0 | D118: =SUM(bls:una!D118) -> 0 | E118: =SUM(bls:una!E118) -> 0 | F118: =SUM(bls:una!F118) -> 0 | I118: =SUM(bls:una!I118) -> 0 | J118: =SUM(bls:una!J118) -> 0 | K118: =SUM(bls:una!K118) -> 0 | L118: =SUM(bls:una!L118) -> 0 | M118: =SUM(bls:una!M118) -> 0 | N118: =SUM(bls:una!N118) -> 0 | P118: =SUM(bls:una!P118) -> 0 | Q118: =SUM(bls:una!Q118) -> 0 | R118: =SUM(bls:una!R118) -> 0 | S118: =SUM(bls:una!S118) -> 0 | T118: =SUM(bls:una!T118) -> 0 | U118: =SUM(bls:una!U118) -> 0 | V118: =SUM(bls:una!V118) -> 0 | W118: =SUM(bls:una!W118) -> 0 | Y118: =SUM(bls:una!Y118) -> 0 | Z118: =SUM(bls:una!Z118) -> 0 | AA118: =SUM(bls:una!AA118) -> 0 | AB118: =SUM(bls:una!AB118) -> 0 | AD118: 0 | AF118: TRUE | AG118: TRUE
B119: Recurring | C119: =SUM(bls:una!C119) -> 0 | D119: =SUM(bls:una!D119) -> 0 | E119: =SUM(bls:una!E119) -> 0 | F119: =SUM(bls:una!F119) -> 0 | I119: =SUM(bls:una!I119) -> 0 | J119: =SUM(bls:una!J119) -> 0 | K119: =SUM(bls:una!K119) -> 0 | L119: =SUM(bls:una!L119) -> 0 | M119: =SUM(bls:una!M119) -> 0 | N119: =SUM(bls:una!N119) -> 0 | P119: =SUM(bls:una!P119) -> 0 | Q119: =SUM(bls:una!Q119) -> 0 | R119: =SUM(bls:una!R119) -> 0 | S119: =SUM(bls:una!S119) -> 0 | T119: =SUM(bls:una!T119) -> 0 | U119: =SUM(bls:una!U119) -> 0 | V119: =SUM(bls:una!V119) -> 0 | W119: =SUM(bls:una!W119) -> 0 | Y119: =SUM(bls:una!Y119) -> 0 | Z119: =SUM(bls:una!Z119) -> 0 | AA119: =SUM(bls:una!AA119) -> 0 | AB119: =SUM(bls:una!AB119) -> 0 | AD119: 0 | AF119: TRUE | AG119: TRUE
A120: 3.22 | B120: Maintenance per child per month @ Rs. 1500/- | C120: =SUM(bls:una!C120) -> 0 | D120: =SUM(bls:una!D120) -> 0 | E120: =SUM(bls:una!E120) -> 0 | F120: =SUM(bls:una!F120) -> 0 | I120: =SUM(bls:una!I120) -> 0 | J120: =SUM(bls:una!J120) -> 0 | K120: =SUM(bls:una!K120) -> 0 | L120: =SUM(bls:una!L120) -> 0 | M120: =SUM(bls:una!M120) -> 0 | N120: =SUM(bls:una!N120) -> 0 | P120: =SUM(bls:una!P120) -> 0 | Q120: =SUM(bls:una!Q120) -> 0 | R120: =SUM(bls:una!R120) -> 0 | S120: =SUM(bls:una!S120) -> 0 | T120: =SUM(bls:una!T120) -> 0 | U120: =SUM(bls:una!U120) -> 0 | V120: =SUM(bls:una!V120) -> 0 | W120: =SUM(bls:una!W120) -> 0 | Y120: =SUM(bls:una!Y120) -> 0 | Z120: =SUM(bls:una!Z120) -> 0 | AA120: =SUM(bls:una!AA120) -> 0 | AB120: =SUM(bls:una!AB120) -> 0 | AD120: 0 | AF120: TRUE | AG120: TRUE
A121: =+A120+0.01 -> 3.23 | B121: Stipend per child per month @ Rs.100/- | C121: =SUM(bls:una!C121) -> 0 | D121: =SUM(bls:una!D121) -> 0 | E121: =SUM(bls:una!E121) -> 0 | F121: =SUM(bls:una!F121) -> 0 | I121: =SUM(bls:una!I121) -> 0 | J121: =SUM(bls:una!J121) -> 0 | K121: =SUM(bls:una!K121) -> 0 | L121: =SUM(bls:una!L121) -> 0 | M121: =SUM(bls:una!M121) -> 0 | N121: =SUM(bls:una!N121) -> 0 | P121: =SUM(bls:una!P121) -> 0 | Q121: =SUM(bls:una!Q121) -> 0 | R121: =SUM(bls:una!R121) -> 0 | S121: =SUM(bls:una!S121) -> 0 | T121: =SUM(bls:una!T121) -> 0 | U121: =SUM(bls:una!U121) -> 0 | V121: =SUM(bls:una!V121) -> 0 | W121: =SUM(bls:una!W121) -> 0 | Y121: =SUM(bls:una!Y121) -> 0 | Z121: =SUM(bls:una!Z121) -> 0 | AA121: =SUM(bls:una!AA121) -> 0 | AB121: =SUM(bls:una!AB121) -> 0 | AD121: 0 | AF121: TRUE | AG121: TRUE
A122: 3.24 | B122: Supplementary TLM, Stationery and other educational material per child @1000/- per annum | C122: =SUM(bls:una!C122) -> 0 | D122: =SUM(bls:una!D122) -> 0 | E122: =SUM(bls:una!E122) -> 0 | F122: =SUM(bls:una!F122) -> 0 | I122: =SUM(bls:una!I122) -> 0 | J122: =SUM(bls:una!J122) -> 0 | K122: =SUM(bls:una!K122) -> 0 | L122: =SUM(bls:una!L122) -> 0 | M122: =SUM(bls:una!M122) -> 0 | N122: =SUM(bls:una!N122) -> 0 | P122: =SUM(bls:una!P122) -> 0 | Q122: =SUM(bls:una!Q122) -> 0 | R122: =SUM(bls:una!R122) -> 0 | S122: =SUM(bls:una!S122) -> 0 | T122: =SUM(bls:una!T122) -> 0 | U122: =SUM(bls:una!U122) -> 0 | V122: =SUM(bls:una!V122) -> 0 | W122: =SUM(bls:una!W122) -> 0 | Y122: =SUM(bls:una!Y122) -> 0 | Z122: =SUM(bls:una!Z122) -> 0 | AA122: =SUM(bls:una!AA122) -> 0 | AB122: =SUM(bls:una!AB122) -> 0 | AD122: 0 | AF122: TRUE | AG122: TRUE
B123: Salaries | C123: =SUM(bls:una!C123) -> 0 | D123: =SUM(bls:una!D123) -> 0 | E123: =SUM(bls:una!E123) -> 0 | F123: =SUM(bls:una!F123) -> 0 | I123: =SUM(bls:una!I123) -> 0 | J123: =SUM(bls:una!J123) -> 0 | K123: =SUM(bls:una!K123) -> 0 | L123: =SUM(bls:una!L123) -> 0 | M123: =SUM(bls:una!M123) -> 0 | N123: =SUM(bls:una!N123) -> 0 | P123: =SUM(bls:una!P123) -> 0 | Q123: =SUM(bls:una!Q123) -> 0 | R123: =SUM(bls:una!R123) -> 0 | S123: =SUM(bls:una!S123) -> 0 | T123: =SUM(bls:una!T123) -> 0 | U123: =SUM(bls:una!U123) -> 0 | V123: =SUM(bls:una!V123) -> 0 | W123: =SUM(bls:una!W123) -> 0 | Y123: =SUM(bls:una!Y123) -> 0 | Z123: =SUM(bls:una!Z123) -> 0 | AA123: =SUM(bls:una!AA123) -> 0 | AB123: =SUM(bls:una!AB123) -> 0 | AD123: 0 | AF123: TRUE | AG123: TRUE
A124: (a) | B124: 1 Warden @ Rs. 25,000/- per month | C124: =SUM(bls:una!C124) -> 0 | D124: =SUM(bls:una!D124) -> 0 | E124: =SUM(bls:una!E124) -> 0 | F124: =SUM(bls:una!F124) -> 0 | I124: =SUM(bls:una!I124) -> 0 | J124: =SUM(bls:una!J124) -> 0 | K124: =SUM(bls:una!K124) -> 0 | L124: =SUM(bls:una!L124) -> 0 | M124: =SUM(bls:una!M124) -> 0 | N124: =SUM(bls:una!N124) -> 0 | P124: =SUM(bls:una!P124) -> 0 | Q124: =SUM(bls:una!Q124) -> 0 | R124: =SUM(bls:una!R124) -> 0 | S124: =SUM(bls:una!S124) -> 0 | T124: =SUM(bls:una!T124) -> 0 | U124: =SUM(bls:una!U124) -> 0 | V124: =SUM(bls:una!V124) -> 0 | W124: =SUM(bls:una!W124) -> 0 | Y124: =SUM(bls:una!Y124) -> 0 | Z124: =SUM(bls:una!Z124) -> 0 | AA124: =SUM(bls:una!AA124) -> 0 | AB124: =SUM(bls:una!AB124) -> 0 | AD124: 0 | AF124: TRUE | AG124: TRUE
A125: (b) | B125: 1 head teacher @ Rs. 25,000/- per month in case the enrollment exceeds 100 | C125: =SUM(bls:una!C125) -> 0 | D125: =SUM(bls:una!D125) -> 0 | E125: =SUM(bls:una!E125) -> 0 | F125: =SUM(bls:una!F125) -> 0 | I125: =SUM(bls:una!I125) -> 0 | J125: =SUM(bls:una!J125) -> 0 | K125: =SUM(bls:una!K125) -> 0 | L125: =SUM(bls:una!L125) -> 0 | M125: =SUM(bls:una!M125) -> 0 | N125: =SUM(bls:una!N125) -> 0 | P125: =SUM(bls:una!P125) -> 0 | Q125: =SUM(bls:una!Q125) -> 0 | R125: =SUM(bls:una!R125) -> 0 | S125: =SUM(bls:una!S125) -> 0 | T125: =SUM(bls:una!T125) -> 0 | U125: =SUM(bls:una!U125) -> 0 | V125: =SUM(bls:una!V125) -> 0 | W125: =SUM(bls:una!W125) -> 0 | Y125: =SUM(bls:una!Y125) -> 0 | Z125: =SUM(bls:una!Z125) -> 0 | AA125: =SUM(bls:una!AA125) -> 0 | AB125: =SUM(bls:una!AB125) -> 0 | AD125: 0 | AF125: TRUE | AG125: TRUE
A126: (c) | B126: 4 - 5 Full time teachers as per RTE norms @ Rs. 20,000/- per month per teacher | C126: =SUM(bls:una!C126) -> 0 | D126: =SUM(bls:una!D126) -> 0 | E126: =SUM(bls:una!E126) -> 0 | F126: =SUM(bls:una!F126) -> 0 | I126: =SUM(bls:una!I126) -> 0 | J126: =SUM(bls:una!J126) -> 0 | K126: =SUM(bls:una!K126) -> 0 | L126: =SUM(bls:una!L126) -> 0 | M126: =SUM(bls:una!M126) -> 0 | N126: =SUM(bls:una!N126) -> 0 | P126: =SUM(bls:una!P126) -> 0 | Q126: =SUM(bls:una!Q126) -> 0 | R126: =SUM(bls:una!R126) -> 0 | S126: =SUM(bls:una!S126) -> 0 | T126: =SUM(bls:una!T126) -> 0 | U126: =SUM(bls:una!U126) -> 0 | V126: =SUM(bls:una!V126) -> 0 | W126: =SUM(bls:una!W126) -> 0 | Y126: =SUM(bls:una!Y126) -> 0 | Z126: =SUM(bls:una!Z126) -> 0 | AA126: =SUM(bls:una!AA126) -> 0 | AB126: =SUM(bls:una!AB126) -> 0 | AD126: 0 | AF126: TRUE | AG126: TRUE
A127: (d) | B127: 2 Urdu Teachers (only for blocks with muslim population above 20% and select urban areas), if required @ Rs. 12,000/- per month per teacher | C127: =SUM(bls:una!C127) -> 0 | D127: =SUM(bls:una!D127) -> 0 | E127: =SUM(bls:una!E127) -> 0 | F127: =SUM(bls:una!F127) -> 0 | I127: =SUM(bls:una!I127) -> 0 | J127: =SUM(bls:una!J127) -> 0 | K127: =SUM(bls:una!K127) -> 0 | L127: =SUM(bls:una!L127) -> 0 | M127: =SUM(bls:una!M127) -> 0 | N127: =SUM(bls:una!N127) -> 0 | P127: =SUM(bls:una!P127) -> 0 | Q127: =SUM(bls:una!Q127) -> 0 | R127: =SUM(bls:una!R127) -> 0 | S127: =SUM(bls:una!S127) -> 0 | T127: =SUM(bls:una!T127) -> 0 | U127: =SUM(bls:una!U127) -> 0 | V127: =SUM(bls:una!V127) -> 0 | W127: =SUM(bls:una!W127) -> 0 | Y127: =SUM(bls:una!Y127) -> 0 | Z127: =SUM(bls:una!Z127) -> 0 | AA127: =SUM(bls:una!AA127) -> 0 | AB127: =SUM(bls:una!AB127) -> 0 | AD127: 0 | AF127: TRUE | AG127: TRUE
A128: (e) | B128: 3 part time teachers @ Rs. 5,000/- per month per teacher | C128: =SUM(bls:una!C128) -> 0 | D128: =SUM(bls:una!D128) -> 0 | E128: =SUM(bls:una!E128) -> 0 | F128: =SUM(bls:una!F128) -> 0 | I128: =SUM(bls:una!I128) -> 0 | J128: =SUM(bls:una!J128) -> 0 | K128: =SUM(bls:una!K128) -> 0 | L128: =SUM(bls:una!L128) -> 0 | M128: =SUM(bls:una!M128) -> 0 | N128: =SUM(bls:una!N128) -> 0 | P128: =SUM(bls:una!P128) -> 0 | Q128: =SUM(bls:una!Q128) -> 0 | R128: =SUM(bls:una!R128) -> 0 | S128: =SUM(bls:una!S128) -> 0 | T128: =SUM(bls:una!T128) -> 0 | U128: =SUM(bls:una!U128) -> 0 | V128: =SUM(bls:una!V128) -> 0 | W128: =SUM(bls:una!W128) -> 0 | Y128: =SUM(bls:una!Y128) -> 0 | Z128: =SUM(bls:una!Z128) -> 0 | AA128: =SUM(bls:una!AA128) -> 0 | AB128: =SUM(bls:una!AB128) -> 0 | AD128: 0 | AF128: TRUE | AG128: TRUE
A129: (f) | B129: 1 Full time Accountant @ Rs. 10,000/- per month | C129: =SUM(bls:una!C129) -> 0 | D129: =SUM(bls:una!D129) -> 0 | E129: =SUM(bls:una!E129) -> 0 | F129: =SUM(bls:una!F129) -> 0 | I129: =SUM(bls:una!I129) -> 0 | J129: =SUM(bls:una!J129) -> 0 | K129: =SUM(bls:una!K129) -> 0 | L129: =SUM(bls:una!L129) -> 0 | M129: =SUM(bls:una!M129) -> 0 | N129: =SUM(bls:una!N129) -> 0 | P129: =SUM(bls:una!P129) -> 0 | Q129: =SUM(bls:una!Q129) -> 0 | R129: =SUM(bls:una!R129) -> 0 | S129: =SUM(bls:una!S129) -> 0 | T129: =SUM(bls:una!T129) -> 0 | U129: =SUM(bls:una!U129) -> 0 | V129: =SUM(bls:una!V129) -> 0 | W129: =SUM(bls:una!W129) -> 0 | Y129: =SUM(bls:una!Y129) -> 0 | Z129: =SUM(bls:una!Z129) -> 0 | AA129: =SUM(bls:una!AA129) -> 0 | AB129: =SUM(bls:una!AB129) -> 0 | AD129: 0 | AF129: TRUE | AG129: TRUE
A130: 3.25 | B130: 2 Support Staff – (Accountant/ Assistant, Peon, Chowkidar) @ Rs. 5,000/- per month per staff | C130: =SUM(bls:una!C130) -> 0 | D130: =SUM(bls:una!D130) -> 0 | E130: =SUM(bls:una!E130) -> 0 | F130: =SUM(bls:una!F130) -> 0 | I130: =SUM(bls:una!I130) -> 0 | J130: =SUM(bls:una!J130) -> 0 | K130: =SUM(bls:una!K130) -> 0 | L130: =SUM(bls:una!L130) -> 0 | M130: =SUM(bls:una!M130) -> 0 | N130: =SUM(bls:una!N130) -> 0 | P130: =SUM(bls:una!P130) -> 0 | Q130: =SUM(bls:una!Q130) -> 0 | R130: =SUM(bls:una!R130) -> 0 | S130: =SUM(bls:una!S130) -> 0 | T130: =SUM(bls:una!T130) -> 0 | U130: =SUM(bls:una!U130) -> 0 | V130: =SUM(bls:una!V130) -> 0 | W130: =SUM(bls:una!W130) -> 0 | Y130: =SUM(bls:una!Y130) -> 0 | Z130: =SUM(bls:una!Z130) -> 0 | AA130: =SUM(bls:una!AA130) -> 0 | AB130: =SUM(bls:una!AB130) -> 0 | AD130: 0 | AF130: TRUE | AG130: TRUE
A131: =+A130+0.01 -> 3.26 | B131: 1 Head cook @ Rs. 6,000/- per month and upto 2 Asstt. Cooks @ Rs. 4,500/- per month per cook | C131: =SUM(bls:una!C131) -> 0 | D131: =SUM(bls:una!D131) -> 0 | E131: =SUM(bls:una!E131) -> 0 | F131: =SUM(bls:una!F131) -> 0 | I131: =SUM(bls:una!I131) -> 0 | J131: =SUM(bls:una!J131) -> 0 | K131: =SUM(bls:una!K131) -> 0 | L131: =SUM(bls:una!L131) -> 0 | M131: =SUM(bls:una!M131) -> 0 | N131: =SUM(bls:una!N131) -> 0 | P131: =SUM(bls:una!P131) -> 0 | Q131: =SUM(bls:una!Q131) -> 0 | R131: =SUM(bls:una!R131) -> 0 | S131: =SUM(bls:una!S131) -> 0 | T131: =SUM(bls:una!T131) -> 0 | U131: =SUM(bls:una!U131) -> 0 | V131: =SUM(bls:una!V131) -> 0 | W131: =SUM(bls:una!W131) -> 0 | Y131: =SUM(bls:una!Y131) -> 0 | Z131: =SUM(bls:una!Z131) -> 0 | AA131: =SUM(bls:una!AA131) -> 0 | AB131: =SUM(bls:una!AB131) -> 0 | AD131: 0 | AF131: TRUE | AG131: TRUE
A132: 3.27 | B132: Specific skill training per child @ Rs.1000/- per annum | C132: =SUM(bls:una!C132) -> 0 | D132: =SUM(bls:una!D132) -> 0 | E132: =SUM(bls:una!E132) -> 0 | F132: =SUM(bls:una!F132) -> 0 | I132: =SUM(bls:una!I132) -> 0 | J132: =SUM(bls:una!J132) -> 0 | K132: =SUM(bls:una!K132) -> 0 | L132: =SUM(bls:una!L132) -> 0 | M132: =SUM(bls:una!M132) -> 0 | N132: =SUM(bls:una!N132) -> 0 | P132: =SUM(bls:una!P132) -> 0 | Q132: =SUM(bls:una!Q132) -> 0 | R132: =SUM(bls:una!R132) -> 0 | S132: =SUM(bls:una!S132) -> 0 | T132: =SUM(bls:una!T132) -> 0 | U132: =SUM(bls:una!U132) -> 0 | V132: =SUM(bls:una!V132) -> 0 | W132: =SUM(bls:una!W132) -> 0 | Y132: =SUM(bls:una!Y132) -> 0 | Z132: =SUM(bls:una!Z132) -> 0 | AA132: =SUM(bls:una!AA132) -> 0 | AB132: =SUM(bls:una!AB132) -> 0 | AD132: 0 | AF132: TRUE | AG132: TRUE
A133: 3.28 | B133: Electricity / water charges per child @Rs.1000/- per annum | C133: =SUM(bls:una!C133) -> 0 | D133: =SUM(bls:una!D133) -> 0 | E133: =SUM(bls:una!E133) -> 0 | F133: =SUM(bls:una!F133) -> 0 | I133: =SUM(bls:una!I133) -> 0 | J133: =SUM(bls:una!J133) -> 0 | K133: =SUM(bls:una!K133) -> 0 | L133: =SUM(bls:una!L133) -> 0 | M133: =SUM(bls:una!M133) -> 0 | N133: =SUM(bls:una!N133) -> 0 | P133: =SUM(bls:una!P133) -> 0 | Q133: =SUM(bls:una!Q133) -> 0 | R133: =SUM(bls:una!R133) -> 0 | S133: =SUM(bls:una!S133) -> 0 | T133: =SUM(bls:una!T133) -> 0 | U133: =SUM(bls:una!U133) -> 0 | V133: =SUM(bls:una!V133) -> 0 | W133: =SUM(bls:una!W133) -> 0 | Y133: =SUM(bls:una!Y133) -> 0 | Z133: =SUM(bls:una!Z133) -> 0 | AA133: =SUM(bls:una!AA133) -> 0 | AB133: =SUM(bls:una!AB133) -> 0 | AD133: 0 | AF133: TRUE | AG133: TRUE
A134: 3.29 | B134: Medical care/contingencies @ Rs.1250/- per child per annum | C134: =SUM(bls:una!C134) -> 0 | D134: =SUM(bls:una!D134) -> 0 | E134: =SUM(bls:una!E134) -> 0 | F134: =SUM(bls:una!F134) -> 0 | I134: =SUM(bls:una!I134) -> 0 | J134: =SUM(bls:una!J134) -> 0 | K134: =SUM(bls:una!K134) -> 0 | L134: =SUM(bls:una!L134) -> 0 | M134: =SUM(bls:una!M134) -> 0 | N134: =SUM(bls:una!N134) -> 0 | P134: =SUM(bls:una!P134) -> 0 | Q134: =SUM(bls:una!Q134) -> 0 | R134: =SUM(bls:una!R134) -> 0 | S134: =SUM(bls:una!S134) -> 0 | T134: =SUM(bls:una!T134) -> 0 | U134: =SUM(bls:una!U134) -> 0 | V134: =SUM(bls:una!V134) -> 0 | W134: =SUM(bls:una!W134) -> 0 | Y134: =SUM(bls:una!Y134) -> 0 | Z134: =SUM(bls:una!Z134) -> 0 | AA134: =SUM(bls:una!AA134) -> 0 | AB134: =SUM(bls:una!AB134) -> 0 | AD134: 0 | AF134: TRUE | AG134: TRUE
A135: 3.3 | B135: Maintenance @ Rs.750/- per child per annum | C135: =SUM(bls:una!C135) -> 0 | D135: =SUM(bls:una!D135) -> 0 | E135: =SUM(bls:una!E135) -> 0 | F135: =SUM(bls:una!F135) -> 0 | I135: =SUM(bls:una!I135) -> 0 | J135: =SUM(bls:una!J135) -> 0 | K135: =SUM(bls:una!K135) -> 0 | L135: =SUM(bls:una!L135) -> 0 | M135: =SUM(bls:una!M135) -> 0 | N135: =SUM(bls:una!N135) -> 0 | P135: =SUM(bls:una!P135) -> 0 | Q135: =SUM(bls:una!Q135) -> 0 | R135: =SUM(bls:una!R135) -> 0 | S135: =SUM(bls:una!S135) -> 0 | T135: =SUM(bls:una!T135) -> 0 | U135: =SUM(bls:una!U135) -> 0 | V135: =SUM(bls:una!V135) -> 0 | W135: =SUM(bls:una!W135) -> 0 | Y135: =SUM(bls:una!Y135) -> 0 | Z135: =SUM(bls:una!Z135) -> 0 | AA135: =SUM(bls:una!AA135) -> 0 | AB135: =SUM(bls:una!AB135) -> 0 | AD135: 0 | AF135: TRUE | AG135: TRUE
A136: 3.31 | B136: Miscellaneous @ Rs.750/- per child per annum | C136: =SUM(bls:una!C136) -> 0 | D136: =SUM(bls:una!D136) -> 0 | E136: =SUM(bls:una!E136) -> 0 | F136: =SUM(bls:una!F136) -> 0 | I136: =SUM(bls:una!I136) -> 0 | J136: =SUM(bls:una!J136) -> 0 | K136: =SUM(bls:una!K136) -> 0 | L136: =SUM(bls:una!L136) -> 0 | M136: =SUM(bls:una!M136) -> 0 | N136: =SUM(bls:una!N136) -> 0 | P136: =SUM(bls:una!P136) -> 0 | Q136: =SUM(bls:una!Q136) -> 0 | R136: =SUM(bls:una!R136) -> 0 | S136: =SUM(bls:una!S136) -> 0 | T136: =SUM(bls:una!T136) -> 0 | U136: =SUM(bls:una!U136) -> 0 | V136: =SUM(bls:una!V136) -> 0 | W136: =SUM(bls:una!W136) -> 0 | Y136: =SUM(bls:una!Y136) -> 0 | Z136: =SUM(bls:una!Z136) -> 0 | AA136: =SUM(bls:una!AA136) -> 0 | AB136: =SUM(bls:una!AB136) -> 0 | AD136: 0 | AF136: TRUE | AG136: TRUE
A137: 3.32 | B137: Preparatory camps @ Rs.200/- per child per annum | C137: =SUM(bls:una!C137) -> 0 | D137: =SUM(bls:una!D137) -> 0 | E137: =SUM(bls:una!E137) -> 0 | F137: =SUM(bls:una!F137) -> 0 | I137: =SUM(bls:una!I137) -> 0 | J137: =SUM(bls:una!J137) -> 0 | K137: =SUM(bls:una!K137) -> 0 | L137: =SUM(bls:una!L137) -> 0 | M137: =SUM(bls:una!M137) -> 0 | N137: =SUM(bls:una!N137) -> 0 | P137: =SUM(bls:una!P137) -> 0 | Q137: =SUM(bls:una!Q137) -> 0 | R137: =SUM(bls:una!R137) -> 0 | S137: =SUM(bls:una!S137) -> 0 | T137: =SUM(bls:una!T137) -> 0 | U137: =SUM(bls:una!U137) -> 0 | V137: =SUM(bls:una!V137) -> 0 | W137: =SUM(bls:una!W137) -> 0 | Y137: =SUM(bls:una!Y137) -> 0 | Z137: =SUM(bls:una!Z137) -> 0 | AA137: =SUM(bls:una!AA137) -> 0 | AB137: =SUM(bls:una!AB137) -> 0 | AD137: =+AB137 -> 0 | AF137: =+X137*Y137=Z137 -> TRUE | AG137: =+U137+W137+Z137=AB137 -> TRUE
A138: 3.33 | B138: P.T.A / school functions @ Rs.200/- per child per annum | C138: =SUM(bls:una!C138) -> 0 | D138: =SUM(bls:una!D138) -> 0 | E138: =SUM(bls:una!E138) -> 0 | F138: =SUM(bls:una!F138) -> 0 | I138: =SUM(bls:una!I138) -> 0 | J138: =SUM(bls:una!J138) -> 0 | K138: =SUM(bls:una!K138) -> 0 | L138: =SUM(bls:una!L138) -> 0 | M138: =SUM(bls:una!M138) -> 0 | N138: =SUM(bls:una!N138) -> 0 | P138: =SUM(bls:una!P138) -> 0 | Q138: =SUM(bls:una!Q138) -> 0 | R138: =SUM(bls:una!R138) -> 0 | S138: =SUM(bls:una!S138) -> 0 | T138: =SUM(bls:una!T138) -> 0 | U138: =SUM(bls:una!U138) -> 0 | V138: =SUM(bls:una!V138) -> 0 | W138: =SUM(bls:una!W138) -> 0 | Y138: =SUM(bls:una!Y138) -> 0 | Z138: =SUM(bls:una!Z138) -> 0 | AA138: =SUM(bls:una!AA138) -> 0 | AB138: =SUM(bls:una!AB138) -> 0 | AD138: 0 | AF138: TRUE | AG138: TRUE
A139: 3.34 | B139: Provision of Rent @ Rs. 6000/- per child per annum | C139: =SUM(bls:una!C139) -> 0 | D139: =SUM(bls:una!D139) -> 0 | E139: =SUM(bls:una!E139) -> 0 | F139: =SUM(bls:una!F139) -> 0 | I139: =SUM(bls:una!I139) -> 0 | J139: =SUM(bls:una!J139) -> 0 | K139: =SUM(bls:una!K139) -> 0 | L139: =SUM(bls:una!L139) -> 0 | M139: =SUM(bls:una!M139) -> 0 | N139: =SUM(bls:una!N139) -> 0 | P139: =SUM(bls:una!P139) -> 0 | Q139: =SUM(bls:una!Q139) -> 0 | R139: =SUM(bls:una!R139) -> 0 | S139: =SUM(bls:una!S139) -> 0 | T139: =SUM(bls:una!T139) -> 0 | U139: =SUM(bls:una!U139) -> 0 | V139: =SUM(bls:una!V139) -> 0 | W139: =SUM(bls:una!W139) -> 0 | Y139: =SUM(bls:una!Y139) -> 0 | Z139: =SUM(bls:una!Z139) -> 0 | AA139: =SUM(bls:una!AA139) -> 0 | AB139: =SUM(bls:una!AB139) -> 0 | AD139: 0 | AF139: TRUE | AG139: TRUE
A140: 3.35 | B140: Capacity Building @ Rs.500/- per child per annum | C140: =SUM(bls:una!C140) -> 0 | D140: =SUM(bls:una!D140) -> 0 | E140: =SUM(bls:una!E140) -> 0 | F140: =SUM(bls:una!F140) -> 0 | I140: =SUM(bls:una!I140) -> 0 | J140: =SUM(bls:una!J140) -> 0 | K140: =SUM(bls:una!K140) -> 0 | L140: =SUM(bls:una!L140) -> 0 | M140: =SUM(bls:una!M140) -> 0 | N140: =SUM(bls:una!N140) -> 0 | P140: =SUM(bls:una!P140) -> 0 | Q140: =SUM(bls:una!Q140) -> 0 | R140: =SUM(bls:una!R140) -> 0 | S140: =SUM(bls:una!S140) -> 0 | T140: =SUM(bls:una!T140) -> 0 | U140: =SUM(bls:una!U140) -> 0 | V140: =SUM(bls:una!V140) -> 0 | W140: =SUM(bls:una!W140) -> 0 | Y140: =SUM(bls:una!Y140) -> 0 | Z140: =SUM(bls:una!Z140) -> 0 | AA140: =SUM(bls:una!AA140) -> 0 | AB140: =SUM(bls:una!AB140) -> 0 | AD140: 0 | AF140: TRUE | AG140: TRUE
A141: 3.36 | B141: Physical / Self Defence training @ Rs. 200/- per child per annum. | C141: =SUM(bls:una!C141) -> 0 | D141: =SUM(bls:una!D141) -> 0 | E141: =SUM(bls:una!E141) -> 0 | F141: =SUM(bls:una!F141) -> 0 | I141: =SUM(bls:una!I141) -> 0 | J141: =SUM(bls:una!J141) -> 0 | K141: =SUM(bls:una!K141) -> 0 | L141: =SUM(bls:una!L141) -> 0 | M141: =SUM(bls:una!M141) -> 0 | N141: =SUM(bls:una!N141) -> 0 | P141: =SUM(bls:una!P141) -> 0 | Q141: =SUM(bls:una!Q141) -> 0 | R141: =SUM(bls:una!R141) -> 0 | S141: =SUM(bls:una!S141) -> 0 | T141: =SUM(bls:una!T141) -> 0 | U141: =SUM(bls:una!U141) -> 0 | V141: =SUM(bls:una!V141) -> 0 | W141: =SUM(bls:una!W141) -> 0 | Y141: =SUM(bls:una!Y141) -> 0 | Z141: =SUM(bls:una!Z141) -> 0 | AA141: =SUM(bls:una!AA141) -> 0 | AB141: =SUM(bls:una!AB141) -> 0 | AD141: 0 | AF141: TRUE | AG141: TRUE
B142: Sub Total (Recurring) | C142: =SUM(bls:una!C142) -> 0 | D142: =SUM(bls:una!D142) -> 0 | E142: =SUM(bls:una!E142) -> 0 | F142: =SUM(bls:una!F142) -> 0 | I142: =SUM(bls:una!I142) -> 0 | J142: =SUM(bls:una!J142) -> 0 | K142: =SUM(bls:una!K142) -> 0 | L142: =SUM(bls:una!L142) -> 0 | M142: =SUM(bls:una!M142) -> 0 | N142: =SUM(bls:una!N142) -> 0 | P142: =SUM(bls:una!P142) -> 0 | Q142: =SUM(bls:una!Q142) -> 0 | R142: =SUM(bls:una!R142) -> 0 | S142: =SUM(bls:una!S142) -> 0 | T142: =SUM(bls:una!T142) -> 0 | U142: =SUM(bls:una!U142) -> 0 | V142: =SUM(bls:una!V142) -> 0 | W142: =SUM(bls:una!W142) -> 0 | Y142: =SUM(bls:una!Y142) -> 0 | Z142: =SUM(bls:una!Z142) -> 0 | AA142: =SUM(bls:una!AA142) -> 0 | AB142: =SUM(bls:una!AB142) -> 0 | AD142: 0 | AF142: TRUE | AG142: TRUE
B143: Total (Recurring + Non Recurring) | AD143: 0 | AF143: TRUE | AG143: TRUE
B144: Total (A + B) | AD144: 0 | AF144: TRUE | AG144: TRUE
A145: 4 | B145: Transport/Escort Facility | C145: =SUM(bls:una!C145) -> 0 | D145: =SUM(bls:una!D145) -> 0 | E145: =SUM(bls:una!E145) -> 0 | F145: =SUM(bls:una!F145) -> 0 | I145: =SUM(bls:una!I145) -> 0 | J145: =SUM(bls:una!J145) -> 0 | K145: =SUM(bls:una!K145) -> 0 | L145: =SUM(bls:una!L145) -> 0 | M145: =SUM(bls:una!M145) -> 0 | N145: =SUM(bls:una!N145) -> 0 | P145: =SUM(bls:una!P145) -> 0 | Q145: =SUM(bls:una!Q145) -> 0 | R145: =SUM(bls:una!R145) -> 0 | S145: =SUM(bls:una!S145) -> 0 | T145: =SUM(bls:una!T145) -> 0 | U145: =SUM(bls:una!U145) -> 0 | V145: =SUM(bls:una!V145) -> 0 | W145: =SUM(bls:una!W145) -> 0 | Y145: =SUM(bls:una!Y145) -> 0 | Z145: =SUM(bls:una!Z145) -> 0 | AA145: =SUM(bls:una!AA145) -> 0 | AB145: =SUM(bls:una!AB145) -> 0 | AD145: 0 | AF145: TRUE | AG145: TRUE
A146: 4.01 | B146: Children in remote habitation | C146: =SUM(bls:una!C146) -> 0 | D146: =SUM(bls:una!D146) -> 0 | E146: =SUM(bls:una!E146) -> 0 | F146: =SUM(bls:una!F146) -> 0 | I146: =SUM(bls:una!I146) -> 0 | J146: =SUM(bls:una!J146) -> 0 | K146: =SUM(bls:una!K146) -> 0 | L146: =SUM(bls:una!L146) -> 0 | M146: =SUM(bls:una!M146) -> 0 | N146: =SUM(bls:una!N146) -> 0 | P146: =SUM(bls:una!P146) -> 0 | Q146: =SUM(bls:una!Q146) -> 0 | R146: =SUM(bls:una!R146) -> 0 | S146: =SUM(bls:una!S146) -> 0 | T146: =SUM(bls:una!T146) -> 0 | U146: =SUM(bls:una!U146) -> 0 | V146: =SUM(bls:una!V146) -> 0 | W146: =SUM(bls:una!W146) -> 0 | Y146: =SUM(bls:una!Y146) -> 0 | Z146: =SUM(bls:una!Z146) -> 0 | AA146: =SUM(bls:una!AA146) -> 0 | AB146: =SUM(bls:una!AB146) -> 0 | AD146: 0 | AF146: TRUE | AG146: TRUE
A147: 4.02 | B147: Urban deprived children/children without adult protection | C147: =SUM(bls:una!C147) -> 0 | D147: =SUM(bls:una!D147) -> 0 | E147: =SUM(bls:una!E147) -> 0 | F147: =SUM(bls:una!F147) -> 0 | I147: =SUM(bls:una!I147) -> 0 | J147: =SUM(bls:una!J147) -> 0 | K147: =SUM(bls:una!K147) -> 0 | L147: =SUM(bls:una!L147) -> 0 | M147: =SUM(bls:una!M147) -> 0 | N147: =SUM(bls:una!N147) -> 0 | P147: =SUM(bls:una!P147) -> 0 | Q147: =SUM(bls:una!Q147) -> 0 | R147: =SUM(bls:una!R147) -> 0 | S147: =SUM(bls:una!S147) -> 0 | T147: =SUM(bls:una!T147) -> 0 | U147: =SUM(bls:una!U147) -> 0 | V147: =SUM(bls:una!V147) -> 0 | W147: =SUM(bls:una!W147) -> 0 | Y147: =SUM(bls:una!Y147) -> 0 | Z147: =SUM(bls:una!Z147) -> 0 | AA147: =SUM(bls:una!AA147) -> 0 | AB147: =SUM(bls:una!AB147) -> 0 | AD147: 0 | AF147: TRUE | AG147: TRUE
B148: Sub Total | C148: =SUM(bls:una!C148) -> 0 | D148: =SUM(bls:una!D148) -> 0 | E148: =SUM(bls:una!E148) -> 0 | F148: =SUM(bls:una!F148) -> 0 | I148: =SUM(bls:una!I148) -> 0 | J148: =SUM(bls:una!J148) -> 0 | K148: =SUM(bls:una!K148) -> 0 | L148: =SUM(bls:una!L148) -> 0 | M148: =SUM(bls:una!M148) -> 0 | N148: =SUM(bls:una!N148) -> 0 | P148: =SUM(bls:una!P148) -> 0 | Q148: =SUM(bls:una!Q148) -> 0 | R148: =SUM(bls:una!R148) -> 0 | S148: =SUM(bls:una!S148) -> 0 | T148: =SUM(bls:una!T148) -> 0 | U148: =SUM(bls:una!U148) -> 0 | V148: =SUM(bls:una!V148) -> 0 | W148: =SUM(bls:una!W148) -> 0 | Y148: =SUM(bls:una!Y148) -> 0 | Z148: =SUM(bls:una!Z148) -> 0 | AA148: =SUM(bls:una!AA148) -> 0 | AB148: =SUM(bls:una!AB148) -> 0 | AD148: 0 | AF148: TRUE | AG148: TRUE
A149: 5 | B149: Reimbursement of Fee against 25% admission under Section 12(1)(c) of RTE Act 2009 (Entry Level) subject to upper limit of 20% of AWP&B guidelines issued by MHRD | C149: =SUM(bls:una!C149) -> 0 | D149: =SUM(bls:una!D149) -> 0 | E149: =SUM(bls:una!E149) -> 0 | F149: =SUM(bls:una!F149) -> 0 | I149: =SUM(bls:una!I149) -> 0 | J149: =SUM(bls:una!J149) -> 0 | K149: =SUM(bls:una!K149) -> 0 | L149: =SUM(bls:una!L149) -> 0 | M149: =SUM(bls:una!M149) -> 0 | N149: =SUM(bls:una!N149) -> 0 | P149: =SUM(bls:una!P149) -> 0 | Q149: =SUM(bls:una!Q149) -> 0 | R149: =SUM(bls:una!R149) -> 0 | S149: =SUM(bls:una!S149) -> 0 | T149: =SUM(bls:una!T149) -> 0 | U149: =SUM(bls:una!U149) -> 0 | V149: =SUM(bls:una!V149) -> 0 | W149: =SUM(bls:una!W149) -> 0 | Y149: =SUM(bls:una!Y149) -> 0 | Z149: =SUM(bls:una!Z149) -> 0 | AA149: =SUM(bls:una!AA149) -> 0 | AB149: =SUM(bls:una!AB149) -> 0 | AD149: 0 | AF149: TRUE | AG149: TRUE
B150: Sub Total | C150: =SUM(bls:una!C150) -> 0 | D150: =SUM(bls:una!D150) -> 0 | E150: =SUM(bls:una!E150) -> 0 | F150: =SUM(bls:una!F150) -> 0 | I150: =SUM(bls:una!I150) -> 0 | J150: =SUM(bls:una!J150) -> 0 | K150: =SUM(bls:una!K150) -> 0 | L150: =SUM(bls:una!L150) -> 0 | M150: =SUM(bls:una!M150) -> 0 | N150: =SUM(bls:una!N150) -> 0 | P150: =SUM(bls:una!P150) -> 0 | Q150: =SUM(bls:una!Q150) -> 0 | R150: =SUM(bls:una!R150) -> 0 | S150: =SUM(bls:una!S150) -> 0 | T150: =SUM(bls:una!T150) -> 0 | U150: =SUM(bls:una!U150) -> 0 | V150: =SUM(bls:una!V150) -> 0 | W150: =SUM(bls:una!W150) -> 0 | Y150: =SUM(bls:una!Y150) -> 0 | Z150: =SUM(bls:una!Z150) -> 0 | AA150: =SUM(bls:una!AA150) -> 0 | AB150: =SUM(bls:una!AB150) -> 0 | AD150: 0 | AF150: TRUE | AG150: TRUE
A151: =+A149+1 -> 6 | B151: Special Training for mainstreaming of out of school children | C151: =SUM(bls:una!C151) -> 0 | D151: =SUM(bls:una!D151) -> 0 | E151: =SUM(bls:una!E151) -> 0 | F151: =SUM(bls:una!F151) -> 0 | I151: =SUM(bls:una!I151) -> 0 | J151: =SUM(bls:una!J151) -> 0 | K151: =SUM(bls:una!K151) -> 0 | L151: =SUM(bls:una!L151) -> 0 | M151: =SUM(bls:una!M151) -> 0 | N151: =SUM(bls:una!N151) -> 0 | P151: =SUM(bls:una!P151) -> 0 | Q151: =SUM(bls:una!Q151) -> 0 | R151: =SUM(bls:una!R151) -> 0 | S151: =SUM(bls:una!S151) -> 0 | T151: =SUM(bls:una!T151) -> 0 | U151: =SUM(bls:una!U151) -> 0 | V151: =SUM(bls:una!V151) -> 0 | W151: =SUM(bls:una!W151) -> 0 | Y151: =SUM(bls:una!Y151) -> 0 | Z151: =SUM(bls:una!Z151) -> 0 | AA151: =SUM(bls:una!AA151) -> 0 | AB151: =SUM(bls:una!AB151) -> 0 | AD151: 0 | AF151: TRUE | AG151: TRUE
A152: 6.01 | B152: Residential (Fresh) | C152: =SUM(bls:una!C152) -> 0 | D152: =SUM(bls:una!D152) -> 0 | E152: =SUM(bls:una!E152) -> 0 | F152: =SUM(bls:una!F152) -> 0 | I152: =SUM(bls:una!I152) -> 0 | J152: =SUM(bls:una!J152) -> 0 | K152: =SUM(bls:una!K152) -> 0 | L152: =SUM(bls:una!L152) -> 0 | M152: =SUM(bls:una!M152) -> 0 | N152: =SUM(bls:una!N152) -> 0 | P152: =SUM(bls:una!P152) -> 0 | Q152: =SUM(bls:una!Q152) -> 0 | R152: =SUM(bls:una!R152) -> 0 | S152: =SUM(bls:una!S152) -> 0 | T152: =SUM(bls:una!T152) -> 0 | U152: =SUM(bls:una!U152) -> 0 | V152: =SUM(bls:una!V152) -> 0 | W152: =SUM(bls:una!W152) -> 0 | Y152: =SUM(bls:una!Y152) -> 0 | Z152: =SUM(bls:una!Z152) -> 0 | AA152: =SUM(bls:una!AA152) -> 0 | AB152: =SUM(bls:una!AB152) -> 0 | AD152: 0 | AF152: TRUE | AG152: TRUE
B153: (a) 12 months | C153: =SUM(bls:una!C153) -> 0 | D153: =SUM(bls:una!D153) -> 0 | E153: =SUM(bls:una!E153) -> 0 | F153: =SUM(bls:una!F153) -> 0 | I153: =SUM(bls:una!I153) -> 0 | J153: =SUM(bls:una!J153) -> 0 | K153: =SUM(bls:una!K153) -> 0 | L153: =SUM(bls:una!L153) -> 0 | M153: =SUM(bls:una!M153) -> 0 | N153: =SUM(bls:una!N153) -> 0 | O153: 0.2 | Q153: =SUM(bls:una!Q153) -> 0 | R153: =SUM(bls:una!R153) -> 0 | S153: =SUM(bls:una!S153) -> 0 | T153: =SUM(bls:una!T153) -> 0 | U153: =SUM(bls:una!U153) -> 0 | V153: =SUM(bls:una!V153) -> 0 | W153: =SUM(bls:una!W153) -> 0 | Y153: =SUM(bls:una!Y153) -> 0 | Z153: =SUM(bls:una!Z153) -> 0 | AA153: =SUM(bls:una!AA153) -> 0 | AB153: =SUM(bls:una!AB153) -> 0 | AD153: 0 | AF153: TRUE | AG153: TRUE
B154: (b) 9 months | C154: =SUM(bls:una!C154) -> 0 | D154: =SUM(bls:una!D154) -> 0 | E154: =SUM(bls:una!E154) -> 0 | F154: =SUM(bls:una!F154) -> 0 | I154: =SUM(bls:una!I154) -> 0 | J154: =SUM(bls:una!J154) -> 0 | K154: =SUM(bls:una!K154) -> 0 | L154: =SUM(bls:una!L154) -> 0 | M154: =SUM(bls:una!M154) -> 0 | N154: =SUM(bls:una!N154) -> 0 | O154: 0.15 | Q154: =SUM(bls:una!Q154) -> 0 | R154: =SUM(bls:una!R154) -> 0 | S154: =SUM(bls:una!S154) -> 0 | T154: =SUM(bls:una!T154) -> 0 | U154: =SUM(bls:una!U154) -> 0 | V154: =SUM(bls:una!V154) -> 0 | W154: =SUM(bls:una!W154) -> 0 | Y154: =SUM(bls:una!Y154) -> 0 | Z154: =SUM(bls:una!Z154) -> 0 | AA154: =SUM(bls:una!AA154) -> 0 | AB154: =SUM(bls:una!AB154) -> 0 | AD154: 0 | AF154: TRUE | AG154: TRUE
B155: (c) 6 months | C155: =SUM(bls:una!C155) -> 0 | D155: =SUM(bls:una!D155) -> 0 | E155: =SUM(bls:una!E155) -> 0 | F155: =SUM(bls:una!F155) -> 0 | I155: =SUM(bls:una!I155) -> 0 | J155: =SUM(bls:una!J155) -> 0 | K155: =SUM(bls:una!K155) -> 0 | L155: =SUM(bls:una!L155) -> 0 | M155: =SUM(bls:una!M155) -> 0 | N155: =SUM(bls:una!N155) -> 0 | O155: 0.1 | Q155: =SUM(bls:una!Q155) -> 0 | R155: =SUM(bls:una!R155) -> 0 | S155: =SUM(bls:una!S155) -> 0 | T155: =SUM(bls:una!T155) -> 0 | U155: =SUM(bls:una!U155) -> 0 | V155: =SUM(bls:una!V155) -> 0 | W155: =SUM(bls:una!W155) -> 0 | Y155: =SUM(bls:una!Y155) -> 0 | Z155: =SUM(bls:una!Z155) -> 0 | AA155: =SUM(bls:una!AA155) -> 0 | AB155: =SUM(bls:una!AB155) -> 0 | AD155: 0 | AF155: TRUE | AG155: TRUE
B156: (d) 3 months | C156: =SUM(bls:una!C156) -> 0 | D156: =SUM(bls:una!D156) -> 0 | E156: =SUM(bls:una!E156) -> 0 | F156: =SUM(bls:una!F156) -> 0 | I156: =SUM(bls:una!I156) -> 0 | J156: =SUM(bls:una!J156) -> 0 | K156: =SUM(bls:una!K156) -> 0 | L156: =SUM(bls:una!L156) -> 0 | M156: =SUM(bls:una!M156) -> 0 | N156: =SUM(bls:una!N156) -> 0 | O156: 0.05 | Q156: =SUM(bls:una!Q156) -> 0 | R156: =SUM(bls:una!R156) -> 0 | S156: =SUM(bls:una!S156) -> 0 | T156: =SUM(bls:una!T156) -> 0 | U156: =SUM(bls:una!U156) -> 0 | V156: =SUM(bls:una!V156) -> 0 | W156: =SUM(bls:una!W156) -> 0 | Y156: =SUM(bls:una!Y156) -> 0 | Z156: =SUM(bls:una!Z156) -> 0 | AA156: =SUM(bls:una!AA156) -> 0 | AB156: =SUM(bls:una!AB156) -> 0 | AD156: 0 | AF156: TRUE | AG156: TRUE
B157: Sub Total | C157: =SUM(bls:una!C157) -> 0 | D157: =SUM(bls:una!D157) -> 0 | E157: =SUM(bls:una!E157) -> 0 | F157: =SUM(bls:una!F157) -> 0 | I157: =SUM(bls:una!I157) -> 0 | J157: =SUM(bls:una!J157) -> 0 | K157: =SUM(bls:una!K157) -> 0 | L157: =SUM(bls:una!L157) -> 0 | M157: =SUM(bls:una!M157) -> 0 | N157: =SUM(bls:una!N157) -> 0 | P157: =SUM(bls:una!P157) -> 0 | Q157: =SUM(bls:una!Q157) -> 0 | R157: =SUM(bls:una!R157) -> 0 | S157: =SUM(bls:una!S157) -> 0 | T157: =SUM(bls:una!T157) -> 0 | U157: =SUM(bls:una!U157) -> 0 | V157: =SUM(bls:una!V157) -> 0 | W157: =SUM(bls:una!W157) -> 0 | Y157: =SUM(bls:una!Y157) -> 0 | Z157: =SUM(bls:una!Z157) -> 0 | AA157: =SUM(bls:una!AA157) -> 0 | AB157: =SUM(bls:una!AB157) -> 0 | AD157: 0 | AF157: TRUE | AG157: TRUE
A158: =+A152+0.01 -> 6.02 | B158: Residential (Continuing from previous year) | C158: =SUM(bls:una!C158) -> 0 | D158: =SUM(bls:una!D158) -> 0 | E158: =SUM(bls:una!E158) -> 0 | F158: =SUM(bls:una!F158) -> 0 | I158: =SUM(bls:una!I158) -> 0 | J158: =SUM(bls:una!J158) -> 0 | K158: =SUM(bls:una!K158) -> 0 | L158: =SUM(bls:una!L158) -> 0 | M158: =SUM(bls:una!M158) -> 0 | N158: =SUM(bls:una!N158) -> 0 | P158: =SUM(bls:una!P158) -> 0 | Q158: =SUM(bls:una!Q158) -> 0 | R158: =SUM(bls:una!R158) -> 0 | S158: =SUM(bls:una!S158) -> 0 | T158: =SUM(bls:una!T158) -> 0 | U158: =SUM(bls:una!U158) -> 0 | V158: =SUM(bls:una!V158) -> 0 | W158: =SUM(bls:una!W158) -> 0 | Y158: =SUM(bls:una!Y158) -> 0 | Z158: =SUM(bls:una!Z158) -> 0 | AA158: =SUM(bls:una!AA158) -> 0 | AB158: =SUM(bls:una!AB158) -> 0 | AD158: 0 | AF158: TRUE | AG158: TRUE
B159: (a) 12 months | C159: =SUM(bls:una!C159) -> 0 | D159: =SUM(bls:una!D159) -> 0 | E159: =SUM(bls:una!E159) -> 0 | F159: =SUM(bls:una!F159) -> 0 | I159: =SUM(bls:una!I159) -> 0 | J159: =SUM(bls:una!J159) -> 0 | K159: =SUM(bls:una!K159) -> 0 | L159: =SUM(bls:una!L159) -> 0 | M159: =SUM(bls:una!M159) -> 0 | N159: =SUM(bls:una!N159) -> 0 | O159: 0.2 | Q159: =SUM(bls:una!Q159) -> 0 | R159: =SUM(bls:una!R159) -> 0 | S159: =SUM(bls:una!S159) -> 0 | T159: =SUM(bls:una!T159) -> 0 | U159: =SUM(bls:una!U159) -> 0 | V159: =SUM(bls:una!V159) -> 0 | W159: =SUM(bls:una!W159) -> 0 | Y159: =SUM(bls:una!Y159) -> 0 | Z159: =SUM(bls:una!Z159) -> 0 | AA159: =SUM(bls:una!AA159) -> 0 | AB159: =SUM(bls:una!AB159) -> 0 | AD159: 0 | AF159: TRUE | AG159: TRUE
B160: (b) 9 months | C160: =SUM(bls:una!C160) -> 0 | D160: =SUM(bls:una!D160) -> 0 | E160: =SUM(bls:una!E160) -> 0 | F160: =SUM(bls:una!F160) -> 0 | I160: =SUM(bls:una!I160) -> 0 | J160: =SUM(bls:una!J160) -> 0 | K160: =SUM(bls:una!K160) -> 0 | L160: =SUM(bls:una!L160) -> 0 | M160: =SUM(bls:una!M160) -> 0 | N160: =SUM(bls:una!N160) -> 0 | O160: 0.15 | Q160: =SUM(bls:una!Q160) -> 0 | R160: =SUM(bls:una!R160) -> 0 | S160: =SUM(bls:una!S160) -> 0 | T160: =SUM(bls:una!T160) -> 0 | U160: =SUM(bls:una!U160) -> 0 | V160: =SUM(bls:una!V160) -> 0 | W160: =SUM(bls:una!W160) -> 0 | Y160: =SUM(bls:una!Y160) -> 0 | Z160: =SUM(bls:una!Z160) -> 0 | AA160: =SUM(bls:una!AA160) -> 0 | AB160: =SUM(bls:una!AB160) -> 0 | AD160: 0 | AF160: TRUE | AG160: TRUE
B161: (c) 6 months | C161: =SUM(bls:una!C161) -> 0 | D161: =SUM(bls:una!D161) -> 0 | E161: =SUM(bls:una!E161) -> 0 | F161: =SUM(bls:una!F161) -> 0 | I161: =SUM(bls:una!I161) -> 0 | J161: =SUM(bls:una!J161) -> 0 | K161: =SUM(bls:una!K161) -> 0 | L161: =SUM(bls:una!L161) -> 0 | M161: =SUM(bls:una!M161) -> 0 | N161: =SUM(bls:una!N161) -> 0 | O161: 0.1 | Q161: =SUM(bls:una!Q161) -> 0 | R161: =SUM(bls:una!R161) -> 0 | S161: =SUM(bls:una!S161) -> 0 | T161: =SUM(bls:una!T161) -> 0 | U161: =SUM(bls:una!U161) -> 0 | V161: =SUM(bls:una!V161) -> 0 | W161: =SUM(bls:una!W161) -> 0 | Y161: =SUM(bls:una!Y161) -> 0 | Z161: =SUM(bls:una!Z161) -> 0 | AA161: =SUM(bls:una!AA161) -> 0 | AB161: =SUM(bls:una!AB161) -> 0 | AD161: 0 | AF161: TRUE | AG161: TRUE
B162: (d) 3 months | C162: =SUM(bls:una!C162) -> 0 | D162: =SUM(bls:una!D162) -> 0 | E162: =SUM(bls:una!E162) -> 0 | F162: =SUM(bls:una!F162) -> 0 | I162: =SUM(bls:una!I162) -> 0 | J162: =SUM(bls:una!J162) -> 0 | K162: =SUM(bls:una!K162) -> 0 | L162: =SUM(bls:una!L162) -> 0 | M162: =SUM(bls:una!M162) -> 0 | N162: =SUM(bls:una!N162) -> 0 | O162: 0.05 | Q162: =SUM(bls:una!Q162) -> 0 | R162: =SUM(bls:una!R162) -> 0 | S162: =SUM(bls:una!S162) -> 0 | T162: =SUM(bls:una!T162) -> 0 | U162: =SUM(bls:una!U162) -> 0 | V162: =SUM(bls:una!V162) -> 0 | W162: =SUM(bls:una!W162) -> 0 | Y162: =SUM(bls:una!Y162) -> 0 | Z162: =SUM(bls:una!Z162) -> 0 | AA162: =SUM(bls:una!AA162) -> 0 | AB162: =SUM(bls:una!AB162) -> 0 | AD162: 0 | AF162: TRUE | AG162: TRUE
B163: Sub Total | C163: =SUM(bls:una!C163) -> 0 | D163: =SUM(bls:una!D163) -> 0 | E163: =SUM(bls:una!E163) -> 0 | F163: =SUM(bls:una!F163) -> 0 | I163: =SUM(bls:una!I163) -> 0 | J163: =SUM(bls:una!J163) -> 0 | K163: =SUM(bls:una!K163) -> 0 | L163: =SUM(bls:una!L163) -> 0 | M163: =SUM(bls:una!M163) -> 0 | N163: =SUM(bls:una!N163) -> 0 | P163: =SUM(bls:una!P163) -> 0 | Q163: =SUM(bls:una!Q163) -> 0 | R163: =SUM(bls:una!R163) -> 0 | S163: =SUM(bls:una!S163) -> 0 | T163: =SUM(bls:una!T163) -> 0 | U163: =SUM(bls:una!U163) -> 0 | V163: =SUM(bls:una!V163) -> 0 | W163: =SUM(bls:una!W163) -> 0 | Y163: =SUM(bls:una!Y163) -> 0 | Z163: =SUM(bls:una!Z163) -> 0 | AA163: =SUM(bls:una!AA163) -> 0 | AB163: =SUM(bls:una!AB163) -> 0 | AD163: 0 | AF163: TRUE | AG163: TRUE
A164: 6.03 | B164: Non-Residential (Fresh) | C164: =SUM(bls:una!C164) -> 0 | D164: =SUM(bls:una!D164) -> 0 | E164: =SUM(bls:una!E164) -> 0 | F164: =SUM(bls:una!F164) -> 0 | I164: =SUM(bls:una!I164) -> 0 | J164: =SUM(bls:una!J164) -> 0 | K164: =SUM(bls:una!K164) -> 0 | L164: =SUM(bls:una!L164) -> 0 | M164: =SUM(bls:una!M164) -> 0 | N164: =SUM(bls:una!N164) -> 0 | P164: =SUM(bls:una!P164) -> 0 | Q164: =SUM(bls:una!Q164) -> 0 | R164: =SUM(bls:una!R164) -> 0 | S164: =SUM(bls:una!S164) -> 0 | T164: =SUM(bls:una!T164) -> 0 | U164: =SUM(bls:una!U164) -> 0 | V164: =SUM(bls:una!V164) -> 0 | W164: =SUM(bls:una!W164) -> 0 | Y164: =SUM(bls:una!Y164) -> 0 | AA164: =SUM(bls:una!AA164) -> 0 | AB164: =SUM(bls:una!AB164) -> 0 | AD164: 0 | AF164: TRUE | AG164: TRUE
B165: (a) 12 months | C165: =SUM(bls:una!C165) -> 2532 | D165: =SUM(bls:una!D165) -> 151.92 | E165: =SUM(bls:una!E165) -> 2532 | F165: =SUM(bls:una!F165) -> 151.92 | G165: =E165/C165*100 -> 100 | H165: =F165/D165*100 -> 100 | I165: =SUM(bls:una!I165) -> 0 | J165: =SUM(bls:una!J165) -> 0 | K165: =SUM(bls:una!K165) -> 0 | L165: =SUM(bls:una!L165) -> 0 | M165: =SUM(bls:una!M165) -> 0 | N165: =SUM(bls:una!N165) -> 0 | O165: 0.06 | P165: =SUM(bls:una!P165) -> 3078 | Q165: =SUM(bls:una!Q165) -> 184.68 | R165: =SUM(bls:una!R165) -> 3078 | S165: =SUM(bls:una!S165) -> 184.68 | T165: =SUM(bls:una!T165) -> 0 | U165: =SUM(bls:una!U165) -> 0 | V165: =SUM(bls:una!V165) -> 0 | W165: =SUM(bls:una!W165) -> 0 | X165: 0.06 | Y165: =SUM(bls:una!Y165) -> 3078 | Z165: =SUM(bls:una!Z165) -> 184.68 | AA165: =SUM(bls:una!AA165) -> 3078 | AB165: =SUM(bls:una!AB165) -> 184.68 | AC165: Recommended as proposed | AD165: 184.68 | AE165: =+AB165=AD165 -> TRUE | AF165: TRUE | AG165: TRUE
B166: (b) 9 months | C166: =SUM(bls:una!C166) -> 715 | D166: =SUM(bls:una!D166) -> 32.175 | E166: =SUM(bls:una!E166) -> 715 | F166: =SUM(bls:una!F166) -> 32.175 | I166: =SUM(bls:una!I166) -> 0 | J166: =SUM(bls:una!J166) -> 0 | K166: =SUM(bls:una!K166) -> 0 | L166: =SUM(bls:una!L166) -> 0 | M166: =SUM(bls:una!M166) -> 0 | N166: =SUM(bls:una!N166) -> 0 | O166: 0.045 | P166: =SUM(bls:una!P166) -> 712 | Q166: =SUM(bls:una!Q166) -> 32.04 | R166: =SUM(bls:una!R166) -> 712 | S166: =SUM(bls:una!S166) -> 32.04 | T166: =SUM(bls:una!T166) -> 0 | U166: =SUM(bls:una!U166) -> 0 | V166: =SUM(bls:una!V166) -> 0 | W166: =SUM(bls:una!W166) -> 0 | X166: 0.045 | Y166: =SUM(bls:una!Y166) -> 712 | Z166: =SUM(bls:una!Z166) -> 32.04 | AA166: =SUM(bls:una!AA166) -> 712 | AB166: =SUM(bls:una!AB166) -> 32.04 | AD166: 32.04 | AE166: =+AB166=AD166 -> TRUE | AF166: TRUE | AG166: TRUE
B167: (c) 6 months | C167: =SUM(bls:una!C167) -> 51 | D167: =SUM(bls:una!D167) -> 1.53 | E167: =SUM(bls:una!E167) -> 51 | F167: =SUM(bls:una!F167) -> 1.53 | I167: =SUM(bls:una!I167) -> 0 | J167: =SUM(bls:una!J167) -> 0 | K167: =SUM(bls:una!K167) -> 0 | L167: =SUM(bls:una!L167) -> 0 | M167: =SUM(bls:una!M167) -> 0 | N167: =SUM(bls:una!N167) -> 0 | O167: 0.03 | P167: =SUM(bls:una!P167) -> 488 | Q167: =SUM(bls:una!Q167) -> 14.64 | R167: =SUM(bls:una!R167) -> 488 | S167: =SUM(bls:una!S167) -> 14.64 | T167: =SUM(bls:una!T167) -> 0 | U167: =SUM(bls:una!U167) -> 0 | V167: =SUM(bls:una!V167) -> 0 | W167: =SUM(bls:una!W167) -> 0 | X167: 0.03 | Y167: =SUM(bls:una!Y167) -> 488 | Z167: =SUM(bls:una!Z167) -> 14.64 | AA167: =SUM(bls:una!AA167) -> 488 | AB167: =SUM(bls:una!AB167) -> 14.64 | AD167: 14.64 | AE167: TRUE | AF167: TRUE | AG167: TRUE
B168: (d) 3 months | C168: =SUM(bls:una!C168) -> 215 | D168: =SUM(bls:una!D168) -> 2.91 | E168: =SUM(bls:una!E168) -> 215 | F168: =SUM(bls:una!F168) -> 2.91 | I168: =SUM(bls:una!I168) -> 0 | J168: =SUM(bls:una!J168) -> 0 | K168: =SUM(bls:una!K168) -> 0 | L168: =SUM(bls:una!L168) -> 0 | M168: =SUM(bls:una!M168) -> 0 | N168: =SUM(bls:una!N168) -> 0 | O168: 0.015 | P168: =SUM(bls:una!P168) -> 41 | Q168: =SUM(bls:una!Q168) -> 0.615 | R168: =SUM(bls:una!R168) -> 41 | S168: =SUM(bls:una!S168) -> 0.615 | T168: =SUM(bls:una!T168) -> 0 | U168: =SUM(bls:una!U168) -> 0 | V168: =SUM(bls:una!V168) -> 0 | W168: =SUM(bls:una!W168) -> 0 | X168: 0.015 | Y168: =SUM(bls:una!Y168) -> 41 | Z168: =SUM(bls:una!Z168) -> 0.615 | AA168: =SUM(bls:una!AA168) -> 41 | AB168: =SUM(bls:una!AB168) -> 0.615 | AD168: 0.615 | AE168: TRUE | AF168: TRUE | AG168: TRUE
B169: Sub Total | C169: =SUM(bls:una!C169) -> 3513 | D169: =SUM(bls:una!D169) -> 188.535 | E169: =SUM(bls:una!E169) -> 3513 | F169: =SUM(bls:una!F169) -> 188.535 | G169: 100 | H169: 100 | I169: =SUM(bls:una!I169) -> 0 | J169: =SUM(bls:una!J169) -> 0 | K169: =SUM(bls:una!K169) -> 0 | L169: =SUM(bls:una!L169) -> 0 | M169: =SUM(bls:una!M169) -> 0 | N169: =SUM(bls:una!N169) -> 0 | P169: =SUM(bls:una!P169) -> 4319 | Q169: =SUM(bls:una!Q169) -> 231.975 | R169: =SUM(bls:una!R169) -> 4319 | S169: =SUM(bls:una!S169) -> 231.975 | T169: =SUM(bls:una!T169) -> 0 | U169: =SUM(bls:una!U169) -> 0 | V169: =SUM(bls:una!V169) -> 0 | W169: =SUM(bls:una!W169) -> 0 | Y169: =SUM(bls:una!Y169) -> 4319 | Z169: =SUM(bls:una!Z169) -> 231.975 | AA169: =SUM(bls:una!AA169) -> 4319 | AB169: =SUM(bls:una!AB169) -> 231.975 | AG169: TRUE
A170: 6.04 | B170: Non-Residential (Continuing from previous year) | C170: =SUM(bls:una!C170) -> 0 | D170: =SUM(bls:una!D170) -> 0 | E170: =SUM(bls:una!E170) -> 0 | F170: =SUM(bls:una!F170) -> 0 | I170: =SUM(bls:una!I170) -> 0 | J170: =SUM(bls:una!J170) -> 0 | K170: =SUM(bls:una!K170) -> 0 | L170: =SUM(bls:una!L170) -> 0 | M170: =SUM(bls:una!M170) -> 0 | N170: =SUM(bls:una!N170) -> 0 | P170: =SUM(bls:una!P170) -> 0 | Q170: =SUM(bls:una!Q170) -> 0 | R170: =SUM(bls:una!R170) -> 0 | S170: =SUM(bls:una!S170) -> 0 | T170: =SUM(bls:una!T170) -> 0 | U170: =SUM(bls:una!U170) -> 0 | V170: =SUM(bls:una!V170) -> 0 | W170: =SUM(bls:una!W170) -> 0 | Y170: =SUM(bls:una!Y170) -> 0 | Z170: =SUM(bls:una!Z170) -> 0 | AA170: =SUM(bls:una!AA170) -> 0 | AB170: =SUM(bls:una!AB170) -> 0 | AD170: 0 | AE170: TRUE | AF170: TRUE | AG170: TRUE
B171: (a) 12 months | C171: =SUM(bls:una!C171) -> 1542 | D171: =SUM(bls:una!D171) -> 92.52 | E171: =SUM(bls:una!E171) -> 1542 | F171: =SUM(bls:una!F171) -> 92.52 | G171: 100 | H171: 100 | I171: =SUM(bls:una!I171) -> 0 | J171: =SUM(bls:una!J171) -> 0 | K171: =SUM(bls:una!K171) -> 0 | L171: =SUM(bls:una!L171) -> 0 | M171: =SUM(bls:una!M171) -> 0 | N171: =SUM(bls:una!N171) -> 0 | O171: 0.06 | P171: =SUM(bls:una!P171) -> 1051 | Q171: =SUM(bls:una!Q171) -> 63.06 | R171: =SUM(bls:una!R171) -> 1051 | S171: =SUM(bls:una!S171) -> 63.06 | T171: =SUM(bls:una!T171) -> 0 | U171: =SUM(bls:una!U171) -> 0 | V171: =SUM(bls:una!V171) -> 0 | W171: =SUM(bls:una!W171) -> 0 | X171: 0.06 | Y171: =SUM(bls:una!Y171) -> 1051 | Z171: =SUM(bls:una!Z171) -> 63.06 | AA171: =SUM(bls:una!AA171) -> 1051 | AB171: =SUM(bls:una!AB171) -> 63.06 | AC171: Recommended as proposed | AD171: 63.06 | AE171: TRUE | AF171: TRUE | AG171: TRUE
B172: (b) 9 months | C172: =SUM(bls:una!C172) -> 51 | D172: =SUM(bls:una!D172) -> 2.295 | E172: =SUM(bls:una!E172) -> 51 | F172: =SUM(bls:una!F172) -> 2.295 | I172: =SUM(bls:una!I172) -> 0 | J172: =SUM(bls:una!J172) -> 0 | K172: =SUM(bls:una!K172) -> 0 | L172: =SUM(bls:una!L172) -> 0 | M172: =SUM(bls:una!M172) -> 0 | N172: =SUM(bls:una!N172) -> 0 | O172: 0.045 | P172: =SUM(bls:una!P172) -> 432 | Q172: =SUM(bls:una!Q172) -> 19.44 | R172: =SUM(bls:una!R172) -> 432 | S172: =SUM(bls:una!S172) -> 19.44 | T172: =SUM(bls:una!T172) -> 0 | U172: =SUM(bls:una!U172) -> 0 | V172: =SUM(bls:una!V172) -> 0 | W172: =SUM(bls:una!W172) -> 0 | X172: 0.045 | Y172: =SUM(bls:una!Y172) -> 432 | Z172: =SUM(bls:una!Z172) -> 19.44 | AA172: =SUM(bls:una!AA172) -> 432 | AB172: =SUM(bls:una!AB172) -> 19.44 | AD172: 19.44 | AE172: TRUE | AF172: TRUE | AG172: TRUE
B173: (c) 6 months | C173: =SUM(bls:una!C173) -> 275 | D173: =SUM(bls:una!D173) -> 8.25 | E173: =SUM(bls:una!E173) -> 275 | F173: =SUM(bls:una!F173) -> 8.25 | I173: =SUM(bls:una!I173) -> 0 | J173: =SUM(bls:una!J173) -> 0 | K173: =SUM(bls:una!K173) -> 0 | L173: =SUM(bls:una!L173) -> 0 | M173: =SUM(bls:una!M173) -> 0 | N173: =SUM(bls:una!N173) -> 0 | O173: 0.03 | P173: =SUM(bls:una!P173) -> 548 | Q173: =SUM(bls:una!Q173) -> 16.44 | R173: =SUM(bls:una!R173) -> 548 | S173: =SUM(bls:una!S173) -> 16.44 | T173: =SUM(bls:una!T173) -> 0 | U173: =SUM(bls:una!U173) -> 0 | V173: =SUM(bls:una!V173) -> 0 | W173: =SUM(bls:una!W173) -> 0 | X173: 0.03 | Y173: =SUM(bls:una!Y173) -> 548 | Z173: =SUM(bls:una!Z173) -> 16.44 | AA173: =SUM(bls:una!AA173) -> 548 | AB173: =SUM(bls:una!AB173) -> 16.44 | AD173: 16.44 | AE173: TRUE | AF173: TRUE | AG173: TRUE
B174: (d) 3 months | C174: =SUM(bls:una!C174) -> 20 | D174: =SUM(bls:una!D174) -> 0.3 | E174: =SUM(bls:una!E174) -> 20 | F174: =SUM(bls:una!F174) -> 0.3 | I174: =SUM(bls:una!I174) -> 0 | J174: =SUM(bls:una!J174) -> 0 | K174: =SUM(bls:una!K174) -> 0 | L174: =SUM(bls:una!L174) -> 0 | M174: =SUM(bls:una!M174) -> 0 | N174: =SUM(bls:una!N174) -> 0 | O174: 0.015 | P174: =SUM(bls:una!P174) -> 0 | Q174: =SUM(bls:una!Q174) -> 0 | R174: =SUM(bls:una!R174) -> 0 | S174: =SUM(bls:una!S174) -> 0 | T174: =SUM(bls:una!T174) -> 0 | U174: =SUM(bls:una!U174) -> 0 | V174: =SUM(bls:una!V174) -> 0 | W174: =SUM(bls:una!W174) -> 0 | X174: 0.015 | Y174: =SUM(bls:una!Y174) -> 0 | Z174: =SUM(bls:una!Z174) -> 0 | AA174: =SUM(bls:una!AA174) -> 0 | AB174: =SUM(bls:una!AB174) -> 0 | AD174: 0 | AE174: TRUE | AF174: TRUE | AG174: TRUE
B175: Sub Total | C175: =SUM(bls:una!C175) -> 1888 | D175: =SUM(bls:una!D175) -> 103.365 | E175: =SUM(bls:una!E175) -> 1888 | F175: =SUM(bls:una!F175) -> 103.365 | G175: 100 | H175: 100 | I175: =SUM(bls:una!I175) -> 0 | J175: =SUM(bls:una!J175) -> 0 | K175: =SUM(bls:una!K175) -> 0 | L175: =SUM(bls:una!L175) -> 0 | M175: =SUM(bls:una!M175) -> 0 | N175: =SUM(bls:una!N175) -> 0 | P175: =SUM(bls:una!P175) -> 2031 | Q175: =SUM(bls:una!Q175) -> 98.94 | R175: =SUM(bls:una!R175) -> 2031 | S175: =SUM(bls:una!S175) -> 98.94 | T175: =SUM(bls:una!T175) -> 0 | U175: =SUM(bls:una!U175) -> 0 | V175: =SUM(bls:una!V175) -> 0 | W175: =SUM(bls:una!W175) -> 0 | Y175: =SUM(bls:una!Y175) -> 2031 | Z175: =SUM(bls:una!Z175) -> 98.94 | AA175: =SUM(bls:una!AA175) -> 2031 | AB175: =SUM(bls:una!AB175) -> 98.94 | AG175: TRUE
A176: 6.05 | B176: Madarasa/Maktab | C176: =SUM(bls:una!C176) -> 0 | D176: =SUM(bls:una!D176) -> 0 | E176: =SUM(bls:una!E176) -> 0 | F176: =SUM(bls:una!F176) -> 0 | I176: =SUM(bls:una!I176) -> 0 | J176: =SUM(bls:una!J176) -> 0 | K176: =SUM(bls:una!K176) -> 0 | L176: =SUM(bls:una!L176) -> 0 | M176: =SUM(bls:una!M176) -> 0 | N176: =SUM(bls:una!N176) -> 0 | P176: =SUM(bls:una!P176) -> 0 | Q176: =SUM(bls:una!Q176) -> 0 | R176: =SUM(bls:una!R176) -> 0 | S176: =SUM(bls:una!S176) -> 0 | T176: =SUM(bls:una!T176) -> 0 | U176: =SUM(bls:una!U176) -> 0 | V176: =SUM(bls:una!V176) -> 0 | W176: =SUM(bls:una!W176) -> 0 | Y176: =SUM(bls:una!Y176) -> 0 | Z176: =SUM(bls:una!Z176) -> 0 | AA176: =SUM(bls:una!AA176) -> 0 | AB176: =SUM(bls:una!AB176) -> 0 | AD176: 0 | AE176: TRUE | AF176: TRUE | AG176: TRUE
B177: (a) 12 months | C177: =SUM(bls:una!C177) -> 0 | D177: =SUM(bls:una!D177) -> 0 | E177: =SUM(bls:una!E177) -> 0 | F177: =SUM(bls:una!F177) -> 0 | I177: =SUM(bls:una!I177) -> 0 | J177: =SUM(bls:una!J177) -> 0 | K177: =SUM(bls:una!K177) -> 0 | L177: =SUM(bls:una!L177) -> 0 | M177: =SUM(bls:una!M177) -> 0 | N177: =SUM(bls:una!N177) -> 0 | O177: 0.06 | P177: =SUM(bls:una!P177) -> 0 | Q177: =SUM(bls:una!Q177) -> 0 | R177: =SUM(bls:una!R177) -> 0 | S177: =SUM(bls:una!S177) -> 0 | T177: =SUM(bls:una!T177) -> 0 | U177: =SUM(bls:una!U177) -> 0 | V177: =SUM(bls:una!V177) -> 0 | W177: =SUM(bls:una!W177) -> 0 | Y177: =SUM(bls:una!Y177) -> 0 | Z177: =SUM(bls:una!Z177) -> 0 | AA177: =SUM(bls:una!AA177) -> 0 | AB177: =SUM(bls:una!AB177) -> 0 | AD177: 0 | AE177: TRUE | AF177: TRUE | AG177: TRUE
B178: (b) 9 months | C178: =SUM(bls:una!C178) -> 0 | D178: =SUM(bls:una!D178) -> 0 | E178: =SUM(bls:una!E178) -> 0 | F178: =SUM(bls:una!F178) -> 0 | I178: =SUM(bls:una!I178) -> 0 | J178: =SUM(bls:una!J178) -> 0 | K178: =SUM(bls:una!K178) -> 0 | L178: =SUM(bls:una!L178) -> 0 | M178: =SUM(bls:una!M178) -> 0 | N178: =SUM(bls:una!N178) -> 0 | O178: 0.045 | P178: =SUM(bls:una!P178) -> 0 | Q178: =SUM(bls:una!Q178) -> 0 | R178: =SUM(bls:una!R178) -> 0 | S178: =SUM(bls:una!S178) -> 0 | T178: =SUM(bls:una!T178) -> 0 | U178: =SUM(bls:una!U178) -> 0 | V178: =SUM(bls:una!V178) -> 0 | W178: =SUM(bls:una!W178) -> 0 | Y178: =SUM(bls:una!Y178) -> 0 | Z178: =SUM(bls:una!Z178) -> 0 | AA178: =SUM(bls:una!AA178) -> 0 | AB178: =SUM(bls:una!AB178) -> 0 | AD178: 0 | AE178: TRUE | AF178: TRUE | AG178: TRUE
B179: (c) 6 months | C179: =SUM(bls:una!C179) -> 0 | D179: =SUM(bls:una!D179) -> 0 | E179: =SUM(bls:una!E179) -> 0 | F179: =SUM(bls:una!F179) -> 0 | I179: =SUM(bls:una!I179) -> 0 | J179: =SUM(bls:una!J179) -> 0 | K179: =SUM(bls:una!K179) -> 0 | L179: =SUM(bls:una!L179) -> 0 | M179: =SUM(bls:una!M179) -> 0 | N179: =SUM(bls:una!N179) -> 0 | O179: 0.03 | P179: =SUM(bls:una!P179) -> 0 | Q179: =SUM(bls:una!Q179) -> 0 | R179: =SUM(bls:una!R179) -> 0 | S179: =SUM(bls:una!S179) -> 0 | T179: =SUM(bls:una!T179) -> 0 | U179: =SUM(bls:una!U179) -> 0 | V179: =SUM(bls:una!V179) -> 0 | W179: =SUM(bls:una!W179) -> 0 | Y179: =SUM(bls:una!Y179) -> 0 | Z179: =SUM(bls:una!Z179) -> 0 | AA179: =SUM(bls:una!AA179) -> 0 | AB179: =SUM(bls:una!AB179) -> 0 | AD179: 0 | AE179: TRUE | AF179: TRUE | AG179: TRUE
B180: (d) 3 months | C180: =SUM(bls:una!C180) -> 0 | D180: =SUM(bls:una!D180) -> 0 | E180: =SUM(bls:una!E180) -> 0 | F180: =SUM(bls:una!F180) -> 0 | I180: =SUM(bls:una!I180) -> 0 | J180: =SUM(bls:una!J180) -> 0 | K180: =SUM(bls:una!K180) -> 0 | L180: =SUM(bls:una!L180) -> 0 | M180: =SUM(bls:una!M180) -> 0 | N180: =SUM(bls:una!N180) -> 0 | O180: 0.015 | P180: =SUM(bls:una!P180) -> 0 | Q180: =SUM(bls:una!Q180) -> 0 | R180: =SUM(bls:una!R180) -> 0 | S180: =SUM(bls:una!S180) -> 0 | T180: =SUM(bls:una!T180) -> 0 | U180: =SUM(bls:una!U180) -> 0 | V180: =SUM(bls:una!V180) -> 0 | W180: =SUM(bls:una!W180) -> 0 | Y180: =SUM(bls:una!Y180) -> 0 | Z180: =SUM(bls:una!Z180) -> 0 | AA180: =SUM(bls:una!AA180) -> 0 | AB180: =SUM(bls:una!AB180) -> 0 | AD180: 0 | AE180: TRUE | AF180: TRUE | AG180: TRUE
B181: Sub Total | C181: =SUM(bls:una!C181) -> 0 | D181: =SUM(bls:una!D181) -> 0 | E181: =SUM(bls:una!E181) -> 0 | F181: =SUM(bls:una!F181) -> 0 | I181: =SUM(bls:una!I181) -> 0 | J181: =SUM(bls:una!J181) -> 0 | K181: =SUM(bls:una!K181) -> 0 | L181: =SUM(bls:una!L181) -> 0 | M181: =SUM(bls:una!M181) -> 0 | N181: =SUM(bls:una!N181) -> 0 | P181: =SUM(bls:una!P181) -> 0 | Q181: =SUM(bls:una!Q181) -> 0 | R181: =SUM(bls:una!R181) -> 0 | S181: =SUM(bls:una!S181) -> 0 | T181: =SUM(bls:una!T181) -> 0 | U181: =SUM(bls:una!U181) -> 0 | V181: =SUM(bls:una!V181) -> 0 | W181: =SUM(bls:una!W181) -> 0 | Y181: =SUM(bls:una!Y181) -> 0 | Z181: =SUM(bls:una!Z181) -> 0 | AA181: =SUM(bls:una!AA181) -> 0 | AB181: =SUM(bls:una!AB181) -> 0 | AD181: 0 | AE181: TRUE | AF181: TRUE | AG181: TRUE
A182: 6.06 | B182: Seasonal Hostel (Residential) | C182: =SUM(bls:una!C182) -> 0 | D182: =SUM(bls:una!D182) -> 0 | E182: =SUM(bls:una!E182) -> 0 | F182: =SUM(bls:una!F182) -> 0 | I182: =SUM(bls:una!I182) -> 0 | J182: =SUM(bls:una!J182) -> 0 | K182: =SUM(bls:una!K182) -> 0 | L182: =SUM(bls:una!L182) -> 0 | M182: =SUM(bls:una!M182) -> 0 | N182: =SUM(bls:una!N182) -> 0 | P182: =SUM(bls:una!P182) -> 0 | Q182: =SUM(bls:una!Q182) -> 0 | R182: =SUM(bls:una!R182) -> 0 | S182: =SUM(bls:una!S182) -> 0 | T182: =SUM(bls:una!T182) -> 0 | U182: =SUM(bls:una!U182) -> 0 | V182: =SUM(bls:una!V182) -> 0 | W182: =SUM(bls:una!W182) -> 0 | Y182: =SUM(bls:una!Y182) -> 0 | Z182: =SUM(bls:una!Z182) -> 0 | AA182: =SUM(bls:una!AA182) -> 0 | AB182: =SUM(bls:una!AB182) -> 0 | AD182: 0 | AE182: TRUE | AF182: TRUE | AG182: TRUE
B183: (a) 12 months | C183: =SUM(bls:una!C183) -> 0 | D183: =SUM(bls:una!D183) -> 0 | E183: =SUM(bls:una!E183) -> 0 | F183: =SUM(bls:una!F183) -> 0 | I183: =SUM(bls:una!I183) -> 0 | J183: =SUM(bls:una!J183) -> 0 | K183: =SUM(bls:una!K183) -> 0 | L183: =SUM(bls:una!L183) -> 0 | M183: =SUM(bls:una!M183) -> 0 | N183: =SUM(bls:una!N183) -> 0 | O183: 0.2 | P183: =SUM(bls:una!P183) -> 0 | Q183: =SUM(bls:una!Q183) -> 0 | R183: =SUM(bls:una!R183) -> 0 | S183: =SUM(bls:una!S183) -> 0 | T183: =SUM(bls:una!T183) -> 0 | U183: =SUM(bls:una!U183) -> 0 | V183: =SUM(bls:una!V183) -> 0 | W183: =SUM(bls:una!W183) -> 0 | Y183: =SUM(bls:una!Y183) -> 0 | Z183: =SUM(bls:una!Z183) -> 0 | AA183: =SUM(bls:una!AA183) -> 0 | AB183: =SUM(bls:una!AB183) -> 0 | AD183: 0 | AE183: TRUE | AF183: TRUE | AG183: TRUE
B184: (b) 9 months | C184: =SUM(bls:una!C184) -> 0 | D184: =SUM(bls:una!D184) -> 0 | E184: =SUM(bls:una!E184) -> 0 | F184: =SUM(bls:una!F184) -> 0 | I184: =SUM(bls:una!I184) -> 0 | J184: =SUM(bls:una!J184) -> 0 | K184: =SUM(bls:una!K184) -> 0 | L184: =SUM(bls:una!L184) -> 0 | M184: =SUM(bls:una!M184) -> 0 | N184: =SUM(bls:una!N184) -> 0 | O184: 0.15 | P184: =SUM(bls:una!P184) -> 0 | Q184: =SUM(bls:una!Q184) -> 0 | R184: =SUM(bls:una!R184) -> 0 | S184: =SUM(bls:una!S184) -> 0 | T184: =SUM(bls:una!T184) -> 0 | U184: =SUM(bls:una!U184) -> 0 | V184: =SUM(bls:una!V184) -> 0 | W184: =SUM(bls:una!W184) -> 0 | Y184: =SUM(bls:una!Y184) -> 0 | Z184: =SUM(bls:una!Z184) -> 0 | AA184: =SUM(bls:una!AA184) -> 0 | AB184: =SUM(bls:una!AB184) -> 0 | AD184: 0 | AE184: TRUE | AF184: TRUE | AG184: TRUE
B185: (c) 6 months | C185: =SUM(bls:una!C185) -> 0 | D185: =SUM(bls:una!D185) -> 0 | E185: =SUM(bls:una!E185) -> 0 | F185: =SUM(bls:una!F185) -> 0 | I185: =SUM(bls:una!I185) -> 0 | J185: =SUM(bls:una!J185) -> 0 | K185: =SUM(bls:una!K185) -> 0 | L185: =SUM(bls:una!L185) -> 0 | M185: =SUM(bls:una!M185) -> 0 | N185: =SUM(bls:una!N185) -> 0 | O185: 0.1 | P185: =SUM(bls:una!P185) -> 0 | Q185: =SUM(bls:una!Q185) -> 0 | R185: =SUM(bls:una!R185) -> 0 | S185: =SUM(bls:una!S185) -> 0 | T185: =SUM(bls:una!T185) -> 0 | U185: =SUM(bls:una!U185) -> 0 | V185: =SUM(bls:una!V185) -> 0 | W185: =SUM(bls:una!W185) -> 0 | Y185: =SUM(bls:una!Y185) -> 0 | Z185: =SUM(bls:una!Z185) -> 0 | AA185: =SUM(bls:una!AA185) -> 0 | AB185: =SUM(bls:una!AB185) -> 0 | AD185: 0 | AE185: TRUE | AF185: TRUE | AG185: TRUE
B186: (d) 3 months | C186: =SUM(bls:una!C186) -> 0 | D186: =SUM(bls:una!D186) -> 0 | E186: =SUM(bls:una!E186) -> 0 | F186: =SUM(bls:una!F186) -> 0 | I186: =SUM(bls:una!I186) -> 0 | J186: =SUM(bls:una!J186) -> 0 | K186: =SUM(bls:una!K186) -> 0 | L186: =SUM(bls:una!L186) -> 0 | M186: =SUM(bls:una!M186) -> 0 | N186: =SUM(bls:una!N186) -> 0 | O186: 0.05 | P186: =SUM(bls:una!P186) -> 0 | Q186: =SUM(bls:una!Q186) -> 0 | R186: =SUM(bls:una!R186) -> 0 | S186: =SUM(bls:una!S186) -> 0 | T186: =SUM(bls:una!T186) -> 0 | U186: =SUM(bls:una!U186) -> 0 | V186: =SUM(bls:una!V186) -> 0 | W186: =SUM(bls:una!W186) -> 0 | Y186: =SUM(bls:una!Y186) -> 0 | Z186: =SUM(bls:una!Z186) -> 0 | AA186: =SUM(bls:una!AA186) -> 0 | AB186: =SUM(bls:una!AB186) -> 0 | AD186: 0 | AE186: TRUE | AF186: TRUE | AG186: TRUE
B187: Sub Total | C187: =SUM(bls:una!C187) -> 0 | D187: =SUM(bls:una!D187) -> 0 | E187: =SUM(bls:una!E187) -> 0 | F187: =SUM(bls:una!F187) -> 0 | I187: =SUM(bls:una!I187) -> 0 | J187: =SUM(bls:una!J187) -> 0 | K187: =SUM(bls:una!K187) -> 0 | L187: =SUM(bls:una!L187) -> 0 | M187: =SUM(bls:una!M187) -> 0 | N187: =SUM(bls:una!N187) -> 0 | P187: =SUM(bls:una!P187) -> 0 | Q187: =SUM(bls:una!Q187) -> 0 | R187: =SUM(bls:una!R187) -> 0 | S187: =SUM(bls:una!S187) -> 0 | T187: =SUM(bls:una!T187) -> 0 | U187: =SUM(bls:una!U187) -> 0 | V187: =SUM(bls:una!V187) -> 0 | W187: =SUM(bls:una!W187) -> 0 | Y187: =SUM(bls:una!Y187) -> 0 | Z187: =SUM(bls:una!Z187) -> 0 | AA187: =SUM(bls:una!AA187) -> 0 | AB187: =SUM(bls:una!AB187) -> 0 | AD187: 0 | AE187: TRUE | AF187: TRUE | AG187: TRUE
A188: 6.07 | B188: Seasonal Hostel (Non Residential) | C188: =SUM(bls:una!C188) -> 0 | D188: =SUM(bls:una!D188) -> 0 | E188: =SUM(bls:una!E188) -> 0 | F188: =SUM(bls:una!F188) -> 0 | I188: =SUM(bls:una!I188) -> 0 | J188: =SUM(bls:una!J188) -> 0 | K188: =SUM(bls:una!K188) -> 0 | L188: =SUM(bls:una!L188) -> 0 | M188: =SUM(bls:una!M188) -> 0 | N188: =SUM(bls:una!N188) -> 0 | P188: =SUM(bls:una!P188) -> 0 | Q188: =SUM(bls:una!Q188) -> 0 | R188: =SUM(bls:una!R188) -> 0 | S188: =SUM(bls:una!S188) -> 0 | T188: =SUM(bls:una!T188) -> 0 | U188: =SUM(bls:una!U188) -> 0 | V188: =SUM(bls:una!V188) -> 0 | W188: =SUM(bls:una!W188) -> 0 | Y188: =SUM(bls:una!Y188) -> 0 | Z188: =SUM(bls:una!Z188) -> 0 | AA188: =SUM(bls:una!AA188) -> 0 | AB188: =SUM(bls:una!AB188) -> 0 | AD188: 0 | AE188: TRUE | AF188: TRUE | AG188: TRUE
B189: (a) 12 months | C189: =SUM(bls:una!C189) -> 0 | D189: =SUM(bls:una!D189) -> 0 | E189: =SUM(bls:una!E189) -> 0 | F189: =SUM(bls:una!F189) -> 0 | I189: =SUM(bls:una!I189) -> 0 | J189: =SUM(bls:una!J189) -> 0 | K189: =SUM(bls:una!K189) -> 0 | L189: =SUM(bls:una!L189) -> 0 | M189: =SUM(bls:una!M189) -> 0 | N189: =SUM(bls:una!N189) -> 0 | O189: 0.06 | P189: =SUM(bls:una!P189) -> 0 | Q189: =SUM(bls:una!Q189) -> 0 | R189: =SUM(bls:una!R189) -> 0 | S189: =SUM(bls:una!S189) -> 0 | T189: =SUM(bls:una!T189) -> 0 | U189: =SUM(bls:una!U189) -> 0 | V189: =SUM(bls:una!V189) -> 0 | W189: =SUM(bls:una!W189) -> 0 | Y189: =SUM(bls:una!Y189) -> 0 | Z189: =SUM(bls:una!Z189) -> 0 | AA189: =SUM(bls:una!AA189) -> 0 | AB189: =SUM(bls:una!AB189) -> 0 | AD189: 0 | AE189: TRUE | AF189: TRUE | AG189: TRUE | AL189: =11432398/(1024*1024) -> 10.90278435
B190: (b) 9 months | C190: =SUM(bls:una!C190) -> 0 | D190: =SUM(bls:una!D190) -> 0 | E190: =SUM(bls:una!E190) -> 0 | F190: =SUM(bls:una!F190) -> 0 | I190: =SUM(bls:una!I190) -> 0 | J190: =SUM(bls:una!J190) -> 0 | K190: =SUM(bls:una!K190) -> 0 | L190: =SUM(bls:una!L190) -> 0 | M190: =SUM(bls:una!M190) -> 0 | N190: =SUM(bls:una!N190) -> 0 | O190: 0.045 | P190: =SUM(bls:una!P190) -> 0 | Q190: =SUM(bls:una!Q190) -> 0 | R190: =SUM(bls:una!R190) -> 0 | S190: =SUM(bls:una!S190) -> 0 | T190: =SUM(bls:una!T190) -> 0 | U190: =SUM(bls:una!U190) -> 0 | V190: =SUM(bls:una!V190) -> 0 | W190: =SUM(bls:una!W190) -> 0 | Y190: =SUM(bls:una!Y190) -> 0 | Z190: =SUM(bls:una!Z190) -> 0 | AA190: =SUM(bls:una!AA190) -> 0 | AB190: =SUM(bls:una!AB190) -> 0 | AD190: 0 | AE190: TRUE | AF190: TRUE | AG190: TRUE
B191: (c) 6 months | C191: =SUM(bls:una!C191) -> 0 | D191: =SUM(bls:una!D191) -> 0 | E191: =SUM(bls:una!E191) -> 0 | F191: =SUM(bls:una!F191) -> 0 | I191: =SUM(bls:una!I191) -> 0 | J191: =SUM(bls:una!J191) -> 0 | K191: =SUM(bls:una!K191) -> 0 | L191: =SUM(bls:una!L191) -> 0 | M191: =SUM(bls:una!M191) -> 0 | N191: =SUM(bls:una!N191) -> 0 | O191: 0.03 | P191: =SUM(bls:una!P191) -> 0 | Q191: =SUM(bls:una!Q191) -> 0 | R191: =SUM(bls:una!R191) -> 0 | S191: =SUM(bls:una!S191) -> 0 | T191: =SUM(bls:una!T191) -> 0 | U191: =SUM(bls:una!U191) -> 0 | V191: =SUM(bls:una!V191) -> 0 | W191: =SUM(bls:una!W191) -> 0 | Y191: =SUM(bls:una!Y191) -> 0 | Z191: =SUM(bls:una!Z191) -> 0 | AA191: =SUM(bls:una!AA191) -> 0 | AB191: =SUM(bls:una!AB191) -> 0 | AD191: 0 | AE191: TRUE | AF191: TRUE | AG191: TRUE
B192: (d) 3 months | C192: =SUM(bls:una!C192) -> 0 | D192: =SUM(bls:una!D192) -> 0 | E192: =SUM(bls:una!E192) -> 0 | F192: =SUM(bls:una!F192) -> 0 | I192: =SUM(bls:una!I192) -> 0 | J192: =SUM(bls:una!J192) -> 0 | K192: =SUM(bls:una!K192) -> 0 | L192: =SUM(bls:una!L192) -> 0 | M192: =SUM(bls:una!M192) -> 0 | N192: =SUM(bls:una!N192) -> 0 | O192: 0.015 | P192: =SUM(bls:una!P192) -> 0 | Q192: =SUM(bls:una!Q192) -> 0 | R192: =SUM(bls:una!R192) -> 0 | S192: =SUM(bls:una!S192) -> 0 | T192: =SUM(bls:una!T192) -> 0 | U192: =SUM(bls:una!U192) -> 0 | V192: =SUM(bls:una!V192) -> 0 | W192: =SUM(bls:una!W192) -> 0 | Y192: =SUM(bls:una!Y192) -> 0 | Z192: =SUM(bls:una!Z192) -> 0 | AA192: =SUM(bls:una!AA192) -> 0 | AB192: =SUM(bls:una!AB192) -> 0 | AD192: 0 | AE192: TRUE | AF192: TRUE | AG192: TRUE
B193: Sub Total | C193: =SUM(bls:una!C193) -> 0 | D193: =SUM(bls:una!D193) -> 0 | E193: =SUM(bls:una!E193) -> 0 | F193: =SUM(bls:una!F193) -> 0 | I193: =SUM(bls:una!I193) -> 0 | J193: =SUM(bls:una!J193) -> 0 | K193: =SUM(bls:una!K193) -> 0 | L193: =SUM(bls:una!L193) -> 0 | M193: =SUM(bls:una!M193) -> 0 | N193: =SUM(bls:una!N193) -> 0 | O193: 0 | P193: =SUM(bls:una!P193) -> 0 | Q193: =SUM(bls:una!Q193) -> 0 | R193: =SUM(bls:una!R193) -> 0 | S193: =SUM(bls:una!S193) -> 0 | T193: =SUM(bls:una!T193) -> 0 | U193: =SUM(bls:una!U193) -> 0 | V193: =SUM(bls:una!V193) -> 0 | W193: =SUM(bls:una!W193) -> 0 | X193: 0 | Y193: =SUM(bls:una!Y193) -> 0 | Z193: =SUM(bls:una!Z193) -> 0 | AA193: =SUM(bls:una!AA193) -> 0 | AB193: =SUM(bls:una!AB193) -> 0 | AD193: 0 | AE193: TRUE | AF193: TRUE | AG193: TRUE
B194: Total | C194: =SUM(bls:una!C194) -> 5401 | D194: =SUM(bls:una!D194) -> 291.9 | E194: =SUM(bls:una!E194) -> 5401 | F194: =SUM(bls:una!F194) -> 291.9 | G194: 100 | H194: 100 | I194: =SUM(bls:una!I194) -> 0 | J194: =SUM(bls:una!J194) -> 0 | K194: =SUM(bls:una!K194) -> 0 | L194: =SUM(bls:una!L194) -> 0 | M194: =SUM(bls:una!M194) -> 0 | N194: =SUM(bls:una!N194) -> 0 | O194: 0 | P194: =SUM(bls:una!P194) -> 6350 | Q194: =SUM(bls:una!Q194) -> 330.915 | R194: =SUM(bls:una!R194) -> 6350 | S194: =SUM(bls:una!S194) -> 330.915 | T194: =SUM(bls:una!T194) -> 0 | U194: =SUM(bls:una!U194) -> 0 | V194: =SUM(bls:una!V194) -> 0 | W194: =SUM(bls:una!W194) -> 0 | X194: 0 | Y194: =SUM(bls:una!Y194) -> 6350 | Z194: =SUM(bls:una!Z194) -> 330.915 | AA194: =SUM(bls:una!AA194) -> 6350 | AB194: =SUM(bls:una!AB194) -> 330.915 | AG194: TRUE
A195: II | B195: RETENTION | C195: =SUM(bls:una!C195) -> 0 | E195: =SUM(bls:una!E195) -> 0 | F195: =SUM(bls:una!F195) -> 0 | I195: =SUM(bls:una!I195) -> 0 | J195: =SUM(bls:una!J195) -> 0 | K195: =SUM(bls:una!K195) -> 0 | L195: =SUM(bls:una!L195) -> 0 | M195: =SUM(bls:una!M195) -> 0 | N195: =SUM(bls:una!N195) -> 0 | P195: =SUM(bls:una!P195) -> 0 | Q195: =SUM(bls:una!Q195) -> 0 | R195: =SUM(bls:una!R195) -> 0 | S195: =SUM(bls:una!S195) -> 0 | T195: =SUM(bls:una!T195) -> 0 | U195: =SUM(bls:una!U195) -> 0 | V195: =SUM(bls:una!V195) -> 0 | W195: =SUM(bls:una!W195) -> 0 | Y195: =SUM(bls:una!Y195) -> 0 | Z195: =SUM(bls:una!Z195) -> 0 | AA195: =SUM(bls:una!AA195) -> 0 | AB195: =SUM(bls:una!AB195) -> 0 | AD195: 0 | AE195: TRUE | AF195: TRUE | AG195: TRUE
A196: 7 | B196: Free Text Books | C196: =SUM(bls:una!C196) -> 0 | D196: =SUM(bls:una!D196) -> 0 | E196: =SUM(bls:una!E196) -> 0 | F196: =SUM(bls:una!F196) -> 0 | I196: =SUM(bls:una!I196) -> 0 | J196: =SUM(bls:una!J196) -> 0 | K196: =SUM(bls:una!K196) -> 0 | L196: =SUM(bls:una!L196) -> 0 | M196: =SUM(bls:una!M196) -> 0 | N196: =SUM(bls:una!N196) -> 0 | P196: =SUM(bls:una!P196) -> 0 | Q196: =SUM(bls:una!Q196) -> 0 | R196: =SUM(bls:una!R196) -> 0 | S196: =SUM(bls:una!S196) -> 0 | T196: =SUM(bls:una!T196) -> 0 | U196: =SUM(bls:una!U196) -> 0 | V196: =SUM(bls:una!V196) -> 0 | W196: =SUM(bls:una!W196) -> 0 | Y196: =SUM(bls:una!Y196) -> 0 | Z196: =SUM(bls:una!Z196) -> 0 | AA196: =SUM(bls:una!AA196) -> 0 | AB196: =SUM(bls:una!AB196) -> 0 | AD196: 0 | AE196: TRUE | AF196: TRUE | AG196: TRUE
A197: 7.01 | B197: Free Text Books (P) | C197: =SUM(bls:una!C197) -> 0 | D197: =SUM(bls:una!D197) -> 0 | E197: =SUM(bls:una!E197) -> 0 | F197: =SUM(bls:una!F197) -> 0 | I197: =SUM(bls:una!I197) -> 0 | J197: =SUM(bls:una!J197) -> 0 | K197: =SUM(bls:una!K197) -> 0 | L197: =SUM(bls:una!L197) -> 0 | M197: =SUM(bls:una!M197) -> 0 | N197: =SUM(bls:una!N197) -> 0 | P197: =SUM(bls:una!P197) -> 0 | Q197: =SUM(bls:una!Q197) -> 0 | R197: =SUM(bls:una!R197) -> 0 | S197: =SUM(bls:una!S197) -> 0 | T197: =SUM(bls:una!T197) -> 0 | U197: =SUM(bls:una!U197) -> 0 | V197: =SUM(bls:una!V197) -> 0 | W197: =SUM(bls:una!W197) -> 0 | Y197: =SUM(bls:una!Y197) -> 0 | Z197: =SUM(bls:una!Z197) -> 0 | AA197: =SUM(bls:una!AA197) -> 0 | AB197: =SUM(bls:una!AB197) -> 0 | AD197: 0 | AE197: TRUE | AF197: TRUE | AG197: TRUE
B198: (a) Class I & II | C198: =SUM(bls:una!C198) -> 72713 | D198: =SUM(bls:una!D198) -> 109.0695 | E198: =SUM(bls:una!E198) -> 72713 | F198: =SUM(bls:una!F198) -> 109.0695 | I198: =SUM(bls:una!I198) -> 0 | J198: =SUM(bls:una!J198) -> 0 | K198: =SUM(bls:una!K198) -> 0 | L198: =SUM(bls:una!L198) -> 0 | M198: =SUM(bls:una!M198) -> 0 | N198: =SUM(bls:una!N198) -> 0 | O198: 0.0015 | P198: =SUM(bls:una!P198) -> 70353 | Q198: =SUM(bls:una!Q198) -> 105.5295 | R198: =SUM(bls:una!R198) -> 70353 | S198: =SUM(bls:una!S198) -> 105.5295 | T198: =SUM(bls:una!T198) -> 0 | U198: =SUM(bls:una!U198) -> 0 | V198: =SUM(bls:una!V198) -> 0 | W198: =SUM(bls:una!W198) -> 0 | X198: 0.0015 | Y198: =SUM(bls:una!Y198) -> 70353 | Z198: =SUM(bls:una!Z198) -> 105.5295 | AA198: =SUM(bls:una!AA198) -> 70353 | AB198: =SUM(bls:una!AB198) -> 105.5295 | AD198: =+AB198+AB201 -> 268.1325 | AE198: FALSE | AF198: TRUE | AG198: TRUE
B199: (b) Braille Books Class I & II | C199: =SUM(bls:una!C199) -> 12 | D199: =SUM(bls:una!D199) -> 0.018 | E199: =SUM(bls:una!E199) -> 12 | F199: =SUM(bls:una!F199) -> 0.018 | I199: =SUM(bls:una!I199) -> 0 | J199: =SUM(bls:una!J199) -> 0 | K199: =SUM(bls:una!K199) -> 0 | L199: =SUM(bls:una!L199) -> 0 | M199: =SUM(bls:una!M199) -> 0 | N199: =SUM(bls:una!N199) -> 0 | O199: 0.0015 | P199: =SUM(bls:una!P199) -> 9 | Q199: =SUM(bls:una!Q199) -> 0.0135 | R199: =SUM(bls:una!R199) -> 9 | S199: =SUM(bls:una!S199) -> 0.0135 | T199: =SUM(bls:una!T199) -> 0 | U199: =SUM(bls:una!U199) -> 0 | V199: =SUM(bls:una!V199) -> 0 | W199: =SUM(bls:una!W199) -> 0 | X199: 0.0015 | Y199: =SUM(bls:una!Y199) -> 9 | Z199: =SUM(bls:una!Z199) -> 0.0135 | AA199: =SUM(bls:una!AA199) -> 9 | AB199: =SUM(bls:una!AB199) -> 0.0135 | AD199: =+AB199+AB202+AB205 -> 0.044 | AE199: FALSE | AF199: TRUE | AG199: TRUE
B200: (c) Large Print Books Class I & II | C200: =SUM(bls:una!C200) -> 90 | D200: =SUM(bls:una!D200) -> 0.135 | E200: =SUM(bls:una!E200) -> 90 | F200: =SUM(bls:una!F200) -> 0.135 | I200: =SUM(bls:una!I200) -> 0 | J200: =SUM(bls:una!J200) -> 0 | K200: =SUM(bls:una!K200) -> 0 | L200: =SUM(bls:una!L200) -> 0 | M200: =SUM(bls:una!M200) -> 0 | N200: =SUM(bls:una!N200) -> 0 | O200: 0.0015 | P200: =SUM(bls:una!P200) -> 80 | Q200: =SUM(bls:una!Q200) -> 0.12 | R200: =SUM(bls:una!R200) -> 80 | S200: =SUM(bls:una!S200) -> 0.12 | T200: =SUM(bls:una!T200) -> 0 | U200: =SUM(bls:una!U200) -> 0 | V200: =SUM(bls:una!V200) -> 0 | W200: =SUM(bls:una!W200) -> 0 | X200: 0.0015 | Y200: =SUM(bls:una!Y200) -> 80 | Z200: =SUM(bls:una!Z200) -> 0.12 | AA200: =SUM(bls:una!AA200) -> 80 | AB200: =SUM(bls:una!AB200) -> 0.12 | AD200: =+AB200+AB203+AB206 -> 0.5615 | AE200: FALSE | AF200: TRUE | AG200: TRUE
B201: (d) Class III to V | C201: =SUM(bls:una!C201) -> 113208 | D201: =SUM(bls:una!D201) -> 169.812 | E201: =SUM(bls:una!E201) -> 113208 | F201: =SUM(bls:una!F201) -> 169.812 | I201: =SUM(bls:una!I201) -> 0 | J201: =SUM(bls:una!J201) -> 0 | K201: =SUM(bls:una!K201) -> 0 | L201: =SUM(bls:una!L201) -> 0 | M201: =SUM(bls:una!M201) -> 0 | N201: =SUM(bls:una!N201) -> 0 | O201: 0.0015 | P201: =SUM(bls:una!P201) -> 108402 | Q201: =SUM(bls:una!Q201) -> 162.603 | R201: =SUM(bls:una!R201) -> 108402 | S201: =SUM(bls:una!S201) -> 162.603 | T201: =SUM(bls:una!T201) -> 0 | U201: =SUM(bls:una!U201) -> 0 | V201: =SUM(bls:una!V201) -> 0 | W201: =SUM(bls:una!W201) -> 0 | X201: 0.0015 | Y201: =SUM(bls:una!Y201) -> 108402 | Z201: =SUM(bls:una!Z201) -> 162.603 | AA201: =SUM(bls:una!AA201) -> 108402 | AB201: =SUM(bls:una!AB201) -> 162.603 | AD201: =+AB204 -> 334.175 | AE201: FALSE | AF201: =+X201*Y201=Z201 -> TRUE | AG201: =+U201+W201+Z201=AB201 -> TRUE
... 326 more rows

Sheet bls
B1: District : Bilaspur
A2: S.No. | B2: Activity | C2: Year 2016-17 | K2: Outlay Proposed for the year 2017-18 | T2: Outlay Recommended for 2017-18
C3: Outlay approved by PAB (including spillover) for 2016-17 | E3: Achievement during the year up to 31/3/2017 | I3: Savings | K3: Spill Over | M3: Deferred laibility | O3: Fresh | R3: Total | T3: Spill Over | V3: Deferred laibility of 2014-15 | X3: Fresh | AA3: Total
C4: Phy. | D4: Fin | E4: Phy. | F4: Fin. | G4: Phy. (%) | H4: Fin. (%) | I4: Phy. | J4: Fin. | K4: Phy. | L4: Fin. | M4: Phy. | N4: Fin. | O4: Unit Cost | P4: Phy. | Q4: Fin. | R4: Phy. | S4: Fin. | T4: Phy. | U4: Fin. | V4: Phy. | W4: Fin. | X4: Unit Cost | Y4: Phy. | Z4: Fin. | AA4: Phy. | AB4: Fin.
A5: I | B5: ACCESS | C5: 0 | R5: =P5 -> 0 | AA5: =P5 -> 0
B6: SSA | C6: 0 | R6: =P6 -> 0 | AA6: =Y6 -> 0
A7: 1 | B7: Opening of New Schools | C7: 0 | D7: 0 | I7: 0 | J7: 0 | R7: 0 | S7: =Q7+L7 -> 0 | AA7: 0 | AB7: =Q7+L7 -> 0
A8: 1.01 | B8: New Primary School | C8: 0 | D8: 0 | I8: 0 | J8: 0 | P8: 1 | Q8: =O8*P8 -> 0 | R8: 1 | S8: =Q8+N8+L8 -> 0 | Y8: 1 | Z8: =X8*Y8 -> 0 | AA8: 1 | AB8: =Z8+W8+U8 -> 0 | AC8: =+Z8=Q8 -> TRUE | AD8: =+AB8 -> 0 | AF8: =+X8*Y8=Z8 -> TRUE | AG8: =+U8+W8+Z8=AB8 -> TRUE
A9: 1.02 | B9: Upgradation of PS to UPS | C9: 0 | D9: 0 | I9: 0 | J9: 0 | P9: 5 | Q9: =O9*P9 -> 0 | R9: 5 | S9: =Q9+N9+L9 -> 0 | Y9: 5 | Z9: =X9*Y9 -> 0 | AA9: 5 | AB9: =Z9+W9+U9 -> 0 | AC9: =+Z9=Q9 -> TRUE | AD9: =+AB9 -> 0 | AF9: =+X9*Y9=Z9 -> TRUE | AG9: =+U9+W9+Z9=AB9 -> TRUE
A10: 1.03 | B10: Composite Schools | C10: 0 | D10: 0 | I10: 0 | J10: 0 | Q10: 0 | R10: 0 | S10: 0 | Z10: 0 | AA10: 0 | AB10: 0 | AC10: TRUE | AD10: 0 | AF10: TRUE | AG10: TRUE
A11: 1.04 | B11: Residential schools for specific category of children | C11: 0 | D11: 0 | I11: 0 | J11: 0 | Q11: 0 | R11: 0 | S11: 0 | Z11: 0 | AA11: 0 | AB11: 0 | AC11: TRUE | AD11: 0 | AF11: TRUE | AG11: TRUE
A12: 1.05 | B12: Residential Hostel | C12: 0 | D12: 0 | I12: 0 | J12: 0 | Q12: 0 | R12: 0 | S12: 0 | Z12: 0 | AA12: 0 | AB12: 0 | AC12: TRUE | AD12: 0 | AF12: TRUE | AG12: TRUE
A13: 1.06 | B13: Integration of Class V with primary schools | C13: 0 | D13: 0 | I13: 0 | J13: 0 | Q13: 0 | R13: 0 | S13: 0 | Z13: 0 | AA13: 0 | AB13: 0 | AC13: TRUE | AD13: 0 | AF13: TRUE | AG13: TRUE
A14: 1.07 | B14: Integration of Class VIII with upper primary schools | C14: 0 | D14: 0 | I14: 0 | J14: 0 | Q14: 0 | R14: =P14 -> 0 | S14: 0 | Z14: 0 | AA14: =Y14 -> 0 | AB14: 0 | AC14: TRUE | AD14: 0 | AF14: TRUE | AG14: TRUE
A15: 2 | B15: Residential Schools for specific category of children | C15: 0 | D15: 0 | I15: 0 | J15: 0 | Q15: 0 | R15: =P15+K15 -> 0 | S15: 0 | Z15: 0 | AA15: =Y15+T15 -> 0 | AB15: 0 | AC15: TRUE | AD15: 0 | AF15: TRUE | AG15: TRUE
B16: 50 children | C16: 0 | D16: 0 | Q16: 0 | R16: 0 | S16: 0 | Z16: 0 | AA16: 0 | AB16: 0 | AC16: TRUE | AD16: 0 | AF16: TRUE | AG16: TRUE
B17: Non-recurring (one time grant) | C17: 0 | D17: 0 | Q17: 0 | R17: =P17+K17 -> 0 | S17: 0 | Z17: 0 | AA17: 0 | AB17: 0 | AC17: TRUE | AD17: 0 | AF17: TRUE | AG17: TRUE
A18: 2.01 | B18: Furniture/ Equipment (including kitchen) | C18: 0 | D18: 0 | I18: 0 | J18: 0 | Q18: 0 | R18: =P18 -> 0 | S18: 0 | Z18: 0 | AA18: =Y18 -> 0 | AB18: 0 | AC18: TRUE | AD18: 0 | AF18: TRUE | AG18: TRUE
A19: 2.02 | B19: TLM and equipment including library books | C19: 0 | D19: 0 | I19: 0 | J19: 0 | Q19: 0 | R19: 0 | S19: 0 | Z19: 0 | AA19: 0 | AB19: 0 | AC19: TRUE | AD19: 0 | AF19: TRUE | AG19: TRUE
A20: 2.03 | B20: Bedding (new) | C20: 0 | D20: 0 | I20: 0 | J20: 0 | Q20: 0 | R20: 0 | S20: 0 | Z20: 0 | AA20: 0 | AB20: 0 | AC20: TRUE | AD20: 0 | AF20: TRUE | AG20: TRUE
A21: 2.04 | B21: Replacement of bedding (once in 3 years) | C21: 0 | D21: 0 | I21: 0 | J21: 0 | Q21: 0 | R21: 0 | S21: 0 | Z21: 0 | AA21: 0 | AB21: 0 | AC21: TRUE | AD21: 0 | AF21: TRUE | AG21: TRUE
B22: Sub Total (Non Recurring) | C22: 0 | D22: 0 | Q22: 0 | R22: 0 | S22: 0 | Z22: 0 | AA22: =Y22+T22 -> 0 | AB22: 0 | AC22: TRUE | AD22: 0 | AF22: TRUE | AG22: TRUE
B23: Recurring (50 children) | C23: 0 | D23: 0 | Q23: 0 | R23: 0 | S23: 0 | Z23: =X23*Y23 -> 0 | AA23: 0 | AB23: 0 | AC23: TRUE | AD23: 0 | AF23: TRUE | AG23: TRUE
A24: 2.05 | B24: Maintenance per child Per month @ Rs.1500/- | C24: 0 | D24: 0 | I24: 0 | J24: 0 | Q24: 0 | R24: =P24 -> 0 | S24: 0 | Z24: 0 | AA24: =Y24 -> 0 | AB24: 0 | AC24: TRUE | AD24: 0 | AF24: TRUE | AG24: TRUE
A25: 2.06 | B25: Stipend per child per month @ Rs.100/- | C25: 0 | D25: 0 | I25: 0 | J25: 0 | Q25: 0 | R25: 0 | S25: 0 | Z25: 0 | AA25: 0 | AB25: 0 | AC25: TRUE | AD25: 0 | AF25: TRUE | AG25: TRUE
A26: 2.07 | B26: Supplementary TLM, Stationery and other educational material @Rs.1000/- per child per annum | C26: 0 | D26: 0 | I26: 0 | J26: 0 | Q26: 0 | R26: 0 | S26: 0 | Z26: 0 | AA26: 0 | AB26: 0 | AC26: TRUE | AD26: 0 | AF26: TRUE | AG26: TRUE
A27: 2.08 | B27: Salaries | C27: 0 | D27: 0 | I27: 0 | J27: 0 | Q27: 0 | R27: 0 | S27: 0 | Z27: 0 | AA27: 0 | AB27: 0 | AC27: TRUE | AD27: 0 | AF27: TRUE | AG27: TRUE
A28: (a) | B28: 1 Warden @ Rs.25000/- per month | C28: 0 | D28: 0 | I28: 0 | J28: 0 | Q28: 0 | R28: 0 | S28: 0 | Z28: 0 | AA28: 0 | AB28: 0 | AC28: TRUE | AD28: 0 | AF28: TRUE | AG28: TRUE
A29: (b) | B29: 4 Fulltime teachers as per RTE Norms @ Rs. 20,000/- per month per teacher | C29: 0 | D29: 0 | I29: 0 | J29: 0 | Q29: 0 | R29: 0 | S29: 0 | Z29: 0 | AA29: 0 | AB29: 0 | AC29: TRUE | AD29: 0 | AF29: TRUE | AG29: TRUE
A30: (c) | B30: 2 Urdu Teachers (only for Blocks with muslim population above 20% and select urban areas) @ Rs.12,000/- per month per teacher. | C30: 0 | D30: 0 | I30: 0 | J30: 0 | Q30: 0 | R30: 0 | S30: 0 | Z30: 0 | AA30: 0 | AB30: 0 | AC30: TRUE | AD30: 0 | AF30: TRUE | AG30: TRUE
A31: (d) | B31: 3 Part time teachers @ Rs.5,000/- per month per teacher | C31: 0 | D31: 0 | I31: 0 | J31: 0 | Q31: 0 | R31: 0 | S31: 0 | Z31: 0 | AA31: 0 | AB31: 0 | AC31: TRUE | AD31: 0 | AF31: TRUE | AG31: TRUE
A32: (e) | B32: 1 Full time Accountant @ Rs. 10,000/- per month | C32: 0 | D32: 0 | I32: 0 | J32: 0 | Q32: 0 | R32: 0 | S32: 0 | Z32: 0 | AA32: 0 | AB32: 0 | AC32: TRUE | AD32: 0 | AF32: TRUE | AG32: TRUE
A33: (f) | B33: 2 Support staff - (Accountant/Assistant, Peon, Chowkidar) @ Rs. 5,000/- per month per staff | C33: 0 | D33: 0 | I33: 0 | J33: 0 | Q33: 0 | R33: 0 | S33: 0 | Z33: 0 | AA33: 0 | AB33: 0 | AC33: TRUE | AD33: 0 | AF33: TRUE | AG33: TRUE
A34: (g) | B34: 1 Head Cook @ Rs. 6,000/- per month and upto 2 Asstt. Cooks @ Rs. 4,500/- per month per cook | C34: 0 | D34: 0 | I34: 0 | J34: 0 | Q34: 0 | R34: 0 | S34: 0 | Z34: 0 | AA34: 0 | AB34: 0 | AC34: TRUE | AD34: 0 | AF34: TRUE | AG34: TRUE
A35: 2.09 | B35: Specific Skill training @ Rs.1000/- per annum per child | C35: 0 | D35: 0 | I35: 0 | J35: 0 | Q35: 0 | R35: 0 | S35: 0 | Z35: 0 | AA35: 0 | AB35: 0 | AC35: TRUE | AD35: 0 | AF35: TRUE | AG35: TRUE
A36: 2.1 | B36: Electricity / water charges @ Rs. 1000/- per annum per child | C36: 0 | D36: 0 | I36: 0 | J36: 0 | Q36: 0 | R36: 0 | S36: 0 | Z36: 0 | AA36: 0 | AB36: 0 | AC36: TRUE | AD36: 0 | AF36: TRUE | AG36: TRUE
A37: =+A36+0.01 -> 2.11 | B37: Medical care/contingencies @ Rs.1250/- per annum per child | C37: 0 | D37: 0 | I37: 0 | J37: 0 | Q37: 0 | R37: 0 | S37: 0 | Z37: 0 | AA37: 0 | AB37: 0 | AC37: TRUE | AD37: 0 | AF37: TRUE | AG37: TRUE
A38: =+A37+0.01 -> 2.12 | B38: Maintenance @ Rs. 750/- per child per annum | C38: 0 | D38: 0 | I38: 0 | J38: 0 | Q38: 0 | R38: 0 | S38: 0 | Z38: 0 | AA38: 0 | AB38: 0 | AC38: TRUE | AD38: 0 | AF38: TRUE | AG38: TRUE
A39: 2.13 | B39: Miscellaneous @ Rs. 750/- per child per annum | C39: 0 | D39: 0 | I39: 0 | J39: 0 | Q39: 0 | R39: 0 | S39: 0 | Z39: 0 | AA39: 0 | AB39: 0 | AC39: TRUE | AD39: 0 | AF39: TRUE | AG39: TRUE
A40: 2.14 | B40: Preparatory camps @ Rs. 300/- per child per annum | C40: 0 | D40: 0 | I40: 0 | J40: 0 | Q40: 0 | R40: 0 | S40: 0 | Z40: 0 | AA40: 0 | AB40: 0 | AC40: TRUE | AD40: 0 | AF40: TRUE | AG40: TRUE
A41: 2.15 | B41: P.T.A / school functions @ Rs. 300/- per child per annum | C41: 0 | D41: 0 | I41: 0 | J41: 0 | Q41: 0 | R41: 0 | S41: 0 | Z41: 0 | AA41: 0 | AB41: 0 | AC41: TRUE | AD41: 0 | AF41: TRUE | AG41: TRUE
A42: 2.16 | B42: Provision of Rent @ Rs. 10,000/- per child per annum | C42: 0 | D42: 0 | I42: 0 | J42: 0 | Q42: 0 | R42: 0 | S42: 0 | Z42: 0 | AA42: 0 | AB42: 0 | AC42: TRUE | AD42: 0 | AF42: TRUE | AG42: TRUE
A43: 2.17 | B43: Capacity Building @ Rs. 500/- per child per annum | C43: 0 | D43: 0 | I43: 0 | J43: 0 | Q43: 0 | R43: 0 | S43: 0 | Z43: 0 | AA43: 0 | AB43: 0 | AC43: TRUE | AD43: 0 | AF43: TRUE | AG43: TRUE
A44: 2.18 | B44: Physical / Self Defence Training @ Rs.200/- per child per annum | C44: 0 | D44: 0 | I44: 0 | J44: 0 | Q44: 0 | R44: 0 | S44: 0 | Z44: 0 | AA44: 0 | AB44: 0 | AC44: TRUE | AD44: 0 | AF44: TRUE | AG44: TRUE
B45: Sub Total (Recurring) | C45: 0 | D45: 0 | Q45: 0 | R45: 0 | S45: 0 | Z45: 0 | AA45: =Y45+T45 -> 0 | AB45: 0 | AC45: TRUE | AD45: 0 | AF45: TRUE | AG45: TRUE
B46: Total (Non Recurring + Recurring) | C46: 0 | D46: 0 | Q46: 0 | R46: 0 | S46: 0 | Z46: 0 | AA46: 0 | AB46: 0 | AC46: TRUE | AD46: 0 | AF46: TRUE | AG46: TRUE
B47: 100 children | C47: 0 | D47: 0 | Q47: =O47*P47 -> 0 | R47: 0 | S47: 0 | Z47: =X47*Y47 -> 0 | AA47: 0 | AB47: 0 | AC47: TRUE | AD47: 0 | AF47: TRUE | AG47: TRUE
B48: Non-recurring (one time grant) | C48: 0 | D48: 0 | Q48: 0 | R48: 0 | S48: 0 | Z48: 0 | AA48: 0 | AB48: 0 | AC48: TRUE | AD48: 0 | AF48: TRUE | AG48: TRUE
A49: 2.19 | B49: Furniture / Equipment (including kitchen equipment) | C49: 0 | D49: 0 | I49: 0 | J49: 0 | Q49: 0 | R49: =P49 -> 0 | S49: 0 | Z49: 0 | AA49: =Y49 -> 0 | AB49: 0 | AC49: TRUE | AD49: 0 | AF49: TRUE | AG49: TRUE
A50: =+A49+0.01 -> 2.2 | B50: TLM and equipment including library books (New) | C50: 0 | D50: 0 | I50: 0 | J50: 0 | Q50: 0 | R50: 0 | S50: 0 | Z50: 0 | AA50: 0 | AB50: 0 | AC50: TRUE | AD50: 0 | AF50: TRUE | AG50: TRUE
A51: 2.21 | B51: Bedding (New) | C51: 0 | D51: 0 | I51: 0 | J51: 0 | Q51: 0 | R51: 0 | S51: 0 | Z51: 0 | AA51: 0 | AB51: 0 | AC51: TRUE | AD51: 0 | AF51: TRUE | AG51: TRUE
A52: 2.22 | B52: Replacement of bedding (once in 3 years) | C52: 0 | D52: 0 | I52: 0 | J52: 0 | Q52: 0 | R52: 0 | S52: 0 | Z52: 0 | AA52: 0 | AB52: 0 | AC52: TRUE | AD52: 0 | AF52: TRUE | AG52: TRUE
B53: Sub Total Non-recurring | C53: 0 | D53: 0 | Q53: 0 | R53: 0 | S53: 0 | Z53: 0 | AA53: =Y53+T53 -> 0 | AB53: 0 | AC53: TRUE | AD53: 0 | AF53: TRUE | AG53: TRUE
B54: Recurring | C54: 0 | D54: 0 | Q54: 0 | R54: 0 | S54: 0 | Z54: 0 | AA54: 0 | AB54: 0 | AC54: TRUE | AD54: 0 | AF54: TRUE | AG54: TRUE
A55: 2.23 | B55: Maintenance per child per month @ Rs. 1500/- | C55: 0 | D55: 0 | I55: 0 | J55: 0 | Q55: 0 | R55: =P55 -> 0 | S55: 0 | Z55: 0 | AA55: =Y55 -> 0 | AB55: 0 | AC55: TRUE | AD55: 0 | AF55: TRUE | AG55: TRUE
A56: =+A55+0.01 -> 2.24 | B56: Stipend per child per month @ Rs.100/- | C56: 0 | D56: 0 | I56: 0 | J56: 0 | Q56: 0 | R56: 0 | S56: 0 | Z56: 0 | AA56: 0 | AB56: 0 | AC56: TRUE | AD56: 0 | AF56: TRUE | AG56: TRUE
A57: 2.25 | B57: Supplementary TLM, Stationery and other educational material per child @1000/- per annum | C57: 0 | D57: 0 | I57: 0 | J57: 0 | Q57: 0 | R57: 0 | S57: 0 | Z57: 0 | AA57: 0 | AB57: 0 | AC57: TRUE | AD57: 0 | AF57: TRUE | AG57: TRUE
A58: 2.26 | B58: Salaries | C58: 0 | D58: 0 | I58: 0 | J58: 0 | Q58: 0 | R58: 0 | S58: 0 | Z58: 0 | AA58: 0 | AB58: 0 | AC58: TRUE | AD58: 0 | AF58: TRUE | AG58: TRUE
A59: (a) | B59: 1 Warden @ Rs. 25,000/- per month | C59: 0 | D59: 0 | I59: 0 | J59: 0 | Q59: 0 | R59: 0 | S59: 0 | Z59: 0 | AA59: 0 | AB59: 0 | AC59: TRUE | AD59: 0 | AF59: TRUE | AG59: TRUE
A60: (b) | B60: 1 head teacher @ Rs. 25,000/- per month in case the enrollment exceeds 100 | C60: 0 | D60: 0 | I60: 0 | J60: 0 | Q60: 0 | R60: 0 | S60: 0 | Z60: 0 | AA60: 0 | AB60: 0 | AC60: TRUE | AD60: 0 | AF60: TRUE | AG60: TRUE
A61: (c) | B61: 4 - 5 Full time teachers as per RTE norms @ Rs. 20,000/- per month per teacher | C61: 0 | D61: 0 | I61: 0 | J61: 0 | Q61: 0 | R61: 0 | S61: 0 | Z61: 0 | AA61: 0 | AB61: 0 | AC61: TRUE | AD61: 0 | AF61: TRUE | AG61: TRUE
A62: (d) | B62: 2 Urdu Teachers (only for blocks with muslim population above 20% and select urban areas), if required @ Rs. 12,000/- per month per teacher | C62: 0 | D62: 0 | I62: 0 | J62: 0 | Q62: 0 | R62: 0 | S62: 0 | Z62: 0 | AA62: 0 | AB62: 0 | AC62: TRUE | AD62: 0 | AF62: TRUE | AG62: TRUE
A63: (e) | B63: 3 part time teachers @ Rs. 5,000/- per month per teacher | C63: 0 | D63: 0 | I63: 0 | J63: 0 | Q63: 0 | R63: 0 | S63: 0 | Z63: 0 | AA63: 0 | AB63: 0 | AC63: TRUE | AD63: 0 | AF63: TRUE | AG63: TRUE
A64: (f) | B64: 1 Full time Accountant @ Rs. 10,000/- per month | C64: 0 | D64: 0 | I64: 0 | J64: 0 | Q64: 0 | R64: 0 | S64: 0 | Z64: 0 | AA64: 0 | AB64: 0 | AC64: TRUE | AD64: 0 | AF64: TRUE | AG64: TRUE
A65: (g) | B65: 2 Support Staff – (Accountant/ Assistant, Peon, Chowkidar) @ Rs. 5,000/- per month per staff | C65: 0 | D65: 0 | I65: 0 | J65: 0 | Q65: 0 | R65: 0 | S65: 0 | Z65: 0 | AA65: 0 | AB65: 0 | AC65: TRUE | AD65: 0 | AF65: TRUE | AG65: TRUE
A66: (h) | B66: 1 Head cook @ Rs. 6,000/- per month and upto 2 Asstt. Cooks @ Rs. 4,500/- per month per cook | C66: 0 | D66: 0 | I66: 0 | J66: 0 | Q66: 0 | R66: 0 | S66: 0 | Z66: 0 | AA66: 0 | AB66: 0 | AC66: TRUE | AD66: 0 | AF66: TRUE | AG66: TRUE
A67: 2.27 | B67: Specific skill training per child @ Rs.1000/- per annum | C67: 0 | D67: 0 | I67: 0 | J67: 0 | Q67: 0 | R67: 0 | S67: 0 | Z67: 0 | AA67: 0 | AB67: 0 | AC67: TRUE | AD67: 0 | AF67: TRUE | AG67: TRUE
A68: 2.28 | B68: Electricity / water charges per child @Rs.1000/- per annum | C68: 0 | D68: 0 | I68: 0 | J68: 0 | Q68: 0 | R68: 0 | S68: 0 | Z68: 0 | AA68: 0 | AB68: 0 | AC68: TRUE | AD68: 0 | AF68: TRUE | AG68: TRUE
A69: 2.29 | B69: Medical care/contingencies @ Rs.1250/- per child per annum | C69: 0 | D69: 0 | I69: 0 | J69: 0 | Q69: 0 | R69: 0 | S69: 0 | Z69: 0 | AA69: 0 | AB69: 0 | AC69: TRUE | AD69: 0 | AF69: TRUE | AG69: TRUE
A70: 2.3 | B70: Maintenance @ Rs.750/- per child per annum | C70: 0 | D70: 0 | I70: 0 | J70: 0 | Q70: 0 | R70: 0 | S70: 0 | Z70: 0 | AA70: 0 | AB70: 0 | AC70: TRUE | AD70: 0 | AF70: TRUE | AG70: TRUE
A71: 2.31 | B71: Miscellaneous @ Rs.750/- per child per annum | C71: 0 | D71: 0 | I71: 0 | J71: 0 | Q71: 0 | R71: 0 | S71: 0 | Z71: 0 | AA71: 0 | AB71: 0 | AC71: TRUE | AD71: 0 | AF71: TRUE | AG71: TRUE
A72: 2.32 | B72: Preparatory camps @ Rs.200/- per child per annum | C72: 0 | D72: 0 | I72: 0 | J72: 0 | Q72: 0 | R72: 0 | S72: 0 | Z72: 0 | AA72: 0 | AB72: 0 | AC72: TRUE | AD72: 0 | AF72: TRUE | AG72: TRUE
A73: 2.33 | B73: P.T.A / school functions @ Rs.200/- per child per annum | C73: 0 | D73: 0 | I73: 0 | J73: 0 | Q73: 0 | R73: 0 | S73: =Q73+N73+L73 -> 0 | Z73: 0 | AA73: 0 | AB73: =Z73+W73+U73 -> 0 | AC73: =+Z73=Q73 -> TRUE | AD73: =+AB73 -> 0 | AF73: =+X73*Y73=Z73 -> TRUE | AG73: =+U73+W73+Z73=AB73 -> TRUE
A74: 2.34 | B74: Provision of Rent @ Rs. 6000/- per child per annum | C74: 0 | D74: 0 | I74: 0 | J74: 0 | Q74: 0 | R74: 0 | S74: 0 | Z74: 0 | AA74: 0 | AB74: 0 | AC74: TRUE | AD74: 0 | AF74: TRUE | AG74: TRUE
A75: 2.35 | B75: Capacity Building @ Rs.500/- per child per annum | C75: 0 | D75: 0 | I75: 0 | J75: 0 | Q75: 0 | R75: 0 | S75: 0 | Z75: 0 | AA75: 0 | AB75: 0 | AC75: TRUE | AD75: 0 | AF75: TRUE | AG75: TRUE
A76: 2.36 | B76: Physical / Self Defence training @ Rs. 200/- per child per annum. | C76: 0 | D76: 0 | I76: 0 | J76: 0 | Q76: 0 | R76: 0 | S76: 0 | Z76: 0 | AA76: 0 | AB76: 0 | AC76: TRUE | AD76: 0 | AF76: TRUE | AG76: TRUE
B77: Sub Total (Recurring) | C77: 0 | D77: 0 | E77: 0 | F77: 0 | I77: 0 | J77: 0 | K77: 0 | L77: 0 | M77: 0 | N77: 0 | O77: 0 | Q77: 0 | R77: 0 | S77: 0 | V77: 0 | W77: 0 | X77: 0 | Z77: 0 | AA77: =Y77+T77 -> 0 | AB77: 0 | AC77: TRUE | AD77: 0 | AF77: TRUE | AG77: TRUE
B78: Total (Recurring + Non Recurring) | C78: 0 | D78: 0 | E78: 0 | F78: 0 | I78: 0 | J78: 0 | K78: 0 | L78: 0 | M78: 0 | N78: 0 | O78: 0 | Q78: 0 | R78: 0 | S78: 0 | V78: 0 | W78: 0 | X78: 0 | Z78: 0 | AA78: 0 | AB78: 0 | AC78: TRUE | AD78: 0 | AF78: TRUE | AG78: TRUE
B79: Total (50 + 100 children) | C79: 0 | D79: 0 | Q79: 0 | R79: 0 | S79: 0 | Z79: 0 | AA79: 0 | AB79: 0 | AC79: TRUE | AD79: 0 | AF79: TRUE | AG79: TRUE
A80: 3 | B80: Residential Hostel for specific category of children | C80: 0 | D80: 0 | Q80: 0 | R80: 0 | S80: 0 | Z80: 0 | AA80: 0 | AB80: 0 | AC80: TRUE | AD80: 0 | AF80: TRUE | AG80: TRUE
A81: (A) | B81: 50 children | C81: 0 | D81: 0 | Q81: 0 | R81: =P81+K81 -> 0 | S81: 0 | Z81: 0 | AA81: 0 | AB81: 0 | AC81: TRUE | AD81: 0 | AF81: TRUE | AG81: TRUE
B82: Non-recurring (one time grant) | C82: 0 | D82: 0 | Q82: 0 | R82: 0 | S82: 0 | Z82: 0 | AA82: 0 | AB82: 0 | AC82: TRUE | AD82: 0 | AF82: TRUE | AG82: TRUE
A83: 3.01 | B83: Furniture/ Equipment (including kitchen) | C83: 0 | D83: 0 | I83: 0 | J83: 0 | Q83: 0 | R83: =P83 -> 0 | S83: 0 | Z83: 0 | AA83: =Y83 -> 0 | AB83: 0 | AC83: TRUE | AD83: 0 | AF83: TRUE | AG83: TRUE
A84: =+A83+0.01 -> 3.02 | B84: TLM and equipment including library books | C84: 0 | D84: 0 | I84: 0 | J84: 0 | Q84: 0 | R84: 0 | S84: 0 | Z84: 0 | AA84: 0 | AB84: 0 | AC84: TRUE | AD84: 0 | AF84: TRUE | AG84: TRUE
A85: 3.03 | B85: Bedding (new) | C85: 0 | D85: 0 | I85: 0 | J85: 0 | Q85: 0 | R85: 0 | S85: 0 | Z85: 0 | AA85: 0 | AB85: 0 | AC85: TRUE | AD85: 0 | AF85: TRUE | AG85: TRUE
A86: 3.04 | B86: Replacement of bedding (once in 3 years) | C86: 0 | D86: 0 | I86: 0 | J86: 0 | Q86: 0 | R86: 0 | S86: 0 | Z86: 0 | AA86: 0 | AB86: 0 | AC86: TRUE | AD86: 0 | AF86: TRUE | AG86: TRUE
B87: Sub Total (Non Recurring) | C87: 0 | D87: 0 | E87: 0 | F87: 0 | I87: 0 | J87: 0 | K87: 0 | L87: 0 | M87: 0 | N87: 0 | O87: 0 | P87: 0 | Q87: 0 | R87: 0 | S87: 0 | V87: 0 | W87: 0 | X87: 0 | Y87: 0 | Z87: 0 | AA87: =Y87+T87 -> 0 | AB87: 0 | AC87: TRUE | AD87: 0 | AF87: TRUE | AG87: TRUE
B88: Recurring (50 children) | C88: 0 | D88: 0 | Q88: 0 | R88: 0 | S88: 0 | Z88: 0 | AA88: 0 | AB88: 0 | AC88: TRUE | AD88: 0 | AF88: TRUE | AG88: TRUE
A89: 3.05 | B89: Maintenance per child Per month @ Rs.1500/- | C89: 0 | D89: 0 | I89: 0 | J89: 0 | Q89: 0 | R89: =P89 -> 0 | S89: 0 | Z89: 0 | AA89: =Y89 -> 0 | AB89: 0 | AC89: TRUE | AD89: 0 | AF89: TRUE | AG89: TRUE
A90: =+A89+0.01 -> 3.06 | B90: Stipend per child per month @ Rs.100/- | C90: 0 | D90: 0 | I90: 0 | J90: 0 | Q90: 0 | R90: 0 | S90: 0 | Z90: 0 | AA90: 0 | AB90: 0 | AC90: TRUE | AD90: 0 | AF90: TRUE | AG90: TRUE
A91: 3.07 | B91: Supplementary TLM, Stationery and other educational material @Rs.1000/- per child per annum | C91: 0 | D91: 0 | I91: 0 | J91: 0 | Q91: 0 | R91: 0 | S91: 0 | Z91: 0 | AA91: 0 | AB91: 0 | AC91: TRUE | AD91: 0 | AF91: TRUE | AG91: TRUE
B92: Salaries | C92: 0 | D92: 0 | Q92: 0 | R92: 0 | S92: 0 | Z92: 0 | AA92: 0 | AB92: 0 | AC92: TRUE | AD92: 0 | AF92: TRUE | AG92: TRUE
A93: (a) | B93: 1 Warden @ Rs.25000/- per month | C93: 0 | D93: 0 | Q93: 0 | R93: 0 | S93: 0 | Z93: 0 | AA93: 0 | AB93: 0 | AC93: TRUE | AD93: 0 | AF93: TRUE | AG93: TRUE
A94: (b) | B94: 4 Fulltime teachers as per RTE Norms @ Rs. 20,000/- per month per teacher | C94: 0 | D94: 0 | Q94: 0 | R94: 0 | S94: 0 | Z94: 0 | AA94: 0 | AB94: 0 | AC94: TRUE | AD94: 0 | AF94: TRUE | AG94: TRUE
A95: (c) | B95: 2 Urdu Teachers (only for Blocks with muslim population above 20% and select urban areas) @ Rs.12,000/- per month per teacher. | C95: 0 | D95: 0 | Q95: 0 | R95: 0 | S95: 0 | Z95: 0 | AA95: 0 | AB95: 0 | AC95: TRUE | AD95: 0 | AF95: TRUE | AG95: TRUE
A96: (d) | B96: 3 Part time teachers @ Rs.5,000/- per month per teacher | C96: 0 | D96: 0 | Q96: 0 | R96: 0 | S96: 0 | Z96: 0 | AA96: 0 | AB96: 0 | AC96: TRUE | AD96: 0 | AF96: TRUE | AG96: TRUE
A97: (e) | B97: 1 Full time Accountant @ Rs. 10,000/- per month | C97: 0 | D97: 0 | Q97: 0 | R97: 0 | S97: 0 | Z97: 0 | AA97: 0 | AB97: 0 | AC97: TRUE | AD97: 0 | AF97: TRUE | AG97: TRUE
A98: (f) | B98: 2 Support staff - (Accountant/Assistant, Peon, Chowkidar) @ Rs. 5,000/- per month per staff | C98: 0 | D98: 0 | Q98: 0 | R98: 0 | S98: 0 | Z98: 0 | AA98: 0 | AB98: 0 | AC98: TRUE | AD98: 0 | AF98: TRUE | AG98: TRUE
A99: (g) | B99: 1 Head Cook @ Rs. 6,000/- per month and upto 2 Asstt. Cooks @ Rs. 4,500/- per month per cook | C99: 0 | D99: 0 | Q99: 0 | R99: 0 | S99: 0 | Z99: 0 | AA99: 0 | AB99: 0 | AC99: TRUE | AD99: 0 | AF99: TRUE | AG99: TRUE
A100: 3.08 | B100: Specific Skill training @ Rs.1000/- per annum per child | C100: 0 | D100: 0 | Q100: 0 | R100: 0 | S100: 0 | Z100: 0 | AA100: 0 | AB100: 0 | AC100: TRUE | AD100: 0 | AF100: TRUE | AG100: TRUE
A101: =+A100+0.01 -> 3.09 | B101: Electricity / water charges @ Rs. 1000/- per annum per child | C101: 0 | D101: 0 | Q101: 0 | R101: 0 | S101: 0 | Z101: 0 | AA101: 0 | AB101: 0 | AC101: TRUE | AD101: 0 | AF101: TRUE | AG101: TRUE
A102: 3.1 | B102: Medical care/contingencies @ Rs.1250/- per annum per child | C102: 0 | D102: 0 | Q102: 0 | R102: 0 | S102: 0 | Z102: 0 | AA102: 0 | AB102: 0 | AC102: TRUE | AD102: 0 | AF102: TRUE | AG102: TRUE
A103: 3.11 | B103: Maintenance @ Rs. 750/- per child per annum | C103: 0 | D103: 0 | Q103: 0 | R103: 0 | S103: 0 | Z103: 0 | AA103: 0 | AB103: 0 | AC103: TRUE | AD103: 0 | AF103: TRUE | AG103: TRUE
A104: 3.12 | B104: Miscellaneous @ Rs. 750/- per child per annum | C104: 0 | D104: 0 | Q104: 0 | R104: 0 | S104: 0 | Z104: 0 | AA104: 0 | AB104: 0 | AC104: TRUE | AD104: 0 | AF104: TRUE | AG104: TRUE
A105: 3.13 | B105: Preparatory camps @ Rs. 300/- per child per annum | C105: 0 | D105: 0 | Q105: 0 | R105: 0 | S105: 0 | Z105: 0 | AA105: 0 | AB105: 0 | AC105: TRUE | AD105: 0 | AF105: TRUE | AG105: TRUE
A106: 3.14 | B106: P.T.A / school functions @ Rs. 300/- per child per annum | C106: 0 | D106: 0 | Q106: 0 | R106: 0 | S106: 0 | Z106: 0 | AA106: 0 | AB106: 0 | AC106: TRUE | AD106: 0 | AF106: TRUE | AG106: TRUE
A107: 3.15 | B107: Provision of Rent @ Rs. 10,000/- per child per annum | C107: 0 | D107: 0 | Q107: 0 | R107: 0 | S107: 0 | Z107: 0 | AA107: 0 | AB107: 0 | AC107: TRUE | AD107: 0 | AF107: TRUE | AG107: TRUE
A108: 3.16 | B108: Capacity Building @ Rs. 500/- per child per annum | C108: 0 | D108: 0 | Q108: 0 | R108: 0 | S108: 0 | Z108: 0 | AA108: 0 | AB108: 0 | AC108: TRUE | AD108: 0 | AF108: TRUE | AG108: TRUE
A109: 3.17 | B109: Physical / Self Defence Training @ Rs.200/- per child per annum | C109: 0 | D109: 0 | Q109: 0 | R109: 0 | S109: 0 | Z109: 0 | AA109: 0 | AB109: 0 | AC109: TRUE | AD109: 0 | AF109: TRUE | AG109: TRUE
B110: Sub Total (Recurring) | C110: 0 | D110: 0 | Q110: 0 | R110: 0 | S110: 0 | Z110: 0 | AA110: =Y110+T110 -> 0 | AB110: 0 | AC110: TRUE | AD110: 0 | AF110: TRUE | AG110: TRUE
B111: Total (Non Recurring + Recurring) | C111: 0 | D111: 0 | Q111: =O111*P111 -> 0 | R111: 0 | S111: 0 | Z111: =X111*Y111 -> 0 | AA111: 0 | AB111: 0 | AC111: TRUE | AD111: 0 | AF111: TRUE | AG111: TRUE
A112: (B) | B112: 100 Children | C112: 0 | D112: 0 | Q112: 0 | R112: 0 | S112: 0 | Z112: 0 | AA112: 0 | AB112: 0 | AC112: TRUE | AD112: 0 | AF112: TRUE | AG112: TRUE
B113: Non-recurring (one time grant) | C113: 0 | D113: 0 | Q113: 0 | R113: 0 | S113: 0 | Z113: 0 | AA113: 0 | AB113: 0 | AC113: TRUE | AD113: 0 | AF113: TRUE | AG113: TRUE
A114: 3.18 | B114: Furniture / Equipment (including kitchen equipment) | C114: 0 | D114: 0 | Q114: 0 | R114: =P114 -> 0 | S114: 0 | Z114: 0 | AA114: =Y114 -> 0 | AB114: 0 | AC114: TRUE | AD114: 0 | AF114: TRUE | AG114: TRUE
A115: =+A114+0.01 -> 3.19 | B115: TLM and equipment including library books (New) | C115: 0 | D115: 0 | Q115: 0 | R115: 0 | S115: 0 | Z115: 0 | AA115: 0 | AB115: 0 | AC115: TRUE | AD115: 0 | AF115: TRUE | AG115: TRUE
A116: 3.2 | B116: Bedding (New) | C116: 0 | D116: 0 | Q116: 0 | R116: 0 | S116: 0 | Z116: 0 | AA116: 0 | AB116: 0 | AC116: TRUE | AD116: 0 | AF116: TRUE | AG116: TRUE
A117: 3.21 | B117: Replacement of bedding (once in 3 years) | C117: 0 | D117: 0 | Q117: 0 | R117: 0 | S117: 0 | Z117: 0 | AA117: 0 | AB117: 0 | AC117: TRUE | AD117: 0 | AF117: TRUE | AG117: TRUE
B118: Sub Total Non-recurring | C118: 0 | D118: 0 | R118: 0 | S118: 0 | AA118: =Y118+T118 -> 0 | AB118: 0 | AC118: TRUE | AD118: 0 | AF118: TRUE | AG118: TRUE
B119: Recurring | C119: 0 | D119: 0 | Q119: 0 | R119: 0 | S119: 0 | Z119: =X119*Y119 -> 0 | AA119: 0 | AB119: 0 | AC119: TRUE | AD119: 0 | AF119: TRUE | AG119: TRUE
A120: 3.22 | B120: Maintenance per child per month @ Rs. 1500/- | C120: 0 | D120: 0 | Q120: 0 | R120: =P120 -> 0 | S120: 0 | Z120: 0 | AA120: =Y120 -> 0 | AB120: 0 | AC120: TRUE | AD120: 0 | AF120: TRUE | AG120: TRUE
A121: =+A120+0.01 -> 3.23 | B121: Stipend per child per month @ Rs.100/- | C121: 0 | D121: 0 | Q121: 0 | R121: 0 | S121: 0 | Z121: 0 | AA121: 0 | AB121: 0 | AC121: TRUE | AD121: 0 | AF121: TRUE | AG121: TRUE
A122: 3.24 | B122: Supplementary TLM, Stationery and other educational material per child @1000/- per annum | C122: 0 | D122: 0 | Q122: 0 | R122: 0 | S122: 0 | Z122: 0 | AA122: 0 | AB122: 0 | AC122: TRUE | AD122: 0 | AF122: TRUE | AG122: TRUE
B123: Salaries | C123: 0 | D123: 0 | Q123: 0 | R123: 0 | S123: 0 | Z123: 0 | AA123: 0 | AB123: 0 | AC123: TRUE | AD123: 0 | AF123: TRUE | AG123: TRUE
A124: (a) | B124: 1 Warden @ Rs. 25,000/- per month | C124: 0 | D124: 0 | Q124: 0 | R124: 0 | S124: 0 | Z124: 0 | AA124: 0 | AB124: 0 | AC124: TRUE | AD124: 0 | AF124: TRUE | AG124: TRUE
A125: (b) | B125: 1 head teacher @ Rs. 25,000/- per month in case the enrollment exceeds 100 | C125: 0 | D125: 0 | Q125: 0 | R125: 0 | S125: 0 | Z125: 0 | AA125: 0 | AB125: 0 | AC125: TRUE | AD125: 0 | AF125: TRUE | AG125: TRUE
A126: (c) | B126: 4 - 5 Full time teachers as per RTE norms @ Rs. 20,000/- per month per teacher | C126: 0 | D126: 0 | Q126: 0 | R126: 0 | S126: 0 | Z126: 0 | AA126: 0 | AB126: 0 | AC126: TRUE | AD126: 0 | AF126: TRUE | AG126: TRUE
A127: (d) | B127: 2 Urdu Teachers (only for blocks with muslim population above 20% and select urban areas), if required @ Rs. 12,000/- per month per teacher | C127: 0 | D127: 0 | Q127: 0 | R127: 0 | S127: 0 | Z127: 0 | AA127: 0 | AB127: 0 | AC127: TRUE | AD127: 0 | AF127: TRUE | AG127: TRUE
A128: (e) | B128: 3 part time teachers @ Rs. 5,000/- per month per teacher | C128: 0 | D128: 0 | Q128: 0 | R128: 0 | S128: 0 | Z128: 0 | AA128: 0 | AB128: 0 | AC128: TRUE | AD128: 0 | AF128: TRUE | AG128: TRUE
A129: (f) | B129: 1 Full time Accountant @ Rs. 10,000/- per month | C129: 0 | D129: 0 | Q129: 0 | R129: 0 | S129: 0 | Z129: 0 | AA129: 0 | AB129: 0 | AC129: TRUE | AD129: 0 | AF129: TRUE | AG129: TRUE
A130: 3.25 | B130: 2 Support Staff – (Accountant/ Assistant, Peon, Chowkidar) @ Rs. 5,000/- per month per staff | C130: 0 | D130: 0 | Q130: 0 | R130: 0 | S130: 0 | Z130: 0 | AA130: 0 | AB130: 0 | AC130: TRUE | AD130: 0 | AF130: TRUE | AG130: TRUE
A131: =+A130+0.01 -> 3.26 | B131: 1 Head cook @ Rs. 6,000/- per month and upto 2 Asstt. Cooks @ Rs. 4,500/- per month per cook | C131: 0 | D131: 0 | Q131: 0 | R131: 0 | S131: 0 | Z131: 0 | AA131: 0 | AB131: 0 | AC131: TRUE | AD131: 0 | AF131: TRUE | AG131: TRUE
A132: 3.27 | B132: Specific skill training per child @ Rs.1000/- per annum | C132: 0 | D132: 0 | Q132: 0 | R132: 0 | S132: 0 | Z132: 0 | AA132: 0 | AB132: 0 | AC132: TRUE | AD132: 0 | AF132: TRUE | AG132: TRUE
A133: 3.28 | B133: Electricity / water charges per child @Rs.1000/- per annum | C133: 0 | D133: 0 | Q133: 0 | R133: 0 | S133: 0 | Z133: 0 | AA133: 0 | AB133: 0 | AC133: TRUE | AD133: 0 | AF133: TRUE | AG133: TRUE
A134: 3.29 | B134: Medical care/contingencies @ Rs.1250/- per child per annum | C134: 0 | D134: 0 | Q134: 0 | R134: 0 | S134: 0 | Z134: 0 | AA134: 0 | AB134: 0 | AC134: TRUE | AD134: 0 | AF134: TRUE | AG134: TRUE
A135: 3.3 | B135: Maintenance @ Rs.750/- per child per annum | C135: 0 | D135: 0 | Q135: 0 | R135: 0 | S135: 0 | Z135: 0 | AA135: 0 | AB135: 0 | AC135: TRUE | AD135: 0 | AF135: TRUE | AG135: TRUE
A136: 3.31 | B136: Miscellaneous @ Rs.750/- per child per annum | C136: 0 | D136: 0 | Q136: 0 | R136: 0 | S136: 0 | Z136: 0 | AA136: 0 | AB136: 0 | AC136: TRUE | AD136: 0 | AF136: TRUE | AG136: TRUE
A137: 3.32 | B137: Preparatory camps @ Rs.200/- per child per annum | C137: 0 | D137: 0 | Q137: 0 | R137: 0 | S137: =Q137+N137+L137 -> 0 | Z137: 0 | AA137: 0 | AB137: =Z137+W137+U137 -> 0 | AC137: =+Z137=Q137 -> TRUE | AD137: =+AB137 -> 0 | AF137: =+X137*Y137=Z137 -> TRUE | AG137: =+U137+W137+Z137=AB137 -> TRUE
A138: 3.33 | B138: P.T.A / school functions @ Rs.200/- per child per annum | C138: 0 | D138: 0 | Q138: 0 | R138: 0 | S138: 0 | Z138: 0 | AA138: 0 | AB138: 0 | AC138: TRUE | AD138: 0 | AF138: TRUE | AG138: TRUE
A139: 3.34 | B139: Provision of Rent @ Rs. 6000/- per child per annum | C139: 0 | D139: 0 | Q139: 0 | R139: 0 | S139: 0 | Z139: 0 | AA139: 0 | AB139: 0 | AC139: TRUE | AD139: 0 | AF139: TRUE | AG139: TRUE
A140: 3.35 | B140: Capacity Building @ Rs.500/- per child per annum | C140: 0 | D140: 0 | Q140: 0 | R140: 0 | S140: 0 | Z140: 0 | AA140: =Y140+T140 -> 0 | AB140: 0 | AC140: TRUE | AD140: 0 | AF140: TRUE | AG140: TRUE
A141: 3.36 | B141: Physical / Self Defence training @ Rs. 200/- per child per annum. | C141: 0 | D141: 0 | Q141: 0 | R141: 0 | S141: 0 | Z141: 0 | AA141: 0 | AB141: 0 | AC141: TRUE | AD141: 0 | AF141: TRUE | AG141: TRUE
B142: Sub Total (Recurring) | C142: 0 | D142: 0 | Q142: 0 | R142: 0 | S142: 0 | Z142: 0 | AA142: 0 | AB142: 0 | AC142: TRUE | AD142: 0 | AF142: TRUE | AG142: TRUE
B143: Total (Recurring + Non Recurring) | S143: 0 | AB143: 0 | AC143: TRUE | AD143: 0 | AF143: TRUE | AG143: TRUE
B144: Total (A + B) | S144: 0 | AB144: 0 | AC144: TRUE | AD144: 0 | AF144: TRUE | AG144: TRUE
A145: 4 | B145: Transport/Escort Facility | C145: 0 | D145: 0 | Q145: 0 | R145: 0 | S145: 0 | Z145: =X145*Y145 -> 0 | AA145: =Y145+T145 -> 0 | AB145: 0 | AC145: TRUE | AD145: 0 | AF145: TRUE | AG145: TRUE
A146: 4.01 | B146: Children in remote habitation | C146: 0 | D146: 0 | Q146: 0 | R146: =P146 -> 0 | S146: 0 | Z146: 0 | AA146: =Y146 -> 0 | AB146: 0 | AC146: TRUE | AD146: 0 | AF146: TRUE | AG146: TRUE
A147: 4.02 | B147: Urban deprived children/children without adult protection | C147: 0 | D147: 0 | Q147: 0 | R147: 0 | S147: 0 | Z147: 0 | AA147: 0 | AB147: 0 | AC147: TRUE | AD147: 0 | AF147: TRUE | AG147: TRUE
B148: Sub Total | C148: 0 | D148: 0 | R148: =P148+K148 -> 0 | S148: 0 | AA148: =Y148+T148 -> 0 | AB148: 0 | AC148: TRUE | AD148: 0 | AF148: TRUE | AG148: TRUE
A149: 5 | B149: Reimbursement of Fee against 25% admission under Section 12(1)(c) of RTE Act 2009 (Entry Level) subject to upper limit of 20% of AWP&B guidelines issued by MHRD | C149: 0 | D149: 0 | Q149: 0 | R149: =P149 -> 0 | S149: 0 | Z149: =X149*Y149 -> 0 | AA149: =Y149 -> 0 | AB149: 0 | AC149: TRUE | AD149: 0 | AF149: TRUE | AG149: TRUE
B150: Sub Total | C150: 0 | D150: 0 | R150: 0 | S150: 0 | AA150: =Y150+T150 -> 0 | AB150: 0 | AC150: TRUE | AD150: 0 | AF150: TRUE | AG150: TRUE
A151: =+A149+1 -> 6 | B151: Special Training for mainstreaming of out of school children | C151: 0 | D151: 0 | R151: 0 | S151: 0 | AA151: 0 | AB151: 0 | AC151: TRUE | AD151: 0 | AF151: TRUE | AG151: TRUE
A152: 6.01 | B152: Residential (Fresh) | C152: 0 | D152: 0 | Q152: =O152*P152 -> 0 | R152: 0 | S152: 0 | Z152: =X152*Y152 -> 0 | AA152: 0 | AB152: 0 | AC152: TRUE | AD152: 0 | AF152: TRUE | AG152: TRUE
B153: (a) 12 months | C153: 0 | D153: 0 | I153: =C153-E153 -> 0 | J153: =D153-F153 -> 0 | O153: 0.2 | Q153: 0 | R153: =P153 -> 0 | S153: 0 | X153: 0.2 | Z153: 0 | AA153: =Y153 -> 0 | AB153: 0 | AC153: TRUE | AD153: 0 | AF153: TRUE | AG153: TRUE
B154: (b) 9 months | C154: 0 | D154: 0 | I154: =C154-E154 -> 0 | J154: =D154-F154 -> 0 | O154: 0.15 | Q154: 0 | R154: 0 | S154: 0 | X154: 0.15 | Z154: 0 | AA154: 0 | AB154: 0 | AC154: TRUE | AD154: 0 | AF154: TRUE | AG154: TRUE
B155: (c) 6 months | C155: 0 | D155: 0 | I155: 0 | J155: 0 | O155: 0.1 | Q155: 0 | R155: 0 | S155: 0 | X155: 0.1 | Z155: 0 | AA155: 0 | AB155: 0 | AC155: TRUE | AD155: 0 | AF155: TRUE | AG155: TRUE
B156: (d) 3 months | C156: 0 | D156: 0 | I156: 0 | J156: 0 | O156: 0.05 | Q156: 0 | R156: 0 | S156: 0 | X156: 0.05 | Z156: 0 | AA156: 0 | AB156: 0 | AC156: TRUE | AD156: 0 | AF156: TRUE | AG156: TRUE
B157: Sub Total | C157: 0 | D157: 0 | E157: =SUM(E153:E156) -> 0 | F157: 0 | G157: 0 | H157: 0 | I157: 0 | J157: 0 | K157: 0 | L157: 0 | M157: 0 | N157: 0 | P157: 0 | Q157: 0 | R157: 0 | S157: 0 | V157: =SUM(V153:V156) -> 0 | W157: 0 | Y157: =SUM(Y153:Y156) -> 0 | Z157: 0 | AA157: =Y157+T157 -> 0 | AB157: 0 | AC157: TRUE | AD157: 0 | AF157: TRUE | AG157: TRUE
A158: =+A152+0.01 -> 6.02 | B158: Residential (Continuing from previous year) | C158: 0 | D158: 0 | Q158: 0 | R158: 0 | S158: 0 | Z158: 0 | AA158: 0 | AB158: 0 | AC158: TRUE | AD158: 0 | AF158: TRUE | AG158: TRUE
B159: (a) 12 months | C159: 0 | D159: 0 | I159: =C159-E159 -> 0 | J159: =D159-F159 -> 0 | O159: 0.2 | Q159: =O159*P159 -> 0 | R159: 0 | S159: 0 | X159: 0.2 | Z159: =X159*Y159 -> 0 | AA159: =Y159+V159+T159 -> 0 | AB159: 0 | AC159: TRUE | AD159: 0 | AF159: TRUE | AG159: TRUE
B160: (b) 9 months | C160: 0 | D160: 0 | I160: 0 | J160: 0 | O160: 0.15 | Q160: 0 | R160: =P160+M160+K160 -> 0 | S160: =Q160+N160+L160 -> 0 | X160: 0.15 | Z160: 0 | AA160: 0 | AB160: 0 | AC160: TRUE | AD160: 0 | AF160: TRUE | AG160: TRUE
B161: (c) 6 months | C161: 0 | D161: 0 | I161: 0 | J161: 0 | O161: 0.1 | Q161: 0 | R161: 0 | S161: 0 | X161: 0.1 | Z161: 0 | AA161: 0 | AB161: 0 | AC161: TRUE | AD161: 0 | AF161: TRUE | AG161: TRUE
B162: (d) 3 months | C162: 0 | D162: 0 | I162: 0 | J162: 0 | O162: 0.05 | Q162: 0 | R162: 0 | S162: 0 | X162: 0.05 | Z162: 0 | AA162: 0 | AB162: 0 | AC162: TRUE | AD162: 0 | AF162: TRUE | AG162: TRUE
B163: Sub Total | C163: 0 | D163: 0 | E163: 0 | F163: 0 | I163: 0 | J163: 0 | K163: 0 | L163: 0 | M163: 0 | N163: 0 | P163: 0 | Q163: 0 | R163: 0 | S163: 0 | V163: 0 | W163: 0 | Y163: 0 | Z163: 0 | AA163: 0 | AB163: 0 | AC163: TRUE | AD163: 0 | AF163: TRUE | AG163: TRUE
A164: 6.03 | B164: Non-Residential (Fresh) | C164: 0 | D164: 0 | R164: 0 | S164: 0 | AA164: 0 | AB164: 0 | AC164: TRUE | AD164: 0 | AF164: TRUE | AG164: TRUE
B165: (a) 12 months | C165: 103 | D165: 6.18 | E165: 103 | F165: 6.18 | G165: =E165/C165*100 -> 100 | H165: =F165/D165*100 -> 100 | I165: =C165-E165 -> 0 | J165: =D165-F165 -> 0 | O165: 0.06 | P165: 120 | Q165: =O165*P165 -> 7.2 | R165: 120 | S165: 7.2 | X165: 0.06 | Y165: 120 | Z165: =X165*Y165 -> 7.2 | AA165: 120 | AB165: 7.2 | AC165: TRUE | AD165: 7.2 | AE165: =+AB165=AD165 -> TRUE | AF165: TRUE | AG165: TRUE
B166: (b) 9 months | C166: 0 | D166: 0 | E166: =C166 -> 0 | F166: =D166 -> 0 | I166: 0 | J166: 0 | O166: 0.045 | Q166: 0 | R166: =P166+M166+K166 -> 0 | S166: =Q166+N166+L166 -> 0 | X166: 0.045 | Z166: 0 | AA166: 0 | AB166: 0 | AC166: TRUE | AD166: 0 | AE166: =+AB166=AD166 -> TRUE | AF166: TRUE | AG166: TRUE
B167: (c) 6 months | C167: 0 | D167: 0 | E167: 0 | F167: 0 | I167: 0 | J167: 0 | O167: 0.03 | Q167: 0 | R167: 0 | S167: 0 | X167: 0.03 | Z167: 0 | AA167: 0 | AB167: 0 | AC167: TRUE | AD167: 0 | AE167: TRUE | AF167: TRUE | AG167: TRUE
B168: (d) 3 months | C168: 30 | D168: 0.45 | E168: 30 | F168: 0.45 | I168: 0 | J168: 0 | O168: 0.015 | P168: 25 | Q168: 0.375 | R168: 25 | S168: 0.375 | X168: 0.015 | Y168: 25 | Z168: 0.375 | AA168: 25 | AB168: 0.375 | AC168: TRUE | AD168: 0.375 | AE168: TRUE | AF168: TRUE | AG168: TRUE
B169: Sub Total | C169: 133 | D169: 6.63 | E169: =SUM(E165:E168) -> 133 | F169: =SUM(F165:F168) -> 6.63 | I169: =SUM(I165:I168) -> 0 | J169: 0 | K169: 0 | L169: 0 | M169: 0 | N169: 0 | P169: =SUM(P165:P168) -> 145 | Q169: =SUM(Q165:Q168) -> 7.575 | R169: 145 | S169: 7.575 | V169: =SUM(V165:V168) -> 0 | W169: 0 | Y169: =SUM(Y165:Y168) -> 145 | Z169: =SUM(Z165:Z168) -> 7.575 | AA169: 145 | AB169: 7.575 | AC169: TRUE | AE169: FALSE | AG169: TRUE
A170: 6.04 | B170: Non-Residential (Continuing from previous year) | C170: 0 | D170: 0 | R170: 0 | S170: 0 | AA170: 0 | AB170: 0 | AC170: TRUE | AD170: 0 | AE170: TRUE | AF170: TRUE | AG170: TRUE
B171: (a) 12 months | C171: 0 | D171: 0 | E171: =C171 -> 0 | F171: =D171 -> 0 | I171: =C171-E171 -> 0 | J171: =D171-F171 -> 0 | O171: 0.06 | Q171: =O171*P171 -> 0 | R171: 0 | S171: 0 | X171: 0.06 | Z171: =X171*Y171 -> 0 | AA171: 0 | AB171: 0 | AC171: TRUE | AD171: 0 | AE171: TRUE | AF171: TRUE | AG171: TRUE
B172: (b) 9 months | C172: 0 | D172: 0 | E172: =C172 -> 0 | F172: =D172 -> 0 | I172: 0 | J172: 0 | O172: 0.045 | Q172: 0 | R172: 0 | S172: 0 | X172: 0.045 | Z172: 0 | AA172: 0 | AB172: 0 | AC172: TRUE | AD172: 0 | AE172: TRUE | AF172: TRUE | AG172: TRUE
B173: (c) 6 months | C173: 0 | D173: 0 | E173: 0 | F173: 0 | I173: 0 | J173: 0 | O173: 0.03 | Q173: 0 | R173: 0 | S173: 0 | X173: 0.03 | Z173: 0 | AA173: 0 | AB173: 0 | AC173: TRUE | AD173: 0 | AE173: TRUE | AF173: TRUE | AG173: TRUE
B174: (d) 3 months | C174: 0 | D174: 0 | E174: 0 | F174: 0 | I174: 0 | J174: 0 | O174: 0.015 | Q174: 0 | R174: 0 | S174: 0 | X174: 0.015 | Z174: 0 | AA174: 0 | AB174: 0 | AC174: TRUE | AD174: 0 | AE174: TRUE | AF174: TRUE | AG174: TRUE
B175: Sub Total | C175: 0 | D175: 0 | E175: =SUM(E171:E174) -> 0 | F175: 0 | G175: 0 | H175: 0 | I175: 0 | J175: 0 | K175: 0 | L175: 0 | M175: 0 | N175: 0 | P175: =SUM(P171:P174) -> 0 | Q175: 0 | R175: 0 | S175: 0 | V175: =SUM(V171:V174) -> 0 | W175: 0 | Y175: =SUM(Y171:Y174) -> 0 | Z175: =SUM(Z171:Z174) -> 0 | AA175: 0 | AB175: 0 | AC175: TRUE | AE175: TRUE | AF175: TRUE | AG175: TRUE
A176: 6.05 | B176: Madarasa/Maktab | C176: 0 | D176: 0 | R176: 0 | S176: 0 | AA176: 0 | AB176: 0 | AC176: TRUE | AD176: 0 | AE176: TRUE | AF176: TRUE | AG176: TRUE
B177: (a) 12 months | C177: 0 | D177: 0 | I177: =C177-E177 -> 0 | J177: =D177-F177 -> 0 | O177: 0.06 | Q177: =O177*P177 -> 0 | R177: 0 | S177: 0 | X177: 0.06 | Z177: =X177*Y177 -> 0 | AA177: 0 | AB177: 0 | AC177: TRUE | AD177: 0 | AE177: TRUE | AF177: TRUE | AG177: TRUE
B178: (b) 9 months | C178: 0 | D178: 0 | I178: 0 | J178: 0 | O178: 0.045 | Q178: 0 | R178: 0 | S178: 0 | X178: 0.045 | Z178: 0 | AA178: 0 | AB178: 0 | AC178: TRUE | AD178: 0 | AE178: TRUE | AF178: TRUE | AG178: TRUE
B179: (c) 6 months | C179: 0 | D179: 0 | I179: 0 | J179: 0 | O179: 0.03 | Q179: 0 | R179: 0 | S179: 0 | X179: 0.03 | Z179: 0 | AA179: 0 | AB179: 0 | AC179: TRUE | AD179: 0 | AE179: TRUE | AF179: TRUE | AG179: TRUE
B180: (d) 3 months | C180: 0 | D180: 0 | I180: 0 | J180: 0 | O180: 0.015 | Q180: 0 | R180: 0 | S180: 0 | X180: 0.015 | Z180: 0 | AA180: 0 | AB180: 0 | AC180: TRUE | AD180: 0 | AE180: TRUE | AF180: TRUE | AG180: TRUE
B181: Sub Total | C181: 0 | D181: 0 | E181: =SUM(E177:E180) -> 0 | F181: =SUM(F177:F180) -> 0 | I181: =SUM(I177:I180) -> 0 | J181: 0 | K181: 0 | L181: 0 | M181: 0 | N181: 0 | P181: =SUM(P177:P180) -> 0 | Q181: =SUM(Q177:Q180) -> 0 | R181: 0 | S181: 0 | V181: =SUM(V177:V180) -> 0 | W181: 0 | Y181: =SUM(Y177:Y180) -> 0 | Z181: =SUM(Z177:Z180) -> 0 | AA181: 0 | AB181: 0 | AC181: TRUE | AD181: 0 | AE181: TRUE | AF181: TRUE | AG181: TRUE
A182: 6.06 | B182: Seasonal Hostel (Residential) | C182: 0 | D182: 0 | R182: 0 | S182: 0 | AA182: 0 | AB182: 0 | AC182: TRUE | AD182: 0 | AE182: TRUE | AF182: TRUE | AG182: TRUE
B183: (a) 12 months | C183: 0 | D183: 0 | I183: =C183-E183 -> 0 | J183: =D183-F183 -> 0 | O183: 0.2 | Q183: =O183*P183 -> 0 | R183: 0 | S183: 0 | X183: 0.2 | Z183: =X183*Y183 -> 0 | AA183: 0 | AB183: 0 | AC183: TRUE | AD183: 0 | AE183: TRUE | AF183: TRUE | AG183: TRUE
B184: (b) 9 months | C184: 0 | D184: 0 | I184: 0 | J184: 0 | O184: 0.15 | Q184: 0 | R184: 0 | S184: 0 | X184: 0.15 | Z184: 0 | AA184: 0 | AB184: 0 | AC184: TRUE | AD184: 0 | AE184: TRUE | AF184: TRUE | AG184: TRUE
B185: (c) 6 months | C185: 0 | D185: 0 | I185: 0 | J185: 0 | O185: 0.1 | Q185: 0 | R185: 0 | S185: 0 | X185: 0.1 | Z185: 0 | AA185: 0 | AB185: 0 | AC185: TRUE | AD185: 0 | AE185: TRUE | AF185: TRUE | AG185: TRUE
B186: (d) 3 months | C186: 0 | D186: 0 | I186: 0 | J186: 0 | O186: 0.05 | Q186: 0 | R186: 0 | S186: 0 | X186: 0.05 | Z186: 0 | AA186: 0 | AB186: 0 | AC186: TRUE | AD186: 0 | AE186: TRUE | AF186: TRUE | AG186: TRUE
B187: Sub Total | C187: 0 | D187: 0 | E187: =SUM(E183:E186) -> 0 | F187: 0 | G187: 0 | H187: 0 | I187: 0 | J187: 0 | K187: 0 | L187: 0 | M187: 0 | N187: 0 | P187: =SUM(P183:P186) -> 0 | Q187: 0 | R187: 0 | S187: 0 | V187: =SUM(V183:V186) -> 0 | W187: 0 | Y187: =SUM(Y183:Y186) -> 0 | Z187: =SUM(Z183:Z186) -> 0 | AA187: 0 | AB187: 0 | AC187: TRUE | AD187: 0 | AE187: TRUE | AF187: TRUE | AG187: TRUE
A188: 6.07 | B188: Seasonal Hostel (Non Residential) | C188: 0 | D188: 0 | R188: 0 | S188: 0 | AA188: 0 | AB188: 0 | AC188: TRUE | AD188: 0 | AE188: TRUE | AF188: TRUE | AG188: TRUE
B189: (a) 12 months | C189: 0 | D189: 0 | I189: =C189-E189 -> 0 | J189: =D189-F189 -> 0 | Q189: =O189*P189 -> 0 | R189: 0 | S189: 0 | Z189: =X189*Y189 -> 0 | AA189: 0 | AB189: 0 | AC189: TRUE | AD189: 0 | AE189: TRUE | AF189: TRUE | AG189: TRUE
B190: (b) 9 months | C190: 0 | D190: 0 | I190: 0 | J190: 0 | Q190: 0 | R190: 0 | S190: 0 | Z190: 0 | AA190: 0 | AB190: 0 | AC190: TRUE | AD190: 0 | AE190: TRUE | AF190: TRUE | AG190: TRUE
B191: (c) 6 months | C191: 0 | D191: 0 | I191: 0 | J191: 0 | Q191: 0 | R191: 0 | S191: 0 | Z191: 0 | AA191: 0 | AB191: 0 | AC191: TRUE | AD191: 0 | AE191: TRUE | AF191: TRUE | AG191: TRUE
B192: (d) 3 months | C192: 0 | D192: 0 | I192: 0 | J192: 0 | Q192: 0 | R192: 0 | S192: 0 | Z192: 0 | AA192: 0 | AB192: 0 | AC192: TRUE | AD192: 0 | AE192: TRUE | AF192: TRUE | AG192: TRUE
B193: Sub Total | C193: 0 | D193: 0 | E193: =SUM(E189:E192) -> 0 | F193: 0 | G193: 0 | H193: 0 | I193: 0 | J193: 0 | K193: 0 | L193: 0 | M193: 0 | N193: 0 | O193: 0 | P193: =SUM(P189:P192) -> 0 | Q193: 0 | R193: 0 | S193: 0 | V193: =SUM(V189:V192) -> 0 | W193: 0 | X193: 0 | Y193: =SUM(Y189:Y192) -> 0 | Z193: =SUM(Z189:Z192) -> 0 | AA193: 0 | AB193: 0 | AC193: TRUE | AD193: 0 | AE193: TRUE | AF193: TRUE | AG193: TRUE
B194: Total | C194: 133 | D194: 6.63 | E194: =SUM(E193,E187,E181,E175,E169,E163,E157) -> 133 | F194: 6.63 | G194: 100 | H194: 100 | I194: =SUM(I193,I187,I181,I175,I169,I163,I157) -> 0 | J194: 0 | K194: 0 | L194: 0 | M194: 0 | N194: 0 | O194: 0 | P194: =SUM(P193,P187,P181,P175,P169,P163,P157) -> 145 | Q194: =SUM(Q193,Q187,Q181,Q175,Q169,Q163,Q157) -> 7.575 | R194: 145 | S194: 7.575 | V194: =SUM(V193,V187,V181,V175,V169,V163,V157) -> 0 | W194: 0 | X194: 0 | Y194: =SUM(Y193,Y187,Y181,Y175,Y169,Y163,Y157) -> 145 | Z194: =SUM(Z193,Z187,Z181,Z175,Z169,Z163,Z157) -> 7.575 | AA194: 145 | AB194: 7.575 | AC194: TRUE | AE194: FALSE | AF194: FALSE | AG194: TRUE
A195: II | B195: RETENTION | C195: 0 | D195: 0 | Q195: =O195*P195 -> 0 | R195: 0 | S195: 0 | Z195: =X195*Y195 -> 0 | AA195: 0 | AB195: 0 | AC195: TRUE | AD195: 0 | AE195: TRUE | AF195: TRUE | AG195: TRUE
A196: 7 | B196: Free Text Books | C196: 0 | D196: 0 | Q196: 0 | R196: =P196+M196+K196 -> 0 | S196: =Q196+N196+L196 -> 0 | Z196: 0 | AA196: 0 | AB196: 0 | AC196: TRUE | AD196: 0 | AE196: TRUE | AF196: TRUE | AG196: TRUE
A197: 7.01 | B197: Free Text Books (P) | C197: 0 | D197: 0 | I197: =C197-E197 -> 0 | J197: =D197-F197 -> 0 | Q197: 0 | R197: 0 | S197: 0 | Z197: 0 | AA197: 0 | AB197: 0 | AC197: TRUE | AD197: 0 | AE197: TRUE | AF197: TRUE | AG197: TRUE
B198: (a) Class I & II | C198: 3850 | D198: 5.775 | E198: =C198 -> 3850 | F198: =D198 -> 5.775 | I198: 0 | J198: 0 | O198: 0.0015 | P198: 3890 | Q198: =O198*P198 -> 5.835 | R198: 3890 | S198: 5.835 | X198: 0.0015 | Y198: 3890 | Z198: =X198*Y198 -> 5.835 | AA198: 3890 | AB198: 5.835 | AC198: TRUE | AD198: 5.835 | AE198: TRUE | AF198: TRUE | AG198: TRUE
B199: (b) Braille Books Class I & II | C199: 1 | D199: 0.0015 | E199: =C199 -> 1 | F199: =D199 -> 0.0015 | I199: 0 | J199: 0 | O199: 0.0015 | P199: 1 | Q199: =O199*P199 -> 0.0015 | R199: 1 | S199: 0.0015 | X199: 0.0015 | Y199: 1 | Z199: =X199*Y199 -> 0.0015 | AA199: 1 | AB199: 0.0015 | AC199: TRUE | AD199: 0.0015 | AE199: TRUE | AF199: TRUE | AG199: TRUE
B200: (c) Large Print Books Class I & II | C200: 3 | D200: 0.0045 | E200: 3 | F200: 0.0045 | I200: 0 | J200: 0 | O200: 0.0015 | P200: 3 | Q200: 0.0045 | R200: 3 | S200: 0.0045 | X200: 0.0015 | Y200: 3 | Z200: 0.0045 | AA200: 3 | AB200: 0.0045 | AC200: TRUE | AD200: 0.0045 | AE200: TRUE | AF200: TRUE | AG200: TRUE
... 326 more rows

Sheet cmb
A1: District : Chamba
A2: S.No. | B2: Activity | C2: Year 2016-17 | K2: Outlay Proposed for the year 2017-18 | T2: Outlay Recommended for 2017-18
C3: Outlay approved by PAB (including spillover) | E3: Achievement during the year | I3: Savings | K3: Spill Over | M3: Deferred laibility | O3: Fresh | R3: Total | T3: Spill Over | V3: Deferred laibility of 2014-15 | X3: Fresh | AA3: Total
C4: Phy. | D4: Fin | E4: Phy. | F4: Fin. | G4: Phy. (%) | H4: Fin. (%) | I4: Phy. | J4: Fin. | K4: Phy. | L4: Fin. | M4: Phy. | N4: Fin. | O4: Unit Cost | P4: Phy. | Q4: Fin. | R4: Phy. | S4: Fin. | T4: Phy. | U4: Fin. | V4: Phy. | W4: Fin. | X4: Unit Cost | Y4: Phy. | Z4: Fin. | AA4: Phy. | AB4: Fin.
A5: I | B5: ACCESS | C5: 0 | R5: =P5 -> 0 | AA5: =Y5 -> 0
B6: SSA | C6: 0 | R6: =P6 -> 0 | AA6: =Y6 -> 0
A7: 1 | B7: Opening of New Schools | C7: 0 | D7: 0 | I7: 0 | J7: 0 | Q7: 0 | R7: 0 | S7: =Q7+L7 -> 0 | Z7: 0 | AA7: 0 | AB7: =Z7+U7 -> 0
A8: 1.01 | B8: New Primary School | I8: 0 | J8: 0 | P8: 10 | Q8: =O8*P8 -> 0 | R8: 10 | S8: =Q8+N8+L8 -> 0 | Y8: 10 | Z8: =X8*Y8 -> 0 | AA8: 10 | AB8: =Z8+W8+U8 -> 0 | AC8: =+Z8=Q8 -> TRUE | AD8: =+AB8 -> 0 | AF8: =+X8*Y8=Z8 -> TRUE | AG8: =+U8+W8+Z8=AB8 -> TRUE
A9: 1.02 | B9: Upgradation of PS to UPS | I9: 0 | J9: 0 | P9: 3 | Q9: =O9*P9 -> 0 | R9: 3 | S9: =Q9+N9+L9 -> 0 | Y9: 3 | Z9: =X9*Y9 -> 0 | AA9: 3 | AB9: =Z9+W9+U9 -> 0 | AC9: =+Z9=Q9 -> TRUE | AD9: =+AB9 -> 0 | AF9: =+X9*Y9=Z9 -> TRUE | AG9: =+U9+W9+Z9=AB9 -> TRUE
A10: 1.03 | B10: Composite Schools | C10: 0 | D10: 0 | I10: 0 | J10: 0 | Q10: 0 | R10: 0 | S10: 0 | Z10: 0 | AA10: 0 | AB10: 0 | AC10: TRUE | AD10: 0 | AF10: TRUE | AG10: TRUE
A11: 1.04 | B11: Residential schools for specific category of children | C11: 0 | D11: 0 | I11: 0 | J11: 0 | Q11: 0 | R11: 0 | S11: 0 | Z11: 0 | AA11: 0 | AB11: 0 | AC11: TRUE | AD11: 0 | AF11: TRUE | AG11: TRUE
A12: 1.05 | B12: Residential Hostel | C12: 0 | D12: 0 | I12: 0 | J12: 0 | Q12: 0 | R12: 0 | S12: 0 | Z12: 0 | AA12: 0 | AB12: 0 | AC12: TRUE | AD12: 0 | AF12: TRUE | AG12: TRUE
A13: 1.06 | B13: Integration of Class V with primary schools | C13: 0 | D13: 0 | I13: 0 | J13: 0 | Q13: 0 | R13: 0 | S13: 0 | Z13: 0 | AA13: 0 | AB13: 0 | AC13: TRUE | AD13: 0 | AF13: TRUE | AG13: TRUE
A14: 1.07 | B14: Integration of Class VIII with upper primary schools | C14: 0 | D14: 0 | I14: 0 | J14: 0 | Q14: 0 | R14: =P14 -> 0 | S14: 0 | Z14: 0 | AA14: =Y14 -> 0 | AB14: 0 | AC14: TRUE | AD14: 0 | AF14: TRUE | AG14: TRUE
A15: 2 | B15: Residential Schools for specific category of children | C15: 0 | D15: 0 | I15: 0 | J15: 0 | Q15: 0 | R15: =P15+K15 -> 0 | S15: 0 | Z15: 0 | AA15: =Y15+T15 -> 0 | AB15: 0 | AC15: TRUE | AD15: 0 | AF15: TRUE | AG15: TRUE
B16: 50 children | C16: 0 | D16: 0 | Q16: 0 | R16: 0 | S16: 0 | Z16: 0 | AA16: 0 | AB16: 0 | AC16: TRUE | AD16: 0 | AF16: TRUE | AG16: TRUE
B17: Non-recurring (one time grant) | C17: 0 | D17: 0 | Q17: 0 | R17: =P17+K17 -> 0 | S17: 0 | Z17: 0 | AA17: 0 | AB17: 0 | AC17: TRUE | AD17: 0 | AF17: TRUE | AG17: TRUE
A18: 2.01 | B18: Furniture/ Equipment (including kitchen) | C18: 0 | D18: 0 | I18: 0 | J18: 0 | O18: 3 | Q18: 0 | R18: =P18 -> 0 | S18: 0 | X18: 3 | Z18: 0 | AA18: =Y18 -> 0 | AB18: 0 | AC18: TRUE | AD18: 0 | AF18: TRUE | AG18: TRUE
A19: 2.02 | B19: TLM and equipment including library books | C19: 0 | D19: 0 | I19: 0 | J19: 0 | O19: 3.5 | Q19: 0 | R19: 0 | S19: 0 | X19: 3.5 | Z19: 0 | AA19: 0 | AB19: 0 | AC19: TRUE | AD19: 0 | AF19: TRUE | AG19: TRUE
A20: 2.03 | B20: Bedding (new) | C20: 0 | D20: 0 | I20: 0 | J20: 0 | O20: 0.75 | Q20: 0 | R20: 0 | S20: 0 | X20: 0.75 | Z20: 0 | AA20: 0 | AB20: 0 | AC20: TRUE | AD20: 0 | AF20: TRUE | AG20: TRUE
A21: 2.04 | B21: Replacement of bedding (once in 3 years) | C21: 0 | D21: 0 | I21: 0 | J21: 0 | O21: 0.75 | Q21: 0 | R21: 0 | S21: 0 | X21: 0.75 | Z21: 0 | AA21: 0 | AB21: 0 | AC21: TRUE | AD21: 0 | AF21: TRUE | AG21: TRUE
B22: Sub Total (Non Recurring) | C22: 0 | D22: 0 | Q22: 0 | R22: 0 | S22: 0 | Z22: 0 | AA22: =Y22+T22 -> 0 | AB22: 0 | AC22: TRUE | AD22: 0 | AF22: TRUE | AG22: TRUE
B23: Recurring (50 children) | C23: 0 | D23: 0 | Q23: 0 | R23: 0 | S23: 0 | Z23: =X23*Y23 -> 0 | AA23: 0 | AB23: 0 | AC23: TRUE | AD23: 0 | AF23: TRUE | AG23: TRUE
A24: 2.05 | B24: Maintenance per child Per month @ Rs.1500/- | C24: 0 | D24: 0 | I24: 0 | J24: 0 | O24: 9 | Q24: 0 | R24: =P24 -> 0 | S24: 0 | X24: 9 | Z24: 0 | AA24: =Y24 -> 0 | AB24: 0 | AC24: TRUE | AD24: 0 | AF24: TRUE | AG24: TRUE
A25: 2.06 | B25: Stipend per child per month @ Rs.100/- | C25: 0 | D25: 0 | I25: 0 | J25: 0 | O25: 0.6 | Q25: 0 | R25: 0 | S25: 0 | X25: 0.6 | Z25: 0 | AA25: 0 | AB25: 0 | AC25: TRUE | AD25: 0 | AF25: TRUE | AG25: TRUE
A26: 2.07 | B26: Supplementary TLM, Stationery and other educational material @Rs.1000/- per child per annum | C26: 0 | D26: 0 | I26: 0 | J26: 0 | O26: 0.5 | Q26: 0 | R26: 0 | S26: 0 | X26: 0.5 | Z26: 0 | AA26: 0 | AB26: 0 | AC26: TRUE | AD26: 0 | AF26: TRUE | AG26: TRUE
A27: 2.08 | B27: Salaries | C27: 0 | D27: 0 | I27: 0 | J27: 0 | Q27: 0 | R27: 0 | S27: 0 | Z27: 0 | AA27: 0 | AB27: 0 | AC27: TRUE | AD27: 0 | AF27: TRUE | AG27: TRUE
A28: (a) | B28: 1 Warden @ Rs.25000/- per month | C28: 0 | D28: 0 | I28: 0 | J28: 0 | O28: 3 | Q28: 0 | R28: 0 | S28: 0 | X28: 3 | Z28: 0 | AA28: 0 | AB28: 0 | AC28: TRUE | AD28: 0 | AF28: TRUE | AG28: TRUE
A29: (b) | B29: 4 Fulltime teachers as per RTE Norms @ Rs. 20,000/- per month per teacher | C29: 0 | D29: 0 | I29: 0 | J29: 0 | O29: 9.6 | Q29: 0 | R29: 0 | S29: 0 | X29: 9.6 | Z29: 0 | AA29: 0 | AB29: 0 | AC29: TRUE | AD29: 0 | AF29: TRUE | AG29: TRUE
A30: (c) | B30: 2 Urdu Teachers (only for Blocks with muslim population above 20% and select urban areas) @ Rs.12,000/- per month per teacher. | C30: 0 | D30: 0 | I30: 0 | J30: 0 | O30: 2.88 | Q30: 0 | R30: 0 | S30: 0 | X30: 2.88 | Z30: 0 | AA30: 0 | AB30: 0 | AC30: TRUE | AD30: 0 | AF30: TRUE | AG30: TRUE
A31: (d) | B31: 3 Part time teachers @ Rs.5,000/- per month per teacher | C31: 0 | D31: 0 | I31: 0 | J31: 0 | O31: 1.8 | Q31: 0 | R31: 0 | S31: 0 | X31: 1.8 | Z31: 0 | AA31: 0 | AB31: 0 | AC31: TRUE | AD31: 0 | AF31: TRUE | AG31: TRUE
A32: (e) | B32: 1 Full time Accountant @ Rs. 10,000/- per month | C32: 0 | D32: 0 | I32: 0 | J32: 0 | O32: 1.2 | Q32: 0 | R32: 0 | S32: 0 | X32: 1.2 | Z32: 0 | AA32: 0 | AB32: 0 | AC32: TRUE | AD32: 0 | AF32: TRUE | AG32: TRUE
A33: (f) | B33: 2 Support staff - (Accountant/Assistant, Peon, Chowkidar) @ Rs. 5,000/- per month per staff | C33: 0 | D33: 0 | I33: 0 | J33: 0 | O33: 1.2 | Q33: 0 | R33: 0 | S33: 0 | X33: 1.2 | Z33: 0 | AA33: 0 | AB33: 0 | AC33: TRUE | AD33: 0 | AF33: TRUE | AG33: TRUE
A34: (g) | B34: 1 Head Cook @ Rs. 6,000/- per month and upto 2 Asstt. Cooks @ Rs. 4,500/- per month per cook | C34: 0 | D34: 0 | I34: 0 | J34: 0 | O34: 1.26 | Q34: 0 | R34: 0 | S34: 0 | X34: 1.26 | Z34: 0 | AA34: 0 | AB34: 0 | AC34: TRUE | AD34: 0 | AF34: TRUE | AG34: TRUE
A35: 2.09 | B35: Specific Skill training @ Rs.1000/- per annum per child | C35: 0 | D35: 0 | I35: 0 | J35: 0 | O35: 0.5 | Q35: 0 | R35: 0 | S35: 0 | X35: 0.5 | Z35: 0 | AA35: 0 | AB35: 0 | AC35: TRUE | AD35: 0 | AF35: TRUE | AG35: TRUE
A36: 2.1 | B36: Electricity / water charges @ Rs. 1000/- per annum per child | C36: 0 | D36: 0 | I36: 0 | J36: 0 | O36: 0.5 | Q36: 0 | R36: 0 | S36: 0 | X36: 0.5 | Z36: 0 | AA36: 0 | AB36: 0 | AC36: TRUE | AD36: 0 | AF36: TRUE | AG36: TRUE
A37: =+A36+0.01 -> 2.11 | B37: Medical care/contingencies @ Rs.1250/- per annum per child | C37: 0 | D37: 0 | I37: 0 | J37: 0 | O37: 0.625 | Q37: 0 | R37: 0 | S37: 0 | X37: 0.625 | Z37: 0 | AA37: 0 | AB37: 0 | AC37: TRUE | AD37: 0 | AF37: TRUE | AG37: TRUE
A38: =+A37+0.01 -> 2.12 | B38: Maintenance @ Rs. 750/- per child per annum | C38: 0 | D38: 0 | I38: 0 | J38: 0 | O38: 0.375 | Q38: 0 | R38: 0 | S38: 0 | X38: 0.375 | Z38: 0 | AA38: 0 | AB38: 0 | AC38: TRUE | AD38: 0 | AF38: TRUE | AG38: TRUE
A39: 2.13 | B39: Miscellaneous @ Rs. 750/- per child per annum | C39: 0 | D39: 0 | I39: 0 | J39: 0 | O39: 0.375 | Q39: 0 | R39: 0 | S39: 0 | X39: 0.375 | Z39: 0 | AA39: 0 | AB39: 0 | AC39: TRUE | AD39: 0 | AF39: TRUE | AG39: TRUE
A40: 2.14 | B40: Preparatory camps @ Rs. 300/- per child per annum | C40: 0 | D40: 0 | I40: 0 | J40: 0 | O40: 0.15 | Q40: 0 | R40: 0 | S40: 0 | X40: 0.15 | Z40: 0 | AA40: 0 | AB40: 0 | AC40: TRUE | AD40: 0 | AF40: TRUE | AG40: TRUE
A41: 2.15 | B41: P.T.A / school functions @ Rs. 300/- per child per annum | C41: 0 | D41: 0 | I41: 0 | J41: 0 | O41: 0.15 | Q41: 0 | R41: 0 | S41: 0 | X41: 0.15 | Z41: 0 | AA41: 0 | AB41: 0 | AC41: TRUE | AD41: 0 | AF41: TRUE | AG41: TRUE
A42: 2.16 | B42: Provision of Rent @ Rs. 10,000/- per child per annum | C42: 0 | D42: 0 | I42: 0 | J42: 0 | O42: 1.2 | Q42: 0 | R42: 0 | S42: 0 | X42: 1.2 | Z42: 0 | AA42: 0 | AB42: 0 | AC42: TRUE | AD42: 0 | AF42: TRUE | AG42: TRUE
A43: 2.17 | B43: Capacity Building @ Rs. 500/- per child per annum | C43: 0 | D43: 0 | I43: 0 | J43: 0 | O43: 2.5 | Q43: 0 | R43: 0 | S43: 0 | X43: 2.5 | Z43: 0 | AA43: 0 | AB43: 0 | AC43: TRUE | AD43: 0 | AF43: TRUE | AG43: TRUE
A44: 2.18 | B44: Physical / Self Defence Training @ Rs.200/- per child per annum | C44: 0 | D44: 0 | I44: 0 | J44: 0 | O44: 0.1 | Q44: 0 | R44: 0 | S44: 0 | X44: 0.1 | Z44: 0 | AA44: 0 | AB44: 0 | AC44: TRUE | AD44: 0 | AF44: TRUE | AG44: TRUE
B45: Sub Total (Recurring) | C45: 0 | D45: 0 | Q45: 0 | R45: 0 | S45: 0 | Z45: 0 | AA45: =Y45+T45 -> 0 | AB45: 0 | AC45: TRUE | AD45: 0 | AF45: TRUE | AG45: TRUE
B46: Total (Non Recurring + Recurring) | C46: 0 | D46: 0 | Q46: 0 | R46: 0 | S46: 0 | Z46: 0 | AA46: 0 | AB46: 0 | AC46: TRUE | AD46: 0 | AF46: TRUE | AG46: TRUE
B47: 100 children | C47: 0 | D47: 0 | Q47: =O47*P47 -> 0 | R47: 0 | S47: 0 | Z47: =X47*Y47 -> 0 | AA47: 0 | AB47: 0 | AC47: TRUE | AD47: 0 | AF47: TRUE | AG47: TRUE
B48: Non-recurring (one time grant) | C48: 0 | D48: 0 | Q48: 0 | R48: 0 | S48: 0 | Z48: 0 | AA48: 0 | AB48: 0 | AC48: TRUE | AD48: 0 | AF48: TRUE | AG48: TRUE
A49: 2.19 | B49: Furniture / Equipment (including kitchen equipment) | C49: 0 | D49: 0 | I49: 0 | J49: 0 | Q49: 0 | R49: =P49 -> 0 | S49: 0 | Z49: 0 | AA49: =Y49 -> 0 | AB49: 0 | AC49: TRUE | AD49: 0 | AF49: TRUE | AG49: TRUE
A50: =+A49+0.01 -> 2.2 | B50: TLM and equipment including library books (New) | C50: 0 | D50: 0 | I50: 0 | J50: 0 | Q50: 0 | R50: 0 | S50: 0 | Z50: 0 | AA50: 0 | AB50: 0 | AC50: TRUE | AD50: 0 | AF50: TRUE | AG50: TRUE
A51: 2.21 | B51: Bedding (New) | C51: 0 | D51: 0 | I51: 0 | J51: 0 | Q51: 0 | R51: 0 | S51: 0 | Z51: 0 | AA51: 0 | AB51: 0 | AC51: TRUE | AD51: 0 | AF51: TRUE | AG51: TRUE
A52: 2.22 | B52: Replacement of bedding (once in 3 years) | C52: 0 | D52: 0 | I52: 0 | J52: 0 | Q52: 0 | R52: 0 | S52: 0 | Z52: 0 | AA52: 0 | AB52: 0 | AC52: TRUE | AD52: 0 | AF52: TRUE | AG52: TRUE
B53: Sub Total Non-recurring | C53: 0 | D53: 0 | O53: 0 | Q53: 0 | R53: 0 | S53: 0 | X53: 0 | Z53: 0 | AA53: =Y53+T53 -> 0 | AB53: 0 | AC53: TRUE | AD53: 0 | AF53: TRUE | AG53: TRUE
B54: Recurring | C54: 0 | D54: 0 | Q54: 0 | R54: 0 | S54: 0 | Z54: 0 | AA54: 0 | AB54: 0 | AC54: TRUE | AD54: 0 | AF54: TRUE | AG54: TRUE
A55: 2.23 | B55: Maintenance per child per month @ Rs. 1500/- | C55: 0 | D55: 0 | I55: 0 | J55: 0 | Q55: 0 | R55: =P55 -> 0 | S55: 0 | Z55: 0 | AA55: =Y55 -> 0 | AB55: 0 | AC55: TRUE | AD55: 0 | AF55: TRUE | AG55: TRUE
A56: =+A55+0.01 -> 2.24 | B56: Stipend per child per month @ Rs.100/- | C56: 0 | D56: 0 | I56: 0 | J56: 0 | Q56: 0 | R56: 0 | S56: 0 | Z56: 0 | AA56: 0 | AB56: 0 | AC56: TRUE | AD56: 0 | AF56: TRUE | AG56: TRUE
A57: 2.25 | B57: Supplementary TLM, Stationery and other educational material per child @1000/- per annum | C57: 0 | D57: 0 | I57: 0 | J57: 0 | Q57: 0 | R57: 0 | S57: 0 | Z57: 0 | AA57: 0 | AB57: 0 | AC57: TRUE | AD57: 0 | AF57: TRUE | AG57: TRUE
A58: 2.26 | B58: Salaries | C58: 0 | D58: 0 | I58: 0 | J58: 0 | Q58: 0 | R58: 0 | S58: 0 | Z58: 0 | AA58: 0 | AB58: 0 | AC58: TRUE | AD58: 0 | AF58: TRUE | AG58: TRUE
A59: (a) | B59: 1 Warden @ Rs. 25,000/- per month | C59: 0 | D59: 0 | I59: 0 | J59: 0 | Q59: 0 | R59: 0 | S59: 0 | Z59: 0 | AA59: 0 | AB59: 0 | AC59: TRUE | AD59: 0 | AF59: TRUE | AG59: TRUE
A60: (b) | B60: 1 head teacher @ Rs. 25,000/- per month in case the enrollment exceeds 100 | C60: 0 | D60: 0 | I60: 0 | J60: 0 | Q60: 0 | R60: 0 | S60: 0 | Z60: 0 | AA60: 0 | AB60: 0 | AC60: TRUE | AD60: 0 | AF60: TRUE | AG60: TRUE
A61: (c) | B61: 4 - 5 Full time teachers as per RTE norms @ Rs. 20,000/- per month per teacher | C61: 0 | D61: 0 | I61: 0 | J61: 0 | Q61: 0 | R61: 0 | S61: 0 | Z61: 0 | AA61: 0 | AB61: 0 | AC61: TRUE | AD61: 0 | AF61: TRUE | AG61: TRUE
A62: (d) | B62: 2 Urdu Teachers (only for blocks with muslim population above 20% and select urban areas), if required @ Rs. 12,000/- per month per teacher | C62: 0 | D62: 0 | I62: 0 | J62: 0 | Q62: 0 | R62: 0 | S62: 0 | Z62: 0 | AA62: 0 | AB62: 0 | AC62: TRUE | AD62: 0 | AF62: TRUE | AG62: TRUE
A63: (e) | B63: 3 part time teachers @ Rs. 5,000/- per month per teacher | C63: 0 | D63: 0 | I63: 0 | J63: 0 | Q63: 0 | R63: 0 | S63: 0 | Z63: 0 | AA63: 0 | AB63: 0 | AC63: TRUE | AD63: 0 | AF63: TRUE | AG63: TRUE
A64: (f) | B64: 1 Full time Accountant @ Rs. 10,000/- per month | C64: 0 | D64: 0 | I64: 0 | J64: 0 | Q64: 0 | R64: 0 | S64: 0 | Z64: 0 | AA64: 0 | AB64: 0 | AC64: TRUE | AD64: 0 | AF64: TRUE | AG64: TRUE
A65: (g) | B65: 2 Support Staff – (Accountant/ Assistant, Peon, Chowkidar) @ Rs. 5,000/- per month per staff | C65: 0 | D65: 0 | I65: 0 | J65: 0 | Q65: 0 | R65: 0 | S65: 0 | Z65: 0 | AA65: 0 | AB65: 0 | AC65: TRUE | AD65: 0 | AF65: TRUE | AG65: TRUE
A66: (h) | B66: 1 Head cook @ Rs. 6,000/- per month and upto 2 Asstt. Cooks @ Rs. 4,500/- per month per cook | C66: 0 | D66: 0 | I66: 0 | J66: 0 | Q66: 0 | R66: 0 | S66: 0 | Z66: 0 | AA66: 0 | AB66: 0 | AC66: TRUE | AD66: 0 | AF66: TRUE | AG66: TRUE
A67: 2.27 | B67: Specific skill training per child @ Rs.1000/- per annum | C67: 0 | D67: 0 | I67: 0 | J67: 0 | Q67: 0 | R67: 0 | S67: 0 | Z67: 0 | AA67: 0 | AB67: 0 | AC67: TRUE | AD67: 0 | AF67: TRUE | AG67: TRUE
A68: 2.28 | B68: Electricity / water charges per child @Rs.1000/- per annum | C68: 0 | D68: 0 | I68: 0 | J68: 0 | Q68: 0 | R68: 0 | S68: 0 | Z68: 0 | AA68: 0 | AB68: 0 | AC68: TRUE | AD68: 0 | AF68: TRUE | AG68: TRUE
A69: 2.29 | B69: Medical care/contingencies @ Rs.1250/- per child per annum | C69: 0 | D69: 0 | I69: 0 | J69: 0 | Q69: 0 | R69: 0 | S69: 0 | Z69: 0 | AA69: 0 | AB69: 0 | AC69: TRUE | AD69: 0 | AF69: TRUE | AG69: TRUE
A70: 2.3 | B70: Maintenance @ Rs.750/- per child per annum | C70: 0 | D70: 0 | I70: 0 | J70: 0 | Q70: 0 | R70: 0 | S70: 0 | Z70: 0 | AA70: 0 | AB70: 0 | AC70: TRUE | AD70: 0 | AF70: TRUE | AG70: TRUE
A71: 2.31 | B71: Miscellaneous @ Rs.750/- per child per annum | C71: 0 | D71: 0 | I71: 0 | J71: 0 | Q71: 0 | R71: 0 | S71: 0 | Z71: 0 | AA71: 0 | AB71: 0 | AC71: TRUE | AD71: 0 | AF71: TRUE | AG71: TRUE
A72: 2.32 | B72: Preparatory camps @ Rs.200/- per child per annum | C72: 0 | D72: 0 | I72: 0 | J72: 0 | Q72: 0 | R72: 0 | S72: 0 | Z72: 0 | AA72: 0 | AB72: 0 | AC72: TRUE | AD72: 0 | AF72: TRUE | AG72: TRUE
A73: 2.33 | B73: P.T.A / school functions @ Rs.200/- per child per annum | C73: 0 | D73: 0 | I73: 0 | J73: 0 | Q73: 0 | R73: 0 | S73: =Q73+N73+L73 -> 0 | Z73: 0 | AA73: 0 | AB73: =Z73+W73+U73 -> 0 | AC73: =+Z73=Q73 -> TRUE | AD73: =+AB73 -> 0 | AF73: =+X73*Y73=Z73 -> TRUE | AG73: =+U73+W73+Z73=AB73 -> TRUE
A74: 2.34 | B74: Provision of Rent @ Rs. 6000/- per child per annum | C74: 0 | D74: 0 | I74: 0 | J74: 0 | Q74: 0 | R74: 0 | S74: 0 | Z74: 0 | AA74: 0 | AB74: 0 | AC74: TRUE | AD74: 0 | AF74: TRUE | AG74: TRUE
A75: 2.35 | B75: Capacity Building @ Rs.500/- per child per annum | C75: 0 | D75: 0 | I75: 0 | J75: 0 | Q75: 0 | R75: 0 | S75: 0 | Z75: 0 | AA75: 0 | AB75: 0 | AC75: TRUE | AD75: 0 | AF75: TRUE | AG75: TRUE
A76: 2.36 | B76: Physical / Self Defence training @ Rs. 200/- per child per annum. | C76: 0 | D76: 0 | I76: 0 | J76: 0 | Q76: 0 | R76: 0 | S76: 0 | Z76: 0 | AA76: 0 | AB76: 0 | AC76: TRUE | AD76: 0 | AF76: TRUE | AG76: TRUE
B77: Sub Total (Recurring) | C77: 0 | D77: 0 | E77: 0 | F77: 0 | I77: 0 | J77: 0 | K77: 0 | L77: 0 | M77: 0 | N77: 0 | O77: 0 | Q77: 0 | R77: 0 | S77: 0 | V77: 0 | W77: 0 | X77: 0 | Z77: 0 | AA77: =Y77+T77 -> 0 | AB77: 0 | AC77: TRUE | AD77: 0 | AF77: TRUE | AG77: TRUE
B78: Total (Recurring + Non Recurring) | C78: 0 | D78: 0 | E78: 0 | F78: 0 | I78: 0 | J78: 0 | K78: 0 | L78: 0 | M78: 0 | N78: 0 | Q78: 0 | R78: 0 | S78: 0 | V78: 0 | W78: 0 | Z78: 0 | AA78: 0 | AB78: 0 | AC78: TRUE | AD78: 0 | AF78: TRUE | AG78: TRUE
B79: Total (50 + 100 children) | C79: 0 | D79: 0 | Q79: 0 | R79: 0 | S79: 0 | Z79: 0 | AA79: 0 | AB79: 0 | AC79: TRUE | AD79: 0 | AF79: TRUE | AG79: TRUE
A80: 3 | B80: Residential Hostel for specific category of children | C80: 0 | D80: 0 | Q80: 0 | R80: 0 | S80: 0 | Z80: 0 | AA80: 0 | AB80: 0 | AC80: TRUE | AD80: 0 | AF80: TRUE | AG80: TRUE
A81: (A) | B81: 50 children | C81: 0 | D81: 0 | Q81: 0 | R81: =P81+K81 -> 0 | S81: 0 | Z81: 0 | AA81: 0 | AB81: 0 | AC81: TRUE | AD81: 0 | AF81: TRUE | AG81: TRUE
B82: Non-recurring (one time grant) | C82: 0 | D82: 0 | Q82: 0 | R82: 0 | S82: 0 | Z82: 0 | AA82: 0 | AB82: 0 | AC82: TRUE | AD82: 0 | AF82: TRUE | AG82: TRUE
A83: 3.01 | B83: Furniture/ Equipment (including kitchen) | C83: 0 | D83: 0 | I83: 0 | J83: 0 | Q83: 0 | R83: =P83 -> 0 | S83: 0 | Z83: 0 | AA83: =Y83 -> 0 | AB83: 0 | AC83: TRUE | AD83: 0 | AF83: TRUE | AG83: TRUE
A84: =+A83+0.01 -> 3.02 | B84: TLM and equipment including library books | C84: 0 | D84: 0 | I84: 0 | J84: 0 | Q84: 0 | R84: 0 | S84: 0 | Z84: 0 | AA84: 0 | AB84: 0 | AC84: TRUE | AD84: 0 | AF84: TRUE | AG84: TRUE
A85: 3.03 | B85: Bedding (new) | C85: 0 | D85: 0 | I85: 0 | J85: 0 | Q85: 0 | R85: 0 | S85: 0 | Z85: 0 | AA85: 0 | AB85: 0 | AC85: TRUE | AD85: 0 | AF85: TRUE | AG85: TRUE
A86: 3.04 | B86: Replacement of bedding (once in 3 years) | C86: 0 | D86: 0 | I86: 0 | J86: 0 | Q86: 0 | R86: 0 | S86: 0 | Z86: 0 | AA86: 0 | AB86: 0 | AC86: TRUE | AD86: 0 | AF86: TRUE | AG86: TRUE
B87: Sub Total (Non Recurring) | C87: 0 | D87: 0 | E87: 0 | F87: 0 | I87: 0 | J87: 0 | K87: 0 | L87: 0 | M87: 0 | N87: 0 | Q87: 0 | R87: 0 | S87: 0 | V87: 0 | W87: 0 | Z87: 0 | AA87: =Y87+T87 -> 0 | AB87: 0 | AC87: TRUE | AD87: 0 | AF87: TRUE | AG87: TRUE
B88: Recurring (50 children) | C88: 0 | D88: 0 | Q88: 0 | R88: 0 | S88: 0 | Z88: 0 | AA88: 0 | AB88: 0 | AC88: TRUE | AD88: 0 | AF88: TRUE | AG88: TRUE
A89: 3.05 | B89: Maintenance per child Per month @ Rs.1500/- | C89: 0 | D89: 0 | I89: 0 | J89: 0 | Q89: 0 | R89: =P89 -> 0 | S89: 0 | Z89: 0 | AA89: =Y89 -> 0 | AB89: 0 | AC89: TRUE | AD89: 0 | AF89: TRUE | AG89: TRUE
A90: =+A89+0.01 -> 3.06 | B90: Stipend per child per month @ Rs.100/- | C90: 0 | D90: 0 | I90: 0 | J90: 0 | Q90: 0 | R90: 0 | S90: 0 | Z90: 0 | AA90: 0 | AB90: 0 | AC90: TRUE | AD90: 0 | AF90: TRUE | AG90: TRUE
A91: 3.07 | B91: Supplementary TLM, Stationery and other educational material @Rs.1000/- per child per annum | C91: 0 | D91: 0 | I91: 0 | J91: 0 | Q91: 0 | R91: 0 | S91: 0 | Z91: 0 | AA91: 0 | AB91: 0 | AC91: TRUE | AD91: 0 | AF91: TRUE | AG91: TRUE
B92: Salaries | C92: 0 | D92: 0 | Q92: 0 | R92: 0 | S92: 0 | Z92: 0 | AA92: 0 | AB92: 0 | AC92: TRUE | AD92: 0 | AF92: TRUE | AG92: TRUE
A93: (a) | B93: 1 Warden @ Rs.25000/- per month | C93: 0 | D93: 0 | Q93: 0 | R93: 0 | S93: 0 | Z93: 0 | AA93: 0 | AB93: 0 | AC93: TRUE | AD93: 0 | AF93: TRUE | AG93: TRUE
A94: (b) | B94: 4 Fulltime teachers as per RTE Norms @ Rs. 20,000/- per month per teacher | C94: 0 | D94: 0 | Q94: 0 | R94: 0 | S94: 0 | Z94: 0 | AA94: 0 | AB94: 0 | AC94: TRUE | AD94: 0 | AF94: TRUE | AG94: TRUE
A95: (c) | B95: 2 Urdu Teachers (only for Blocks with muslim population above 20% and select urban areas) @ Rs.12,000/- per month per teacher. | C95: 0 | D95: 0 | Q95: 0 | R95: 0 | S95: 0 | Z95: 0 | AA95: 0 | AB95: 0 | AC95: TRUE | AD95: 0 | AF95: TRUE | AG95: TRUE
A96: (d) | B96: 3 Part time teachers @ Rs.5,000/- per month per teacher | C96: 0 | D96: 0 | Q96: 0 | R96: 0 | S96: 0 | Z96: 0 | AA96: 0 | AB96: 0 | AC96: TRUE | AD96: 0 | AF96: TRUE | AG96: TRUE
A97: (e) | B97: 1 Full time Accountant @ Rs. 10,000/- per month | C97: 0 | D97: 0 | Q97: 0 | R97: 0 | S97: 0 | Z97: 0 | AA97: 0 | AB97: 0 | AC97: TRUE | AD97: 0 | AF97: TRUE | AG97: TRUE
A98: (f) | B98: 2 Support staff - (Accountant/Assistant, Peon, Chowkidar) @ Rs. 5,000/- per month per staff | C98: 0 | D98: 0 | Q98: 0 | R98: 0 | S98: 0 | Z98: 0 | AA98: 0 | AB98: 0 | AC98: TRUE | AD98: 0 | AF98: TRUE | AG98: TRUE
A99: (g) | B99: 1 Head Cook @ Rs. 6,000/- per month and upto 2 Asstt. Cooks @ Rs. 4,500/- per month per cook | C99: 0 | D99: 0 | Q99: 0 | R99: 0 | S99: 0 | Z99: 0 | AA99: 0 | AB99: 0 | AC99: TRUE | AD99: 0 | AF99: TRUE | AG99: TRUE
A100: 3.08 | B100: Specific Skill training @ Rs.1000/- per annum per child | C100: 0 | D100: 0 | Q100: 0 | R100: 0 | S100: 0 | Z100: 0 | AA100: 0 | AB100: 0 | AC100: TRUE | AD100: 0 | AF100: TRUE | AG100: TRUE
A101: =+A100+0.01 -> 3.09 | B101: Electricity / water charges @ Rs. 1000/- per annum per child | C101: 0 | D101: 0 | Q101: 0 | R101: 0 | S101: 0 | Z101: 0 | AA101: 0 | AB101: 0 | AC101: TRUE | AD101: 0 | AF101: TRUE | AG101: TRUE
A102: 3.1 | B102: Medical care/contingencies @ Rs.1250/- per annum per child | C102: 0 | D102: 0 | Q102: 0 | R102: 0 | S102: 0 | Z102: 0 | AA102: 0 | AB102: 0 | AC102: TRUE | AD102: 0 | AF102: TRUE | AG102: TRUE
A103: 3.11 | B103: Maintenance @ Rs. 750/- per child per annum | C103: 0 | D103: 0 | Q103: 0 | R103: 0 | S103: 0 | Z103: 0 | AA103: 0 | AB103: 0 | AC103: TRUE | AD103: 0 | AF103: TRUE | AG103: TRUE
A104: 3.12 | B104: Miscellaneous @ Rs. 750/- per child per annum | C104: 0 | D104: 0 | Q104: 0 | R104: 0 | S104: 0 | Z104: 0 | AA104: 0 | AB104: 0 | AC104: TRUE | AD104: 0 | AF104: TRUE | AG104: TRUE
A105: 3.13 | B105: Preparatory camps @ Rs. 300/- per child per annum | C105: 0 | D105: 0 | Q105: 0 | R105: 0 | S105: 0 | Z105: 0 | AA105: 0 | AB105: 0 | AC105: TRUE | AD105: 0 | AF105: TRUE | AG105: TRUE
A106: 3.14 | B106: P.T.A / school functions @ Rs. 300/- per child per annum | C106: 0 | D106: 0 | Q106: 0 | R106: 0 | S106: 0 | Z106: 0 | AA106: 0 | AB106: 0 | AC106: TRUE | AD106: 0 | AF106: TRUE | AG106: TRUE
A107: 3.15 | B107: Provision of Rent @ Rs. 10,000/- per child per annum | C107: 0 | D107: 0 | Q107: 0 | R107: 0 | S107: 0 | Z107: 0 | AA107: 0 | AB107: 0 | AC107: TRUE | AD107: 0 | AF107: TRUE | AG107: TRUE
A108: 3.16 | B108: Capacity Building @ Rs. 500/- per child per annum | C108: 0 | D108: 0 | Q108: 0 | R108: 0 | S108: 0 | Z108: 0 | AA108: 0 | AB108: 0 | AC108: TRUE | AD108: 0 | AF108: TRUE | AG108: TRUE
A109: 3.17 | B109: Physical / Self Defence Training @ Rs.200/- per child per annum | C109: 0 | D109: 0 | Q109: 0 | R109: 0 | S109: 0 | Z109: 0 | AA109: 0 | AB109: 0 | AC109: TRUE | AD109: 0 | AF109: TRUE | AG109: TRUE
B110: Sub Total (Recurring) | C110: 0 | D110: 0 | Q110: 0 | R110: 0 | S110: 0 | Z110: 0 | AA110: =Y110+T110 -> 0 | AB110: 0 | AC110: TRUE | AD110: 0 | AF110: TRUE | AG110: TRUE
B111: Total (Non Recurring + Recurring) | C111: 0 | D111: 0 | Q111: =O111*P111 -> 0 | R111: 0 | S111: 0 | Z111: =X111*Y111 -> 0 | AA111: 0 | AB111: 0 | AC111: TRUE | AD111: 0 | AF111: TRUE | AG111: TRUE
A112: (B) | B112: 100 Children | C112: 0 | D112: 0 | Q112: 0 | R112: 0 | S112: 0 | Z112: 0 | AA112: 0 | AB112: 0 | AC112: TRUE | AD112: 0 | AF112: TRUE | AG112: TRUE
B113: Non-recurring (one time grant) | C113: 0 | D113: 0 | Q113: 0 | R113: 0 | S113: 0 | Z113: 0 | AA113: 0 | AB113: 0 | AC113: TRUE | AD113: 0 | AF113: TRUE | AG113: TRUE
A114: 3.18 | B114: Furniture / Equipment (including kitchen equipment) | C114: 0 | D114: 0 | Q114: 0 | R114: =P114 -> 0 | S114: 0 | Z114: 0 | AA114: =Y114 -> 0 | AB114: 0 | AC114: TRUE | AD114: 0 | AF114: TRUE | AG114: TRUE
A115: =+A114+0.01 -> 3.19 | B115: TLM and equipment including library books (New) | C115: 0 | D115: 0 | Q115: 0 | R115: 0 | S115: 0 | Z115: 0 | AA115: 0 | AB115: 0 | AC115: TRUE | AD115: 0 | AF115: TRUE | AG115: TRUE
A116: 3.2 | B116: Bedding (New) | C116: 0 | D116: 0 | Q116: 0 | R116: 0 | S116: 0 | Z116: 0 | AA116: 0 | AB116: 0 | AC116: TRUE | AD116: 0 | AF116: TRUE | AG116: TRUE
A117: 3.21 | B117: Replacement of bedding (once in 3 years) | C117: 0 | D117: 0 | Q117: 0 | R117: 0 | S117: 0 | Z117: 0 | AA117: 0 | AB117: 0 | AC117: TRUE | AD117: 0 | AF117: TRUE | AG117: TRUE
B118: Sub Total Non-recurring | C118: 0 | D118: 0 | R118: 0 | S118: 0 | AA118: =Y118+T118 -> 0 | AB118: 0 | AC118: TRUE | AD118: 0 | AF118: TRUE | AG118: TRUE
B119: Recurring | C119: 0 | D119: 0 | Q119: 0 | R119: 0 | S119: 0 | Z119: =X119*Y119 -> 0 | AA119: 0 | AB119: 0 | AC119: TRUE | AD119: 0 | AF119: TRUE | AG119: TRUE
A120: 3.22 | B120: Maintenance per child per month @ Rs. 1500/- | C120: 0 | D120: 0 | Q120: 0 | R120: =P120 -> 0 | S120: 0 | Z120: 0 | AA120: =Y120 -> 0 | AB120: 0 | AC120: TRUE | AD120: 0 | AF120: TRUE | AG120: TRUE
A121: =+A120+0.01 -> 3.23 | B121: Stipend per child per month @ Rs.100/- | C121: 0 | D121: 0 | Q121: 0 | R121: 0 | S121: 0 | Z121: 0 | AA121: 0 | AB121: 0 | AC121: TRUE | AD121: 0 | AF121: TRUE | AG121: TRUE
A122: 3.24 | B122: Supplementary TLM, Stationery and other educational material per child @1000/- per annum | C122: 0 | D122: 0 | Q122: 0 | R122: 0 | S122: 0 | Z122: 0 | AA122: 0 | AB122: 0 | AC122: TRUE | AD122: 0 | AF122: TRUE | AG122: TRUE
B123: Salaries | C123: 0 | D123: 0 | Q123: 0 | R123: 0 | S123: 0 | Z123: 0 | AA123: 0 | AB123: 0 | AC123: TRUE | AD123: 0 | AF123: TRUE | AG123: TRUE
A124: (a) | B124: 1 Warden @ Rs. 25,000/- per month | C124: 0 | D124: 0 | Q124: 0 | R124: 0 | S124: 0 | Z124: 0 | AA124: 0 | AB124: 0 | AC124: TRUE | AD124: 0 | AF124: TRUE | AG124: TRUE
A125: (b) | B125: 1 head teacher @ Rs. 25,000/- per month in case the enrollment exceeds 100 | C125: 0 | D125: 0 | Q125: 0 | R125: 0 | S125: 0 | Z125: 0 | AA125: 0 | AB125: 0 | AC125: TRUE | AD125: 0 | AF125: TRUE | AG125: TRUE
A126: (c) | B126: 4 - 5 Full time teachers as per RTE norms @ Rs. 20,000/- per month per teacher | C126: 0 | D126: 0 | Q126: 0 | R126: 0 | S126: 0 | Z126: 0 | AA126: 0 | AB126: 0 | AC126: TRUE | AD126: 0 | AF126: TRUE | AG126: TRUE
A127: (d) | B127: 2 Urdu Teachers (only for blocks with muslim population above 20% and select urban areas), if required @ Rs. 12,000/- per month per teacher | C127: 0 | D127: 0 | Q127: 0 | R127: 0 | S127: 0 | Z127: 0 | AA127: 0 | AB127: 0 | AC127: TRUE | AD127: 0 | AF127: TRUE | AG127: TRUE
A128: (e) | B128: 3 part time teachers @ Rs. 5,000/- per month per teacher | C128: 0 | D128: 0 | Q128: 0 | R128: 0 | S128: 0 | Z128: 0 | AA128: 0 | AB128: 0 | AC128: TRUE | AD128: 0 | AF128: TRUE | AG128: TRUE
A129: (f) | B129: 1 Full time Accountant @ Rs. 10,000/- per month | C129: 0 | D129: 0 | Q129: 0 | R129: 0 | S129: 0 | Z129: 0 | AA129: 0 | AB129: 0 | AC129: TRUE | AD129: 0 | AF129: TRUE | AG129: TRUE
A130: 3.25 | B130: 2 Support Staff – (Accountant/ Assistant, Peon, Chowkidar) @ Rs. 5,000/- per month per staff | C130: 0 | D130: 0 | Q130: 0 | R130: 0 | S130: 0 | Z130: 0 | AA130: 0 | AB130: 0 | AC130: TRUE | AD130: 0 | AF130: TRUE | AG130: TRUE
A131: =+A130+0.01 -> 3.26 | B131: 1 Head cook @ Rs. 6,000/- per month and upto 2 Asstt. Cooks @ Rs. 4,500/- per month per cook | C131: 0 | D131: 0 | Q131: 0 | R131: 0 | S131: 0 | Z131: 0 | AA131: 0 | AB131: 0 | AC131: TRUE | AD131: 0 | AF131: TRUE | AG131: TRUE
A132: 3.27 | B132: Specific skill training per child @ Rs.1000/- per annum | C132: 0 | D132: 0 | Q132: 0 | R132: 0 | S132: 0 | Z132: 0 | AA132: 0 | AB132: 0 | AC132: TRUE | AD132: 0 | AF132: TRUE | AG132: TRUE
A133: 3.28 | B133: Electricity / water charges per child @Rs.1000/- per annum | C133: 0 | D133: 0 | Q133: 0 | R133: 0 | S133: 0 | Z133: 0 | AA133: 0 | AB133: 0 | AC133: TRUE | AD133: 0 | AF133: TRUE | AG133: TRUE
A134: 3.29 | B134: Medical care/contingencies @ Rs.1250/- per child per annum | C134: 0 | D134: 0 | Q134: 0 | R134: 0 | S134: 0 | Z134: 0 | AA134: 0 | AB134: 0 | AC134: TRUE | AD134: 0 | AF134: TRUE | AG134: TRUE
A135: 3.3 | B135: Maintenance @ Rs.750/- per child per annum | C135: 0 | D135: 0 | Q135: 0 | R135: 0 | S135: 0 | Z135: 0 | AA135: 0 | AB135: 0 | AC135: TRUE | AD135: 0 | AF135: TRUE | AG135: TRUE
A136: 3.31 | B136: Miscellaneous @ Rs.750/- per child per annum | C136: 0 | D136: 0 | Q136: 0 | R136: 0 | S136: 0 | Z136: 0 | AA136: 0 | AB136: 0 | AC136: TRUE | AD136: 0 | AF136: TRUE | AG136: TRUE
A137: 3.32 | B137: Preparatory camps @ Rs.200/- per child per annum | C137: 0 | D137: 0 | Q137: 0 | R137: 0 | S137: =Q137+N137+L137 -> 0 | Z137: 0 | AA137: 0 | AB137: =Z137+W137+U137 -> 0 | AC137: =+Z137=Q137 -> TRUE | AD137: =+AB137 -> 0 | AF137: =+X137*Y137=Z137 -> TRUE | AG137: =+U137+W137+Z137=AB137 -> TRUE
A138: 3.33 | B138: P.T.A / school functions @ Rs.200/- per child per annum | C138: 0 | D138: 0 | Q138: 0 | R138: 0 | S138: 0 | Z138: 0 | AA138: 0 | AB138: 0 | AC138: TRUE | AD138: 0 | AF138: TRUE | AG138: TRUE
A139: 3.34 | B139: Provision of Rent @ Rs. 6000/- per child per annum | C139: 0 | D139: 0 | Q139: 0 | R139: 0 | S139: 0 | Z139: 0 | AA139: 0 | AB139: 0 | AC139: TRUE | AD139: 0 | AF139: TRUE | AG139: TRUE
A140: 3.35 | B140: Capacity Building @ Rs.500/- per child per annum | C140: 0 | D140: 0 | Q140: 0 | R140: 0 | S140: 0 | Z140: 0 | AA140: =Y140+T140 -> 0 | AB140: 0 | AC140: TRUE | AD140: 0 | AF140: TRUE | AG140: TRUE
A141: 3.36 | B141: Physical / Self Defence training @ Rs. 200/- per child per annum. | C141: 0 | D141: 0 | Q141: 0 | R141: 0 | S141: 0 | Z141: 0 | AA141: 0 | AB141: 0 | AC141: TRUE | AD141: 0 | AF141: TRUE | AG141: TRUE
B142: Sub Total (Recurring) | C142: 0 | D142: 0 | Q142: 0 | R142: 0 | S142: 0 | Z142: 0 | AA142: 0 | AB142: 0 | AC142: TRUE | AD142: 0 | AF142: TRUE | AG142: TRUE
B143: Total (Recurring + Non Recurring) | S143: 0 | AB143: 0 | AC143: TRUE | AD143: 0 | AF143: TRUE | AG143: TRUE
B144: Total (A + B) | S144: 0 | AB144: 0 | AC144: TRUE | AD144: 0 | AF144: TRUE | AG144: TRUE
A145: 4 | B145: Transport/Escort Facility | C145: 0 | D145: 0 | Q145: 0 | R145: 0 | S145: 0 | Z145: =X145*Y145 -> 0 | AA145: =Y145+T145 -> 0 | AB145: 0 | AC145: TRUE | AD145: 0 | AF145: TRUE | AG145: TRUE
A146: 4.01 | B146: Children in remote habitation | C146: 0 | D146: 0 | Q146: 0 | R146: =P146 -> 0 | S146: 0 | Z146: 0 | AA146: =Y146 -> 0 | AB146: 0 | AC146: TRUE | AD146: 0 | AF146: TRUE | AG146: TRUE
A147: 4.02 | B147: Urban deprived children/children without adult protection | C147: 0 | D147: 0 | Q147: 0 | R147: 0 | S147: 0 | Z147: 0 | AA147: 0 | AB147: 0 | AC147: TRUE | AD147: 0 | AF147: TRUE | AG147: TRUE
B148: Sub Total | C148: 0 | D148: 0 | R148: =P148+K148 -> 0 | S148: 0 | AA148: =Y148+T148 -> 0 | AB148: 0 | AC148: TRUE | AD148: 0 | AF148: TRUE | AG148: TRUE
A149: 5 | B149: Reimbursement of Fee against 25% admission under Section 12(1)(c) of RTE Act 2009 (Entry Level) subject to upper limit of 20% of AWP&B guidelines issued by MHRD | C149: 0 | D149: 0 | Q149: 0 | R149: =P149 -> 0 | S149: 0 | Z149: =X149*Y149 -> 0 | AA149: =Y149 -> 0 | AB149: 0 | AC149: TRUE | AD149: 0 | AF149: TRUE | AG149: TRUE
B150: Sub Total | C150: 0 | D150: 0 | R150: 0 | S150: 0 | AA150: =Y150+T150 -> 0 | AB150: 0 | AC150: TRUE | AD150: 0 | AF150: TRUE | AG150: TRUE
A151: =+A149+1 -> 6 | B151: Special Training for mainstreaming of out of school children | C151: 0 | D151: 0 | R151: 0 | S151: 0 | AA151: 0 | AB151: 0 | AC151: TRUE | AD151: 0 | AF151: TRUE | AG151: TRUE
A152: 6.01 | B152: Residential (Fresh) | C152: 0 | D152: 0 | Q152: =O152*P152 -> 0 | R152: 0 | S152: 0 | Z152: =X152*Y152 -> 0 | AA152: 0 | AB152: 0 | AC152: TRUE | AD152: 0 | AF152: TRUE | AG152: TRUE
B153: (a) 12 months | C153: 0 | D153: 0 | I153: =C153-E153 -> 0 | J153: =D153-F153 -> 0 | O153: 0.2 | Q153: 0 | R153: =P153 -> 0 | S153: 0 | X153: 0.2 | Z153: 0 | AA153: =Y153 -> 0 | AB153: 0 | AC153: TRUE | AD153: 0 | AF153: TRUE | AG153: TRUE
B154: (b) 9 months | C154: 0 | D154: 0 | I154: =C154-E154 -> 0 | J154: =D154-F154 -> 0 | Q154: 0 | R154: 0 | S154: 0 | Z154: 0 | AA154: 0 | AB154: 0 | AC154: TRUE | AD154: 0 | AF154: TRUE | AG154: TRUE
B155: (c) 6 months | C155: 0 | D155: 0 | I155: 0 | J155: 0 | Q155: 0 | R155: 0 | S155: 0 | Z155: 0 | AA155: 0 | AB155: 0 | AC155: TRUE | AD155: 0 | AF155: TRUE | AG155: TRUE
B156: (d) 3 months | C156: 0 | D156: 0 | I156: 0 | J156: 0 | Q156: 0 | R156: 0 | S156: 0 | Z156: 0 | AA156: 0 | AB156: 0 | AC156: TRUE | AD156: 0 | AF156: TRUE | AG156: TRUE
B157: Sub Total | C157: 0 | D157: 0 | E157: =SUM(E153:E156) -> 0 | F157: 0 | G157: 0 | H157: 0 | I157: 0 | J157: 0 | K157: 0 | L157: 0 | M157: 0 | N157: 0 | P157: 0 | Q157: 0 | R157: 0 | S157: 0 | V157: =SUM(V153:V156) -> 0 | W157: 0 | Y157: =SUM(Y153:Y156) -> 0 | Z157: 0 | AA157: =Y157+T157 -> 0 | AB157: 0 | AC157: TRUE | AD157: 0 | AF157: TRUE | AG157: TRUE
A158: =+A152+0.01 -> 6.02 | B158: Residential (Continuing from previous year) | C158: 0 | D158: 0 | Q158: 0 | R158: 0 | S158: 0 | Z158: 0 | AA158: 0 | AB158: 0 | AC158: TRUE | AD158: 0 | AF158: TRUE | AG158: TRUE
B159: (a) 12 months | C159: 0 | D159: 0 | I159: =C159-E159 -> 0 | J159: =D159-F159 -> 0 | Q159: =O159*P159 -> 0 | R159: 0 | S159: 0 | Z159: =X159*Y159 -> 0 | AA159: =Y159+V159+T159 -> 0 | AB159: 0 | AC159: TRUE | AD159: 0 | AF159: TRUE | AG159: TRUE
B160: (b) 9 months | C160: 0 | D160: 0 | I160: 0 | J160: 0 | Q160: 0 | R160: =P160+M160+K160 -> 0 | S160: =Q160+N160+L160 -> 0 | Z160: 0 | AA160: 0 | AB160: 0 | AC160: TRUE | AD160: 0 | AF160: TRUE | AG160: TRUE
B161: (c) 6 months | C161: 0 | D161: 0 | I161: 0 | J161: 0 | Q161: 0 | R161: 0 | S161: 0 | Z161: 0 | AA161: 0 | AB161: 0 | AC161: TRUE | AD161: 0 | AF161: TRUE | AG161: TRUE
B162: (d) 3 months | C162: 0 | D162: 0 | I162: 0 | J162: 0 | Q162: 0 | R162: 0 | S162: 0 | Z162: 0 | AA162: 0 | AB162: 0 | AC162: TRUE | AD162: 0 | AF162: TRUE | AG162: TRUE
B163: Sub Total | C163: 0 | D163: 0 | E163: 0 | F163: 0 | I163: 0 | J163: 0 | K163: 0 | L163: 0 | M163: 0 | N163: 0 | Q163: 0 | R163: 0 | S163: 0 | V163: 0 | W163: 0 | Z163: 0 | AA163: 0 | AB163: 0 | AC163: TRUE | AD163: 0 | AF163: TRUE | AG163: TRUE
A164: 6.03 | B164: Non-Residential (Fresh) | C164: 0 | D164: 0 | Q164: 0 | R164: 0 | S164: 0 | AA164: 0 | AB164: 0 | AC164: TRUE | AD164: 0 | AF164: TRUE | AG164: TRUE
B165: (a) 12 months | C165: 257 | D165: 15.42 | E165: =C165 -> 257 | F165: =D165 -> 15.42 | G165: =E165/C165*100 -> 100 | H165: =F165/D165*100 -> 100 | I165: =C165-E165 -> 0 | J165: =D165-F165 -> 0 | O165: 0.06 | P165: 761 | Q165: =O165*P165 -> 45.66 | R165: 761 | S165: 45.66 | X165: 0.06 | Y165: 761 | Z165: =X165*Y165 -> 45.66 | AA165: 761 | AB165: 45.66 | AC165: TRUE | AD165: 45.66 | AE165: =+AB165=AD165 -> TRUE | AF165: TRUE | AG165: TRUE
B166: (b) 9 months | C166: 0 | D166: 0 | E166: =C166 -> 0 | F166: =D166 -> 0 | I166: 0 | J166: 0 | Q166: 0 | R166: =P166+M166+K166 -> 0 | S166: =Q166+N166+L166 -> 0 | Z166: 0 | AA166: 0 | AB166: 0 | AC166: TRUE | AD166: 0 | AE166: =+AB166=AD166 -> TRUE | AF166: TRUE | AG166: TRUE
B167: (c) 6 months | C167: 0 | D167: 0 | E167: 0 | F167: 0 | I167: 0 | J167: 0 | Q167: 0 | R167: 0 | S167: 0 | Z167: 0 | AA167: 0 | AB167: 0 | AC167: TRUE | AD167: 0 | AE167: TRUE | AF167: TRUE | AG167: TRUE
B168: (d) 3 months | C168: 21 | D168: 0 | E168: 21 | F168: 0 | I168: 0 | J168: 0 | Q168: 0 | R168: 0 | S168: 0 | Z168: 0 | AA168: 0 | AB168: 0 | AC168: TRUE | AD168: 0 | AE168: TRUE | AF168: TRUE | AG168: TRUE
B169: Sub Total | C169: 278 | D169: 15.42 | E169: =SUM(E165:E168) -> 278 | F169: =SUM(F165:F168) -> 15.42 | I169: =SUM(I165:I168) -> 0 | J169: 0 | K169: 0 | L169: 0 | M169: 0 | N169: 0 | P169: =SUM(P165:P168) -> 761 | Q169: =SUM(Q165:Q168) -> 45.66 | R169: 761 | S169: 45.66 | V169: =SUM(V165:V168) -> 0 | W169: 0 | Y169: =SUM(Y165:Y168) -> 761 | Z169: =SUM(Z165:Z168) -> 45.66 | AA169: 761 | AB169: 45.66 | AC169: TRUE | AE169: FALSE | AG169: TRUE
A170: 6.04 | B170: Non-Residential (Continuing from previous year) | C170: 0 | D170: 0 | Q170: 0 | R170: 0 | S170: 0 | Z170: 0 | AA170: 0 | AB170: 0 | AC170: TRUE | AD170: 0 | AE170: TRUE | AF170: TRUE | AG170: TRUE
B171: (a) 12 months | C171: 284 | D171: 17.04 | E171: =C171 -> 284 | F171: =D171 -> 17.04 | G171: 100 | H171: 100 | I171: =C171-E171 -> 0 | J171: =D171-F171 -> 0 | O171: 0.06 | P171: 197 | Q171: =O171*P171 -> 11.82 | R171: 197 | S171: 11.82 | X171: 0.06 | Y171: 197 | Z171: =X171*Y171 -> 11.82 | AA171: 197 | AB171: 11.82 | AC171: TRUE | AD171: 11.82 | AE171: TRUE | AF171: TRUE | AG171: TRUE
B172: (b) 9 months | C172: 0 | D172: 0 | E172: =C172 -> 0 | F172: =D172 -> 0 | I172: 0 | J172: 0 | Q172: 0 | R172: 0 | S172: 0 | Z172: 0 | AA172: 0 | AB172: 0 | AC172: TRUE | AD172: 0 | AE172: TRUE | AF172: TRUE | AG172: TRUE
B173: (c) 6 months | C173: 0 | D173: 0 | E173: 0 | F173: 0 | I173: 0 | J173: 0 | Q173: 0 | R173: 0 | S173: 0 | Z173: 0 | AA173: 0 | AB173: 0 | AC173: TRUE | AD173: 0 | AE173: TRUE | AF173: TRUE | AG173: TRUE
B174: (d) 3 months | C174: 0 | D174: 0 | E174: 0 | F174: 0 | I174: 0 | J174: 0 | Q174: 0 | R174: 0 | S174: 0 | Z174: 0 | AA174: 0 | AB174: 0 | AC174: TRUE | AD174: 0 | AE174: TRUE | AF174: TRUE | AG174: TRUE
B175: Sub Total | C175: 284 | D175: 17.04 | E175: =SUM(E171:E174) -> 284 | F175: 17.04 | G175: 100 | H175: 100 | I175: 0 | J175: 0 | K175: 0 | L175: 0 | M175: 0 | N175: 0 | P175: =SUM(P171:P174) -> 197 | Q175: =SUM(Q171:Q174) -> 11.82 | R175: 197 | S175: 11.82 | V175: =SUM(V171:V174) -> 0 | W175: 0 | Y175: =SUM(Y171:Y174) -> 197 | Z175: =SUM(Z171:Z174) -> 11.82 | AA175: 197 | AB175: 11.82 | AC175: TRUE | AE175: FALSE | AF175: FALSE | AG175: TRUE
A176: 6.05 | B176: Madarasa/Maktab | C176: 0 | D176: 0 | Q176: 0 | R176: 0 | S176: 0 | Z176: 0 | AA176: 0 | AB176: 0 | AC176: TRUE | AD176: 0 | AE176: TRUE | AF176: TRUE | AG176: TRUE
B177: (a) 12 months | C177: 0 | D177: 0 | I177: =C177-E177 -> 0 | J177: =D177-F177 -> 0 | Q177: =O177*P177 -> 0 | R177: 0 | S177: 0 | Z177: =X177*Y177 -> 0 | AA177: 0 | AB177: 0 | AC177: TRUE | AD177: 0 | AE177: TRUE | AF177: TRUE | AG177: TRUE
B178: (b) 9 months | C178: 0 | D178: 0 | I178: 0 | J178: 0 | Q178: 0 | R178: 0 | S178: 0 | Z178: 0 | AA178: 0 | AB178: 0 | AC178: TRUE | AD178: 0 | AE178: TRUE | AF178: TRUE | AG178: TRUE
B179: (c) 6 months | C179: 0 | D179: 0 | I179: 0 | J179: 0 | Q179: 0 | R179: 0 | S179: 0 | Z179: 0 | AA179: 0 | AB179: 0 | AC179: TRUE | AD179: 0 | AE179: TRUE | AF179: TRUE | AG179: TRUE
B180: (d) 3 months | C180: 0 | D180: 0 | I180: 0 | J180: 0 | Q180: 0 | R180: 0 | S180: 0 | Z180: 0 | AA180: 0 | AB180: 0 | AC180: TRUE | AD180: 0 | AE180: TRUE | AF180: TRUE | AG180: TRUE
B181: Sub Total | C181: 0 | D181: 0 | E181: =SUM(E177:E180) -> 0 | F181: =SUM(F177:F180) -> 0 | I181: =SUM(I177:I180) -> 0 | J181: 0 | K181: 0 | L181: 0 | M181: 0 | N181: 0 | O181: 0 | P181: =SUM(P177:P180) -> 0 | Q181: =SUM(Q177:Q180) -> 0 | R181: 0 | S181: 0 | V181: =SUM(V177:V180) -> 0 | W181: 0 | X181: 0 | Y181: =SUM(Y177:Y180) -> 0 | Z181: =SUM(Z177:Z180) -> 0 | AA181: 0 | AB181: 0 | AC181: TRUE | AD181: 0 | AE181: TRUE | AF181: TRUE | AG181: TRUE
A182: 6.06 | B182: Seasonal Hostel (Residential) | C182: 0 | D182: 0 | Q182: 0 | R182: 0 | S182: 0 | Z182: 0 | AA182: 0 | AB182: 0 | AC182: TRUE | AD182: 0 | AE182: TRUE | AF182: TRUE | AG182: TRUE
B183: (a) 12 months | C183: 0 | D183: 0 | I183: =C183-E183 -> 0 | J183: =D183-F183 -> 0 | Q183: =O183*P183 -> 0 | R183: 0 | S183: 0 | Z183: =X183*Y183 -> 0 | AA183: 0 | AB183: 0 | AC183: TRUE | AD183: 0 | AE183: TRUE | AF183: TRUE | AG183: TRUE
B184: (b) 9 months | C184: 0 | D184: 0 | I184: 0 | J184: 0 | Q184: 0 | R184: 0 | S184: 0 | Z184: 0 | AA184: 0 | AB184: 0 | AC184: TRUE | AD184: 0 | AE184: TRUE | AF184: TRUE | AG184: TRUE
B185: (c) 6 months | C185: 0 | D185: 0 | I185: 0 | J185: 0 | Q185: 0 | R185: 0 | S185: 0 | Z185: 0 | AA185: 0 | AB185: 0 | AC185: TRUE | AD185: 0 | AE185: TRUE | AF185: TRUE | AG185: TRUE
B186: (d) 3 months | C186: 0 | D186: 0 | I186: 0 | J186: 0 | Q186: 0 | R186: 0 | S186: 0 | Z186: 0 | AA186: 0 | AB186: 0 | AC186: TRUE | AD186: 0 | AE186: TRUE | AF186: TRUE | AG186: TRUE
B187: Sub Total | C187: 0 | D187: 0 | E187: =SUM(E183:E186) -> 0 | F187: 0 | G187: 0 | H187: 0 | I187: 0 | J187: 0 | K187: 0 | L187: 0 | M187: 0 | N187: 0 | P187: =SUM(P183:P186) -> 0 | Q187: 0 | R187: 0 | S187: 0 | V187: =SUM(V183:V186) -> 0 | W187: 0 | Y187: =SUM(Y183:Y186) -> 0 | Z187: =SUM(Z183:Z186) -> 0 | AA187: 0 | AB187: 0 | AC187: TRUE | AD187: 0 | AE187: TRUE | AF187: TRUE | AG187: TRUE
A188: 6.07 | B188: Seasonal Hostel (Non Residential) | C188: 0 | D188: 0 | Q188: 0 | R188: 0 | S188: 0 | Z188: 0 | AA188: 0 | AB188: 0 | AC188: TRUE | AD188: 0 | AE188: TRUE | AF188: TRUE | AG188: TRUE
B189: (a) 12 months | C189: 0 | D189: 0 | I189: =C189-E189 -> 0 | J189: =D189-F189 -> 0 | Q189: =O189*P189 -> 0 | R189: 0 | S189: 0 | Z189: =X189*Y189 -> 0 | AA189: 0 | AB189: 0 | AC189: TRUE | AD189: 0 | AE189: TRUE | AF189: TRUE | AG189: TRUE
B190: (b) 9 months | C190: 0 | D190: 0 | I190: 0 | J190: 0 | Q190: 0 | R190: 0 | S190: 0 | Z190: 0 | AA190: 0 | AB190: 0 | AC190: TRUE | AD190: 0 | AE190: TRUE | AF190: TRUE | AG190: TRUE
B191: (c) 6 months | C191: 0 | D191: 0 | I191: 0 | J191: 0 | Q191: 0 | R191: 0 | S191: 0 | Z191: 0 | AA191: 0 | AB191: 0 | AC191: TRUE | AD191: 0 | AE191: TRUE | AF191: TRUE | AG191: TRUE
B192: (d) 3 months | C192: 0 | D192: 0 | I192: 0 | J192: 0 | Q192: 0 | R192: 0 | S192: 0 | Z192: 0 | AA192: 0 | AB192: 0 | AC192: TRUE | AD192: 0 | AE192: TRUE | AF192: TRUE | AG192: TRUE
B193: Sub Total | C193: 0 | D193: 0 | E193: =SUM(E189:E192) -> 0 | F193: 0 | G193: 0 | H193: 0 | I193: 0 | J193: 0 | K193: 0 | L193: 0 | M193: 0 | N193: 0 | O193: 0 | P193: =SUM(P189:P192) -> 0 | Q193: 0 | R193: 0 | S193: 0 | V193: =SUM(V189:V192) -> 0 | W193: 0 | X193: 0 | Y193: =SUM(Y189:Y192) -> 0 | Z193: =SUM(Z189:Z192) -> 0 | AA193: 0 | AB193: 0 | AC193: TRUE | AD193: 0 | AE193: TRUE | AF193: TRUE | AG193: TRUE
B194: Total | C194: 562 | D194: 32.46 | E194: =SUM(E193,E187,E181,E175,E169,E163,E157) -> 562 | F194: =SUM(F193,F187,F181,F175,F169,F163,F157) -> 32.46 | G194: 100 | H194: 100 | I194: =SUM(I193,I187,I181,I175,I169,I163,I157) -> 0 | J194: 0 | K194: 0 | L194: 0 | M194: 0 | N194: 0 | P194: =SUM(P193,P187,P181,P175,P169,P163,P157) -> 958 | Q194: =SUM(Q193,Q187,Q181,Q175,Q169,Q163,Q157) -> 57.48 | R194: 958 | S194: 57.48 | V194: =SUM(V193,V187,V181,V175,V169,V163,V157) -> 0 | W194: 0 | Y194: =SUM(Y193,Y187,Y181,Y175,Y169,Y163,Y157) -> 958 | Z194: =SUM(Z193,Z187,Z181,Z175,Z169,Z163,Z157) -> 57.48 | AA194: 958 | AB194: 57.48 | AC194: TRUE | AE194: FALSE | AF194: FALSE | AG194: TRUE
A195: II | B195: RETENTION | C195: 0 | D195: 0 | Q195: =O195*P195 -> 0 | R195: 0 | S195: 0 | Z195: =X195*Y195 -> 0 | AA195: 0 | AB195: 0 | AC195: TRUE | AD195: 0 | AE195: TRUE | AF195: TRUE | AG195: TRUE
A196: 7 | B196: Free Text Books | C196: 0 | D196: 0 | Q196: 0 | R196: =P196+M196+K196 -> 0 | S196: =Q196+N196+L196 -> 0 | Z196: 0 | AA196: 0 | AB196: 0 | AC196: TRUE | AD196: 0 | AE196: TRUE | AF196: TRUE | AG196: TRUE
A197: 7.01 | B197: Free Text Books (P) | C197: 0 | D197: 0 | I197: =C197-E197 -> 0 | J197: =D197-F197 -> 0 | Q197: 0 | R197: 0 | S197: 0 | Z197: 0 | AA197: 0 | AB197: 0 | AC197: TRUE | AD197: 0 | AE197: TRUE | AF197: TRUE | AG197: TRUE
B198: (a) Class I & II | C198: 7621 | D198: 11.4315 | E198: =C198 -> 7621 | F198: =D198 -> 11.4315 | I198: 0 | J198: 0 | O198: 0.0015 | P198: 7464 | Q198: =O198*P198 -> 11.196 | R198: 7464 | S198: 11.196 | X198: 0.0015 | Y198: 7464 | Z198: =X198*Y198 -> 11.196 | AA198: 7464 | AB198: 11.196 | AC198: TRUE | AD198: 11.196 | AE198: TRUE | AF198: TRUE | AG198: TRUE
B199: (b) Braille Books Class I & II | C199: 1 | D199: 0.0015 | E199: =C199 -> 1 | F199: =D199 -> 0.0015 | I199: 0 | J199: 0 | O199: 0.0015 | Q199: =O199*P199 -> 0 | R199: 0 | S199: 0 | X199: 0.0015 | Z199: =X199*Y199 -> 0 | AA199: 0 | AB199: 0 | AC199: TRUE | AD199: 0 | AE199: TRUE | AF199: TRUE | AG199: TRUE
B200: (c) Large Print Books Class I & II | C200: 8 | D200: 0.012 | E200: 8 | F200: 0.012 | I200: 0 | J200: 0 | O200: 0.0015 | Q200: 0 | R200: 0 | S200: 0 | X200: 0.0015 | Z200: 0 | AA200: 0 | AB200: 0 | AC200: TRUE | AD200: 0 | AE200: TRUE | AF200: TRUE | AG200: TRUE
... 326 more rows

Sheet hmr
B1: District : Hamirpur
A2: S.No. | B2: Activity | C2: Year 2016-17 | K2: Outlay Proposed for the year 2017-18 | T2: Outlay Recommended for 2017-18
C3: Outlay approved by PAB (including spillover) | E3: Achievement during the year | I3: Savings | K3: Spill Over | M3: Deferred laibility | O3: Fresh | R3: Total | T3: Spill Over | V3: Deferred laibility of 2014-15 | X3: Fresh | AA3: Total
C4: Phy. | D4: Fin | E4: Phy. | F4: Fin. | G4: Phy. (%) | H4: Fin. (%) | I4: Phy. | J4: Fin. | K4: Phy. | L4: Fin. | M4: Phy. | N4: Fin. | O4: Unit Cost | P4: Phy. | Q4: Fin. | R4: Phy. | S4: Fin. | T4: Phy. | U4: Fin. | V4: Phy. | W4: Fin. | X4: Unit Cost | Y4: Phy. | Z4: Fin. | AA4: Phy. | AB4: Fin.
A5: I | B5: ACCESS | C5: 0 | R5: =P5 -> 0 | AA5: =Y5 -> 0
B6: SSA | C6: 0 | R6: =P6 -> 0 | AA6: =Y6 -> 0
A7: 1 | B7: Opening of New Schools | C7: 0 | D7: 0 | I7: 0 | J7: 0 | R7: 0 | S7: =Q7+L7 -> 0 | AA7: 0 | AB7: =Z7+U7 -> 0
A8: 1.01 | B8: New Primary School | C8: 0 | D8: 0 | I8: 0 | J8: 0 | P8: 0 | Q8: =O8*P8 -> 0 | R8: 0 | S8: =Q8+N8+L8 -> 0 | Y8: 0 | Z8: =X8*Y8 -> 0 | AA8: 0 | AB8: =Z8+W8+U8 -> 0 | AC8: =+Z8=Q8 -> TRUE | AD8: =+AB8 -> 0 | AF8: =+X8*Y8=Z8 -> TRUE | AG8: =+U8+W8+Z8=AB8 -> TRUE
A9: 1.02 | B9: Upgradation of PS to UPS | C9: 0 | D9: 0 | I9: 0 | J9: 0 | P9: 1 | Q9: =O9*P9 -> 0 | R9: 1 | S9: =Q9+N9+L9 -> 0 | Y9: 1 | Z9: =X9*Y9 -> 0 | AA9: 1 | AB9: =Z9+W9+U9 -> 0 | AC9: =+Z9=Q9 -> TRUE | AD9: =+AB9 -> 0 | AF9: =+X9*Y9=Z9 -> TRUE | AG9: =+U9+W9+Z9=AB9 -> TRUE
A10: 1.03 | B10: Composite Schools | C10: 0 | D10: 0 | I10: 0 | J10: 0 | Q10: 0 | R10: 0 | S10: 0 | Z10: 0 | AA10: 0 | AB10: 0 | AC10: TRUE | AD10: 0 | AF10: TRUE | AG10: TRUE
A11: 1.04 | B11: Residential schools for specific category of children | C11: 0 | D11: 0 | I11: 0 | J11: 0 | Q11: 0 | R11: 0 | S11: 0 | Z11: 0 | AA11: 0 | AB11: 0 | AC11: TRUE | AD11: 0 | AF11: TRUE | AG11: TRUE
A12: 1.05 | B12: Residential Hostel | C12: 0 | D12: 0 | I12: 0 | J12: 0 | Q12: 0 | R12: 0 | S12: 0 | Z12: 0 | AA12: 0 | AB12: 0 | AC12: TRUE | AD12: 0 | AF12: TRUE | AG12: TRUE
A13: 1.06 | B13: Integration of Class V with primary schools | C13: 0 | D13: 0 | I13: 0 | J13: 0 | Q13: 0 | R13: 0 | S13: 0 | Z13: 0 | AA13: 0 | AB13: 0 | AC13: TRUE | AD13: 0 | AF13: TRUE | AG13: TRUE
A14: 1.07 | B14: Integration of Class VIII with upper primary schools | C14: 0 | D14: 0 | I14: 0 | J14: 0 | Q14: 0 | R14: =P14 -> 0 | S14: 0 | Z14: 0 | AA14: =Y14 -> 0 | AB14: 0 | AC14: TRUE | AD14: 0 | AF14: TRUE | AG14: TRUE
A15: 2 | B15: Residential Schools for specific category of children | C15: 0 | D15: 0 | I15: 0 | J15: 0 | Q15: 0 | R15: =P15+K15 -> 0 | S15: 0 | Z15: 0 | AA15: =Y15+T15 -> 0 | AB15: 0 | AC15: TRUE | AD15: 0 | AF15: TRUE | AG15: TRUE
B16: 50 children | C16: 0 | D16: 0 | Q16: 0 | R16: 0 | S16: 0 | Z16: 0 | AA16: 0 | AB16: 0 | AC16: TRUE | AD16: 0 | AF16: TRUE | AG16: TRUE
B17: Non-recurring (one time grant) | C17: 0 | D17: 0 | Q17: 0 | R17: =P17+K17 -> 0 | S17: 0 | Z17: 0 | AA17: 0 | AB17: 0 | AC17: TRUE | AD17: 0 | AF17: TRUE | AG17: TRUE
A18: 2.01 | B18: Furniture/ Equipment (including kitchen) | C18: 0 | D18: 0 | I18: 0 | J18: 0 | Q18: 0 | R18: =P18 -> 0 | S18: 0 | Z18: 0 | AA18: =Y18 -> 0 | AB18: 0 | AC18: TRUE | AD18: 0 | AF18: TRUE | AG18: TRUE
A19: 2.02 | B19: TLM and equipment including library books | C19: 0 | D19: 0 | I19: 0 | J19: 0 | Q19: 0 | R19: 0 | S19: 0 | Z19: 0 | AA19: 0 | AB19: 0 | AC19: TRUE | AD19: 0 | AF19: TRUE | AG19: TRUE
A20: 2.03 | B20: Bedding (new) | C20: 0 | D20: 0 | I20: 0 | J20: 0 | Q20: 0 | R20: 0 | S20: 0 | Z20: 0 | AA20: 0 | AB20: 0 | AC20: TRUE | AD20: 0 | AF20: TRUE | AG20: TRUE
A21: 2.04 | B21: Replacement of bedding (once in 3 years) | C21: 0 | D21: 0 | I21: 0 | J21: 0 | Q21: 0 | R21: 0 | S21: 0 | Z21: 0 | AA21: 0 | AB21: 0 | AC21: TRUE | AD21: 0 | AF21: TRUE | AG21: TRUE
B22: Sub Total (Non Recurring) | C22: 0 | D22: 0 | Q22: 0 | R22: 0 | S22: 0 | Z22: 0 | AA22: =Y22+T22 -> 0 | AB22: 0 | AC22: TRUE | AD22: 0 | AF22: TRUE | AG22: TRUE
B23: Recurring (50 children) | C23: 0 | D23: 0 | Q23: 0 | R23: 0 | S23: 0 | Z23: =X23*Y23 -> 0 | AA23: 0 | AB23: 0 | AC23: TRUE | AD23: 0 | AF23: TRUE | AG23: TRUE
A24: 2.05 | B24: Maintenance per child Per month @ Rs.1500/- | C24: 0 | D24: 0 | I24: 0 | J24: 0 | Q24: 0 | R24: =P24 -> 0 | S24: 0 | Z24: 0 | AA24: =Y24 -> 0 | AB24: 0 | AC24: TRUE | AD24: 0 | AF24: TRUE | AG24: TRUE
A25: 2.06 | B25: Stipend per child per month @ Rs.100/- | C25: 0 | D25: 0 | I25: 0 | J25: 0 | Q25: 0 | R25: 0 | S25: 0 | Z25: 0 | AA25: 0 | AB25: 0 | AC25: TRUE | AD25: 0 | AF25: TRUE | AG25: TRUE
A26: 2.07 | B26: Supplementary TLM, Stationery and other educational material @Rs.1000/- per child per annum | C26: 0 | D26: 0 | I26: 0 | J26: 0 | Q26: 0 | R26: 0 | S26: 0 | Z26: 0 | AA26: 0 | AB26: 0 | AC26: TRUE | AD26: 0 | AF26: TRUE | AG26: TRUE
A27: 2.08 | B27: Salaries | C27: 0 | D27: 0 | I27: 0 | J27: 0 | Q27: 0 | R27: 0 | S27: 0 | Z27: 0 | AA27: 0 | AB27: 0 | AC27: TRUE | AD27: 0 | AF27: TRUE | AG27: TRUE
A28: (a) | B28: 1 Warden @ Rs.25000/- per month | C28: 0 | D28: 0 | I28: 0 | J28: 0 | Q28: 0 | R28: 0 | S28: 0 | Z28: 0 | AA28: 0 | AB28: 0 | AC28: TRUE | AD28: 0 | AF28: TRUE | AG28: TRUE
A29: (b) | B29: 4 Fulltime teachers as per RTE Norms @ Rs. 20,000/- per month per teacher | C29: 0 | D29: 0 | I29: 0 | J29: 0 | Q29: 0 | R29: 0 | S29: 0 | Z29: 0 | AA29: 0 | AB29: 0 | AC29: TRUE | AD29: 0 | AF29: TRUE | AG29: TRUE
A30: (c) | B30: 2 Urdu Teachers (only for Blocks with muslim population above 20% and select urban areas) @ Rs.12,000/- per month per teacher. | C30: 0 | D30: 0 | I30: 0 | J30: 0 | Q30: 0 | R30: 0 | S30: 0 | Z30: 0 | AA30: 0 | AB30: 0 | AC30: TRUE | AD30: 0 | AF30: TRUE | AG30: TRUE
A31: (d) | B31: 3 Part time teachers @ Rs.5,000/- per month per teacher | C31: 0 | D31: 0 | I31: 0 | J31: 0 | Q31: 0 | R31: 0 | S31: 0 | Z31: 0 | AA31: 0 | AB31: 0 | AC31: TRUE | AD31: 0 | AF31: TRUE | AG31: TRUE
A32: (e) | B32: 1 Full time Accountant @ Rs. 10,000/- per month | C32: 0 | D32: 0 | I32: 0 | J32: 0 | Q32: 0 | R32: 0 | S32: 0 | Z32: 0 | AA32: 0 | AB32: 0 | AC32: TRUE | AD32: 0 | AF32: TRUE | AG32: TRUE
A33: (f) | B33: 2 Support staff - (Accountant/Assistant, Peon, Chowkidar) @ Rs. 5,000/- per month per staff | C33: 0 | D33: 0 | I33: 0 | J33: 0 | Q33: 0 | R33: 0 | S33: 0 | Z33: 0 | AA33: 0 | AB33: 0 | AC33: TRUE | AD33: 0 | AF33: TRUE | AG33: TRUE
A34: (g) | B34: 1 Head Cook @ Rs. 6,000/- per month and upto 2 Asstt. Cooks @ Rs. 4,500/- per month per cook | C34: 0 | D34: 0 | I34: 0 | J34: 0 | Q34: 0 | R34: 0 | S34: 0 | Z34: 0 | AA34: 0 | AB34: 0 | AC34: TRUE | AD34: 0 | AF34: TRUE | AG34: TRUE
A35: 2.09 | B35: Specific Skill training @ Rs.1000/- per annum per child | C35: 0 | D35: 0 | I35: 0 | J35: 0 | Q35: 0 | R35: 0 | S35: 0 | Z35: 0 | AA35: 0 | AB35: 0 | AC35: TRUE | AD35: 0 | AF35: TRUE | AG35: TRUE
A36: 2.1 | B36: Electricity / water charges @ Rs. 1000/- per annum per child | C36: 0 | D36: 0 | I36: 0 | J36: 0 | Q36: 0 | R36: 0 | S36: 0 | Z36: 0 | AA36: 0 | AB36: 0 | AC36: TRUE | AD36: 0 | AF36: TRUE | AG36: TRUE
A37: =+A36+0.01 -> 2.11 | B37: Medical care/contingencies @ Rs.1250/- per annum per child | C37: 0 | D37: 0 | I37: 0 | J37: 0 | Q37: 0 | R37: 0 | S37: 0 | Z37: 0 | AA37: 0 | AB37: 0 | AC37: TRUE | AD37: 0 | AF37: TRUE | AG37: TRUE
A38: =+A37+0.01 -> 2.12 | B38: Maintenance @ Rs. 750/- per child per annum | C38: 0 | D38: 0 | I38: 0 | J38: 0 | Q38: 0 | R38: 0 | S38: 0 | Z38: 0 | AA38: 0 | AB38: 0 | AC38: TRUE | AD38: 0 | AF38: TRUE | AG38: TRUE
A39: 2.13 | B39: Miscellaneous @ Rs. 750/- per child per annum | C39: 0 | D39: 0 | I39: 0 | J39: 0 | Q39: 0 | R39: 0 | S39: 0 | Z39: 0 | AA39: 0 | AB39: 0 | AC39: TRUE | AD39: 0 | AF39: TRUE | AG39: TRUE
A40: 2.14 | B40: Preparatory camps @ Rs. 300/- per child per annum | C40: 0 | D40: 0 | I40: 0 | J40: 0 | Q40: 0 | R40: 0 | S40: 0 | Z40: 0 | AA40: 0 | AB40: 0 | AC40: TRUE | AD40: 0 | AF40: TRUE | AG40: TRUE
A41: 2.15 | B41: P.T.A / school functions @ Rs. 300/- per child per annum | C41: 0 | D41: 0 | I41: 0 | J41: 0 | Q41: 0 | R41: 0 | S41: 0 | Z41: 0 | AA41: 0 | AB41: 0 | AC41: TRUE | AD41: 0 | AF41: TRUE | AG41: TRUE
A42: 2.16 | B42: Provision of Rent @ Rs. 10,000/- per child per annum | C42: 0 | D42: 0 | I42: 0 | J42: 0 | Q42: 0 | R42: 0 | S42: 0 | Z42: 0 | AA42: 0 | AB42: 0 | AC42: TRUE | AD42: 0 | AF42: TRUE | AG42: TRUE
A43: 2.17 | B43: Capacity Building @ Rs. 500/- per child per annum | C43: 0 | D43: 0 | I43: 0 | J43: 0 | Q43: 0 | R43: 0 | S43: 0 | Z43: 0 | AA43: 0 | AB43: 0 | AC43: TRUE | AD43: 0 | AF43: TRUE | AG43: TRUE
A44: 2.18 | B44: Physical / Self Defence Training @ Rs.200/- per child per annum | C44: 0 | D44: 0 | I44: 0 | J44: 0 | Q44: 0 | R44: 0 | S44: 0 | Z44: 0 | AA44: 0 | AB44: 0 | AC44: TRUE | AD44: 0 | AF44: TRUE | AG44: TRUE
B45: Sub Total (Recurring) | C45: 0 | D45: 0 | Q45: 0 | R45: 0 | S45: 0 | Z45: 0 | AA45: =Y45+T45 -> 0 | AB45: 0 | AC45: TRUE | AD45: 0 | AF45: TRUE | AG45: TRUE
B46: Total (Non Recurring + Recurring) | C46: 0 | D46: 0 | Q46: 0 | R46: 0 | S46: 0 | Z46: 0 | AA46: 0 | AB46: 0 | AC46: TRUE | AD46: 0 | AF46: TRUE | AG46: TRUE
B47: 100 children | C47: 0 | D47: 0 | Q47: =O47*P47 -> 0 | R47: 0 | S47: 0 | Z47: =X47*Y47 -> 0 | AA47: 0 | AB47: 0 | AC47: TRUE | AD47: 0 | AF47: TRUE | AG47: TRUE
B48: Non-recurring (one time grant) | C48: 0 | D48: 0 | Q48: 0 | R48: 0 | S48: 0 | Z48: 0 | AA48: 0 | AB48: 0 | AC48: TRUE | AD48: 0 | AF48: TRUE | AG48: TRUE
A49: 2.19 | B49: Furniture / Equipment (including kitchen equipment) | C49: 0 | D49: 0 | I49: 0 | J49: 0 | Q49: 0 | R49: =P49 -> 0 | S49: 0 | Z49: 0 | AA49: =Y49 -> 0 | AB49: 0 | AC49: TRUE | AD49: 0 | AF49: TRUE | AG49: TRUE
A50: =+A49+0.01 -> 2.2 | B50: TLM and equipment including library books (New) | C50: 0 | D50: 0 | I50: 0 | J50: 0 | Q50: 0 | R50: 0 | S50: 0 | Z50: 0 | AA50: 0 | AB50: 0 | AC50: TRUE | AD50: 0 | AF50: TRUE | AG50: TRUE
